Workbook

Sheet Contents
A1: 80 | M1: ESC USE ONLY
D2: ESSENTIAL SERVICES COMMISSION
D3: Water Price Review
D4: Financial Model Template
B7: Table of Contents | F7: Water Business: | H7: =+N24 -> Southern Rural Water | I7: =+O24 -> SRW
B8: Section & Sheet Titles | F8: Regulatory Period: | H8: 2018-19 to 2022-23 (Fourth) | N8: [Decision] | O8: [Month] | P8: [Year] | Q8: [Version]
F9: Model Name: | H9: =I7&"_Price Review Template_"&O9&P9&Q9 -> SRW_Price Review Template_Dec2016 - v1 | N9: Draft | O9: Dec | P9: 2016 | Q9: - v1 | R9: << Select
B10: a. | C10: =+KeyAssumptionsPriceControl_FO!B1 -> Key Assumptions Price Control | F10: Decision type: | H10: =+N9&" Decision" -> Draft Decision | N10: Draft | O10: Jan | P10: 2016 | Q10: - v1
B11: b. | C11: Expenditure Detail - Removed as it contained confidential information | N11: Final | O11: Feb | P11: 2017 | Q11: - v1.2
B12: c. | C12: =Opex_FO!B1 -> Operating Expenditure - Forecast | F12: Model Key: | O12: Mar | P12: 2018 | Q12: - v3
B13: d. | C13: =Opex_Breakdown!B1 -> Operating Expenditure - Breakdown | O13: Apr | P13: 2019 | Q13: - v3.1
B14: e. | C14: =+'Capex_FO input'!B1 -> Capital Expenditure - Forecast Input | G14: BLUE | H14: =+I7&" - DATA INPUT CELL" -> SRW - DATA INPUT CELL | O14: May | P14: 2020 | Q14: - v4
B15: f. | C15: =Capex_FO_AC!B1 -> Capital Expenditure - Asset Category Breakdown | O15: Jun | P15: 2021 | Q15: - v4.1
B16: g. | C16: =ExpSummary_FO!B1 -> Expenditure Summary | G16: YELLOW | H16: NOTES / INSTRUCTIONS | O16: Jul | Q16: - v5
B17: h. | C17: =+RenewalsAnnuity_FO!B1 -> Renewals annuity | O17: Aug | Q17: - v5.1
B18: i. | C18: =RollForward_FO!B1 -> Rolled forward regulatory asset base (RAB) | G18: GREY | H18: MODEL PARAMETERS / ASSUMPTIONS | O18: Sep | Q18: - v6
B19: j. | C19: =PrevPerAdj_FO!B1 -> Previous period adjustments | O19: Oct | Q19: - v6.1
B20: k. | C20: =RevenuePriceCap_FO!C1 -> Revenue forecast (price caps) | G20: WHITE | H20: FORMULA / HARDCODED VALUES | O20: Nov | Q20: - v7
B21: l. | C21: Revenue forecast (tariff basket) | O21: Dec | Q21: - v7.1
B22: m. | C22: =NotPres_FO!B1 -> Non Prescribed Services | G22: ORANGE | H22: FORMULA DIFFERENT TO ADJACENT CELL
B23: n. | C23: ='Finance&Tax_FO'!B1 -> Cash, debt and tax assumptions | N23: [Business]
B24: o. | C24: ='Rev&RAV_FO'!B1 -> Revenue requirement detail | G24: GREEN | H24: DATA FROM 2013 DECISION OR PERFORMANCE REPORT | N24: Southern Rural Water | O24: =+VLOOKUP(N24,N25:O42,2,FALSE) -> SRW
B25: p. | C25: =Indicators_FO!B1 -> Financial indicators | N25: Barwon Water | O25: BW | P25: Urban model
B26: q. | C26: =Outcomes!B1 -> Outcomes | G26: RED | H26: ERROR CHECK | N26: Central Highlands Water | O26: CHW | P26: Urban model
B27: r. | C27: =GSL!B1 -> Guaranteed Service Levels (GSL) | N27: City West Water | O27: CWW | P27: Urban model
N28: Coliban Water | O28: CW | P28: Urban model
N29: East Gippsland Water | O29: EGW | P29: Urban model
N30: Gippsland Water | O30: CGW | P30: Urban model
N31: Goulburn Valley Water | O31: GVW | P31: Urban model
N32: GWM Water | O32: GWMW | P32: GWMW model
N33: Lower Murray Water - Urban | O33: LMW-U | P33: Urban model
N34: Lower Murray Water - Rural | O34: LMW-R | P34: LMW-R model
N35: North East Water | O35: NEW | P35: Urban model
N36: South East Water | O36: SEW | P36: Urban model
N37: South Gippsland Water | O37: SGW | P37: Urban model
M38: >>>> | N38: Southern Rural Water | O38: SRW | P38: SRW model
N39: Wannon Water | O39: WNW | P39: Urban model
N40: Western Water | O40: WW | P40: Urban model
N41: Westernport Water | O41: WPW | P41: Urban model
N42: Yarra Valley Water | O42: YVW | P42: Urban model

Sheet KeyAssumptionsPriceControl_FO
A1: 80 | B1: Key Assumptions Price Control
B2: =+Contents!H7 -> Southern Rural Water
B3: Go to Table of Contents
L4: FIRST REG PERIOD | P4: SECOND REG PERIOD | U4: THIRD REG PERIOD | Z4: FOURTH REG PERIOD | AC4: FIFTH REG PERIOD
F6: Straight Line | K6: 2006 | L6: 2007 | M6: 2008 | N6: 2009 | O6: 2010 | P6: 2011 | Q6: 2012 | R6: 2013 | S6: 2014 | T6: 2015 | U6: 2016 | V6: 2017 | W6: 2018 | X6: 2019 | Y6: 2020 | Z6: 2021 | AA6: 2022 | AB6: 2023 | AC6: 2024 | AD6: 2025 | AE6: 2026 | AF6: 2027 | AG6: 2028
F7: Declining Balance | I7: 2003-04 | J7: 2004-05 | K7: =+CONCATENATE(K6-1,"-",RIGHT(K6,2)) -> 2005-06 | L7: =+CONCATENATE(L6-1,"-",RIGHT(L6,2)) -> 2006-07 | M7: 2007-08 | N7: 2008-09 | O7: 2009-10 | P7: 2010-11 | Q7: 2011-12 | R7: 2012-13 | S7: 2013-14 | T7: 2014-15 | U7: 2015-16 | V7: 2016-17 | W7: 2017-18 | X7: 2018-19 | Y7: 2019-20 | Z7: 2020-21 | AA7: 2021-22 | AB7: 2022-23 | AC7: 2023-24 | AD7: 2024-25 | AE7: 2025-26 | AF7: 2026-27 | AG7: 2027-28
E11: Inflation assumptions
W12: Estimate
F13: March quarter annual CPI | I13: 141.3 | J13: 144.1 | K13: 147.5 | L13: 151.9 | M13: 155.6 | N13: 162.2 | O13: 166.2 | P13: 171 | Q13: 176.7 | R13: 99.9 | S13: 102.4 | T13: 105.4 | U13: 106.8 | V13: 108.2 | W13: 110.5
F14: Inflation | J14: =+J13/I13-1 -> 0.01981599434 | K14: 0.02359472588 | L14: 0.02983050847 | M14: 0.02435813035 | N14: 0.04241645244 | O14: 0.02466091245 | P14: 0.02888086643 | Q14: 0.03333333333 | R14: 0.01584606678 | S14: =+IF(S13=0,$X$44,S13/R13-1) -> 0.02502502503 | T14: 0.029296875 | U14: 0.01328273245 | V14: 0.01310861423 | W14: 0.02125693161 | X14: 0.023 | Y14: 0.023 | Z14: 0.023 | AA14: 0.023 | AB14: 0.023 | AC14: 0.023 | AD14: 0.023 | AE14: 0.023 | AF14: 0.023 | AG14: 0.023
F15: Inflation factor | I15: 0.7871866295 | J15: 0.8027855153 | K15: 0.8217270195 | L15: 0.8462395543 | M15: 0.8668523677 | N15: 0.9036211699 | O15: 0.9259052925 | P15: 0.9526462396 | Q15: 0.9844011142 | R15: =+R13/$W$13 -> 0.9040723982 | S15: 0.9266968326 | T15: 0.9538461538 | U15: 0.9665158371 | V15: =+V13/$W$13 -> 0.9791855204 | W15: =+W13/$W$13 -> 1 | X15: =+W15*(1+X14) -> 1.023 | Y15: =+X15*(1+Y14) -> 1.046529 | Z15: 1.070599167 | AA15: 1.095222948 | AB15: 1.120413076 | AC15: 1.146182576 | AD15: 1.172544776 | AE15: 1.199513305 | AF15: 1.227102112 | AG15: 1.25532546
I16: CPI index re-referenced in 2012-13, shaded values have been hardcoded to lock in RAB value.
E21: Cost of debt - 10 year trailing average (Nominal)
V22: Estimate | W22: Estimate
E23: Cost of debt | L23: 0.06981666667 | M23: 0.07414 | N23: 0.0691525788 | O23: 0.07361870984 | P23: 0.07046784142 | Q23: 0.06308887941 | R23: 0.0526945046 | S23: 0.070525 | T23: 0.05360833333 | U23: 0.05270138413 | V23: 0.04908333333 | W23: 0.04908333333
E24: Re-financing weightings - average 10 yrs | L24: =1/10 -> 0.1 | M24: =1/10 -> 0.1 | N24: =1/10 -> 0.1 | O24: =1/10 -> 0.1 | P24: =1/10 -> 0.1 | Q24: 0.1 | R24: 0.1 | S24: 0.1 | T24: 0.1 | U24: 0.1 | V24: 0.1 | W24: 0.1 | X24: 0.1 | Y24: 0.1 | Z24: 0.1 | AA24: 0.1 | AB24: 0.1 | AC24: 0.1 | AD24: 0.1 | AE24: 0.1 | AF24: 0.1 | AG24: 0.1
E26: Cost of debt - 10 year trailing average | V26: =IF(U23<>"",SUMPRODUCT(L23:U23,L24:U24),"") -> 0.06498138982 | W26: =IF(V23<>"",SUMPRODUCT(M23:V23,M24:V24),"") -> 0.06290805649 | X26: =IF(W23<>"",SUMPRODUCT(N23:W23,N24:W24),"") -> 0.06040238982 | Y26: =IF(X23<>"",SUMPRODUCT(O23:X23,O24:X24),"") ->  | Z26: =IF(Y23<>"",SUMPRODUCT(P23:Y23,P24:Y24),"") -> 
E30: WACC assumptions (retained for historical purposes only) | U30: Regulatory Rate of Return (RRR) - Nominal
K32: 1st period | M32: 2nd period | O32: 3rd period | U32: Cost of Debt | X32: =+X26 -> 0.06040238982 | Y32: =+$X$32 -> 0.06040238982 | Z32: 0.06040238982 | AA32: 0.06040238982 | AB32: 0.06040238982 | AC32: 0.06040238982 | AD32: 0.06040238982 | AE32: 0.06040238982 | AF32: 0.06040238982 | AG32: 0.06040238982 | AI32: << Linked to Benchmark tax liability calculation (Rev&RAV_FO)
E33: Parameters
F34: Risk Free Rate (Real) | K34: =+HLOOKUP(Contents!$I$7&1,Determination_Lookup!$C$54:$BD$61,2,FALSE) -> 0.0267 | M34: =+HLOOKUP(Contents!$I$7&2,Determination_Lookup!$C$54:$BD$61,2,FALSE) -> 0.0323 | O34: =+HLOOKUP(Contents!$I$7&3,Determination_Lookup!$C$54:$BD$61,2,FALSE) -> 0.00916
F35: Debt Premium | K35: =+HLOOKUP(Contents!$I$7&1,Determination_Lookup!$C$54:$BD$61,3,FALSE) -> 0.0116 | M35: =+HLOOKUP(Contents!$I$7&2,Determination_Lookup!$C$54:$BD$61,3,FALSE) -> 0.0175 | O35: =+HLOOKUP(Contents!$I$7&3,Determination_Lookup!$C$54:$BD$61,3,FALSE) -> 0.03158
F36: Equity Premium | K36: =+HLOOKUP(Contents!$I$7&1,Determination_Lookup!$C$54:$BD$61,4,FALSE) -> 0.06 | M36: =+HLOOKUP(Contents!$I$7&2,Determination_Lookup!$C$54:$BD$61,4,FALSE) -> 0.06 | O36: =+HLOOKUP(Contents!$I$7&3,Determination_Lookup!$C$54:$BD$61,4,FALSE) -> 0.06 | U36: Regulatory Rate of Return (RRR) - Real
F37: Equity Beta | K37: =+HLOOKUP(Contents!$I$7&1,Determination_Lookup!$C$54:$BD$61,5,FALSE) -> 0.75 | M37: =+HLOOKUP(Contents!$I$7&2,Determination_Lookup!$C$54:$BD$61,5,FALSE) -> 0.65 | O37: =+HLOOKUP(Contents!$I$7&3,Determination_Lookup!$C$54:$BD$61,5,FALSE) -> 0.7
F38: Gearing (Debt/Assets) | K38: =+HLOOKUP(Contents!$I$7&1,Determination_Lookup!$C$54:$BD$61,6,FALSE) -> 0.6 | M38: =+HLOOKUP(Contents!$I$7&2,Determination_Lookup!$C$54:$BD$61,6,FALSE) -> 0.6 | O38: =+HLOOKUP(Contents!$I$7&3,Determination_Lookup!$C$54:$BD$61,6,FALSE) -> 0.6 | U38: Cost of Debt | X38: =(1+X32)/(1+X44)-1 -> 0.03656147587 | Y38: =+$X$38 -> 0.03656147587 | Z38: =+$X$38 -> 0.03656147587 | AA38: 0.03656147587 | AB38: 0.03656147587 | AC38: 0.03656147587 | AD38: 0.03656147587 | AE38: 0.03656147587 | AF38: 0.03656147587 | AG38: 0.03656147587
F39: Forecast Inflation | K39: =+HLOOKUP(Contents!$I$7&1,Determination_Lookup!$C$54:$BD$61,7,FALSE) -> 0.0255 | M39: =+HLOOKUP(Contents!$I$7&2,Determination_Lookup!$C$54:$BD$61,7,FALSE) -> 0.029 | O39: =+HLOOKUP(Contents!$I$7&3,Determination_Lookup!$C$54:$BD$61,7,FALSE) -> 0.027
F40: Franking credit value | K40: =+HLOOKUP(Contents!$I$7&1,Determination_Lookup!$C$54:$BD$61,8,FALSE) -> 0.5 | M40: =+HLOOKUP(Contents!$I$7&2,Determination_Lookup!$C$54:$BD$61,8,FALSE) -> 0.5 | O40: =+HLOOKUP(Contents!$I$7&3,Determination_Lookup!$C$54:$BD$61,8,FALSE) -> 0.5 | U40: Return on Equity | X40: =IF(AG65<>0,(AG65/100),IF(AG63<>0,(AG63/100),(AG61/100))) -> 0.049 | Y40: =+$X$40 -> 0.049 | Z40: 0.049 | AA40: 0.049 | AB40: 0.049 | AC40: 0.049 | AD40: 0.049 | AE40: 0.049 | AF40: 0.049 | AG40: 0.049 | AI40: << Source: PREMO Assessment Matrix
E42: 'Vanilla' After Tax WACC (Real) | K42: =ROUND(((K34+K36*K37)*(1-K38))+((K34+K35)*K38),3) -> 0.052 | M42: =ROUND(((M34+M36*M37)*(1-M38))+((M34+M35)*M38),3) -> 0.058 | O42: =ROUND(((O34+O36*O37)*(1-O38))+((O34+O35)*O38),3) -> 0.045 | U42: RRR (real) | X42: =ROUND((X40*(1-X43)+X38*X43),3) -> 0.042 | Y42: 0.042 | Z42: 0.042 | AA42: 0.042 | AB42: 0.042 | AC42: 0.042 | AD42: 0.042 | AE42: 0.042 | AF42: 0.042 | AG42: 0.042
U43: Gearing | X43: 0.6 | Y43: =+X43 -> 0.6 | Z43: =+Y43 -> 0.6 | AA43: 0.6 | AB43: 0.6 | AC43: 0.6 | AD43: 0.6 | AE43: 0.6 | AF43: 0.6 | AG43: 0.6
U44: Forecast Inflation | X44: 0.023 | Y44: =+X44 -> 0.023 | Z44: 0.023 | AA44: 0.023 | AB44: 0.023 | AC44: 0.023 | AD44: 0.023 | AE44: 0.023 | AF44: 0.023 | AG44: 0.023
E46: Form of price control selected
E48: Price caps | I48: 2
U49: PREMO Graded Scoring System (for reference only) | AB49: PREMO Assessment Matrix (linked to Regulatory Rate of Return calculation above)
E50: Revenue cap / Hybrid Tariff Basket
V52: Water business | X52: ESC assessment | Z52: Difference | AD52: Water business self-assessment
V53: self-assessment | X53: of submission
AD54: Leading | AE54: Advanced | AF54: Standard | AG54: Basic
U55: Risk | V55: 2.5 | Z55: =IFERROR(IF(X55=0,"",X55-V55),"") ->  | AB55: ESC assessment of submission | AC55: Leading | AD55: 5.3
U56: Engagement | V56: 3.75 | Z56: =IFERROR(IF(X56=0,"",X56-V56),"") ->  | AC56: Advanced | AD56: 4.7 | AE56: 4.9
U57: Management | V57: 3.5 | Z57: =IFERROR(IF(X57=0,"",X57-V57),"") ->  | AC57: Standard | AD57: 4.1 | AE57: 4.3 | AF57: 4.5
U58: Outcomes | V58: 3.5 | Z58: =IFERROR(IF(X58=0,"",X58-V58),"") ->  | AC58: Basic | AF58: 3.9 | AG58: 4.1
U60: Total Score | V60: =SUM(V55:V58) -> 13.25 | X60: =SUM(X55:X58) -> 0 | Z60: =IFERROR(IF(X60=0,"",X60-V60),"") -> 
AB61: Water business self-assessment (Maximum allowable ROE) | AF61: Advanced | AG61: =+VLOOKUP(AF61,$AF$72:$AG$76,2,FALSE) -> 4.9
AB63: ROE Override (Must be less than Maximum allowable ROE) | AG63: =+IF(AF63<=AG61,AF63,"CHECK") -> 0
U64: Rating | V64: =IF(V60<4,"",IF(AND(V60>=4,V60<=7.25),"Basic",IF(AND(V60>=7.5,V60<=11.25),"Standard",IF(AND(V60>=11.5,V60<=15.25),"Advanced",IF(AND(V60>=15.5,V60<=16),"Leading"))))) -> Advanced | X64: =IF(X60<4,"",IF(AND(X60>=4,X60<=7.25),"Basic",IF(AND(X60>=7.5,X60<=11.25),"Standard",IF(AND(X60>=11.5,X60<=15.25),"Advanced",IF(AND(X60>=15.5,X60<=16),"Leading"))))) -> 
AB65: ESC assessment of submission | AG65: =IFERROR(IF(AF65=AF61,AG61,VLOOKUP(AF61&AF65,AF79:AG83,2,FALSE)),0) -> 0
AF67: Difference | AG67: =IFERROR(IF(AG65=0,"",AG65-AG61),"") -> 
U70: ESC USE ONLY
W71: [Select] | Y71: Rating | Z71: Aggregate score for overall PREMO rating | AF71: Business self assessment
W72: 1 | Y72: Leading | Z72: 15.5 to 16.0 | AF72: [Select]
W73: 1.25 | Y73: Advanced | Z73: 11.5 to 15.25 | AF73: Leading | AG73: =+AD55 -> 5.3
W74: 1.5 | Y74: Standard | Z74: 7.5 to 11.25 | AF74: Advanced | AG74: =+AE56 -> 4.9
W75: 1.75 | Y75: Basic | Z75: 4.0 to 7.25 | AF75: Standard | AG75: =+AF57 -> 4.5
W76: 2 | AF76: Basic | AG76: =+AG58 -> 4.1
W77: 2.25
W78: 2.5 | AF78: downgrading
W79: 2.75 | AF79: =AF54&AC58 -> StandardBasic | AG79: =+AF58 -> 3.9
W80: 3 | AF80: =+AE54&AC57 -> AdvancedStandard | AG80: =+AE57 -> 4.3
W81: 3.25 | AF81: =+AD54&AC56 -> LeadingAdvanced | AG81: =+AD56 -> 4.7
W82: 3.5 | AF82: =+AD54&AC57 -> LeadingStandard | AG82: =+AD57 -> 4.1
W83: 3.75 | AF83: =+AF61&"Basic" -> AdvancedBasic | AG83: CHECK
W84: 4

Sheet Opex_FO
B1: Operating Expenditure - Forecast
B2: =+Model_Name -> Southern Rural Water
B3: Go to Table of Contents
L4: FIRST REG PERIOD | P4: SECOND REG PERIOD | S4: THIRD REG PERIOD | X4: FOURTH REG PERIOD | AC4: FIFTH REG PERIOD
K5: 2006 | L5: 2007 | M5: 2008 | N5: 2009 | O5: 2010 | P5: 2011 | Q5: 2012 | R5: 2013 | S5: 2014 | T5: 2015 | U5: 2016 | V5: 2017 | W5: 2018 | X5: 2019 | Y5: 2020 | Z5: 2021 | AA5: 2022 | AB5: 2023 | AC5: 2024 | AD5: 2025 | AE5: 2026 | AF5: 2027 | AG5: 2028
B6: $m, 01/01/18 | K6: =+CONCATENATE(K5-1,"-",RIGHT(K5,2)) -> 2005-06 | L6: =+CONCATENATE(L5-1,"-",RIGHT(L5,2)) -> 2006-07 | M6: 2007-08 | N6: 2008-09 | O6: 2009-10 | P6: 2010-11 | Q6: 2011-12 | R6: 2012-13 | S6: 2013-14 | T6: 2014-15 | U6: 2015-16 | V6: 2016-17 | W6: 2017-18 | X6: 2018-19 | Y6: 2019-20 | Z6: 2020-21 | AA6: 2021-22 | AB6: 2022-23 | AC6: 2023-24 | AD6: 2024-25 | AE6: 2025-26 | AF6: 2026-27 | AG6: 2027-28
C9: Parameters | F9: 3rd period | H9: 4th period
D11: Cost efficiency improvement rate (% per annum) | F11: 0.01 | H11: =+SUM(X11:AB11)/5 -> 0
D13: Customer growth forecast (% per annum) | F13: =IF(V13="","-",AVERAGE(T13:W13)) -> - | H13: =+SUM(X13:AB13)/5 -> 0 | T13: =IF(T15="","",T15/S15-1) ->  | U13: =IF(U15="","",U15/T15-1) -> 
E14: Net baseline opex growth | F14: =IFERROR(F13-F11,"-") -> - | H14: =IFERROR(H13-H11,"-") -> 0
D15: Water customers (No.) - Residential & Non-Residential | W15: =+V$15*(1+W$13) -> 0 | X15: =+W$15*(1+X$13) -> 0 | Y15: =+X$15*(1+Y$13) -> 0 | Z15: 0 | AA15: 0 | AB15: 0 | AC15: 0 | AD15: 0 | AE15: 0 | AF15: 0 | AG15: 0 | AI15: << Used as normalising metric for dashboard graphs
D17: Sewer customers (No.) - Residential & Non-Residential | W17: =+V$17*(1+W$13) -> 0 | X17: =+W$17*(1+X$13) -> 0 | Y17: =+X$17*(1+Y$13) -> 0 | Z17: 0 | AA17: 0 | AB17: 0 | AC17: 0 | AD17: 0 | AE17: 0 | AF17: 0 | AG17: 0 | AI17: << Used as normalising metric for dashboard graphs
C21: Baseline Forecast
D23: Baseline year - total prescribed operating expenditure in 2016-17: | V23: =+Opex_Breakdown!V38 -> 24.97039031
D25: Less non-controllable expenditure items incurred in 2016-17:
E26: External bulk water charges (excl. temporary purchases) | V26: =+Opex_Breakdown!V30 -> 1.067797601
E27: External temporary water purchases | V27: =+Opex_Breakdown!V31 -> 0 | X27: Comparison with approved 2016-17 total controllable opex
E28: Licence fees | V28: =+Opex_Breakdown!V32 -> 0.0190055915 | X28: per 2013 determination model
E29: Environment Contribution | V29: =+Opex_Breakdown!V33 -> 0.4323976113
E30: Other non-controllable | V30: =+Opex_Breakdown!V34 -> 0.8282393715
V31: =SUM(V26:V30) -> 2.347440176 | Y31: 2016-17 | Z31: Difference | AA31: %
D33: Baseline year - total controllable operating expenditure in 2016-17: | V33: =+V23-V31 -> 22.62295013 | Y33: =+Determination_Lookup!AX3 -> 21.91960314 | Z33: =+V49-Y33 -> -1.392174058 | AA33: =+Z33/Y33 -> -0.06351274016
D35: Adjustments for non-recurring expenditure items incurred in 2016-17 and any efficiency savings to be realised from 2016-17: | X35: ($, 2017-18)
D37: 1 | E37: Annual productivity saving (averaged over 5 years) | F37: 0.01 | V37: 0.6719242419
D38: 2 | E38: Legal costs in Groundwater and Rivers not expected in future years | V38: 0.3375
D39: 3 | E39: Renewals annuity in baseline | V39: 1.086096812
D40: 4
D41: 5
D42: 6
D43: 7
D44: 8
D45: 9
D46: 10
V47: =SUM(V37:V46) -> 2.095521054
D49: Baseline controllable operating expenditure (2016-17) | V49: =+V33-V47 -> 20.52742908
D51: Baseline controllable operating expenditure (Forecast) | W51: =+V49 -> 20.52742908 | X51: =+W51 -> 20.52742908 | Y51: =+X51 -> 20.52742908 | Z51: 20.52742908 | AA51: 20.52742908 | AB51: 20.52742908 | AC51: =+AB51*(1-F37)^3 -> 19.91774391 | AD51: 19.91774391 | AE51: 19.91774391 | AF51: 19.91774391 | AG51: 19.91774391
C55: Operating expenditure - reconciliation
D58: Baseline controllable operating expenditure (Forecast) | X58: =+X51 -> 20.52742908 | Y58: 20.52742908 | Z58: 20.52742908 | AA58: 20.52742908 | AB58: 20.52742908 | AC58: 19.91774391 | AD58: 19.91774391 | AE58: 19.91774391 | AF58: 19.91774391 | AG58: 19.91774391
H59: Controllable
D60: Forecast variations to baseline operating expenditure (above or below baseline) | H60: only
D62: 1 | H62: [Service]
D63: 2 | H63: [Service]
D64: 3 | H64: [Service]
D65: 4 | H65: [Service]
D66: 5 | H66: [Service]
D67: 6 | H67: [Service]
D68: 7 | H68: [Service]
D69: 8 | H69: [Service]
D70: 9 | H70: [Service]
D71: 10 | H71: [Service]
D72: 11 | H72: [Service]
D73: 12 | H73: [Service]
D74: 13 | H74: [Service]
D75: 14 | H75: [Service]
D76: 15 | H76: [Service]
D78: Total changes required to baseline operating expenditure | X78: =SUM(X62:X77) -> 0 | Y78: 0 | Z78: 0 | AA78: 0 | AB78: 0 | AC78: 0 | AD78: 0 | AE78: 0 | AF78: 0 | AG78: 0
W79: % Change in baseline opex per annum | X79: =IFERROR(X78/X58,"-") -> 0 | Y79: =IFERROR(Y78/Y58,"-") -> 0 | Z79: 0 | AA79: 0 | AB79: 0 | AC79: 0 | AD79: 0 | AE79: 0 | AF79: 0 | AG79: 0
W80: % Change in baseline opex per reg period | AB80: =IFERROR(AVERAGE(X79:AB79),"-") -> 0 | AG80: =IFERROR(AVERAGE(AC79:AG79),"-") -> 0
D81: Total controllable operating expenditure | X81: =+X78+X58 -> 20.52742908 | Y81: 20.52742908 | Z81: 20.52742908 | AA81: 20.52742908 | AB81: 20.52742908 | AC81: 19.91774391 | AD81: 19.91774391 | AE81: 19.91774391 | AF81: 19.91774391 | AG81: 19.91774391
W82: Controllable Opex growth from baseline to 5th year | AB82: =IFERROR(AB81-V49,"-") -> 0 | AC82: =IFERROR(AB81/V49-1,"-") -> 0
D83: Non-controllable operating expenditure
D84: External bulk water charges (excl. temporary purchases) | X84: =+Opex_Breakdown!X30 -> 1.323257653 | Y84: =+Opex_Breakdown!Y30 -> 1.323257653 | Z84: =+Opex_Breakdown!Z30 -> 1.323257653 | AA84: =+Opex_Breakdown!AA30 -> 1.323257653 | AB84: =+Opex_Breakdown!AB30 -> 1.323257653 | AC84: =+Opex_Breakdown!AC30 -> 1.323257653 | AD84: =+Opex_Breakdown!AD30 -> 1.323257653 | AE84: =+Opex_Breakdown!AE30 -> 1.323257653 | AF84: =+Opex_Breakdown!AF30 -> 1.323257653 | AG84: =+Opex_Breakdown!AG30 -> 1.323257653
D85: External temporary water purchases | X85: =+Opex_Breakdown!X31 -> 0 | Y85: =+Opex_Breakdown!Y31 -> 0 | Z85: =+Opex_Breakdown!Z31 -> 0 | AA85: =+Opex_Breakdown!AA31 -> 0 | AB85: =+Opex_Breakdown!AB31 -> 0 | AC85: =+Opex_Breakdown!AC31 -> 0 | AD85: =+Opex_Breakdown!AD31 -> 0 | AE85: =+Opex_Breakdown!AE31 -> 0 | AF85: =+Opex_Breakdown!AF31 -> 0 | AG85: =+Opex_Breakdown!AG31 -> 0
D86: Licence fees | X86: =+Opex_Breakdown!X32 -> 0.02297830584 | Y86: =+Opex_Breakdown!Y32 -> 0.02297830584 | Z86: =+Opex_Breakdown!Z32 -> 0.02297830584 | AA86: =+Opex_Breakdown!AA32 -> 0.02297830584 | AB86: =+Opex_Breakdown!AB32 -> 0.02297830584 | AC86: =+Opex_Breakdown!AC32 -> 0.02297830584 | AD86: =+Opex_Breakdown!AD32 -> 0.02297830584 | AE86: =+Opex_Breakdown!AE32 -> 0.02297830584 | AF86: =+Opex_Breakdown!AF32 -> 0.02297830584 | AG86: =+Opex_Breakdown!AG32 -> 0.02297830584
D87: Environment Contribution | X87: =+Opex_Breakdown!X33 -> 0.5446597842 | Y87: =+Opex_Breakdown!Y33 -> 0.5446597842 | Z87: =+Opex_Breakdown!Z33 -> 0.5446597842 | AA87: =+Opex_Breakdown!AA33 -> 0.5446597842 | AB87: =+Opex_Breakdown!AB33 -> 0.5446597842 | AC87: =+Opex_Breakdown!AC33 -> 0.5446597842 | AD87: =+Opex_Breakdown!AD33 -> 0.5446597842 | AE87: =+Opex_Breakdown!AE33 -> 0.5446597842 | AF87: =+Opex_Breakdown!AF33 -> 0.5446597842 | AG87: =+Opex_Breakdown!AG33 -> 0.5446597842
D88: Other non-controllable | X88: =+Opex_Breakdown!X34 -> 0.429285597 | Y88: =+Opex_Breakdown!Y34 -> 0.1134563567 | Z88: =+Opex_Breakdown!Z34 -> 0.1100847092 | AA88: =+Opex_Breakdown!AA34 -> 0.2611799938 | AB88: =+Opex_Breakdown!AB34 -> 0.664080644 | AC88: =+Opex_Breakdown!AC34 -> 0.3156174601 | AD88: =+Opex_Breakdown!AD34 -> 0.3156174601 | AE88: =+Opex_Breakdown!AE34 -> 0.3156174601 | AF88: =+Opex_Breakdown!AF34 -> 0.3156174601 | AG88: =+Opex_Breakdown!AG34 -> 0.3156174601
D89: Total non-controllable operating expenditure | X89: =SUM(X84:X88) -> 2.32018134 | Y89: 2.0043521 | Z89: 2.000980452 | AA89: 2.152075737 | AB89: 2.554976387 | AC89: 2.206513203 | AD89: 2.206513203 | AE89: 2.206513203 | AF89: 2.206513203 | AG89: 2.206513203
W90: Non-controllable Opex growth from baseline to 5th year | AB90: =IFERROR(AB89-V31,"-") -> 0.2075362113 | AC90: =IFERROR(AB89/V31-1,"-") -> 0.08840958483
D92: Total prescribed operating expenditure | X92: =+X89+X81 -> 22.84761042 | Y92: 22.53178118 | Z92: 22.52840953 | AA92: 22.67950481 | AB92: 23.08240546 | AC92: 22.12425711 | AD92: 22.12425711 | AE92: 22.12425711 | AF92: 22.12425711 | AG92: =+AG89+AG81 -> 22.12425711
W93: Prescribed Opex growth from baseline to 5th year | AB93: =IFERROR(AB92-(V49+V31),"-") -> 0.2075362113 | AC93: =IFERROR((AB92/(V49+V31))-1,"-") -> 0.009072673118
W95: To reconcile to 'Opex_Breakdown' tab row 37 >> | X95: =+Opex_Breakdown!X38 -> 22.84739611 | Y95: =+Opex_Breakdown!Y38 -> 22.53201167 | Z95: =+Opex_Breakdown!Z38 -> 22.52839684 | AA95: =+Opex_Breakdown!AA38 -> 22.67938341 | AB95: =+Opex_Breakdown!AB38 -> 23.08229406 | AC95: =+Opex_Breakdown!AC38 -> 22.1245577 | AD95: =+Opex_Breakdown!AD38 -> 22.12433725 | AE95: =+Opex_Breakdown!AE38 -> 22.12414901 | AF95: =+Opex_Breakdown!AF38 -> 22.12397265 | AG95: =+Opex_Breakdown!AG38 -> 22.12378806
W96: Difference | X96: =+X95-X92 -> -0.000214305727 | Y96: 0.0002304965053 | Z96: -1.269071464e-05 | AA96: -0.0001214018559 | AB96: -0.0001114069157 | AC96: 0.0003005874078 | AD96: 8.014246974e-05 | AE96: -0.0001080980189 | AF96: -0.0002844561027 | AG96: -0.0004690506057
W97: Test | X97: =ROUND(X95,2)=ROUND(X92,2) -> TRUE | Y97: =ROUND(Y95,2)=ROUND(Y92,2) -> TRUE | Z97: TRUE | AA97: TRUE | AB97: TRUE | AC97: TRUE | AD97: TRUE | AE97: TRUE | AF97: TRUE | AG97: TRUE
X136: =+X$157 -> 2018-19 | Y136: 2019-20 | Z136: 2020-21 | AA136: 2021-22 | AB136: 2022-23 | AC136: 2023-24 | AD136: 2024-25 | AE136: 2025-26 | AF136: 2026-27 | AG136: 2027-28
W137: Total controllable opex | X137: =+X81 -> 20.52742908 | Y137: 20.52742908 | Z137: 20.52742908 | AA137: 20.52742908 | AB137: 20.52742908 | AC137: 19.91774391 | AD137: 19.91774391 | AE137: 19.91774391 | AF137: 19.91774391 | AG137: 19.91774391
W138: Change - $ | Y138: =+Y137-X137 -> 0 | Z138: 0 | AA138: 0 | AB138: 0 | AC138: -0.609685171 | AD138: 0 | AE138: 0 | AF138: 0 | AG138: 0
W139: Change - % | Y139: =IFERROR(Y138/X137,"") -> 0 | Z139: 0 | AA139: 0 | AB139: 0 | AC139: -0.029701 | AD139: 0 | AE139: 0 | AF139: 0 | AG139: 0
X141: =+X$157 -> 2018-19 | Y141: 2019-20 | Z141: 2020-21 | AA141: 2021-22 | AB141: 2022-23 | AC141: 2023-24 | AD141: 2024-25 | AE141: 2025-26 | AF141: 2026-27 | AG141: 2027-28
W142: Total non-controllable opex | X142: =+X89 -> 2.32018134 | Y142: 2.0043521 | Z142: 2.000980452 | AA142: 2.152075737 | AB142: 2.554976387 | AC142: 2.206513203 | AD142: 2.206513203 | AE142: 2.206513203 | AF142: 2.206513203 | AG142: 2.206513203
W143: Change - $ | Y143: =+Y142-X142 -> -0.3158292403 | Z143: -0.003371647485 | AA143: 0.1510952846 | AB143: 0.4029006501 | AC143: -0.3484631839 | AD143: 0 | AE143: 0 | AF143: 0 | AG143: 0
W144: Change - % | Y144: =IFERROR(Y143/X142,"") -> -0.1361226534 | Z144: -0.001682163271 | AA144: 0.07551062504 | AB144: 0.1872149029 | AC144: -0.1363860682 | AD144: 0 | AE144: 0 | AF144: 0 | AG144: 0
X146: =+X$157 -> 2018-19 | Y146: 2019-20 | Z146: 2020-21 | AA146: 2021-22 | AB146: 2022-23 | AC146: 2023-24 | AD146: 2024-25 | AE146: 2025-26 | AF146: 2026-27 | AG146: 2027-28
W147: Total prescribed opex | X147: =+X137+X142 -> 22.84761042 | Y147: 22.53178118 | Z147: 22.52840953 | AA147: 22.67950481 | AB147: 23.08240546 | AC147: 22.12425711 | AD147: 22.12425711 | AE147: 22.12425711 | AF147: 22.12425711 | AG147: 22.12425711
W148: Change - $ | Y148: =+Y147-X147 -> -0.3158292403 | Z148: -0.003371647485 | AA148: 0.1510952846 | AB148: 0.4029006501 | AC148: -0.9581483549 | AD148: 0 | AE148: 0 | AF148: 0 | AG148: 0
W149: Change - % | Y149: =IFERROR(Y148/X147,"") -> -0.01382329419 | Z149: -0.0001496396338 | AA149: 0.006706877574 | AB149: 0.0177649668 | AC149: -0.04150990053 | AD149: 0 | AE149: 0 | AF149: 0 | AG149: 0
W152: Controllable vs. Non-controllable opex - % | X152: =+X$157 -> 2018-19 | Y152: 2019-20 | Z152: 2020-21 | AA152: 2021-22 | AB152: 2022-23 | AC152: 2023-24 | AD152: 2024-25 | AE152: 2025-26 | AF152: 2026-27 | AG152: 2027-28
W153: Controllable opex - % | X153: =+X81/X92 -> 0.8984497154 | Y153: 0.9110433355 | Z153: 0.911179684 | AA153: 0.9051092273 | AB153: 0.889310653 | AC153: 0.900267241 | AD153: 0.900267241 | AE153: 0.900267241 | AF153: 0.900267241 | AG153: 0.900267241
W154: Non-controllable opex - % | X154: =+X89/X92 -> 0.1015502846 | Y154: 0.08895666454 | Z154: 0.08882031595 | AA154: 0.09489077273 | AB154: 0.110689347 | AC154: 0.09973275904 | AD154: 0.09973275904 | AE154: 0.09973275904 | AF154: 0.09973275904 | AG154: 0.09973275904
X155: =SUM(X153:X154) -> 1 | Y155: 1 | Z155: 1 | AA155: 1 | AB155: 1 | AC155: 1 | AD155: 1 | AE155: 1 | AF155: 1 | AG155: 1
V157: =+V6 -> 2016-17 | W157: 2017-18 | X157: 2018-19 | Y157: 2019-20 | Z157: 2020-21 | AA157: 2021-22 | AB157: 2022-23 | AC157: 2023-24 | AD157: 2024-25 | AE157: 2025-26 | AF157: 2026-27 | AG157: 2027-28
U158: Third Reg period Opex | V158: =+V166-SUM(V159:V165) -> 22.62295013 | W158: =+W166-SUM(W159:W165) -> 21.87374881
U159: Baseline opex | X159: =+X58 -> 20.52742908 | Y159: 20.52742908 | Z159: 20.52742908 | AA159: 20.52742908 | AB159: 20.52742908 | AC159: 19.91774391 | AD159: 19.91774391 | AE159: 19.91774391 | AF159: 19.91774391 | AG159: 19.91774391
U160: Forecast variations to baseline operating expenditure | X160: =+X78 -> 0 | Y160: 0 | Z160: 0 | AA160: 0 | AB160: 0 | AC160: 0 | AD160: 0 | AE160: 0 | AF160: 0 | AG160: 0
U161: Licence fees | V161: =+V192 -> 0.0190055915 | W161: =+W192 -> 0.02297830584 | X161: =+X86 -> 0.02297830584 | Y161: 0.02297830584 | Z161: 0.02297830584 | AA161: 0.02297830584 | AB161: 0.02297830584 | AC161: 0.02297830584 | AD161: 0.02297830584 | AE161: 0.02297830584 | AF161: 0.02297830584 | AG161: 0.02297830584
U162: Environment Contribution | V162: =+V193 -> 0.4323976113 | W162: =+W193 -> 0.4189690648 | X162: =+X87 -> 0.5446597842 | Y162: 0.5446597842 | Z162: 0.5446597842 | AA162: 0.5446597842 | AB162: 0.5446597842 | AC162: 0.5446597842 | AD162: 0.5446597842 | AE162: 0.5446597842 | AF162: 0.5446597842 | AG162: 0.5446597842
U163: External bulk water charges | V163: =+V190 -> 1.067797601 | W163: =+W190 -> 1.323257653 | X163: =+X84 -> 1.323257653 | Y163: 1.323257653 | Z163: 1.323257653 | AA163: 1.323257653 | AB163: 1.323257653 | AC163: 1.323257653 | AD163: 1.323257653 | AE163: 1.323257653 | AF163: 1.323257653 | AG163: 1.323257653
U164: External temporary water purchases | V164: =+V191 -> 0 | W164: =+W191 -> 0 | X164: =+X85 -> 0 | Y164: 0 | Z164: 0 | AA164: 0 | AB164: 0 | AC164: 0 | AD164: 0 | AE164: 0 | AF164: 0 | AG164: 0
U165: Other non-controllable | V165: =+V194 -> 0.8282393715 | W165: =+W194 -> 1.03352781 | X165: =+X88 -> 0.429285597 | Y165: 0.1134563567 | Z165: 0.1100847092 | AA165: 0.2611799938 | AB165: 0.664080644 | AC165: 0.3156174601 | AD165: 0.3156174601 | AE165: 0.3156174601 | AF165: 0.3156174601 | AG165: 0.3156174601
U166: Total prescribed opex | V166: =+Opex_Breakdown!V38 -> 24.97039031 | W166: =+Opex_Breakdown!W38 -> 24.67248164 | X166: =SUM(X159:X165) -> 22.84761042 | Y166: 22.53178118 | Z166: 22.52840953 | AA166: 22.67950481 | AB166: 23.08240546 | AC166: 22.12425711 | AD166: 22.12425711 | AE166: 22.12425711 | AF166: 22.12425711 | AG166: 22.12425711
X168: =+X$157 -> 2018-19 | Y168: 2019-20 | Z168: 2020-21 | AA168: 2021-22 | AB168: 2022-23 | AC168: 2023-24 | AD168: 2024-25 | AE168: 2025-26 | AF168: 2026-27 | AG168: 2027-28
W169: Baseline opex | X169: =+X159/X$166 -> 0.8984497154 | Y169: 0.9110433355 | Z169: 0.911179684 | AA169: 0.9051092273 | AB169: 0.889310653 | AC169: 0.900267241 | AD169: 0.900267241 | AE169: 0.900267241 | AF169: 0.900267241 | AG169: 0.900267241
W170: Forecast variations to baseline operating expenditure | X170: =+X160/X$166 -> 0 | Y170: 0 | Z170: 0 | AA170: 0 | AB170: 0 | AC170: 0 | AD170: 0 | AE170: 0 | AF170: 0 | AG170: 0
W171: Licence fees | X171: =+X161/X$166 -> 0.00100572031 | Y171: 0.001019817548 | Z171: 0.001019970176 | AA171: 0.001013174936 | AB171: 0.0009954900876 | AC171: 0.001038602369 | AD171: 0.001038602369 | AE171: 0.001038602369 | AF171: 0.001038602369 | AG171: 0.001038602369
W172: Environment Contribution | X172: =+X162/X$166 -> 0.0238388074 | Y172: 0.0241729573 | Z172: 0.02417657507 | AA172: 0.02401550601 | AB172: 0.0235963182 | AC172: 0.02461821798 | AD172: 0.02461821798 | AE172: 0.02461821798 | AF172: 0.02461821798 | AG172: 0.02461821798
W173: External bulk water charges (excl. temporary purchases) | X173: =+X163/X$166 -> 0.05791667614 | Y173: 0.05872849743 | Z173: 0.05873728686 | AA173: 0.0583459676 | AB173: 0.05732754565 | AC173: 0.05981026375 | AD173: 0.05981026375 | AE173: 0.05981026375 | AF173: 0.05981026375 | AG173: 0.05981026375
W174: External temporary water purchases | X174: =+X164/X$166 -> 0 | Y174: 0 | Z174: 0 | AA174: 0 | AB174: 0 | AC174: 0 | AD174: 0 | AE174: 0 | AF174: 0 | AG174: 0
W175: Other non-controllable | X175: =+X165/X$166 -> 0.01878908074 | Y175: 0.005035392266 | Z175: 0.004886483844 | AA175: 0.01151612418 | AB175: 0.02876999302 | AC175: 0.01426567494 | AD175: 0.01426567494 | AE175: 0.01426567494 | AF175: 0.01426567494 | AG175: 0.01426567494
W176: Total prescribed opex | X176: =+X166/X$166 -> 1 | Y176: 1 | Z176: 1 | AA176: 1 | AB176: 1 | AC176: 1 | AD176: 1 | AE176: 1 | AF176: 1 | AG176: 1
X178: =+X$157 -> 2018-19 | Y178: 2019-20 | Z178: 2020-21 | AA178: 2021-22 | AB178: 2022-23 | AC178: 2023-24 | AD178: 2024-25 | AE178: 2025-26 | AF178: 2026-27 | AG178: 2027-28
W179: Irrigation | X179: =+SUMIF($H$62:$H$77,$W179,X$62:X$77) -> 0 | Y179: 0 | Z179: 0 | AA179: 0 | AB179: 0 | AC179: 0 | AD179: 0 | AE179: 0 | AF179: 0 | AG179: 0
W180: Drainage | X180: 0 | Y180: 0 | Z180: 0 | AA180: 0 | AB180: 0 | AC180: 0 | AD180: 0 | AE180: 0 | AF180: 0 | AG180: 0
W181: Domestic and stock | X181: 0 | Y181: 0 | Z181: 0 | AA181: 0 | AB181: 0 | AC181: 0 | AD181: 0 | AE181: 0 | AF181: 0 | AG181: 0
W182: Surface water diversions | X182: 0 | Y182: 0 | Z182: 0 | AA182: 0 | AB182: 0 | AC182: 0 | AD182: 0 | AE182: 0 | AF182: 0 | AG182: 0
W183: Groundwater diversions | X183: 0 | Y183: 0 | Z183: 0 | AA183: 0 | AB183: 0 | AC183: 0 | AD183: 0 | AE183: 0 | AF183: 0 | AG183: 0
W184: Bulk water services | X184: 0 | Y184: 0 | Z184: 0 | AA184: 0 | AB184: 0 | AC184: 0 | AD184: 0 | AE184: 0 | AF184: 0 | AG184: 0
W185: Licence applications | X185: 0 | Y185: 0 | Z185: 0 | AA185: 0 | AB185: 0 | AC185: 0 | AD185: 0 | AE185: 0 | AF185: 0 | AG185: 0
W186: Forecast variations to baseline operating expenditure | X186: =SUM(X179:X185) -> 0 | Y186: =SUM(Y179:Y185) -> 0 | Z186: 0 | AA186: 0 | AB186: 0 | AC186: 0 | AD186: 0 | AE186: 0 | AF186: 0 | AG186: 0
V189: =+V6 -> 2016-17 | W189: 2017-18 | X189: 2018-19 | Y189: 2019-20 | Z189: 2020-21 | AA189: 2021-22 | AB189: 2022-23 | AC189: 2023-24 | AD189: 2024-25 | AE189: 2025-26 | AF189: 2026-27 | AG189: 2027-28
U190: External bulk water charges (excl. temporary purchases) | V190: =+Opex_Breakdown!V30 -> 1.067797601 | W190: =+Opex_Breakdown!W30 -> 1.323257653 | X190: =+X84 -> 1.323257653 | Y190: 1.323257653 | Z190: 1.323257653 | AA190: 1.323257653 | AB190: 1.323257653 | AC190: 1.323257653 | AD190: 1.323257653 | AE190: 1.323257653 | AF190: 1.323257653 | AG190: 1.323257653
U191: External temporary water purchases | V191: =+Opex_Breakdown!V31 -> 0 | W191: =+Opex_Breakdown!W31 -> 0 | X191: =+X85 -> 0 | Y191: 0 | Z191: 0 | AA191: 0 | AB191: 0 | AC191: 0 | AD191: 0 | AE191: 0 | AF191: 0 | AG191: 0
U192: Licence fees | V192: =+Opex_Breakdown!V32 -> 0.0190055915 | W192: =+Opex_Breakdown!W32 -> 0.02297830584 | X192: =+X86 -> 0.02297830584 | Y192: 0.02297830584 | Z192: 0.02297830584 | AA192: 0.02297830584 | AB192: 0.02297830584 | AC192: 0.02297830584 | AD192: 0.02297830584 | AE192: 0.02297830584 | AF192: 0.02297830584 | AG192: 0.02297830584
U193: Environment Contribution | V193: =+Opex_Breakdown!V33 -> 0.4323976113 | W193: =+Opex_Breakdown!W33 -> 0.4189690648 | X193: =+X87 -> 0.5446597842 | Y193: 0.5446597842 | Z193: 0.5446597842 | AA193: 0.5446597842 | AB193: 0.5446597842 | AC193: 0.5446597842 | AD193: 0.5446597842 | AE193: 0.5446597842 | AF193: 0.5446597842 | AG193: 0.5446597842
U194: Other non-controllable | V194: =+Opex_Breakdown!V34 -> 0.8282393715 | W194: =+Opex_Breakdown!W34 -> 1.03352781 | X194: =+X88 -> 0.429285597 | Y194: 0.1134563567 | Z194: 0.1100847092 | AA194: 0.2611799938 | AB194: 0.664080644 | AC194: 0.3156174601 | AD194: 0.3156174601 | AE194: 0.3156174601 | AF194: 0.3156174601 | AG194: 0.3156174601
U195: Total Non-controllable operating expenditure | V195: =+Opex_Breakdown!V35 -> 2.347440176 | W195: =+Opex_Breakdown!W35 -> 2.798732834 | X195: =SUM(X190:X194) -> 2.32018134 | Y195: 2.0043521 | Z195: 2.000980452 | AA195: 2.152075737 | AB195: 2.554976387 | AC195: 2.206513203 | AD195: 2.206513203 | AE195: 2.206513203 | AF195: 2.206513203 | AG195: 2.206513203
V197: ERROR CHECK | X197: =+X166=X92 -> TRUE | Y197: TRUE | Z197: TRUE | AA197: TRUE | AB197: FALSE | AC197: TRUE | AD197: TRUE | AE197: TRUE | AF197: TRUE | AG197: TRUE
X198: =+X186=X160 -> TRUE | Y198: TRUE | Z198: TRUE | AA198: TRUE | AB198: TRUE | AC198: TRUE | AD198: TRUE | AE198: TRUE | AF198: TRUE | AG198: TRUE
X199: =+X147=X166 -> TRUE | Y199: TRUE | Z199: TRUE | AA199: TRUE | AB199: FALSE | AC199: TRUE | AD199: TRUE | AE199: TRUE | AF199: TRUE | AG199: TRUE
X200: =+X195=X142 -> TRUE | Y200: TRUE | Z200: TRUE | AA200: TRUE | AB200: TRUE | AC200: TRUE | AD200: TRUE | AE200: TRUE | AF200: TRUE | AG200: TRUE

Sheet Opex_Breakdown
A1: 80 | B1: Operating Expenditure - Breakdown
B2: =+Contents!H7 -> Southern Rural Water
B3: Go to Table of Contents
L4: FIRST REG PERIOD | P4: SECOND REG PERIOD | U4: THIRD REG PERIOD | Z4: FOURTH REG PERIOD | AC4: FIFTH REG PERIOD
K6: 2006 | L6: 2007 | M6: 2008 | N6: 2009 | O6: 2010 | P6: 2011 | Q6: 2012 | R6: 2013 | S6: 2014 | T6: 2015 | U6: 2016 | V6: 2017 | W6: 2018 | X6: 2019 | Y6: 2020 | Z6: 2021 | AA6: 2022 | AB6: 2023 | AC6: 2024 | AD6: 2025 | AE6: 2026 | AF6: 2027 | AG6: 2028
B7: $m, 01/01/18 | K7: =+CONCATENATE(K6-1,"-",RIGHT(K6,2)) -> 2005-06 | L7: =+CONCATENATE(L6-1,"-",RIGHT(L6,2)) -> 2006-07 | M7: 2007-08 | N7: 2008-09 | O7: 2009-10 | P7: 2010-11 | Q7: 2011-12 | R7: 2012-13 | S7: 2013-14 | T7: 2014-15 | U7: 2015-16 | V7: 2016-17 | W7: 2017-18 | X7: =+CONCATENATE(X6-1,"-",RIGHT(X6,2)) -> 2018-19 | Y7: =+CONCATENATE(Y6-1,"-",RIGHT(Y6,2)) -> 2019-20 | Z7: =+CONCATENATE(Z6-1,"-",RIGHT(Z6,2)) -> 2020-21 | AA7: =+CONCATENATE(AA6-1,"-",RIGHT(AA6,2)) -> 2021-22 | AB7: =+CONCATENATE(AB6-1,"-",RIGHT(AB6,2)) -> 2022-23 | AC7: =+CONCATENATE(AC6-1,"-",RIGHT(AC6,2)) -> 2023-24 | AD7: 2024-25 | AE7: 2025-26 | AF7: 2026-27 | AG7: 2027-28
D10: Operating Expenditure Summary
E12: Irrigation | K12: =+K57-K51-K54 -> 0 | L12: 0 | M12: 0 | N12: 0 | O12: 0 | P12: 0 | Q12: 0 | R12: 0 | S12: 10.43626683 | T12: 10.20322659 | U12: 10.38049777 | V12: 10.81154111 | W12: 10.62508763 | X12: 9.189069454 | Y12: 9.301034028 | Z12: 9.408122694 | AA12: 9.514387451 | AB12: 9.61981956 | AC12: 9.119621365 | AD12: 9.227385151 | AE12: 9.3341013 | AF12: 9.439760287 | AG12: 9.544352684
E13: Drainage | K13: =K67-K61-K64 -> 0 | L13: 0 | M13: 0 | N13: 0 | O13: 0 | P13: 0 | Q13: 0 | R13: 0 | S13: 0 | T13: 0 | U13: 0 | V13: 0 | W13: 0 | X13: 0 | Y13: 0 | Z13: 0 | AA13: 0 | AB13: 0 | AC13: 0 | AD13: 0 | AE13: 0 | AF13: 0 | AG13: 0
E14: Domestic and stock | K14: =K77-K71-K74 -> 0 | L14: 0 | M14: 0 | N14: 0 | O14: 0 | P14: 0 | Q14: 0 | R14: 0 | S14: 0 | T14: 0 | U14: 0 | V14: 0 | W14: 0 | X14: 0 | Y14: 0 | Z14: 0 | AA14: 0 | AB14: 0 | AC14: 0 | AD14: 0 | AE14: 0 | AF14: 0 | AG14: 0
E15: Surface water diversions | K15: =K87-K81-K84 -> 0 | L15: 0 | M15: 0 | N15: 0 | O15: 0 | P15: 0 | Q15: 0 | R15: 0 | S15: 2.730009221 | T15: 2.68066096 | U15: 2.747484367 | V15: 2.834217677 | W15: 2.631784852 | X15: 2.660377643 | Y15: 2.634209695 | Z15: 2.609024437 | AA15: 2.584064062 | AB15: 2.559326921 | AC15: 2.533733651 | AD15: 2.508396315 | AE15: 2.483312352 | AF15: 2.458479228 | AG15: 2.433894436
E16: Groundwater diversions | K16: =K97-K91-K94 -> 0 | L16: =L97-L91-L94 -> 0 | M16: 0 | N16: 0 | O16: 0 | P16: 0 | Q16: 0 | R16: 0 | S16: 2.814920278 | T16: 2.905921429 | U16: 2.601875229 | V16: 2.940729471 | W16: 2.624490712 | X16: 2.683738936 | Y16: 2.657340454 | Z16: 2.631933317 | AA16: 2.606753046 | AB16: 2.581797974 | AC16: 2.555979995 | AD16: 2.530420195 | AE16: 2.505115993 | AF16: 2.480064833 | AG16: 2.455264185
E17: Bulk water services | K17: =K107-K101-K104 -> 0 | L17: =L107-L101-L104 -> 0 | M17: 0 | N17: 0 | O17: 0 | P17: 0 | Q17: 0 | R17: 0 | S17: 5.20649019 | T17: 5.295686734 | U17: 4.913146677 | V17: 4.816175198 | W17: 4.940327331 | X17: 4.939486461 | Y17: 4.890905625 | Z17: 4.844149152 | AA17: 4.797810176 | AB17: 4.751885633 | AC17: 4.704366776 | AD17: 4.657323109 | AE17: 4.610749878 | AF17: 4.564642379 | AG17: 4.518995955
E18: Licence applications | K18: =K117-K111-K114 -> 0 | L18: =L117-L111-L114 -> 0 | M18: 0 | N18: 0 | O18: 0 | P18: 0 | Q18: 0 | R18: 0 | S18: 1.469481668 | T18: 1.285763915 | U18: 1.197582656 | V18: 1.220286679 | W18: 1.05205828 | X18: 1.054542277 | Y18: 1.044169772 | Z18: 1.034186787 | AA18: 1.024292942 | AB18: 1.014487582 | AC18: 1.004342707 | AD18: 0.9942992794 | AE18: 0.9843562866 | AF18: 0.9745127238 | AG18: 0.9647675965
E19: Total controllable operating expenditure | K19: =SUM(K12:K18) -> 0 | L19: =SUM(L12:L18) -> 0 | M19: 0 | N19: 0 | O19: 0 | P19: 0 | Q19: 0 | R19: 0 | S19: 22.65716819 | T19: 22.37125963 | U19: 21.8405867 | V19: 22.62295013 | W19: 21.87374881 | X19: 20.52721477 | Y19: 20.52765957 | Z19: 20.52741639 | AA19: 20.52730768 | AB19: 20.52731767 | AC19: 19.91804449 | AD19: 19.91782405 | AE19: 19.91763581 | AF19: 19.91745945 | AG19: 19.91727486
V20: Controllable Opex for 3rd Reg Period | W20: =SUM(S19:W19) -> 111.3657134 | AA20: Controllable Opex for 4th Reg Period | AB20: =SUM(X19:AB19) -> 102.6369161
AA21: Controllable Opex growth from 3rd to 4th Reg Period | AB21: =IFERROR(AB20-W20,"-") -> -8.728797367 | AC21: =IFERROR(AB20/W20-1,"-") -> -0.0783795757
E22: Operations & Maintenance | K22: =K50+K60+K70+K80+K90+K100+K110 -> 0 | L22: =L50+L60+L70+L80+L90+L100+L110 -> 0 | M22: 0 | N22: 0 | O22: 0 | P22: 0 | Q22: 0 | R22: 0 | S22: 16.14313079 | T22: 16.28284799 | U22: 15.63487397 | V22: 15.7956734 | W22: 15.12524404 | X22: 14.73485424 | Y22: 14.79243469 | Z22: 14.84718153 | AA22: 14.90157182 | AB22: 14.95559341 | AC22: 14.40203748 | AD22: 14.45697711 | AE22: 14.51139733 | AF22: 14.56528336 | AG22: 14.61862053
E23: Customer Service and billing | K23: =K52+K62+K72+K82+K92+K102+K112 -> 0 | L23: =L52+L62+L72+L82+L92+L102+L112 -> 0 | M23: 0 | N23: 0 | O23: 0 | P23: 0 | Q23: 0 | R23: 0 | S23: 0.8909022357 | T23: 0.9183909968 | U23: 0.7022702205 | V23: 0.604433989 | W23: 0.687724346 | X23: 0.6808471025 | Y23: 0.6740386315 | Z23: 0.6672982452 | AA23: 0.6606252627 | AB23: 0.6540190101 | AC23: 0.64747882 | AD23: 0.6410040318 | AE23: 0.6345939915 | AF23: 0.6282480516 | AG23: 0.621965571
E24: GSL Payments | K24: =K53+K63+K73+K83+K93+K103+K113 -> 0 | L24: =L53+L63+L73+L83+L93+L103+L113 -> 0 | M24: 0 | N24: 0 | O24: 0 | P24: 0 | Q24: 0 | R24: 0 | S24: 0 | T24: 0 | U24: 0 | V24: 0 | W24: 0 | X24: 0 | Y24: 0 | Z24: 0 | AA24: 0 | AB24: 0 | AC24: 0 | AD24: 0 | AE24: 0 | AF24: 0 | AG24: 0
E25: Corporate | K25: =K55+K65+K75+K85+K95+K105+K115 -> 0 | L25: =L55+L65+L75+L85+L95+L105+L115 -> 0 | M25: 0 | N25: 0 | O25: 0 | P25: 0 | Q25: 0 | R25: 0 | S25: 4.224322571 | T25: 4.225207764 | U25: 4.50018067 | V25: 5.136745935 | W25: 4.96368962 | X25: 5.111513425 | Y25: 5.06118625 | Z25: 5.012936613 | AA25: 4.965110588 | AB25: 4.917705246 | AC25: 4.868528194 | AD25: 4.819842912 | AE25: 4.771644483 | AF25: 4.723928038 | AG25: 4.676688757
E26: Other operating expenditure | K26: =K56+K66+K76+K86+K96+K106+K116 -> 0 | L26: =L56+L66+L76+L86+L96+L106+L116 -> 0 | M26: 0 | N26: 0 | O26: 0 | P26: 0 | Q26: 0 | R26: 0 | S26: 1.398812594 | T26: 0.9448128782 | U26: 1.003261833 | V26: 1.086096812 | W26: 1.097090803 | X26: 0 | Y26: 0 | Z26: 0 | AA26: 0 | AB26: 0 | AC26: 0 | AD26: 0 | AE26: 0 | AF26: 0 | AG26: 0
E27: Total controllable operating expenditure | K27: =SUM(K22:K26) -> 0 | L27: 0 | M27: 0 | N27: 0 | O27: 0 | P27: 0 | Q27: 0 | R27: 0 | S27: 22.65716819 | T27: 22.37125963 | U27: 21.8405867 | V27: 22.62295013 | W27: 21.87374881 | X27: 20.52721477 | Y27: 20.52765957 | Z27: 20.52741639 | AA27: 20.52730768 | AB27: 20.52731767 | AC27: 19.91804449 | AD27: 19.91782405 | AE27: 19.91763581 | AF27: 19.91745945 | AG27: 19.91727486
E30: External bulk water charges (excl. temporary purchases) | K30: =K51+K61+K71+K81+K91+K101+K111 -> 0 | L30: =L51+L61+L71+L81+L91+L101+L111 -> 0 | M30: 0 | N30: 0 | O30: 0 | P30: 0 | Q30: 0 | R30: 0 | S30: 0.5103639112 | T30: 0.7646392839 | U30: 1.346608995 | V30: 1.067797601 | W30: 1.323257653 | X30: 1.323257653 | Y30: 1.323257653 | Z30: 1.323257653 | AA30: 1.323257653 | AB30: 1.323257653 | AC30: 1.323257653 | AD30: 1.323257653 | AE30: 1.323257653 | AF30: 1.323257653 | AG30: 1.323257653
E31: External temporary water purchases | K31: =+K120 -> 0 | L31: 0 | M31: 0 | N31: 0 | O31: 0 | P31: 0 | Q31: 0 | R31: 0 | S31: 0 | T31: 0 | U31: 0 | V31: 0 | W31: 0 | X31: 0 | Y31: 0 | Z31: 0 | AA31: 0 | AB31: 0 | AC31: 0 | AD31: 0 | AE31: 0 | AF31: 0 | AG31: 0
E32: Licence fees | K32: =+K127 -> 0 | L32: 0 | M32: 0 | N32: 0 | O32: 0 | P32: 0 | Q32: 0 | R32: 0 | S32: 0.04030101182 | T32: 0.01955367742 | U32: 0.01453261236 | V32: 0.0190055915 | W32: 0.02297830584 | X32: 0.02297830584 | Y32: 0.02297830584 | Z32: 0.02297830584 | AA32: 0.02297830584 | AB32: 0.02297830584 | AC32: 0.02297830584 | AD32: 0.02297830584 | AE32: 0.02297830584 | AF32: 0.02297830584 | AG32: 0.02297830584
E33: Environment Contribution | K33: =K129 -> 0 | L33: 0 | M33: 0 | N33: 0 | O33: 0 | P33: 0 | Q33: 0 | R33: 0 | S33: 0.4512128188 | T33: 0.4382009387 | U33: 0.4378614232 | V33: 0.4323976113 | W33: 0.4189690648 | X33: 0.5446597842 | Y33: 0.5446597842 | Z33: 0.5446597842 | AA33: 0.5446597842 | AB33: 0.5446597842 | AC33: 0.5446597842 | AD33: 0.5446597842 | AE33: 0.5446597842 | AF33: 0.5446597842 | AG33: 0.5446597842
E34: Other non-controllable | K34: =+K142 -> 0 | L34: 0 | M34: 0 | N34: 0 | O34: 0 | P34: 0 | Q34: 0 | R34: 0 | S34: 0.1812890625 | T34: 0.2757258065 | U34: 0.3755758427 | V34: 0.8282393715 | W34: 1.03352781 | X34: 0.429285597 | Y34: 0.1134563567 | Z34: 0.1100847092 | AA34: 0.2611799938 | AB34: 0.664080644 | AC34: 0.3156174601 | AD34: 0.3156174601 | AE34: 0.3156174601 | AF34: 0.3156174601 | AG34: 0.3156174601
E35: Total non-controllable operating expenditure | K35: =SUM(K30:K34) -> 0 | L35: 0 | M35: 0 | N35: 0 | O35: 0 | P35: 0 | Q35: 0 | R35: 0 | S35: 1.183166804 | T35: 1.498119706 | U35: 2.174578873 | V35: 2.347440176 | W35: 2.798732834 | X35: 2.32018134 | Y35: 2.0043521 | Z35: 2.000980452 | AA35: 2.152075737 | AB35: 2.554976387 | AC35: 2.206513203 | AD35: 2.206513203 | AE35: 2.206513203 | AF35: 2.206513203 | AG35: 2.206513203
V36: Non-controllable Opex for 3rd Reg Period | W36: =SUM(S35:W35) -> 10.00203839 | AA36: Non-controllable Opex for 4th Reg Period | AB36: =SUM(X35:AB35) -> 11.03256602
AA37: Non-controllable Opex growth from 3rd to 4th Reg Period | AB37: =IFERROR(AB36-W36,"-") -> 1.030527623 | AC37: =IFERROR(AB36/W36-1,"-") -> 0.1030317603
E38: Total prescribed operating expenditure | K38: =+K35+K19 -> 0 | L38: 0 | M38: 0 | N38: 0 | O38: 0 | P38: 0 | Q38: 0 | R38: 0 | S38: 23.84033499 | T38: 23.86937933 | U38: 24.01516557 | V38: 24.97039031 | W38: 24.67248164 | X38: 22.84739611 | Y38: 22.53201167 | Z38: 22.52839684 | AA38: 22.67938341 | AB38: 23.08229406 | AC38: 22.1245577 | AD38: 22.12433725 | AE38: 22.12414901 | AF38: 22.12397265 | AG38: 22.12378806
V39: Prescribed Opex for 3rd Reg Period | W39: =SUM(S38:W38) -> 121.3677518 | AA39: Prescribed Opex for 4th Reg Period | AB39: =SUM(X38:AB38) -> 113.6694821
AA40: Prescribed Opex growth from 3rd to 4th Reg Period | AB40: =IFERROR(AB39-W39,"-") -> -7.698269745 | AC40: =IFERROR(AB39/W39-1,"-") -> -0.06342928519
W41: To reconcile to 'Opex_FO' tab row 123>> | X41: =+Opex_FO!X92 -> 22.84761042 | Y41: =+Opex_FO!Y92 -> 22.53178118 | Z41: =+Opex_FO!Z92 -> 22.52840953 | AA41: =+Opex_FO!AA92 -> 22.67950481 | AB41: =+Opex_FO!AB92 -> 23.08240546 | AC41: =+Opex_FO!AC92 -> 22.12425711 | AD41: =+Opex_FO!AD92 -> 22.12425711 | AE41: =+Opex_FO!AE92 -> 22.12425711 | AF41: =+Opex_FO!AF92 -> 22.12425711 | AG41: =+Opex_FO!AG92 -> 22.12425711
W42: Difference | X42: =+X41-X38 -> 0.000214305727 | Y42: -0.0002304965053 | Z42: 1.269071464e-05 | AA42: 0.0001214018559 | AB42: 0.0001114069157 | AC42: -0.0003005874078 | AD42: -8.014246974e-05 | AE42: 0.0001080980189 | AF42: 0.0002844561027 | AG42: 0.0004690506057
W43: Test | X43: =ROUND(X41,2)=ROUND(X38,2) -> TRUE | Y43: =ROUND(Y41,2)=ROUND(Y38,2) -> TRUE | Z43: TRUE | AA43: TRUE | AB43: TRUE | AC43: TRUE | AD43: TRUE | AE43: TRUE | AF43: TRUE | AG43: TRUE
B47: Total operating expenditure
C49: Irrigation
D50: Operations & Maintenance | S50: 6.827407131 | T50: 6.957291227 | U50: 7.082325845 | V50: 7.128473567 | W50: 6.945669627 | X50: 6.542408265 | Y50: 6.680479415 | Z50: 6.812694272 | AA50: 6.943860864 | AB50: 7.073972099 | AC50: 6.599232378 | AD50: 6.732200054 | AE50: 6.863868053 | AF50: 6.994229373 | AG50: 7.123277079
D51: External bulk charges (excl. temporary purchases) | S51: 0.4241690121 | T51: 0.6784268274 | U51: 1.2698009 | V51: 0.991911512 | W51: 1.323257653 | X51: 1.323257653 | Y51: 1.323257653 | Z51: 1.323257653 | AA51: 1.323257653 | AB51: 1.323257653 | AC51: 1.323257653 | AD51: 1.323257653 | AE51: 1.323257653 | AF51: 1.323257653 | AG51: 1.323257653
D52: Customer Service and billing | S52: 0.4025084201 | T52: 0.4307783561 | U52: 0.3279160881 | V52: 0.2907985434 | W52: 0.3142451244 | X52: 0.3110945173 | Y52: 0.3079835721 | Z52: 0.3049037364 | AA52: 0.301854699 | AB52: 0.298836152 | AC52: 0.2958477905 | AD52: 0.2928893126 | AE52: 0.2899604195 | AF52: 0.2870608153 | AG52: 0.2841902071
D53: GSL Payments | S53: 0 | T53: 0 | U53: 0 | V53: 0 | W53: 0 | X53: 0 | Y53: 0 | Z53: 0 | AA53: 0 | AB53: 0 | AC53: 0 | AD53: 0 | AE53: 0 | AF53: 0 | AG53: 0
D54: Licence Fees | S54: 0.01724433601 | T54: 0.008655694056 | U54: 0.006352091935 | V54: 0.008532671657 | W54: 0.01049958551 | X54: 0.01049931025 | Y54: 0.01049931025 | Z54: 0.01049931025 | AA54: 0.01049931025 | AB54: 0.01049931025 | AC54: 0.01039431715 | AD54: 0.01029037398 | AE54: 0.01018747024 | AF54: 0.01008559553 | AG54: 0.009984739579
D55: Corporate | S55: 1.807538684 | T55: 1.870344127 | U55: 1.966994002 | V55: 2.306172184 | W55: 2.268082076 | X55: 2.335566672 | Y55: 2.312571042 | Z55: 2.290524686 | AA55: 2.268671888 | AB55: 2.24701131 | AC55: 2.224541197 | AD55: 2.202295785 | AE55: 2.180272827 | AF55: 2.158470099 | AG55: 2.136885398
D56: Other operating expenditure | S56: 1.398812594 | T56: 0.9448128782 | U56: 1.003261833 | V56: 1.086096812 | W56: 1.097090803 | X56: 0 | Y56: 0 | Z56: 0 | AA56: 0 | AB56: 0 | AC56: 0 | AD56: 0 | AE56: 0 | AF56: 0 | AG56: 0
C57: =+CONCATENATE("Total ",C49) -> Total Irrigation | K57: =+SUM(K50:K56) -> 0 | L57: 0 | M57: 0 | N57: 0 | O57: 0 | P57: 0 | Q57: 0 | R57: 0 | S57: 10.87768018 | T57: 10.89030911 | U57: 11.65665076 | V57: 11.81198529 | W57: 11.95884487 | X57: 10.52282642 | Y57: 10.63479099 | Z57: 10.74187966 | AA57: 10.84814441 | AB57: 10.95357652 | AC57: 10.45327334 | AD57: 10.56093318 | AE57: 10.66754642 | AF57: 10.77310354 | AG57: 10.87759508
C59: Drainage
D60: =+D50 -> Operations & Maintenance
D61: External bulk charges (excl. temporary purchases)
D62: Customer Service and billing
D63: GSL Payments
D64: Licence Fees
D65: Corporate
D66: Other operating expenditure
C67: =+CONCATENATE("Total ",C59) -> Total Drainage | K67: =+SUM(K60:K66) -> 0 | L67: 0 | M67: 0 | N67: 0 | O67: 0 | P67: 0 | Q67: 0 | R67: 0 | S67: 0 | T67: 0 | U67: 0 | V67: 0 | W67: 0 | X67: 0 | Y67: 0 | Z67: 0 | AA67: 0 | AB67: 0 | AC67: 0 | AD67: 0 | AE67: 0 | AF67: 0 | AG67: 0
C69: Domestic and stock
D70: =+D60 -> Operations & Maintenance
D71: External bulk charges (excl. temporary purchases)
D72: Customer Service and billing
D73: GSL Payments
D74: Licence Fees
D75: Corporate
D76: Other operating expenditure
C77: =+CONCATENATE("Total ",C69) -> Total Domestic and stock | K77: =+SUM(K70:K76) -> 0 | L77: 0 | M77: 0 | N77: 0 | O77: 0 | P77: 0 | Q77: 0 | R77: 0 | S77: 0 | T77: 0 | U77: 0 | V77: 0 | W77: 0 | X77: 0 | Y77: 0 | Z77: 0 | AA77: 0 | AB77: 0 | AC77: 0 | AD77: 0 | AE77: 0 | AF77: 0 | AG77: 0
C79: Surface water diversions
D80: =+D60 -> Operations & Maintenance | S80: 2.015982053 | T80: 1.990792425 | U80: 1.988150628 | V80: 1.961323031 | W80: 1.886444156 | X80: 1.896738885 | Y80: 1.878103444 | Z80: 1.860167822 | AA80: 1.842392352 | AB80: 1.824775856 | AC80: 1.806528097 | AD80: 1.788462816 | AE80: 1.770578188 | AF80: 1.752872406 | AG80: 1.735343682
D81: External bulk charges (excl. temporary purchases) | S81: 0.08619489912 | T81: 0.08621245645 | U81: 0.07680809476 | V81: 0.07577530351 | W81: 0 | X81: 0 | Y81: 0 | Z81: 0 | AA81: 0 | AB81: 0 | AC81: 0 | AD81: 0 | AE81: 0 | AF81: 0 | AG81: 0
D82: Customer Service and billing | S82: 0.1200361866 | T82: 0.1183435095 | U82: 0.09776637452 | V82: 0.08707140142 | W82: 0.09070100792 | X82: 0.08975981959 | Y82: 0.0888622214 | Z82: 0.08797359918 | AA82: 0.08709386319 | AB82: 0.08622292456 | AC82: 0.08536069531 | AD82: 0.08450708836 | AE82: 0.08366201748 | AF82: 0.0828253973 | AG82: 0.08199714333
D83: GSL Payments | S83: 0 | T83: 0 | U83: 0 | V83: 0 | W83: 0 | X83: 0 | Y83: 0 | Z83: 0 | AA83: 0 | AB83: 0 | AC83: 0 | AD83: 0 | AE83: 0 | AF83: 0 | AG83: 0
D84: Licence Fees | S84: 0.005666810982 | T84: 0.002644938811 | U84: 0.002136425792 | V84: 0.002907489636 | W84: 0.003030509989 | X84: 0.003029356487 | Y84: 0.003029356487 | Z84: 0.003029356487 | AA84: 0.003029356487 | AB84: 0.003029356487 | AC84: 0.002999062922 | AD84: 0.002969072293 | AE84: 0.00293938157 | AF84: 0.002909987754 | AG84: 0.002880887877
D85: Corporate | S85: 0.5939909808 | T85: 0.5715250262 | U85: 0.661567364 | V85: 0.7858232443 | W85: 0.6546396884 | X85: 0.6738789388 | Y85: 0.6672440303 | Z85: 0.6608830152 | AA85: 0.6545778472 | AB85: 0.6483281401 | AC85: 0.6418448587 | AD85: 0.6354264102 | AE85: 0.6290721461 | AF85: 0.6227814246 | AG85: 0.6165536104
D86: Other operating expenditure | S86: 0 | T86: 0 | U86: 0 | V86: 0 | W86: 0 | X86: 0 | Y86: 0 | Z86: 0 | AA86: 0 | AB86: 0 | AC86: 0 | AD86: 0 | AE86: 0 | AF86: 0 | AG86: 0
C87: =+CONCATENATE("Total ",C79) -> Total Surface water diversions | K87: =+SUM(K80:K86) -> 0 | L87: 0 | M87: 0 | N87: 0 | O87: 0 | P87: 0 | Q87: 0 | R87: 0 | S87: 2.821870931 | T87: 2.769518356 | U87: 2.826428887 | V87: 2.91290047 | W87: 2.634815362 | X87: 2.663406999 | Y87: 2.637239052 | Z87: 2.612053793 | AA87: 2.587093418 | AB87: 2.562356277 | AC87: 2.536732714 | AD87: 2.511365387 | AE87: 2.486251733 | AF87: 2.461389216 | AG87: 2.436775324
C89: Groundwater diversions
D90: Operations & Maintenance | S90: 2.088440498 | T90: 2.151084208 | U90: 1.857476554 | V90: 2.164801879 | W90: 1.854203754 | X90: 1.894170113 | Y90: 1.87555991 | Z90: 1.857648579 | AA90: 1.839897182 | AB90: 1.822304544 | AC90: 1.804081499 | AD90: 1.786040684 | AE90: 1.768180277 | AF90: 1.750498474 | AG90: 1.73299349
D91: External bulk charges (excl. temporary purchases) | S91: 0 | T91: 0 | U91: 0 | V91: 0 | W91: 0 | X91: 0 | Y91: 0 | Z91: 0 | AA91: 0 | AB91: 0 | AC91: 0 | AD91: 0 | AE91: 0 | AF91: 0 | AG91: 0
D92: Customer Service and billing | S92: 0.1221296141 | T92: 0.1294885637 | U92: 0.09584344265 | V92: 0.07739891999 | W92: 0.09373673519 | X92: 0.09280769785 | Y92: 0.09187962087 | Z92: 0.09096082466 | AA92: 0.09005121641 | AB92: 0.08915070425 | AC92: 0.08825919721 | AD92: 0.08737660523 | AE92: 0.08650283918 | AF92: 0.08563781079 | AG92: 0.08478143268
D93: GSL Payments | S93: 0 | T93: 0 | U93: 0 | V93: 0 | W93: 0 | X93: 0 | Y93: 0 | Z93: 0 | AA93: 0 | AB93: 0 | AC93: 0 | AD93: 0 | AE93: 0 | AF93: 0 | AG93: 0
D94: Licence Fees | S94: 0.005765639999 | T94: 0.002894027133 | U94: 0.002094405197 | V94: 0.002584505981 | W94: 0.003131939973 | X94: 0.003132221107 | Y94: 0.003132221107 | Z94: 0.003132221107 | AA94: 0.003132221107 | AB94: 0.003132221107 | AC94: 0.003100898896 | AD94: 0.003069889907 | AE94: 0.003039191008 | AF94: 0.003008799098 | AG94: 0.002978711107
D95: Corporate | S95: 0.604350166 | T95: 0.625348657 | U95: 0.648555232 | V95: 0.698528672 | W95: 0.6765502228 | X95: 0.6967611256 | Y95: 0.6899009226 | Z95: 0.6833239134 | AA95: 0.6768046475 | AB95: 0.6703427258 | AC95: 0.6636392986 | AD95: 0.6570029056 | AE95: 0.6504328765 | AF95: 0.6439285478 | AG95: 0.6374892623
D96: Other operating expenditure | S96: 0 | T96: 0 | U96: 0 | V96: 0 | W96: 0 | X96: 0 | Y96: 0 | Z96: 0 | AA96: 0 | AB96: 0 | AC96: 0 | AD96: 0 | AE96: 0 | AF96: 0 | AG96: 0
C97: =+CONCATENATE("Total ",C89) -> Total Groundwater diversions | K97: =+SUM(K90:K96) -> 0 | L97: 0 | M97: 0 | N97: 0 | O97: 0 | P97: 0 | Q97: 0 | R97: 0 | S97: 2.820685918 | T97: 2.908815456 | U97: 2.603969634 | V97: 2.943313977 | W97: 2.627622652 | X97: 2.686871157 | Y97: 2.660472675 | Z97: 2.635065538 | AA97: 2.609885267 | AB97: 2.584930196 | AC97: 2.559080894 | AD97: 2.533490085 | AE97: 2.508155184 | AF97: 2.483073632 | AG97: 2.458242896
C99: Bulk water services
D100: Operations & Maintenance | S100: 4.06085161 | T100: 4.160804943 | U100: 3.757031059 | V100: 3.595057338 | W100: 3.676553385 | X100: 3.645585411 | Y100: 3.609767571 | Z100: 3.575294803 | AA100: 3.541129848 | AB100: 3.507270449 | AC100: 3.472197744 | AD100: 3.437475767 | AE100: 3.403101009 | AF100: 3.369069999 | AG100: 3.335379299
D101: External bulk charges (excl. temporary purchases) | S101: 0 | T101: 0 | U101: 0 | V101: 0.0001107859519 | W101: 0 | X101: 0 | Y101: 0 | Z101: 0 | AA101: 0 | AB101: 0 | AC101: 0 | AD101: 0 | AE101: 0 | AF101: 0 | AG101: 0
D102: Customer Service and billing | S102: 0.1925950338 | T102: 0.1946833159 | U102: 0.148853168 | V102: 0.121806731 | W102: 0.1537894969 | X102: 0.1520880436 | Y102: 0.1505671632 | Z102: 0.1490614916 | AA102: 0.1475708767 | AB102: 0.1460951679 | AC102: 0.1446342162 | AD102: 0.143187874 | AE102: 0.1417559953 | AF102: 0.1403384354 | AG102: 0.138935051
D103: GSL Payments | S103: 0 | T103: 0 | U103: 0 | V103: 0 | W103: 0 | X103: 0 | Y103: 0 | Z103: 0 | AA103: 0 | AB103: 0 | AC103: 0 | AD103: 0 | AE103: 0 | AF103: 0 | AG103: 0
D104: Licence Fees | S104: 0.009092255292 | T104: 0.004351108566 | U104: 0.003252792679 | V104: 0.004067372321 | W104: 0.005138428085 | X104: 0.005132908061 | Y104: 0.005132908061 | Z104: 0.005132908061 | AA104: 0.005132908061 | AB104: 0.005132908061 | AC104: 0.005081578981 | AD104: 0.005030763191 | AE104: 0.004980455559 | AF104: 0.004930651003 | AG104: 0.004881344493
D105: Corporate | S105: 0.9530435471 | T105: 0.9401984753 | U105: 1.007262451 | V105: 1.099311129 | W105: 1.109984449 | X105: 1.141813006 | Y105: 1.130570891 | Z105: 1.119792857 | AA105: 1.109109451 | AB105: 1.098520016 | AC105: 1.087534816 | AD105: 1.076659468 | AE105: 1.065892873 | AF105: 1.055233944 | AG105: 1.044681605
D106: Other operating expenditure | S106: 0 | T106: 0 | U106: 0 | V106: 0 | W106: 0 | X106: 0 | Y106: 0 | Z106: 0 | AA106: 0 | AB106: 0 | AC106: 0 | AD106: 0 | AE106: 0 | AF106: 0 | AG106: 0
C107: =+CONCATENATE("Total ",C99) -> Total Bulk water services | K107: =+SUM(K100:K106) -> 0 | L107: 0 | M107: 0 | N107: 0 | O107: 0 | P107: 0 | Q107: 0 | R107: 0 | S107: 5.215582446 | T107: 5.300037843 | U107: 4.91639947 | V107: 4.820353356 | W107: 4.945465759 | X107: 4.944619369 | Y107: 4.896038533 | Z107: 4.84928206 | AA107: 4.802943084 | AB107: 4.757018541 | AC107: 4.709448355 | AD107: 4.662353872 | AE107: 4.615730333 | AF107: 4.56957303 | AG107: 4.5238773
C109: Licence applications
D110: Operations & Maintenance | S110: 1.150449494 | T110: 1.022875185 | U110: 0.9498898869 | V110: 0.9460175794 | W110: 0.7623731147 | X110: 0.7559515704 | Y110: 0.7485243537 | Z110: 0.7413760524 | AA110: 0.7342915795 | AB110: 0.7272704667 | AC110: 0.7199977621 | AD110: 0.7127977844 | AE110: 0.7056698066 | AF110: 0.6986131085 | AG110: 0.6916269774
D111: External bulk charges (excl. temporary purchases) | S111: 0 | T111: 0 | U111: 0 | V111: 0 | W111: 0 | X111: 0 | Y111: 0 | Z111: 0 | AA111: 0 | AB111: 0 | AC111: 0 | AD111: 0 | AE111: 0 | AF111: 0 | AG111: 0
D112: Customer Service and billing | S112: 0.05363298119 | T112: 0.04509725155 | U112: 0.03189114716 | V112: 0.02735839309 | W112: 0.03525198156 | X112: 0.03509702418 | Y112: 0.03474605394 | Z112: 0.0343985934 | AA112: 0.03405460747 | AB112: 0.03371406139 | AC112: 0.03337692078 | AD112: 0.03304315157 | AE112: 0.03271272005 | AF112: 0.03238559285 | AG112: 0.03206173692
D113: GSL Payments | S113: 0 | T113: 0 | U113: 0 | V113: 0 | W113: 0 | X113: 0 | Y113: 0 | Z113: 0 | AA113: 0 | AB113: 0 | AC113: 0 | AD113: 0 | AE113: 0 | AF113: 0 | AG113: 0
D114: Licence Fees | S114: 0.002531969529 | T114: 0.001007908853 | U114: 0.0006968967567 | V114: 0.000913551902 | W114: 0.001177842283 | X114: 0.001184509933 | Y114: 0.001184509933 | Z114: 0.001184509933 | AA114: 0.001184509933 | AB114: 0.001184509933 | AC114: 0.001172664833 | AD114: 0.001160938185 | AE114: 0.001149328803 | AF114: 0.001137835515 | AG114: 0.00112645716
D115: Corporate | S115: 0.2653991935 | T115: 0.2177914782 | U115: 0.2158016216 | V115: 0.2469107062 | W115: 0.2544331839 | X115: 0.2634936825 | Y115: 0.2608993642 | Z115: 0.2584121411 | AA115: 0.2559467548 | AB115: 0.2535030542 | AC115: 0.2509680237 | AD115: 0.2484583434 | AE115: 0.24597376 | AF115: 0.2435140224 | AG115: 0.2410788822
D116: Other operating expenditure | S116: 0 | T116: 0 | U116: 0 | V116: 0 | W116: 0 | X116: 0 | Y116: 0 | Z116: 0 | AA116: 0 | AB116: 0 | AC116: 0 | AD116: 0 | AE116: 0 | AF116: 0 | AG116: 0
C117: =+CONCATENATE("Total ",C109) -> Total Licence applications | K117: =+SUM(K110:K116) -> 0 | L117: 0 | M117: 0 | N117: 0 | O117: 0 | P117: 0 | Q117: 0 | R117: 0 | S117: 1.472013638 | T117: 1.286771824 | U117: 1.198279552 | V117: 1.221200231 | W117: 1.053236122 | X117: 1.055726787 | Y117: 1.045354282 | Z117: 1.035371297 | AA117: 1.025477452 | AB117: 1.015672092 | AC117: 1.005515371 | AD117: 0.9954602176 | AE117: 0.9855056155 | AF117: 0.9756505593 | AG117: 0.9658940537
C120: External temporary water purchases
C123: Licence fees
D124: Essential Services Commission | S124: 0.04030101182 | T124: 0.01955367742 | U124: 0.01453261236 | V124: 0.0190055915 | W124: 0.02089958379 | X124: 0.02089958379 | Y124: 0.02089958379 | Z124: 0.02089958379 | AA124: 0.02089958379 | AB124: 0.02089958379 | AC124: 0.02089958379 | AD124: 0.02089958379 | AE124: 0.02089958379 | AF124: 0.02089958379 | AG124: 0.02089958379
D125: Department of Human Services | S125: 0 | T125: 0 | U125: 0 | V125: 0 | W125: 0.002078722044 | X125: 0.002078722044 | Y125: 0.002078722044 | Z125: 0.002078722044 | AA125: 0.002078722044 | AB125: 0.002078722044 | AC125: 0.002078722044 | AD125: 0.002078722044 | AE125: 0.002078722044 | AF125: 0.002078722044 | AG125: 0.002078722044
D126: Environment Protection Authority | S126: 0 | T126: 0 | U126: 0 | V126: 0 | W126: 0 | X126: 0 | Y126: 0 | Z126: 0 | AA126: 0 | AB126: 0 | AC126: 0 | AD126: 0 | AE126: 0 | AF126: 0 | AG126: 0
C127: =+CONCATENATE("Total ",C123) -> Total Licence fees | K127: =+SUM(K124:K126) -> 0 | L127: =+SUM(L124:L126) -> 0 | M127: 0 | N127: 0 | O127: 0 | P127: 0 | Q127: 0 | R127: 0 | S127: 0.04030101182 | T127: 0.01955367742 | U127: 0.01453261236 | V127: 0.0190055915 | W127: 0.02297830584 | X127: =+SUM(X124:X126) -> 0.02297830584 | Y127: =+SUM(Y124:Y126) -> 0.02297830584 | Z127: =+SUM(Z124:Z126) -> 0.02297830584 | AA127: =+SUM(AA124:AA126) -> 0.02297830584 | AB127: =+SUM(AB124:AB126) -> 0.02297830584 | AC127: =+SUM(AC124:AC126) -> 0.02297830584 | AD127: 0.02297830584 | AE127: 0.02297830584 | AF127: 0.02297830584 | AG127: 0.02297830584
C129: Environment Contribution | S129: 0.4512128188 | T129: 0.4382009387 | U129: 0.4378614232 | V129: 0.4323976113 | W129: 0.4189690648 | X129: 0.5446597842 | Y129: 0.5446597842 | Z129: 0.5446597842 | AA129: 0.5446597842 | AB129: 0.5446597842 | AC129: 0.5446597842 | AD129: 0.5446597842 | AE129: 0.5446597842 | AF129: 0.5446597842 | AG129: 0.5446597842
C131: Other non-controllable
D132: Immediately recoverable capital works for Latrobe power companies | S132: 0.1812890625 | T132: 0.2757258065 | U132: 0.3755758427 | V132: 0.8282393715 | W132: 1.03352781 | X132: 0.429285597 | Y132: 0.1134563567 | Z132: 0.1100847092 | AA132: 0.2611799938 | AB132: 0.664080644 | AC132: 0.3156174601 | AD132: 0.3156174601 | AE132: 0.3156174601 | AF132: 0.3156174601 | AG132: 0.3156174601
D133: [Non-controllable 2]
D134: [Non-controllable 3]
D135: [Non-controllable 4]
D136: [Non-controllable 5]
D137: [Non-controllable 6]
D138: [Non-controllable 7]
D139: [Non-controllable 8]
D140: [Non-controllable 9]
D141: [Non-controllable 10]
K142: =SUM(K132:K141) -> 0 | L142: 0 | M142: 0 | N142: 0 | O142: 0 | P142: 0 | Q142: 0 | R142: 0 | S142: 0.1812890625 | T142: 0.2757258065 | U142: 0.3755758427 | V142: 0.8282393715 | W142: 1.03352781 | X142: 0.429285597 | Y142: 0.1134563567 | Z142: 0.1100847092 | AA142: 0.2611799938 | AB142: 0.664080644 | AC142: 0.3156174601 | AD142: 0.3156174601 | AE142: 0.3156174601 | AF142: 0.3156174601 | AG142: =SUM(AG132:AG141) -> 0.3156174601

Sheet Capex_FO input
B1: Capital Expenditure - Forecast Input
B2: =+Contents!H7 -> Southern Rural Water
B3: Go to Table of Contents
C7: Input Summary | F7: FOURTH REG PERIOD | K7: FIFTH REG PERIOD
D9: =+O39 -> 2018-19 | E9: 2019-20 | F9: 2020-21 | G9: 2021-22 | H9: 2022-23 | I9: 2023-24 | J9: 2024-25 | K9: 2025-26 | L9: 2026-27 | M9: 2027-28 | P9: 4th Reg Period | S9: 5th Reg Period
C10: By Cost Driver | P10: Total | Q10: % of Total | S10: Total | T10: % of Total
C11: Net capital expenditure - Renewals | D11: =+SUMIF($F$42:$F$1019,"Renewals",AV$42:AV$1019) -> 10.51522336 | E11: 6.552440975 | F11: 5.56906196 | G11: 4.851557431 | H11: 5.617747037 | I11: 5.328890945 | J11: 5.14901475 | K11: 4.19762475 | L11: 3.940596 | M11: 5.32548225 | P11: =SUM(D11:H11) -> 33.10603076 | Q11: =IFERROR(P11/$P$16,"-") -> 0.3251783032 | S11: =SUM(I11:M11) -> 23.94160869 | T11: =IFERROR(S11/$S$16,"-") -> 0.9719664967
C12: Net capital expenditure - Growth | D12: =+SUMIF($F$42:$F$1019,"Growth",AV$42:AV$1019) -> 0 | E12: 0 | F12: 0 | G12: 0 | H12: 0 | I12: 0 | J12: 0 | K12: 0 | L12: 0 | M12: 0 | P12: =SUM(D12:H12) -> 0 | Q12: =IFERROR(P12/$P$16,"-") -> 0 | S12: =SUM(I12:M12) -> 0 | T12: =IFERROR(S12/$S$16,"-") -> 0
C13: Net capital expenditure - Improvements / Compliance | D13: =+SUMIF($F$42:$F$1019,"Improvements / Compliance",AV$42:AV$1019) -> 9.740474922 | E13: 3.840922239 | F13: 7.801681869 | G13: 2.204806639 | H13: 1.29384554 | I13: 0.138105 | J13: 0.138105 | K13: 0.138105 | L13: 0.138105 | M13: 0.138105 | P13: 24.88173121 | Q13: 0.2443965328 | S13: 0.690525 | T13: 0.02803350325
C14: Government Contributions | D14: =+Z41 -> 15.5588172 | E14: =+AA41 -> 13.82267477 | F14: 0.9247158325 | G14: 0 | H14: 0 | I14: 0 | J14: 0 | K14: 0 | L14: 0 | M14: 0 | P14: 30.3062078 | Q14: 0.2976775228 | S14: 0 | T14: 0
C15: Customer Contributions | D15: =+AK41 -> 7.888129019 | E15: =+AL41 -> 2.410882859 | F15: 1.086112271 | G15: 1.249542614 | H15: 0.8802186117 | I15: 0 | J15: 0 | K15: 0 | L15: 0 | M15: 0 | P15: 13.51488537 | Q15: 0.1327476412 | S15: 0 | T15: 0
C16: Total prescribed capex | D16: =SUM(D11:D15) -> 43.70264451 | E16: 26.62692084 | F16: 15.38157193 | G16: 8.305906684 | H16: 7.791811188 | I16: 5.466995945 | J16: 5.28711975 | K16: 4.33572975 | L16: 4.078701 | M16: 5.46358725 | P16: 101.8088551 | Q16: 1 | S16: 24.63213369 | T16: 1
C18: By Capital Type
C19: Top 10 Major Projects | D19: =+SUMIF($H$42:$H$1019,$C$19,O$42:O$1019) -> 35.44586598 | E19: 21.68549545 | F19: 9.908376412 | G19: 4.028684062 | H19: 3.2016809 | I19: 0 | J19: 0 | K19: 0 | L19: 0 | M19: 0 | P19: =SUM(D19:H19) -> 74.2701028 | Q19: =IFERROR(P19/$P$23,"-") -> 0.7295053332 | S19: =SUM(I19:M19) -> 0 | T19: =IFERROR(S19/$S$23,"-") -> 0
C20: Significant projects | D20: =+SUMIF($H$42:$H$1019,$C$20,O$42:O$1019) -> 0 | E20: 0 | F20: 0 | G20: 0 | H20: 0 | I20: 0 | J20: 0 | K20: 0 | L20: 0 | M20: 0 | P20: =SUM(D20:H20) -> 0 | Q20: =IFERROR(P20/$P$23,"-") -> 0 | S20: =SUM(I20:M20) -> 0 | T20: =IFERROR(S20/$S$23,"-") -> 0
C21: Capital Programs / Allocation | D21: =+SUMIF($H$42:$H$1019,$C$21,O$42:O$1019) -> 8.256778526 | E21: 4.941425393 | F21: 5.47319552 | G21: 4.277222622 | H21: 4.590130288 | I21: 5.466995945 | J21: 5.28711975 | K21: 4.33572975 | L21: 4.078701 | M21: 5.46358725 | P21: 27.53875235 | Q21: 0.2704946668 | S21: 24.63213369 | T21: 1
C22: Other Capital expenditure | D22: =+SUMIF($H$42:$H$1019,$C$22,O$42:O$1019) -> 0 | E22: 0 | F22: 0 | G22: 0 | H22: 0 | I22: 0 | J22: 0 | K22: 0 | L22: 0 | M22: 0 | P22: 0 | Q22: 0 | S22: 0 | T22: 0
C23: Total prescribed capex | D23: =SUM(D19:D22) -> 43.70264451 | E23: =SUM(E19:E22) -> 26.62692084 | F23: 15.38157193 | G23: 8.305906684 | H23: 7.791811188 | I23: 5.466995945 | J23: 5.28711975 | K23: 4.33572975 | L23: 4.078701 | M23: 5.46358725 | P23: 101.8088551 | Q23: 1 | S23: 24.63213369 | T23: 1
C25: Difference | D25: =+D23-D16 -> 0 | E25: =+E23-E16 -> 0 | F25: 0 | G25: 0 | H25: 0 | I25: 0 | J25: 0 | K25: 0 | L25: 0 | M25: 0
C26: Test | D26: =+D23=D16 -> TRUE | E26: TRUE | F26: TRUE | G26: TRUE | H26: TRUE | I26: TRUE | J26: TRUE | K26: TRUE | L26: TRUE | M26: TRUE
C29: Total prescribed capex | D29: =+D23 -> 43.70264451 | E29: =+E23 -> 26.62692084 | F29: 15.38157193 | G29: 8.305906684 | H29: 7.791811188 | I29: 5.466995945 | J29: 5.28711975 | K29: 4.33572975 | L29: 4.078701 | M29: 5.46358725
C32: Regulatory Depreciation | D32: =+BG41 -> 0.5117754251 | E32: =+BH41 -> 1.306837525 | F32: 1.925485667 | G32: 2.459996403 | H32: 2.827281871 | I32: 3.175290548 | J32: 3.511136063 | K32: 3.760560637 | L32: 4.005039497 | M32: 4.360261313
B35: $m, 01/01/18
O36: Gross capital expenditure | Z36: Government contributions | AK36: Customer contributions | AV36: Net capital expenditure | BG36: Regulatory Depreciation | BR36: Accumulated capex | CC36: Gross capital expenditure | CN36: Tax Depreciation
O37: $m, 01/01/18 | Z37: $m, 01/01/18 | AK37: $m, 01/01/18 | AV37: $m, 01/01/18 | BG37: $m, 01/01/18 | BR37: $m, 01/01/18 | CC37: Nominal,$ | CN37: Nominal,$
O39: 2018-19 | P39: 2019-20 | Q39: 2020-21 | R39: 2021-22 | S39: 2022-23 | T39: 2023-24 | U39: 2024-25 | V39: 2025-26 | W39: 2026-27 | X39: 2027-28 | Z39: 2018-19 | AA39: 2019-20 | AB39: 2020-21 | AC39: 2021-22 | AD39: 2022-23 | AE39: 2023-24 | AF39: 2024-25 | AG39: 2025-26 | AH39: 2026-27 | AI39: 2027-28 | AK39: 2018-19 | AL39: 2019-20 | AM39: 2020-21 | AN39: 2021-22 | AO39: 2022-23 | AP39: 2023-24 | AQ39: 2024-25 | AR39: 2025-26 | AS39: 2026-27 | AT39: 2027-28 | AV39: 2018-19 | AW39: 2019-20 | AX39: 2020-21 | AY39: 2021-22 | AZ39: 2022-23 | BA39: 2023-24 | BB39: 2024-25 | BC39: 2025-26 | BD39: 2026-27 | BE39: 2027-28 | BG39: 2018-19 | BH39: 2019-20 | BI39: 2020-21 | BJ39: 2021-22 | BK39: 2022-23 | BL39: 2023-24 | BM39: 2024-25 | BN39: 2025-26 | BO39: 2026-27 | BP39: 2027-28 | BR39: 2018-19 | BS39: 2019-20 | BT39: 2020-21 | BU39: 2021-22 | BV39: 2022-23 | BW39: 2023-24 | BX39: 2024-25 | BY39: 2025-26 | BZ39: 2026-27 | CA39: 2027-28 | CC39: 2018-19 | CD39: 2019-20 | CE39: 2020-21 | CF39: 2021-22 | CG39: 2022-23 | CH39: 2023-24 | CI39: 2024-25 | CJ39: 2025-26 | CK39: 2026-27 | CL39: 2027-28 | CN39: 2018-19 | CO39: 2019-20 | CP39: 2020-21 | CQ39: 2021-22 | CR39: 2022-23 | CS39: 2023-24 | CT39: 2024-25 | CU39: 2025-26 | CV39: 2026-27 | CW39: 2027-28
BG40: 1 | BH40: 2 | BI40: 3 | BJ40: 4 | BK40: 5 | BL40: 6 | BM40: 7 | BN40: 8 | BO40: 9 | BP40: 10 | CN40: 1 | CO40: 2 | CP40: 3 | CQ40: 4 | CR40: 5 | CS40: 6 | CT40: 7 | CU40: 8 | CV40: 9 | CW40: 10
C41: Project/program Name | E41: Service | F41: Major cost driver | G41: Asset category | H41: Capital type | J41: Depreciation Method | K41: Year asset operational | L41: Asset life (Regulatory) | M41: Asset life (Tax) | O41: =SUM(O42:O1019) -> 43.70264451 | P41: 26.62692084 | Q41: 15.38157193 | R41: 8.305906684 | S41: 7.791811188 | T41: 5.466995945 | U41: 5.28711975 | V41: 4.33572975 | W41: 4.078701 | X41: 5.46358725 | Z41: =SUM(Z42:Z1019) -> 15.5588172 | AA41: 13.82267477 | AB41: 0.9247158325 | AC41: 0 | AD41: 0 | AE41: 0 | AF41: 0 | AG41: 0 | AH41: 0 | AI41: 0 | AK41: =SUM(AK42:AK1019) -> 7.888129019 | AL41: 2.410882859 | AM41: 1.086112271 | AN41: 1.249542614 | AO41: 0.8802186117 | AP41: 0 | AQ41: 0 | AR41: 0 | AS41: 0 | AT41: 0 | AV41: =SUM(AV42:AV1019) -> 20.25569828 | AW41: 10.39336321 | AX41: 13.37074383 | AY41: 7.05636407 | AZ41: 6.911592576 | BA41: 5.466995945 | BB41: 5.28711975 | BC41: 4.33572975 | BD41: 4.078701 | BE41: 5.46358725 | BG41: =SUM(BG42:BG1019) -> 0.5117754251 | BH41: 1.306837525 | BI41: 1.925485667 | BJ41: 2.459996403 | BK41: 2.827281871 | BL41: 3.175290548 | BM41: 3.511136063 | BN41: 3.760560637 | BO41: 4.005039497 | BP41: 4.360261313 | BR41: =SUM(BR42:BR1019) -> 20.25569828 | BS41: 10.39336321 | BT41: 13.37074383 | BU41: 7.05636407 | BV41: 6.911592576 | BW41: 5.466995945 | BX41: 5.28711975 | BY41: 4.33572975 | BZ41: 4.078701 | CA41: 5.46358725 | CC41: =SUM(CC42:CC1019) -> 44.70780533 | CD41: 27.86584484 | CE41: 16.4674981 | CF41: 9.096819603 | CG41: 8.730047138 | CH41: 6.266175497 | CI41: 6.199384641 | CJ41: 5.200765524 | CK41: 5.004982609 | CL41: 6.858580178 | CN41: =SUM(CN42:CN1019) -> 0.923316693 | CO41: 2.426249253 | CP41: 3.40102646 | CQ41: 4.037681236 | CR41: 4.485873026 | CS41: 4.898618173 | CT41: 5.289695001 | CU41: 5.592133384 | CV41: 5.899747258 | CW41: 6.348214087
C42: MID2030 1B | E42: Irrigation | F42: Improvements / Compliance | G42: Pipelines/network | H42: Top 10 Major Projects | I42: 0 | J42: Straight line | K42: Ongoing | L42: 30 | M42: 30 | O42: 20.03128055 | P42: 11.77607118 | Q42: 6.181585232 | R42: 0 | S42: 0 | Z42: 12.02346041 | AA42: 11.27536838 | AB42: 0 | AC42: 0 | AD42: 0 | AK42: 4.071724659 | AL42: 0.5755259754 | AM42: 0.7060314552 | AN42: 0.8485219334 | AO42: 0.4575261086 | AV42: =+O42-Z42-AK42 -> 3.936095478 | AW42: =+P42-AA42-AL42 -> -0.07482317593 | AX42: 5.475553777 | AY42: -0.8485219334 | AZ42: -0.4575261086 | BA42: 0 | BB42: 0 | BC42: 0 | BD42: 0 | BE42: 0 | BG42: =IF($L42=0,0, IF($L42<=0.5,BR42, IF($J42="straight line", IF((LEFT(BG$39,4)*1)-INT($L42)<LEFT($BG$39,4)*1,0,((OFFSET(BR42,0,-INT($L42+0.5),1,1))/$L42)*(IF($L42-INT($L42)>0.5,$L42-0.5-INT($L42),IF($L42-INT($L42)<=0.5,$L42-0.5-INT($L42)+1,0)))) +BR42/$L42*0.5, IF($J42="Declining Balance",-$BG$38,0)))) -> 0.0656015913 | BH42: =IF($L42=0,0, IF($L42<=0.5,BS42, IF(AND($J42="straight line",$L42<1.51),(BR42-((BR42/$L42)*0.5))+BS42/$L42*0.5, IF($J42="straight line", IF((LEFT(BH$39,4)*1)-INT($L42)<LEFT($BG$39,4)*1,0,((OFFSET(BS42,0,-INT($L42+0.5),1,1))/$L42)*(IF($L42-INT($L42)>0.5,$L42-0.5-INT($L42),IF($L42-INT($L42)<=0.5,$L42-0.5-INT($L42)+1,0)))) +BS42/$L42*0.5 +SUM(OFFSET(BS42,0,MAX(-INT($L42+(0.5-(10^-12))),-BH$40)+1,1,MIN(INT($L42+(0.5-(10^-12))),BH$40)-1))*1/$L42, IF($J42="Declining Balance",-$BG$38,0))))) -> 0.1299561297 | BI42: =IF($L42=0,0, IF($L42<=0.5,BT42, IF(AND($J42="straight line",$L42<1.51),(BS42-((BS42/$L42)*0.5))+BT42/$L42*0.5, IF($J42="straight line", IF((LEFT(BI$39,4)*1)-INT($L42)<LEFT($BG$39,4)*1,0,((OFFSET(BT42,0,-INT($L42+0.5),1,1))/$L42)*(IF($L42-INT($L42)>0.5,$L42-0.5-INT($L42),IF($L42-INT($L42)<=0.5,$L42-0.5-INT($L42)+1,0)))) +BT42/$L42*0.5 +SUM(OFFSET(BT42,0,MAX(-INT($L42+(0.5-(10^-12))),-BI$40)+1,1,MIN(INT($L42+(0.5-(10^-12))),BI$40)-1))*1/$L42, IF($J42="Declining Balance",-$BG$38,0))))) -> 0.2199683064 | BJ42: 0.2970855037 | BK42: 0.2753180364 | BL42: 0.2676926012 | BM42: 0.2676926012 | BN42: 0.2676926012 | BO42: 0.2676926012 | BP42: 0.2676926012 | BR42: =+IF($K42="Ongoing",AV42,IF(RIGHT($K42,2)=RIGHT(BR$39,2),SUM($AV42:AV42),0)+IF(RIGHT(BR$39,2)>RIGHT($K42,2),AV42,0)) -> 3.936095478 | BS42: =+IF($K42="Ongoing",AW42,IF(RIGHT($K42,2)=RIGHT(BS$39,2),SUM($AV42:AW42),0)+IF(RIGHT(BS$39,2)>RIGHT($K42,2),AW42,0)) -> -0.07482317593 | BT42: =+IF($K42="Ongoing",AX42,IF(RIGHT($K42,2)=RIGHT(BT$39,2),SUM($AV42:AX42),0)+IF(RIGHT(BT$39,2)>RIGHT($K42,2),AX42,0)) -> 5.475553777 | BU42: =+IF($K42="Ongoing",AY42,IF(RIGHT($K42,2)=RIGHT(BU$39,2),SUM($AV42:AY42),0)+IF(RIGHT(BU$39,2)>RIGHT($K42,2),AY42,0)) -> -0.8485219334 | BV42: =+IF($K42="Ongoing",AZ42,IF(RIGHT($K42,2)=RIGHT(BV$39,2),SUM($AV42:AZ42),0)+IF(RIGHT(BV$39,2)>RIGHT($K42,2),AZ42,0)) -> -0.4575261086 | BW42: =+IF($K42="Ongoing",BA42,IF(RIGHT($K42,2)=RIGHT(BW$39,2),SUM($AV42:BA42),0)+IF(RIGHT(BW$39,2)>RIGHT($K42,2),BA42,0)) -> 0 | BX42: =+IF($K42="Ongoing",BB42,IF(RIGHT($K42,2)=RIGHT(BX$39,2),SUM($AV42:BB42),0)+IF(RIGHT(BX$39,2)>RIGHT($K42,2),BB42,0)) -> 0 | BY42: =+IF($K42="Ongoing",BC42,IF(RIGHT($K42,2)=RIGHT(BY$39,2),SUM($AV42:BC42),0)+IF(RIGHT(BY$39,2)>RIGHT($K42,2),BC42,0)) -> 0 | BZ42: =+IF($K42="Ongoing",BD42,IF(RIGHT($K42,2)=RIGHT(BZ$39,2),SUM($AV42:BD42),0)+IF(RIGHT(BZ$39,2)>RIGHT($K42,2),BD42,0)) -> 0 | CA42: =+IF($K42="Ongoing",BE42,IF(RIGHT($K42,2)=RIGHT(CA$39,2),SUM($AV42:BE42),0)+IF(RIGHT(CA$39,2)>RIGHT($K42,2),BE42,0)) -> 0 | CC42: =+O42*KeyAssumptionsPriceControl_FO!X$15 -> 20.492 | CD42: =+P42*KeyAssumptionsPriceControl_FO!Y$15 -> 12.324 | CE42: =+Q42*KeyAssumptionsPriceControl_FO!Z$15 -> 6.618 | CF42: =+R42*KeyAssumptionsPriceControl_FO!AA$15 -> 0 | CG42: =+S42*KeyAssumptionsPriceControl_FO!AB$15 -> 0 | CH42: =+T42*KeyAssumptionsPriceControl_FO!AC$15 -> 0 | CI42: =+U42*KeyAssumptionsPriceControl_FO!AD$15 -> 0 | CJ42: =+V42*KeyAssumptionsPriceControl_FO!AE$15 -> 0 | CK42: =+W42*KeyAssumptionsPriceControl_FO!AF$15 -> 0 | CL42: =+X42*KeyAssumptionsPriceControl_FO!AG$15 -> 0 | CN42: =IF($M42=0,0, IF($M42<=0.5,CC42, IF($J42="straight line", IF((LEFT(CN$39,4)*1)-INT($M42)<LEFT($CN$39,4)*1,0,((OFFSET(CC42,0,-INT($M42+0.5),1,1))/$M42)*(IF($M42-INT($M42)>0.5,$M42-0.5-INT($M42),IF($M42-INT($M42)<=0.5,$M42-0.5-INT($M42)+1,0)))) +CC42/$M42*0.5, IF($J42="Declining Balance",-$CN$38,0)))) -> 0.3415333333 | CO42: =IF($M42=0,0, IF($M42<=0.5,CD42, IF(AND($J42="straight line",$M42<1.51),(CC42-((CC42/$M42)*0.5))+CD42/$M42*0.5, IF($J42="straight line", IF((LEFT(CO$39,4)*1)-INT($M42)<LEFT($CN$39,4)*1,0,((OFFSET(CD42,0,-INT($M42+0.5),1,1))/$M42)*(IF($M42-INT($M42)>0.5,$M42-0.5-INT($M42),IF($M42-INT($M42)<=0.5,$M42-0.5-INT($M42)+1,0)))) +CD42/$M42*0.5 +SUM(OFFSET(CD42,0,MAX(-INT($M42+(0.5-(10^-12))),-CO$40)+1,1,MIN(INT($M42+(0.5-(10^-12))),CO$40)-1))*1/$M42, IF($J42="Declining Balance",-$CN$38,0))))) -> 0.8884666667 | CP42: =IF($M42=0,0, IF($M42<=0.5,CE42, IF(AND($J42="straight line",$M42<1.51),(CD42-((CD42/$M42)*0.5))+CE42/$M42*0.5, IF($J42="straight line", IF((LEFT(CP$39,4)*1)-INT($M42)<LEFT($CN$39,4)*1,0,((OFFSET(CE42,0,-INT($M42+0.5),1,1))/$M42)*(IF($M42-INT($M42)>0.5,$M42-0.5-INT($M42),IF($M42-INT($M42)<=0.5,$M42-0.5-INT($M42)+1,0)))) +CE42/$M42*0.5 +SUM(OFFSET(CE42,0,MAX(-INT($M42+(0.5-(10^-12))),-CP$40)+1,1,MIN(INT($M42+(0.5-(10^-12))),CP$40)-1))*1/$M42, IF($J42="Declining Balance",-$CN$38,0))))) -> 1.204166667 | CQ42: 1.314466667 | CR42: 1.314466667 | CS42: 1.314466667 | CT42: 1.314466667 | CU42: 1.314466667 | CV42: 1.314466667 | CW42: 1.314466667
C43: WID modernisation | E43: Irrigation | F43: Improvements / Compliance | G43: Pipelines/network | H43: Top 10 Major Projects | I43: 0 | J43: Straight line | K43: Ongoing | L43: 30 | M43: 30 | O43: 8.164222874 | P43: 3.870891299 | Q43: 0 | R43: 0 | S43: 0 | Z43: 2.704467253 | AA43: 1.847373556 | AB43: 0.9247158325 | AC43: 0 | AD43: 0 | AK43: 2.640480008 | AL43: 1.160992277 | AM43: 0.2814219469 | AN43: 0.3174188581 | AO43: 0.3584340384 | AV43: =+O43-Z43-AK43 -> 2.819275612 | AW43: 0.8625254657 | AX43: -1.206137779 | AY43: -0.3174188581 | AZ43: -0.3584340384 | BA43: 0 | BB43: 0 | BC43: 0 | BD43: 0 | BE43: 0 | BG43: =IF($L43=0,0, IF($L43<=0.5,BR43, IF($J43="straight line", IF((LEFT(BG$39,4)*1)-INT($L43)<LEFT($BG$39,4)*1,0,((OFFSET(BR43,0,-INT($L43+0.5),1,1))/$L43)*(IF($L43-INT($L43)>0.5,$L43-0.5-INT($L43),IF($L43-INT($L43)<=0.5,$L43-0.5-INT($L43)+1,0)))) +BR43/$L43*0.5, IF($J43="Declining Balance",-$BG$38,0)))) -> 0.04698792687 | BH43: =IF($L43=0,0, IF($L43<=0.5,BS43, IF(AND($J43="straight line",$L43<1.51),(BR43-((BR43/$L43)*0.5))+BS43/$L43*0.5, IF($J43="straight line", IF((LEFT(BH$39,4)*1)-INT($L43)<LEFT($BG$39,4)*1,0,((OFFSET(BS43,0,-INT($L43+0.5),1,1))/$L43)*(IF($L43-INT($L43)>0.5,$L43-0.5-INT($L43),IF($L43-INT($L43)<=0.5,$L43-0.5-INT($L43)+1,0)))) +BS43/$L43*0.5 +SUM(OFFSET(BS43,0,MAX(-INT($L43+(0.5-(10^-12))),-BH$40)+1,1,MIN(INT($L43+(0.5-(10^-12))),BH$40)-1))*1/$L43, IF($J43="Declining Balance",-$BG$38,0))))) -> 0.1083512782 | BI43: 0.1026244063 | BJ43: 0.07723179566 | BK43: 0.06596758072 | BL43: 0.05999368008 | BM43: 0.05999368008 | BN43: 0.05999368008 | BO43: 0.05999368008 | BP43: 0.05999368008 | BR43: =+IF($K43="Ongoing",AV43,IF(RIGHT($K43,2)=RIGHT(BR$39,2),SUM($AV43:AV43),0)+IF(RIGHT(BR$39,2)>RIGHT($K43,2),AV43,0)) -> 2.819275612 | BS43: =+IF($K43="Ongoing",AW43,IF(RIGHT($K43,2)=RIGHT(BS$39,2),SUM($AV43:AW43),0)+IF(RIGHT(BS$39,2)>RIGHT($K43,2),AW43,0)) -> 0.8625254657 | BT43: =+IF($K43="Ongoing",AX43,IF(RIGHT($K43,2)=RIGHT(BT$39,2),SUM($AV43:AX43),0)+IF(RIGHT(BT$39,2)>RIGHT($K43,2),AX43,0)) -> -1.206137779 | BU43: =+IF($K43="Ongoing",AY43,IF(RIGHT($K43,2)=RIGHT(BU$39,2),SUM($AV43:AY43),0)+IF(RIGHT(BU$39,2)>RIGHT($K43,2),AY43,0)) -> -0.3174188581 | BV43: =+IF($K43="Ongoing",AZ43,IF(RIGHT($K43,2)=RIGHT(BV$39,2),SUM($AV43:AZ43),0)+IF(RIGHT(BV$39,2)>RIGHT($K43,2),AZ43,0)) -> -0.3584340384 | BW43: =+IF($K43="Ongoing",BA43,IF(RIGHT($K43,2)=RIGHT(BW$39,2),SUM($AV43:BA43),0)+IF(RIGHT(BW$39,2)>RIGHT($K43,2),BA43,0)) -> 0 | BX43: =+IF($K43="Ongoing",BB43,IF(RIGHT($K43,2)=RIGHT(BX$39,2),SUM($AV43:BB43),0)+IF(RIGHT(BX$39,2)>RIGHT($K43,2),BB43,0)) -> 0 | BY43: =+IF($K43="Ongoing",BC43,IF(RIGHT($K43,2)=RIGHT(BY$39,2),SUM($AV43:BC43),0)+IF(RIGHT(BY$39,2)>RIGHT($K43,2),BC43,0)) -> 0 | BZ43: =+IF($K43="Ongoing",BD43,IF(RIGHT($K43,2)=RIGHT(BZ$39,2),SUM($AV43:BD43),0)+IF(RIGHT(BZ$39,2)>RIGHT($K43,2),BD43,0)) -> 0 | CA43: =+IF($K43="Ongoing",BE43,IF(RIGHT($K43,2)=RIGHT(CA$39,2),SUM($AV43:BE43),0)+IF(RIGHT(CA$39,2)>RIGHT($K43,2),BE43,0)) -> 0 | CC43: =+O43*KeyAssumptionsPriceControl_FO!X$15 -> 8.352 | CD43: =+P43*KeyAssumptionsPriceControl_FO!Y$15 -> 4.051 | CE43: =+Q43*KeyAssumptionsPriceControl_FO!Z$15 -> 0 | CF43: =+R43*KeyAssumptionsPriceControl_FO!AA$15 -> 0 | CG43: =+S43*KeyAssumptionsPriceControl_FO!AB$15 -> 0 | CH43: =+T43*KeyAssumptionsPriceControl_FO!AC$15 -> 0 | CI43: =+U43*KeyAssumptionsPriceControl_FO!AD$15 -> 0 | CJ43: =+V43*KeyAssumptionsPriceControl_FO!AE$15 -> 0 | CK43: =+W43*KeyAssumptionsPriceControl_FO!AF$15 -> 0 | CL43: =+X43*KeyAssumptionsPriceControl_FO!AG$15 -> 0 | CN43: =IF($M43=0,0, IF($M43<=0.5,CC43, IF($J43="straight line", IF((LEFT(CN$39,4)*1)-INT($M43)<LEFT($CN$39,4)*1,0,((OFFSET(CC43,0,-INT($M43+0.5),1,1))/$M43)*(IF($M43-INT($M43)>0.5,$M43-0.5-INT($M43),IF($M43-INT($M43)<=0.5,$M43-0.5-INT($M43)+1,0)))) +CC43/$M43*0.5, IF($J43="Declining Balance",-$CN$38,0)))) -> 0.1392 | CO43: =IF($M43=0,0, IF($M43<=0.5,CD43, IF(AND($J43="straight line",$M43<1.51),(CC43-((CC43/$M43)*0.5))+CD43/$M43*0.5, IF($J43="straight line", IF((LEFT(CO$39,4)*1)-INT($M43)<LEFT($CN$39,4)*1,0,((OFFSET(CD43,0,-INT($M43+0.5),1,1))/$M43)*(IF($M43-INT($M43)>0.5,$M43-0.5-INT($M43),IF($M43-INT($M43)<=0.5,$M43-0.5-INT($M43)+1,0)))) +CD43/$M43*0.5 +SUM(OFFSET(CD43,0,MAX(-INT($M43+(0.5-(10^-12))),-CO$40)+1,1,MIN(INT($M43+(0.5-(10^-12))),CO$40)-1))*1/$M43, IF($J43="Declining Balance",-$CN$38,0))))) -> 0.3459166667 | CP43: 0.4134333333 | CQ43: 0.4134333333 | CR43: 0.4134333333 | CS43: 0.4134333333 | CT43: 0.4134333333 | CU43: 0.4134333333 | CV43: 0.4134333333 | CW43: 0.4134333333
C44: MID2030 2 | E44: Irrigation | F44: Improvements / Compliance | G44: Channels | H44: Top 10 Major Projects | I44: 0 | J44: Straight line | K44: Ongoing | L44: 30 | M44: 30 | O44: 0.3049853372 | P44: 1.940701118 | Q44: 3.120682421 | R44: 3.271480028 | S44: 1.991229885 | Z44: 0 | AA44: 0 | AB44: 0 | AC44: 0 | AD44: 0 | AV44: 0.3049853372 | AW44: 1.940701118 | AX44: 3.120682421 | AY44: 3.271480028 | AZ44: 1.991229885 | BA44: 0 | BB44: 0 | BC44: 0 | BD44: 0 | BE44: 0 | BG44: 0.005083088954 | BH44: 0.04251119654 | BI44: 0.1268675888 | BJ44: 0.2334036297 | BK44: 0.3211154615 | BL44: 0.3543026263 | BM44: 0.3543026263 | BN44: 0.3543026263 | BO44: 0.3543026263 | BP44: 0.3543026263 | BR44: =+IF($K44="Ongoing",AV44,IF(RIGHT($K44,2)=RIGHT(BR$39,2),SUM($AV44:AV44),0)+IF(RIGHT(BR$39,2)>RIGHT($K44,2),AV44,0)) -> 0.3049853372 | BS44: =+IF($K44="Ongoing",AW44,IF(RIGHT($K44,2)=RIGHT(BS$39,2),SUM($AV44:AW44),0)+IF(RIGHT(BS$39,2)>RIGHT($K44,2),AW44,0)) -> 1.940701118 | BT44: =+IF($K44="Ongoing",AX44,IF(RIGHT($K44,2)=RIGHT(BT$39,2),SUM($AV44:AX44),0)+IF(RIGHT(BT$39,2)>RIGHT($K44,2),AX44,0)) -> 3.120682421 | BU44: =+IF($K44="Ongoing",AY44,IF(RIGHT($K44,2)=RIGHT(BU$39,2),SUM($AV44:AY44),0)+IF(RIGHT(BU$39,2)>RIGHT($K44,2),AY44,0)) -> 3.271480028 | BV44: =+IF($K44="Ongoing",AZ44,IF(RIGHT($K44,2)=RIGHT(BV$39,2),SUM($AV44:AZ44),0)+IF(RIGHT(BV$39,2)>RIGHT($K44,2),AZ44,0)) -> 1.991229885 | BW44: =+IF($K44="Ongoing",BA44,IF(RIGHT($K44,2)=RIGHT(BW$39,2),SUM($AV44:BA44),0)+IF(RIGHT(BW$39,2)>RIGHT($K44,2),BA44,0)) -> 0 | BX44: =+IF($K44="Ongoing",BB44,IF(RIGHT($K44,2)=RIGHT(BX$39,2),SUM($AV44:BB44),0)+IF(RIGHT(BX$39,2)>RIGHT($K44,2),BB44,0)) -> 0 | BY44: =+IF($K44="Ongoing",BC44,IF(RIGHT($K44,2)=RIGHT(BY$39,2),SUM($AV44:BC44),0)+IF(RIGHT(BY$39,2)>RIGHT($K44,2),BC44,0)) -> 0 | BZ44: =+IF($K44="Ongoing",BD44,IF(RIGHT($K44,2)=RIGHT(BZ$39,2),SUM($AV44:BD44),0)+IF(RIGHT(BZ$39,2)>RIGHT($K44,2),BD44,0)) -> 0 | CA44: =+IF($K44="Ongoing",BE44,IF(RIGHT($K44,2)=RIGHT(CA$39,2),SUM($AV44:BE44),0)+IF(RIGHT(CA$39,2)>RIGHT($K44,2),BE44,0)) -> 0 | CC44: =+O44*KeyAssumptionsPriceControl_FO!X$15 -> 0.312 | CD44: =+P44*KeyAssumptionsPriceControl_FO!Y$15 -> 2.031 | CE44: =+Q44*KeyAssumptionsPriceControl_FO!Z$15 -> 3.341 | CF44: =+R44*KeyAssumptionsPriceControl_FO!AA$15 -> 3.583 | CG44: =+S44*KeyAssumptionsPriceControl_FO!AB$15 -> 2.231 | CH44: =+T44*KeyAssumptionsPriceControl_FO!AC$15 -> 0 | CI44: =+U44*KeyAssumptionsPriceControl_FO!AD$15 -> 0 | CJ44: =+V44*KeyAssumptionsPriceControl_FO!AE$15 -> 0 | CK44: =+W44*KeyAssumptionsPriceControl_FO!AF$15 -> 0 | CL44: =+X44*KeyAssumptionsPriceControl_FO!AG$15 -> 0 | CN44: 0.0052 | CO44: 0.04425 | CP44: 0.1337833333 | CQ44: 0.2491833333 | CR44: 0.3460833333 | CS44: 0.3832666667 | CT44: 0.3832666667 | CU44: 0.3832666667 | CV44: 0.3832666667 | CW44: 0.3832666667
C45: BMID modernisation | E45: Irrigation | F45: Improvements / Compliance | G45: Pipelines/network | H45: Top 10 Major Projects | I45: 0 | J45: Straight line | K45: Ongoing | L45: 30 | M45: 30 | O45: 2.89540567 | P45: 1.647350432 | Q45: 0 | R45: 0 | S45: 0 | Z45: 0.8308895406 | AA45: 0.6999328256 | AB45: 0 | AC45: 0 | AD45: 0 | AK45: 1.175924352 | AL45: 0.6743646061 | AM45: 0.09865886858 | AN45: 0.08360182246 | AO45: 0.06425846469 | AV45: 0.8885917773 | AW45: 0.2730530001 | AX45: -0.09865886858 | AY45: -0.08360182246 | AZ45: -0.06425846469 | BA45: 0 | BB45: 0 | BC45: 0 | BD45: 0 | BE45: 0 | BG45: 0.01480986295 | BH45: 0.03417060924 | BI45: 0.0370771781 | BJ45: 0.03403949992 | BK45: 0.0315751618 | BL45: 0.03050418739 | BM45: 0.03050418739 | BN45: 0.03050418739 | BO45: 0.03050418739 | BP45: 0.03050418739 | BR45: =+IF($K45="Ongoing",AV45,IF(RIGHT($K45,2)=RIGHT(BR$39,2),SUM($AV45:AV45),0)+IF(RIGHT(BR$39,2)>RIGHT($K45,2),AV45,0)) -> 0.8885917773 | BS45: =+IF($K45="Ongoing",AW45,IF(RIGHT($K45,2)=RIGHT(BS$39,2),SUM($AV45:AW45),0)+IF(RIGHT(BS$39,2)>RIGHT($K45,2),AW45,0)) -> 0.2730530001 | BT45: =+IF($K45="Ongoing",AX45,IF(RIGHT($K45,2)=RIGHT(BT$39,2),SUM($AV45:AX45),0)+IF(RIGHT(BT$39,2)>RIGHT($K45,2),AX45,0)) -> -0.09865886858 | BU45: =+IF($K45="Ongoing",AY45,IF(RIGHT($K45,2)=RIGHT(BU$39,2),SUM($AV45:AY45),0)+IF(RIGHT(BU$39,2)>RIGHT($K45,2),AY45,0)) -> -0.08360182246 | BV45: =+IF($K45="Ongoing",AZ45,IF(RIGHT($K45,2)=RIGHT(BV$39,2),SUM($AV45:AZ45),0)+IF(RIGHT(BV$39,2)>RIGHT($K45,2),AZ45,0)) -> -0.06425846469 | BW45: =+IF($K45="Ongoing",BA45,IF(RIGHT($K45,2)=RIGHT(BW$39,2),SUM($AV45:BA45),0)+IF(RIGHT(BW$39,2)>RIGHT($K45,2),BA45,0)) -> 0 | BX45: =+IF($K45="Ongoing",BB45,IF(RIGHT($K45,2)=RIGHT(BX$39,2),SUM($AV45:BB45),0)+IF(RIGHT(BX$39,2)>RIGHT($K45,2),BB45,0)) -> 0 | BY45: =+IF($K45="Ongoing",BC45,IF(RIGHT($K45,2)=RIGHT(BY$39,2),SUM($AV45:BC45),0)+IF(RIGHT(BY$39,2)>RIGHT($K45,2),BC45,0)) -> 0 | BZ45: =+IF($K45="Ongoing",BD45,IF(RIGHT($K45,2)=RIGHT(BZ$39,2),SUM($AV45:BD45),0)+IF(RIGHT(BZ$39,2)>RIGHT($K45,2),BD45,0)) -> 0 | CA45: =+IF($K45="Ongoing",BE45,IF(RIGHT($K45,2)=RIGHT(CA$39,2),SUM($AV45:BE45),0)+IF(RIGHT(CA$39,2)>RIGHT($K45,2),BE45,0)) -> 0 | CC45: =+O45*KeyAssumptionsPriceControl_FO!X$15 -> 2.962 | CD45: =+P45*KeyAssumptionsPriceControl_FO!Y$15 -> 1.724 | CE45: =+Q45*KeyAssumptionsPriceControl_FO!Z$15 -> 0 | CF45: =+R45*KeyAssumptionsPriceControl_FO!AA$15 -> 0 | CG45: =+S45*KeyAssumptionsPriceControl_FO!AB$15 -> 0 | CH45: =+T45*KeyAssumptionsPriceControl_FO!AC$15 -> 0 | CI45: =+U45*KeyAssumptionsPriceControl_FO!AD$15 -> 0 | CJ45: =+V45*KeyAssumptionsPriceControl_FO!AE$15 -> 0 | CK45: =+W45*KeyAssumptionsPriceControl_FO!AF$15 -> 0 | CL45: =+X45*KeyAssumptionsPriceControl_FO!AG$15 -> 0 | CN45: 0.04936666667 | CO45: 0.1274666667 | CP45: 0.1562 | CQ45: 0.1562 | CR45: 0.1562 | CS45: 0.1562 | CT45: 0.1562 | CU45: 0.1562 | CV45: 0.1562 | CW45: 0.1562
C46: Maffra weir operating gear | E46: Bulk water services | F46: Renewals | G46: Headworks | H46: Top 10 Major Projects | I46: 0 | J46: Straight line | K46: Ongoing | L46: 30 | M46: 30 | O46: 1.25767408 | P46: 1.133214558 | Q46: 0 | R46: 0 | S46: 0 | Z46: 0 | AA46: 0 | AB46: 0 | AC46: 0 | AD46: 0 | AV46: 1.25767408 | AW46: 1.133214558 | AX46: 0 | AY46: 0 | AZ46: 0 | BA46: 0 | BB46: 0 | BC46: 0 | BD46: 0 | BE46: 0 | BG46: 0.02096123467 | BH46: 0.06080937866 | BI46: 0.07969628796 | BJ46: 0.07969628796 | BK46: 0.07969628796 | BL46: 0.07969628796 | BM46: 0.07969628796 | BN46: 0.07969628796 | BO46: 0.07969628796 | BP46: 0.07969628796 | BR46: =+IF($K46="Ongoing",AV46,IF(RIGHT($K46,2)=RIGHT(BR$39,2),SUM($AV46:AV46),0)+IF(RIGHT(BR$39,2)>RIGHT($K46,2),AV46,0)) -> 1.25767408 | BS46: =+IF($K46="Ongoing",AW46,IF(RIGHT($K46,2)=RIGHT(BS$39,2),SUM($AV46:AW46),0)+IF(RIGHT(BS$39,2)>RIGHT($K46,2),AW46,0)) -> 1.133214558 | BT46: =+IF($K46="Ongoing",AX46,IF(RIGHT($K46,2)=RIGHT(BT$39,2),SUM($AV46:AX46),0)+IF(RIGHT(BT$39,2)>RIGHT($K46,2),AX46,0)) -> 0 | BU46: =+IF($K46="Ongoing",AY46,IF(RIGHT($K46,2)=RIGHT(BU$39,2),SUM($AV46:AY46),0)+IF(RIGHT(BU$39,2)>RIGHT($K46,2),AY46,0)) -> 0 | BV46: =+IF($K46="Ongoing",AZ46,IF(RIGHT($K46,2)=RIGHT(BV$39,2),SUM($AV46:AZ46),0)+IF(RIGHT(BV$39,2)>RIGHT($K46,2),AZ46,0)) -> 0 | BW46: =+IF($K46="Ongoing",BA46,IF(RIGHT($K46,2)=RIGHT(BW$39,2),SUM($AV46:BA46),0)+IF(RIGHT(BW$39,2)>RIGHT($K46,2),BA46,0)) -> 0 | BX46: =+IF($K46="Ongoing",BB46,IF(RIGHT($K46,2)=RIGHT(BX$39,2),SUM($AV46:BB46),0)+IF(RIGHT(BX$39,2)>RIGHT($K46,2),BB46,0)) -> 0 | BY46: =+IF($K46="Ongoing",BC46,IF(RIGHT($K46,2)=RIGHT(BY$39,2),SUM($AV46:BC46),0)+IF(RIGHT(BY$39,2)>RIGHT($K46,2),BC46,0)) -> 0 | BZ46: =+IF($K46="Ongoing",BD46,IF(RIGHT($K46,2)=RIGHT(BZ$39,2),SUM($AV46:BD46),0)+IF(RIGHT(BZ$39,2)>RIGHT($K46,2),BD46,0)) -> 0 | CA46: =+IF($K46="Ongoing",BE46,IF(RIGHT($K46,2)=RIGHT(CA$39,2),SUM($AV46:BE46),0)+IF(RIGHT(CA$39,2)>RIGHT($K46,2),BE46,0)) -> 0 | CC46: =+O46*KeyAssumptionsPriceControl_FO!X$15 -> 1.286600584 | CD46: =+P46*KeyAssumptionsPriceControl_FO!Y$15 -> 1.185941899 | CE46: =+Q46*KeyAssumptionsPriceControl_FO!Z$15 -> 0 | CF46: =+R46*KeyAssumptionsPriceControl_FO!AA$15 -> 0 | CG46: =+S46*KeyAssumptionsPriceControl_FO!AB$15 -> 0 | CH46: =+T46*KeyAssumptionsPriceControl_FO!AC$15 -> 0 | CI46: =+U46*KeyAssumptionsPriceControl_FO!AD$15 -> 0 | CJ46: =+V46*KeyAssumptionsPriceControl_FO!AE$15 -> 0 | CK46: =+W46*KeyAssumptionsPriceControl_FO!AF$15 -> 0 | CL46: =+X46*KeyAssumptionsPriceControl_FO!AG$15 -> 0 | CN46: 0.02144334307 | CO46: 0.06265238445 | CP46: 0.08241808277 | CQ46: 0.08241808277 | CR46: 0.08241808277 | CS46: 0.08241808277 | CT46: 0.08241808277 | CU46: 0.08241808277 | CV46: 0.08241808277 | CW46: 0.08241808277
C47: MID channel bank renewal | E47: Irrigation | F47: Renewals | G47: Channels | H47: Top 10 Major Projects | I47: 0 | J47: Straight line | K47: Ongoing | L47: 30 | M47: 30 | O47: 0.4030865103 | P47: 0.4029207319 | Q47: 0.4029207319 | R47: 0.4029207319 | S47: 0.4029207319 | Z47: 0 | AA47: 0 | AB47: 0 | AC47: 0 | AD47: 0 | AV47: 0.4030865103 | AW47: 0.4029207319 | AX47: 0.4029207319 | AY47: 0.4029207319 | AZ47: 0.4029207319 | BA47: 0 | BB47: 0 | BC47: 0 | BD47: 0 | BE47: 0 | BG47: 0.006718108504 | BH47: 0.02015156254 | BI47: 0.0335822536 | BJ47: 0.04701294467 | BK47: 0.06044363573 | BL47: 0.06715898126 | BM47: 0.06715898126 | BN47: 0.06715898126 | BO47: 0.06715898126 | BP47: 0.06715898126 | BR47: =+IF($K47="Ongoing",AV47,IF(RIGHT($K47,2)=RIGHT(BR$39,2),SUM($AV47:AV47),0)+IF(RIGHT(BR$39,2)>RIGHT($K47,2),AV47,0)) -> 0.4030865103 | BS47: =+IF($K47="Ongoing",AW47,IF(RIGHT($K47,2)=RIGHT(BS$39,2),SUM($AV47:AW47),0)+IF(RIGHT(BS$39,2)>RIGHT($K47,2),AW47,0)) -> 0.4029207319 | BT47: =+IF($K47="Ongoing",AX47,IF(RIGHT($K47,2)=RIGHT(BT$39,2),SUM($AV47:AX47),0)+IF(RIGHT(BT$39,2)>RIGHT($K47,2),AX47,0)) -> 0.4029207319 | BU47: =+IF($K47="Ongoing",AY47,IF(RIGHT($K47,2)=RIGHT(BU$39,2),SUM($AV47:AY47),0)+IF(RIGHT(BU$39,2)>RIGHT($K47,2),AY47,0)) -> 0.4029207319 | BV47: =+IF($K47="Ongoing",AZ47,IF(RIGHT($K47,2)=RIGHT(BV$39,2),SUM($AV47:AZ47),0)+IF(RIGHT(BV$39,2)>RIGHT($K47,2),AZ47,0)) -> 0.4029207319 | BW47: =+IF($K47="Ongoing",BA47,IF(RIGHT($K47,2)=RIGHT(BW$39,2),SUM($AV47:BA47),0)+IF(RIGHT(BW$39,2)>RIGHT($K47,2),BA47,0)) -> 0 | BX47: =+IF($K47="Ongoing",BB47,IF(RIGHT($K47,2)=RIGHT(BX$39,2),SUM($AV47:BB47),0)+IF(RIGHT(BX$39,2)>RIGHT($K47,2),BB47,0)) -> 0 | BY47: =+IF($K47="Ongoing",BC47,IF(RIGHT($K47,2)=RIGHT(BY$39,2),SUM($AV47:BC47),0)+IF(RIGHT(BY$39,2)>RIGHT($K47,2),BC47,0)) -> 0 | BZ47: =+IF($K47="Ongoing",BD47,IF(RIGHT($K47,2)=RIGHT(BZ$39,2),SUM($AV47:BD47),0)+IF(RIGHT(BZ$39,2)>RIGHT($K47,2),BD47,0)) -> 0 | CA47: =+IF($K47="Ongoing",BE47,IF(RIGHT($K47,2)=RIGHT(CA$39,2),SUM($AV47:BE47),0)+IF(RIGHT(CA$39,2)>RIGHT($K47,2),BE47,0)) -> 0 | CC47: =+O47*KeyAssumptionsPriceControl_FO!X$15 -> 0.4123575 | CD47: =+P47*KeyAssumptionsPriceControl_FO!Y$15 -> 0.4216682306 | CE47: =+Q47*KeyAssumptionsPriceControl_FO!Z$15 -> 0.4313665999 | CF47: =+R47*KeyAssumptionsPriceControl_FO!AA$15 -> 0.4412880317 | CG47: =+S47*KeyAssumptionsPriceControl_FO!AB$15 -> 0.4514376565 | CH47: =+T47*KeyAssumptionsPriceControl_FO!AC$15 -> 0 | CI47: =+U47*KeyAssumptionsPriceControl_FO!AD$15 -> 0 | CJ47: =+V47*KeyAssumptionsPriceControl_FO!AE$15 -> 0 | CK47: =+W47*KeyAssumptionsPriceControl_FO!AF$15 -> 0 | CL47: =+X47*KeyAssumptionsPriceControl_FO!AG$15 -> 0 | CN47: 0.006872625 | CO47: 0.02077305384 | CP47: 0.03499030102 | CQ47: 0.04953454488 | CR47: 0.06441330635 | CS47: 0.07193726729 | CT47: 0.07193726729 | CU47: 0.07193726729 | CV47: 0.07193726729 | CW47: 0.07193726729
C48: Glenmaggie re-paint spillway gates | E48: Bulk water services | F48: Renewals | G48: Headworks | H48: Top 10 Major Projects | I48: 0 | J48: Straight line | K48: Ongoing | L48: 25 | M48: 25 | O48: 0.1536867669 | P48: 0.6095640826 | Q48: 0 | R48: 0.1510952745 | S48: 0.6043810978 | Z48: 0 | AA48: 0 | AB48: 0 | AC48: 0 | AD48: 0 | AV48: 0.1536867669 | AW48: 0.6095640826 | AX48: 0 | AY48: 0.1510952745 | AZ48: 0.6043810978 | BA48: 0 | BB48: 0 | BC48: 0 | BD48: 0 | BE48: 0 | BG48: 0.003073735337 | BH48: 0.01833875233 | BI48: 0.03053003398 | BJ48: 0.03355193947 | BK48: 0.04866146692 | BL48: 0.06074908887 | BM48: 0.06074908887 | BN48: 0.06074908887 | BO48: 0.06074908887 | BP48: 0.06074908887 | BR48: =+IF($K48="Ongoing",AV48,IF(RIGHT($K48,2)=RIGHT(BR$39,2),SUM($AV48:AV48),0)+IF(RIGHT(BR$39,2)>RIGHT($K48,2),AV48,0)) -> 0.1536867669 | BS48: =+IF($K48="Ongoing",AW48,IF(RIGHT($K48,2)=RIGHT(BS$39,2),SUM($AV48:AW48),0)+IF(RIGHT(BS$39,2)>RIGHT($K48,2),AW48,0)) -> 0.6095640826 | BT48: =+IF($K48="Ongoing",AX48,IF(RIGHT($K48,2)=RIGHT(BT$39,2),SUM($AV48:AX48),0)+IF(RIGHT(BT$39,2)>RIGHT($K48,2),AX48,0)) -> 0 | BU48: =+IF($K48="Ongoing",AY48,IF(RIGHT($K48,2)=RIGHT(BU$39,2),SUM($AV48:AY48),0)+IF(RIGHT(BU$39,2)>RIGHT($K48,2),AY48,0)) -> 0.1510952745 | BV48: =+IF($K48="Ongoing",AZ48,IF(RIGHT($K48,2)=RIGHT(BV$39,2),SUM($AV48:AZ48),0)+IF(RIGHT(BV$39,2)>RIGHT($K48,2),AZ48,0)) -> 0.6043810978 | BW48: =+IF($K48="Ongoing",BA48,IF(RIGHT($K48,2)=RIGHT(BW$39,2),SUM($AV48:BA48),0)+IF(RIGHT(BW$39,2)>RIGHT($K48,2),BA48,0)) -> 0 | BX48: =+IF($K48="Ongoing",BB48,IF(RIGHT($K48,2)=RIGHT(BX$39,2),SUM($AV48:BB48),0)+IF(RIGHT(BX$39,2)>RIGHT($K48,2),BB48,0)) -> 0 | BY48: =+IF($K48="Ongoing",BC48,IF(RIGHT($K48,2)=RIGHT(BY$39,2),SUM($AV48:BC48),0)+IF(RIGHT(BY$39,2)>RIGHT($K48,2),BC48,0)) -> 0 | BZ48: =+IF($K48="Ongoing",BD48,IF(RIGHT($K48,2)=RIGHT(BZ$39,2),SUM($AV48:BD48),0)+IF(RIGHT(BZ$39,2)>RIGHT($K48,2),BD48,0)) -> 0 | CA48: =+IF($K48="Ongoing",BE48,IF(RIGHT($K48,2)=RIGHT(CA$39,2),SUM($AV48:BE48),0)+IF(RIGHT(CA$39,2)>RIGHT($K48,2),BE48,0)) -> 0 | CC48: =+O48*KeyAssumptionsPriceControl_FO!X$15 -> 0.1572215625 | CD48: =+P48*KeyAssumptionsPriceControl_FO!Y$15 -> 0.6379264898 | CE48: =+Q48*KeyAssumptionsPriceControl_FO!Z$15 -> 0 | CF48: =+R48*KeyAssumptionsPriceControl_FO!AA$15 -> 0.1654830119 | CG48: =+S48*KeyAssumptionsPriceControl_FO!AB$15 -> 0.6771564847 | CH48: =+T48*KeyAssumptionsPriceControl_FO!AC$15 -> 0 | CI48: =+U48*KeyAssumptionsPriceControl_FO!AD$15 -> 0 | CJ48: =+V48*KeyAssumptionsPriceControl_FO!AE$15 -> 0 | CK48: =+W48*KeyAssumptionsPriceControl_FO!AF$15 -> 0 | CL48: =+X48*KeyAssumptionsPriceControl_FO!AG$15 -> 0 | CN48: 0.00314443125 | CO48: 0.0190473923 | CP48: 0.03180592209 | CQ48: 0.03511558233 | CR48: 0.05196837226 | CS48: 0.06551150196 | CT48: 0.06551150196 | CU48: 0.06551150196 | CV48: 0.06551150196 | CW48: 0.06551150196
C49: Asset management system upgrade | E49: Irrigation | F49: Renewals | G49: Corporate | H49: Top 10 Major Projects | I49: 0 | J49: Straight line | K49: Ongoing | L49: 10 | M49: 10 | O49: 1.016147361 | P49: 0.1015940138 | Q49: 0 | R49: 0 | S49: 0 | Z49: 0 | AA49: 0 | AB49: 0 | AC49: 0 | AD49: 0 | AV49: 1.016147361 | AW49: 0.1015940138 | AX49: 0 | AY49: 0 | AZ49: 0 | BA49: 0 | BB49: 0 | BC49: 0 | BD49: 0 | BE49: 0 | BG49: 0.05080736804 | BH49: 0.1066944368 | BI49: 0.1117741374 | BJ49: 0.1117741374 | BK49: 0.1117741374 | BL49: 0.1117741374 | BM49: 0.1117741374 | BN49: 0.1117741374 | BO49: 0.1117741374 | BP49: 0.1117741374 | BR49: =+IF($K49="Ongoing",AV49,IF(RIGHT($K49,2)=RIGHT(BR$39,2),SUM($AV49:AV49),0)+IF(RIGHT(BR$39,2)>RIGHT($K49,2),AV49,0)) -> 1.016147361 | BS49: =+IF($K49="Ongoing",AW49,IF(RIGHT($K49,2)=RIGHT(BS$39,2),SUM($AV49:AW49),0)+IF(RIGHT(BS$39,2)>RIGHT($K49,2),AW49,0)) -> 0.1015940138 | BT49: =+IF($K49="Ongoing",AX49,IF(RIGHT($K49,2)=RIGHT(BT$39,2),SUM($AV49:AX49),0)+IF(RIGHT(BT$39,2)>RIGHT($K49,2),AX49,0)) -> 0 | BU49: =+IF($K49="Ongoing",AY49,IF(RIGHT($K49,2)=RIGHT(BU$39,2),SUM($AV49:AY49),0)+IF(RIGHT(BU$39,2)>RIGHT($K49,2),AY49,0)) -> 0 | BV49: =+IF($K49="Ongoing",AZ49,IF(RIGHT($K49,2)=RIGHT(BV$39,2),SUM($AV49:AZ49),0)+IF(RIGHT(BV$39,2)>RIGHT($K49,2),AZ49,0)) -> 0 | BW49: =+IF($K49="Ongoing",BA49,IF(RIGHT($K49,2)=RIGHT(BW$39,2),SUM($AV49:BA49),0)+IF(RIGHT(BW$39,2)>RIGHT($K49,2),BA49,0)) -> 0 | BX49: =+IF($K49="Ongoing",BB49,IF(RIGHT($K49,2)=RIGHT(BX$39,2),SUM($AV49:BB49),0)+IF(RIGHT(BX$39,2)>RIGHT($K49,2),BB49,0)) -> 0 | BY49: =+IF($K49="Ongoing",BC49,IF(RIGHT($K49,2)=RIGHT(BY$39,2),SUM($AV49:BC49),0)+IF(RIGHT(BY$39,2)>RIGHT($K49,2),BC49,0)) -> 0 | BZ49: =+IF($K49="Ongoing",BD49,IF(RIGHT($K49,2)=RIGHT(BZ$39,2),SUM($AV49:BD49),0)+IF(RIGHT(BZ$39,2)>RIGHT($K49,2),BD49,0)) -> 0 | CA49: =+IF($K49="Ongoing",BE49,IF(RIGHT($K49,2)=RIGHT(CA$39,2),SUM($AV49:BE49),0)+IF(RIGHT(CA$39,2)>RIGHT($K49,2),BE49,0)) -> 0 | CC49: =+O49*KeyAssumptionsPriceControl_FO!X$15 -> 1.03951875 | CD49: =+P49*KeyAssumptionsPriceControl_FO!Y$15 -> 0.1063210816 | CE49: =+Q49*KeyAssumptionsPriceControl_FO!Z$15 -> 0 | CF49: =+R49*KeyAssumptionsPriceControl_FO!AA$15 -> 0 | CG49: =+S49*KeyAssumptionsPriceControl_FO!AB$15 -> 0 | CH49: =+T49*KeyAssumptionsPriceControl_FO!AC$15 -> 0 | CI49: =+U49*KeyAssumptionsPriceControl_FO!AD$15 -> 0 | CJ49: =+V49*KeyAssumptionsPriceControl_FO!AE$15 -> 0 | CK49: =+W49*KeyAssumptionsPriceControl_FO!AF$15 -> 0 | CL49: =+X49*KeyAssumptionsPriceControl_FO!AG$15 -> 0 | CN49: 0.0519759375 | CO49: 0.1092679291 | CP49: 0.1145839832 | CQ49: 0.1145839832 | CR49: 0.1145839832 | CS49: 0.1145839832 | CT49: 0.1145839832 | CU49: 0.1145839832 | CV49: 0.1145839832 | CW49: 0.1145839832
C50: G&R meter replacement | E50: Groundwater diversions | F50: Renewals | G50: Pipelines/network | H50: Top 10 Major Projects | I50: 0 | J50: Straight line | K50: Ongoing | L50: 15 | M50: 15 | O50: 0.2032294721 | P50: 0.2031880275 | Q50: 0.2031880275 | R50: 0.2031880275 | S50: 0.2031491847 | Z50: 0 | AA50: 0 | AB50: 0 | AC50: 0 | AD50: 0 | AV50: 0.2032294721 | AW50: 0.2031880275 | AX50: 0.2031880275 | AY50: 0.2031880275 | AZ50: 0.2031491847 | BA50: 0 | BB50: 0 | BC50: 0 | BD50: 0 | BE50: 0 | BG50: 0.006774315738 | BH50: 0.02032156573 | BI50: 0.03386743423 | BJ50: 0.04741330273 | BK50: 0.06095787648 | BL50: 0.06772951597 | BM50: 0.06772951597 | BN50: 0.06772951597 | BO50: 0.06772951597 | BP50: 0.06772951597 | BR50: =+IF($K50="Ongoing",AV50,IF(RIGHT($K50,2)=RIGHT(BR$39,2),SUM($AV50:AV50),0)+IF(RIGHT(BR$39,2)>RIGHT($K50,2),AV50,0)) -> 0.2032294721 | BS50: =+IF($K50="Ongoing",AW50,IF(RIGHT($K50,2)=RIGHT(BS$39,2),SUM($AV50:AW50),0)+IF(RIGHT(BS$39,2)>RIGHT($K50,2),AW50,0)) -> 0.2031880275 | BT50: =+IF($K50="Ongoing",AX50,IF(RIGHT($K50,2)=RIGHT(BT$39,2),SUM($AV50:AX50),0)+IF(RIGHT(BT$39,2)>RIGHT($K50,2),AX50,0)) -> 0.2031880275 | BU50: =+IF($K50="Ongoing",AY50,IF(RIGHT($K50,2)=RIGHT(BU$39,2),SUM($AV50:AY50),0)+IF(RIGHT(BU$39,2)>RIGHT($K50,2),AY50,0)) -> 0.2031880275 | BV50: =+IF($K50="Ongoing",AZ50,IF(RIGHT($K50,2)=RIGHT(BV$39,2),SUM($AV50:AZ50),0)+IF(RIGHT(BV$39,2)>RIGHT($K50,2),AZ50,0)) -> 0.2031491847 | BW50: =+IF($K50="Ongoing",BA50,IF(RIGHT($K50,2)=RIGHT(BW$39,2),SUM($AV50:BA50),0)+IF(RIGHT(BW$39,2)>RIGHT($K50,2),BA50,0)) -> 0 | BX50: =+IF($K50="Ongoing",BB50,IF(RIGHT($K50,2)=RIGHT(BX$39,2),SUM($AV50:BB50),0)+IF(RIGHT(BX$39,2)>RIGHT($K50,2),BB50,0)) -> 0 | BY50: =+IF($K50="Ongoing",BC50,IF(RIGHT($K50,2)=RIGHT(BY$39,2),SUM($AV50:BC50),0)+IF(RIGHT(BY$39,2)>RIGHT($K50,2),BC50,0)) -> 0 | BZ50: =+IF($K50="Ongoing",BD50,IF(RIGHT($K50,2)=RIGHT(BZ$39,2),SUM($AV50:BD50),0)+IF(RIGHT(BZ$39,2)>RIGHT($K50,2),BD50,0)) -> 0 | CA50: =+IF($K50="Ongoing",BE50,IF(RIGHT($K50,2)=RIGHT(CA$39,2),SUM($AV50:BE50),0)+IF(RIGHT(CA$39,2)>RIGHT($K50,2),BE50,0)) -> 0 | CC50: =+O50*KeyAssumptionsPriceControl_FO!X$15 -> 0.20790375 | CD50: =+P50*KeyAssumptionsPriceControl_FO!Y$15 -> 0.2126421633 | CE50: =+Q50*KeyAssumptionsPriceControl_FO!Z$15 -> 0.217532933 | CF50: =+R50*KeyAssumptionsPriceControl_FO!AA$15 -> 0.2225361905 | CG50: =+S50*KeyAssumptionsPriceControl_FO!AB$15 -> 0.2276110029 | CH50: =+T50*KeyAssumptionsPriceControl_FO!AC$15 -> 0 | CI50: =+U50*KeyAssumptionsPriceControl_FO!AD$15 -> 0 | CJ50: =+V50*KeyAssumptionsPriceControl_FO!AE$15 -> 0 | CK50: =+W50*KeyAssumptionsPriceControl_FO!AF$15 -> 0 | CL50: =+X50*KeyAssumptionsPriceControl_FO!AG$15 -> 0 | CN50: 0.006930125 | CO50: 0.02094832211 | CP50: 0.03528749199 | CQ50: 0.04995646277 | CR50: 0.06496136922 | CS50: 0.07254840265 | CT50: 0.07254840265 | CU50: 0.07254840265 | CV50: 0.07254840265 | CW50: 0.07254840265
C51: Werribee office redevelopment | E51: Irrigation | F51: Improvements / Compliance | G51: Corporate | H51: Top 10 Major Projects | I51: 0 | J51: Straight line | K51: Ongoing | L51: 30 | M51: 30 | O51: 1.016147361 | P51: 0 | Q51: 0 | R51: 0 | S51: 0 | Z51: 0 | AA51: 0 | AB51: 0 | AC51: 0 | AD51: 0 | AV51: 1.016147361 | AW51: 0 | AX51: 0 | AY51: 0 | AZ51: 0 | BA51: 0 | BB51: 0 | BC51: 0 | BD51: 0 | BE51: 0 | BG51: 0.01693578935 | BH51: 0.03387157869 | BI51: 0.03387157869 | BJ51: 0.03387157869 | BK51: 0.03387157869 | BL51: 0.03387157869 | BM51: 0.03387157869 | BN51: 0.03387157869 | BO51: 0.03387157869 | BP51: 0.03387157869 | BR51: =+IF($K51="Ongoing",AV51,IF(RIGHT($K51,2)=RIGHT(BR$39,2),SUM($AV51:AV51),0)+IF(RIGHT(BR$39,2)>RIGHT($K51,2),AV51,0)) -> 1.016147361 | BS51: =+IF($K51="Ongoing",AW51,IF(RIGHT($K51,2)=RIGHT(BS$39,2),SUM($AV51:AW51),0)+IF(RIGHT(BS$39,2)>RIGHT($K51,2),AW51,0)) -> 0 | BT51: =+IF($K51="Ongoing",AX51,IF(RIGHT($K51,2)=RIGHT(BT$39,2),SUM($AV51:AX51),0)+IF(RIGHT(BT$39,2)>RIGHT($K51,2),AX51,0)) -> 0 | BU51: =+IF($K51="Ongoing",AY51,IF(RIGHT($K51,2)=RIGHT(BU$39,2),SUM($AV51:AY51),0)+IF(RIGHT(BU$39,2)>RIGHT($K51,2),AY51,0)) -> 0 | BV51: =+IF($K51="Ongoing",AZ51,IF(RIGHT($K51,2)=RIGHT(BV$39,2),SUM($AV51:AZ51),0)+IF(RIGHT(BV$39,2)>RIGHT($K51,2),AZ51,0)) -> 0 | BW51: =+IF($K51="Ongoing",BA51,IF(RIGHT($K51,2)=RIGHT(BW$39,2),SUM($AV51:BA51),0)+IF(RIGHT(BW$39,2)>RIGHT($K51,2),BA51,0)) -> 0 | BX51: =+IF($K51="Ongoing",BB51,IF(RIGHT($K51,2)=RIGHT(BX$39,2),SUM($AV51:BB51),0)+IF(RIGHT(BX$39,2)>RIGHT($K51,2),BB51,0)) -> 0 | BY51: =+IF($K51="Ongoing",BC51,IF(RIGHT($K51,2)=RIGHT(BY$39,2),SUM($AV51:BC51),0)+IF(RIGHT(BY$39,2)>RIGHT($K51,2),BC51,0)) -> 0 | BZ51: =+IF($K51="Ongoing",BD51,IF(RIGHT($K51,2)=RIGHT(BZ$39,2),SUM($AV51:BD51),0)+IF(RIGHT(BZ$39,2)>RIGHT($K51,2),BD51,0)) -> 0 | CA51: =+IF($K51="Ongoing",BE51,IF(RIGHT($K51,2)=RIGHT(CA$39,2),SUM($AV51:BE51),0)+IF(RIGHT(CA$39,2)>RIGHT($K51,2),BE51,0)) -> 0 | CC51: =+O51*KeyAssumptionsPriceControl_FO!X$15 -> 1.03951875 | CD51: =+P51*KeyAssumptionsPriceControl_FO!Y$15 -> 0 | CE51: =+Q51*KeyAssumptionsPriceControl_FO!Z$15 -> 0 | CF51: =+R51*KeyAssumptionsPriceControl_FO!AA$15 -> 0 | CG51: =+S51*KeyAssumptionsPriceControl_FO!AB$15 -> 0 | CH51: =+T51*KeyAssumptionsPriceControl_FO!AC$15 -> 0 | CI51: =+U51*KeyAssumptionsPriceControl_FO!AD$15 -> 0 | CJ51: =+V51*KeyAssumptionsPriceControl_FO!AE$15 -> 0 | CK51: =+W51*KeyAssumptionsPriceControl_FO!AF$15 -> 0 | CL51: =+X51*KeyAssumptionsPriceControl_FO!AG$15 -> 0 | CN51: 0.0173253125 | CO51: 0.034650625 | CP51: 0.034650625 | CQ51: 0.034650625 | CR51: 0.034650625 | CS51: 0.034650625 | CT51: 0.034650625 | CU51: 0.034650625 | CV51: 0.034650625 | CW51: 0.034650625
C53: Thomson & Macalister System Renewals program | E53: Bulk water services | F53: Renewals | G53: Headworks | H53: Capital Programs / Allocation | I53: 0 | J53: Straight line | K53: Ongoing | L53: 18.77595551 | M53: 18.77595551 | O53: 1.943900762 | P53: 0.2266429117 | Q53: 0.3593774101 | R53: 0.4583223325 | S53: 0.540173093 | T53: 2.87335125 | U53: 2.25187875 | V53: 1.5882075 | W53: 1.79920125 | X53: 2.37463875 | AV53: 1.943900762 | AW53: 0.2266429117 | AX53: 0.3593774101 | AY53: 0.4583223325 | AZ53: 0.540173093 | BA53: 2.87335125 | BB53: 2.25187875 | BC53: 1.5882075 | BD53: 1.79920125 | BE53: 2.37463875 | BG53: 0.05176569471 | BH53: 0.1095668456 | BI53: 0.1251724514 | BJ53: 0.1469476346 | BK53: 0.1735373713 | BL53: 0.2644388527 | BM53: 0.400922719 | BN53: 0.50318346 | BO53: 0.5933894884 | BP53: 0.7045380262 | BR53: =+IF($K53="Ongoing",AV53,IF(RIGHT($K53,2)=RIGHT(BR$39,2),SUM($AV53:AV53),0)+IF(RIGHT(BR$39,2)>RIGHT($K53,2),AV53,0)) -> 1.943900762 | BS53: =+IF($K53="Ongoing",AW53,IF(RIGHT($K53,2)=RIGHT(BS$39,2),SUM($AV53:AW53),0)+IF(RIGHT(BS$39,2)>RIGHT($K53,2),AW53,0)) -> 0.2266429117 | BT53: =+IF($K53="Ongoing",AX53,IF(RIGHT($K53,2)=RIGHT(BT$39,2),SUM($AV53:AX53),0)+IF(RIGHT(BT$39,2)>RIGHT($K53,2),AX53,0)) -> 0.3593774101 | BU53: =+IF($K53="Ongoing",AY53,IF(RIGHT($K53,2)=RIGHT(BU$39,2),SUM($AV53:AY53),0)+IF(RIGHT(BU$39,2)>RIGHT($K53,2),AY53,0)) -> 0.4583223325 | BV53: =+IF($K53="Ongoing",AZ53,IF(RIGHT($K53,2)=RIGHT(BV$39,2),SUM($AV53:AZ53),0)+IF(RIGHT(BV$39,2)>RIGHT($K53,2),AZ53,0)) -> 0.540173093 | BW53: =+IF($K53="Ongoing",BA53,IF(RIGHT($K53,2)=RIGHT(BW$39,2),SUM($AV53:BA53),0)+IF(RIGHT(BW$39,2)>RIGHT($K53,2),BA53,0)) -> 2.87335125 | BX53: =+IF($K53="Ongoing",BB53,IF(RIGHT($K53,2)=RIGHT(BX$39,2),SUM($AV53:BB53),0)+IF(RIGHT(BX$39,2)>RIGHT($K53,2),BB53,0)) -> 2.25187875 | BY53: =+IF($K53="Ongoing",BC53,IF(RIGHT($K53,2)=RIGHT(BY$39,2),SUM($AV53:BC53),0)+IF(RIGHT(BY$39,2)>RIGHT($K53,2),BC53,0)) -> 1.5882075 | BZ53: =+IF($K53="Ongoing",BD53,IF(RIGHT($K53,2)=RIGHT(BZ$39,2),SUM($AV53:BD53),0)+IF(RIGHT(BZ$39,2)>RIGHT($K53,2),BD53,0)) -> 1.79920125 | CA53: =+IF($K53="Ongoing",BE53,IF(RIGHT($K53,2)=RIGHT(CA$39,2),SUM($AV53:BE53),0)+IF(RIGHT(CA$39,2)>RIGHT($K53,2),BE53,0)) -> 2.37463875 | CC53: =+O53*KeyAssumptionsPriceControl_FO!X$15 -> 1.988610479 | CD53: =+P53*KeyAssumptionsPriceControl_FO!Y$15 -> 0.2371883797 | CE53: =+Q53*KeyAssumptionsPriceControl_FO!Z$15 -> 0.3847491559 | CF53: =+R53*KeyAssumptionsPriceControl_FO!AA$15 -> 0.5019651361 | CG53: =+S53*KeyAssumptionsPriceControl_FO!AB$15 -> 0.6052169965 | CH53: =+T53*KeyAssumptionsPriceControl_FO!AC$15 -> 3.293385139 | CI53: =+U53*KeyAssumptionsPriceControl_FO!AD$15 -> 2.640428664 | CJ53: =+V53*KeyAssumptionsPriceControl_FO!AE$15 -> 1.905076028 | CK53: =+W53*KeyAssumptionsPriceControl_FO!AF$15 -> 2.207803653 | CL53: =+X53*KeyAssumptionsPriceControl_FO!AG$15 -> 2.980944481 | CN53: 0.05295630569 | CO53: 0.1122288913 | CP53: 0.1287909654 | CQ53: 0.1524039925 | CR53: 0.1818880348 | CS53: 0.2857070424 | CT53: 0.4437233361 | CU53: 0.5647692315 | CV53: 0.674294408 | CW53: 0.8124697496
C54: Werribee System Renewals program | E54: Bulk water services | F54: Renewals | G54: Headworks | H54: Capital Programs / Allocation | I54: 0 | J54: Straight line | K54: Ongoing | L54: 11.32758663 | M54: 11.32758663 | O54: 0.3241160814 | P54: 0.4448649003 | Q54: 0.4366347311 | R54: 0.5959604165 | S54: 0.9485102361 | T54: 0.71584425 | U54: 0.957528 | V54: 1.18386675 | W54: 0.205623 | X54: 0.205623 | AV54: 0.3241160814 | AW54: 0.4448649003 | AX54: 0.4366347311 | AY54: 0.5959604165 | AZ54: 0.9485102361 | BA54: 0.71584425 | BB54: 0.957528 | BC54: 1.18386675 | BD54: 0.205623 | BE54: 0.205623 | BG54: 0.01430649317 | BH54: 0.04824933584 | BI54: 0.08715875496 | BJ54: 0.1327375345 | BK54: 0.2009105136 | BL54: 0.2743751686 | BM54: 0.3482378679 | BN54: 0.4427590938 | BO54: 0.5040912114 | BP54: 0.5222436217 | BR54: =+IF($K54="Ongoing",AV54,IF(RIGHT($K54,2)=RIGHT(BR$39,2),SUM($AV54:AV54),0)+IF(RIGHT(BR$39,2)>RIGHT($K54,2),AV54,0)) -> 0.3241160814 | BS54: =+IF($K54="Ongoing",AW54,IF(RIGHT($K54,2)=RIGHT(BS$39,2),SUM($AV54:AW54),0)+IF(RIGHT(BS$39,2)>RIGHT($K54,2),AW54,0)) -> 0.4448649003 | BT54: =+IF($K54="Ongoing",AX54,IF(RIGHT($K54,2)=RIGHT(BT$39,2),SUM($AV54:AX54),0)+IF(RIGHT(BT$39,2)>RIGHT($K54,2),AX54,0)) -> 0.4366347311 | BU54: =+IF($K54="Ongoing",AY54,IF(RIGHT($K54,2)=RIGHT(BU$39,2),SUM($AV54:AY54),0)+IF(RIGHT(BU$39,2)>RIGHT($K54,2),AY54,0)) -> 0.5959604165 | BV54: =+IF($K54="Ongoing",AZ54,IF(RIGHT($K54,2)=RIGHT(BV$39,2),SUM($AV54:AZ54),0)+IF(RIGHT(BV$39,2)>RIGHT($K54,2),AZ54,0)) -> 0.9485102361 | BW54: =+IF($K54="Ongoing",BA54,IF(RIGHT($K54,2)=RIGHT(BW$39,2),SUM($AV54:BA54),0)+IF(RIGHT(BW$39,2)>RIGHT($K54,2),BA54,0)) -> 0.71584425 | BX54: =+IF($K54="Ongoing",BB54,IF(RIGHT($K54,2)=RIGHT(BX$39,2),SUM($AV54:BB54),0)+IF(RIGHT(BX$39,2)>RIGHT($K54,2),BB54,0)) -> 0.957528 | BY54: =+IF($K54="Ongoing",BC54,IF(RIGHT($K54,2)=RIGHT(BY$39,2),SUM($AV54:BC54),0)+IF(RIGHT(BY$39,2)>RIGHT($K54,2),BC54,0)) -> 1.18386675 | BZ54: =+IF($K54="Ongoing",BD54,IF(RIGHT($K54,2)=RIGHT(BZ$39,2),SUM($AV54:BD54),0)+IF(RIGHT(BZ$39,2)>RIGHT($K54,2),BD54,0)) -> 0.205623 | CA54: =+IF($K54="Ongoing",BE54,IF(RIGHT($K54,2)=RIGHT(CA$39,2),SUM($AV54:BE54),0)+IF(RIGHT(CA$39,2)>RIGHT($K54,2),BE54,0)) -> 0.205623 | CC54: =+O54*KeyAssumptionsPriceControl_FO!X$15 -> 0.3315707512 | CD54: =+P54*KeyAssumptionsPriceControl_FO!Y$15 -> 0.4655640192 | CE54: =+Q54*KeyAssumptionsPriceControl_FO!Z$15 -> 0.4674607794 | CF54: =+R54*KeyAssumptionsPriceControl_FO!AA$15 -> 0.6527095241 | CG54: =+S54*KeyAssumptionsPriceControl_FO!AB$15 -> 1.062723271 | CH54: =+T54*KeyAssumptionsPriceControl_FO!AC$15 -> 0.8204882068 | CI54: =+U54*KeyAssumptionsPriceControl_FO!AD$15 -> 1.122744454 | CJ54: =+V54*KeyAssumptionsPriceControl_FO!AE$15 -> 1.420063919 | CK54: =+W54*KeyAssumptionsPriceControl_FO!AF$15 -> 0.2523204175 | CL54: =+X54*KeyAssumptionsPriceControl_FO!AG$15 -> 0.2581237871 | CN54: 0.01463554251 | CO54: 0.04982109423 | CP54: 0.09100483572 | CQ54: 0.1404491852 | CR54: 0.2161684382 | CS54: 0.299293447 | CT54: 0.3850677926 | CU54: 0.4973074274 | CV54: 0.5711265202 | CW54: 0.5936575421
C55: Macalister Irrigation Renewals program | E55: Irrigation | F55: Renewals | G55: Channels | H55: Capital Programs / Allocation | I55: 0 | J55: Straight line | K55: Ongoing | L55: 23.10244276 | M55: 23.10244276 | O55: 0.8920762359 | P55: 0.7069823632 | Q55: 0.6828076099 | R55: 0.454293095 | S55: 0.4039279733 | T55: 0.61456725 | U55: 0.65292975 | V55: 0.61456725 | W55: 0.61456725 | X55: 0.65292975 | AV55: 0.8920762359 | AW55: 0.7069823632 | AX55: 0.6828076099 | AY55: 0.454293095 | AZ55: 0.4039279733 | BA55: 0.61456725 | BB55: 0.65292975 | BC55: 0.61456725 | BD55: 0.61456725 | BE55: 0.65292975 | BG55: 0.01930696778 | BH55: 0.05391496608 | BI55: 0.08399381938 | BJ55: 0.1086037863 | BK55: 0.1271780357 | BL55: 0.1492210559 | BM55: 0.176653155 | BN55: 0.2040852542 | BO55: 0.230687084 | BP55: 0.2581191831 | BR55: =+IF($K55="Ongoing",AV55,IF(RIGHT($K55,2)=RIGHT(BR$39,2),SUM($AV55:AV55),0)+IF(RIGHT(BR$39,2)>RIGHT($K55,2),AV55,0)) -> 0.8920762359 | BS55: =+IF($K55="Ongoing",AW55,IF(RIGHT($K55,2)=RIGHT(BS$39,2),SUM($AV55:AW55),0)+IF(RIGHT(BS$39,2)>RIGHT($K55,2),AW55,0)) -> 0.7069823632 | BT55: =+IF($K55="Ongoing",AX55,IF(RIGHT($K55,2)=RIGHT(BT$39,2),SUM($AV55:AX55),0)+IF(RIGHT(BT$39,2)>RIGHT($K55,2),AX55,0)) -> 0.6828076099 | BU55: =+IF($K55="Ongoing",AY55,IF(RIGHT($K55,2)=RIGHT(BU$39,2),SUM($AV55:AY55),0)+IF(RIGHT(BU$39,2)>RIGHT($K55,2),AY55,0)) -> 0.454293095 | BV55: =+IF($K55="Ongoing",AZ55,IF(RIGHT($K55,2)=RIGHT(BV$39,2),SUM($AV55:AZ55),0)+IF(RIGHT(BV$39,2)>RIGHT($K55,2),AZ55,0)) -> 0.4039279733 | BW55: =+IF($K55="Ongoing",BA55,IF(RIGHT($K55,2)=RIGHT(BW$39,2),SUM($AV55:BA55),0)+IF(RIGHT(BW$39,2)>RIGHT($K55,2),BA55,0)) -> 0.61456725 | BX55: =+IF($K55="Ongoing",BB55,IF(RIGHT($K55,2)=RIGHT(BX$39,2),SUM($AV55:BB55),0)+IF(RIGHT(BX$39,2)>RIGHT($K55,2),BB55,0)) -> 0.65292975 | BY55: =+IF($K55="Ongoing",BC55,IF(RIGHT($K55,2)=RIGHT(BY$39,2),SUM($AV55:BC55),0)+IF(RIGHT(BY$39,2)>RIGHT($K55,2),BC55,0)) -> 0.61456725 | BZ55: =+IF($K55="Ongoing",BD55,IF(RIGHT($K55,2)=RIGHT(BZ$39,2),SUM($AV55:BD55),0)+IF(RIGHT(BZ$39,2)>RIGHT($K55,2),BD55,0)) -> 0.61456725 | CA55: =+IF($K55="Ongoing",BE55,IF(RIGHT($K55,2)=RIGHT(CA$39,2),SUM($AV55:BE55),0)+IF(RIGHT(CA$39,2)>RIGHT($K55,2),BE55,0)) -> 0.65292975 | CC55: =+O55*KeyAssumptionsPriceControl_FO!X$15 -> 0.9125939894 | CD55: =+P55*KeyAssumptionsPriceControl_FO!Y$15 -> 0.7398775456 | CE55: =+Q55*KeyAssumptionsPriceControl_FO!Z$15 -> 0.7310132583 | CF55: =+R55*KeyAssumptionsPriceControl_FO!AA$15 -> 0.4975522227 | CG55: =+S55*KeyAssumptionsPriceControl_FO!AB$15 -> 0.4525661829 | CH55: =+T55*KeyAssumptionsPriceControl_FO!AC$15 -> 0.704406274 | CI55: =+U55*KeyAssumptionsPriceControl_FO!AD$15 -> 0.7655893672 | CJ55: =+V55*KeyAssumptionsPriceControl_FO!AE$15 -> 0.7371815935 | CK55: =+W55*KeyAssumptionsPriceControl_FO!AF$15 -> 0.7541367701 | CL55: =+X55*KeyAssumptionsPriceControl_FO!AG$15 -> 0.8196393388 | CN55: 0.01975102804 | CO55: 0.05551502824 | CP55: 0.08734912517 | CQ55: 0.1139386398 | CR55: 0.1345017988 | CS55: 0.1595418448 | CT55: 0.1913565679 | CU55: 0.2238806386 | CV55: 0.2561568437 | CW55: 0.2902176598
C56: Werribee Irrigation Renewals program | E56: Irrigation | F56: Renewals | G56: Channels | H56: Capital Programs / Allocation | I56: 0 | J56: Straight line | K56: Ongoing | L56: 20 | M56: 20 | O56: 0.04471048387 | P56: 0.04470136606 | Q56: 0.04470136606 | R56: 0.04470136606 | S56: 0.04469282064 | T56: 0.033759 | U56: 0.033759 | V56: 0.033759 | W56: 0.033759 | X56: 0.033759 | AV56: 0.04471048387 | AW56: 0.04470136606 | AX56: 0.04470136606 | AY56: 0.04470136606 | AZ56: 0.04469282064 | BA56: 0.033759 | BB56: 0.033759 | BC56: 0.033759 | BD56: 0.033759 | BE56: 0.033759 | BG56: 0.001117762097 | BH56: 0.003353058345 | BI56: 0.005588126648 | BJ56: 0.007823194951 | BK56: 0.01005804962 | BL56: 0.01201934513 | BM56: 0.01370729513 | BN56: 0.01539524513 | BO56: 0.01708319513 | BP56: 0.01877114513 | BR56: =+IF($K56="Ongoing",AV56,IF(RIGHT($K56,2)=RIGHT(BR$39,2),SUM($AV56:AV56),0)+IF(RIGHT(BR$39,2)>RIGHT($K56,2),AV56,0)) -> 0.04471048387 | BS56: =+IF($K56="Ongoing",AW56,IF(RIGHT($K56,2)=RIGHT(BS$39,2),SUM($AV56:AW56),0)+IF(RIGHT(BS$39,2)>RIGHT($K56,2),AW56,0)) -> 0.04470136606 | BT56: =+IF($K56="Ongoing",AX56,IF(RIGHT($K56,2)=RIGHT(BT$39,2),SUM($AV56:AX56),0)+IF(RIGHT(BT$39,2)>RIGHT($K56,2),AX56,0)) -> 0.04470136606 | BU56: =+IF($K56="Ongoing",AY56,IF(RIGHT($K56,2)=RIGHT(BU$39,2),SUM($AV56:AY56),0)+IF(RIGHT(BU$39,2)>RIGHT($K56,2),AY56,0)) -> 0.04470136606 | BV56: =+IF($K56="Ongoing",AZ56,IF(RIGHT($K56,2)=RIGHT(BV$39,2),SUM($AV56:AZ56),0)+IF(RIGHT(BV$39,2)>RIGHT($K56,2),AZ56,0)) -> 0.04469282064 | BW56: =+IF($K56="Ongoing",BA56,IF(RIGHT($K56,2)=RIGHT(BW$39,2),SUM($AV56:BA56),0)+IF(RIGHT(BW$39,2)>RIGHT($K56,2),BA56,0)) -> 0.033759 | BX56: =+IF($K56="Ongoing",BB56,IF(RIGHT($K56,2)=RIGHT(BX$39,2),SUM($AV56:BB56),0)+IF(RIGHT(BX$39,2)>RIGHT($K56,2),BB56,0)) -> 0.033759 | BY56: =+IF($K56="Ongoing",BC56,IF(RIGHT($K56,2)=RIGHT(BY$39,2),SUM($AV56:BC56),0)+IF(RIGHT(BY$39,2)>RIGHT($K56,2),BC56,0)) -> 0.033759 | BZ56: =+IF($K56="Ongoing",BD56,IF(RIGHT($K56,2)=RIGHT(BZ$39,2),SUM($AV56:BD56),0)+IF(RIGHT(BZ$39,2)>RIGHT($K56,2),BD56,0)) -> 0.033759 | CA56: =+IF($K56="Ongoing",BE56,IF(RIGHT($K56,2)=RIGHT(CA$39,2),SUM($AV56:BE56),0)+IF(RIGHT(CA$39,2)>RIGHT($K56,2),BE56,0)) -> 0.033759 | CC56: =+O56*KeyAssumptionsPriceControl_FO!X$15 -> 0.045738825 | CD56: =+P56*KeyAssumptionsPriceControl_FO!Y$15 -> 0.04678127592 | CE56: =+Q56*KeyAssumptionsPriceControl_FO!Z$15 -> 0.04785724527 | CF56: =+R56*KeyAssumptionsPriceControl_FO!AA$15 -> 0.04895796191 | CG56: =+S56*KeyAssumptionsPriceControl_FO!AB$15 -> 0.05007442063 | CH56: =+T56*KeyAssumptionsPriceControl_FO!AC$15 -> 0.0386939776 | CI56: =+U56*KeyAssumptionsPriceControl_FO!AD$15 -> 0.03958393908 | CJ56: =+V56*KeyAssumptionsPriceControl_FO!AE$15 -> 0.04049436968 | CK56: =+W56*KeyAssumptionsPriceControl_FO!AF$15 -> 0.04142574018 | CL56: =+X56*KeyAssumptionsPriceControl_FO!AG$15 -> 0.04237853221 | CN56: 0.001143470625 | CO56: 0.003456473148 | CP56: 0.005822436178 | CQ56: 0.008242816357 | CR56: 0.01071862592 | CS56: 0.01293783588 | CT56: 0.01489478379 | CU56: 0.01689674151 | CV56: 0.01894474426 | CW56: 0.02103985107
C57: Bacchus Marsh Irrigation Renewals program | E57: Irrigation | F57: Renewals | G57: Channels | H57: Capital Programs / Allocation | I57: 0 | J57: Straight line | K57: Ongoing | L57: 20 | M57: 20 | O57: 0.08364045088 | P57: 0.08360605187 | Q57: 0.08360605187 | R57: 0.08360605187 | S57: 0.08360605187 | T57: 0.06368175 | U57: 0.06368175 | V57: 0.06368175 | W57: 0.06368175 | X57: 0.06368175 | AV57: 0.08364045088 | AW57: 0.08360605187 | AX57: 0.08360605187 | AY57: 0.08360605187 | AZ57: 0.08360605187 | BA57: 0.06368175 | BB57: 0.06368175 | BC57: 0.06368175 | BD57: 0.06368175 | BE57: 0.06368175 | BG57: 0.002091011272 | BH57: 0.006272173841 | BI57: 0.01045247643 | BJ57: 0.01463277903 | BK57: 0.01881308162 | BL57: 0.02249527667 | BM57: 0.02567936417 | BN57: 0.02886345167 | BO57: 0.03204753917 | BP57: 0.03523162667 | BR57: =+IF($K57="Ongoing",AV57,IF(RIGHT($K57,2)=RIGHT(BR$39,2),SUM($AV57:AV57),0)+IF(RIGHT(BR$39,2)>RIGHT($K57,2),AV57,0)) -> 0.08364045088 | BS57: =+IF($K57="Ongoing",AW57,IF(RIGHT($K57,2)=RIGHT(BS$39,2),SUM($AV57:AW57),0)+IF(RIGHT(BS$39,2)>RIGHT($K57,2),AW57,0)) -> 0.08360605187 | BT57: =+IF($K57="Ongoing",AX57,IF(RIGHT($K57,2)=RIGHT(BT$39,2),SUM($AV57:AX57),0)+IF(RIGHT(BT$39,2)>RIGHT($K57,2),AX57,0)) -> 0.08360605187 | BU57: =+IF($K57="Ongoing",AY57,IF(RIGHT($K57,2)=RIGHT(BU$39,2),SUM($AV57:AY57),0)+IF(RIGHT(BU$39,2)>RIGHT($K57,2),AY57,0)) -> 0.08360605187 | BV57: =+IF($K57="Ongoing",AZ57,IF(RIGHT($K57,2)=RIGHT(BV$39,2),SUM($AV57:AZ57),0)+IF(RIGHT(BV$39,2)>RIGHT($K57,2),AZ57,0)) -> 0.08360605187 | BW57: =+IF($K57="Ongoing",BA57,IF(RIGHT($K57,2)=RIGHT(BW$39,2),SUM($AV57:BA57),0)+IF(RIGHT(BW$39,2)>RIGHT($K57,2),BA57,0)) -> 0.06368175 | BX57: =+IF($K57="Ongoing",BB57,IF(RIGHT($K57,2)=RIGHT(BX$39,2),SUM($AV57:BB57),0)+IF(RIGHT(BX$39,2)>RIGHT($K57,2),BB57,0)) -> 0.06368175 | BY57: =+IF($K57="Ongoing",BC57,IF(RIGHT($K57,2)=RIGHT(BY$39,2),SUM($AV57:BC57),0)+IF(RIGHT(BY$39,2)>RIGHT($K57,2),BC57,0)) -> 0.06368175 | BZ57: =+IF($K57="Ongoing",BD57,IF(RIGHT($K57,2)=RIGHT(BZ$39,2),SUM($AV57:BD57),0)+IF(RIGHT(BZ$39,2)>RIGHT($K57,2),BD57,0)) -> 0.06368175 | CA57: =+IF($K57="Ongoing",BE57,IF(RIGHT($K57,2)=RIGHT(CA$39,2),SUM($AV57:BE57),0)+IF(RIGHT(CA$39,2)>RIGHT($K57,2),BE57,0)) -> 0.06368175 | CC57: =+O57*KeyAssumptionsPriceControl_FO!X$15 -> 0.08556418125 | CD57: =+P57*KeyAssumptionsPriceControl_FO!Y$15 -> 0.08749615785 | CE57: =+Q57*KeyAssumptionsPriceControl_FO!Z$15 -> 0.08950856949 | CF57: =+R57*KeyAssumptionsPriceControl_FO!AA$15 -> 0.09156726658 | CG57: =+S57*KeyAssumptionsPriceControl_FO!AB$15 -> 0.09367331371 | CH57: =+T57*KeyAssumptionsPriceControl_FO!AC$15 -> 0.07299091228 | CI57: =+U57*KeyAssumptionsPriceControl_FO!AD$15 -> 0.07466970327 | CJ57: =+V57*KeyAssumptionsPriceControl_FO!AE$15 -> 0.07638710644 | CK57: =+W57*KeyAssumptionsPriceControl_FO!AF$15 -> 0.07814400989 | CL57: =+X57*KeyAssumptionsPriceControl_FO!AG$15 -> 0.07994132212 | CN57: 0.002139104531 | CO57: 0.006465613009 | CP57: 0.01089073119 | CQ57: 0.01541762709 | CR57: 0.0200486416 | CS57: 0.02421524725 | CT57: 0.02790676264 | CU57: 0.03168318288 | CV57: 0.03554646079 | CW57: 0.03949859409
C58: Groundwater & Rivers Renewals program | E58: Surface water diversions | F58: Renewals | G58: Corporate | H58: Capital Programs / Allocation | I58: 0 | J58: Straight line | K58: Ongoing | L58: 15 | M58: 15 | O58: 0.01007716276 | P58: 0.0100730183 | Q58: 0.0100730183 | R58: 0.0100730183 | S58: 0.0100730183 | T58: 0.0843975 | U58: 0.0843975 | V58: 0.0843975 | W58: 0.0843975 | X58: 0.0843975 | AV58: 0.01007716276 | AW58: 0.0100730183 | AX58: 0.0100730183 | AY58: 0.0100730183 | AZ58: 0.0100730183 | BA58: 0.0843975 | BB58: 0.0843975 | BC58: 0.0843975 | BD58: 0.0843975 | BE58: 0.0843975 | BG58: 0.0003359054252 | BH58: 0.001007578127 | BI58: 0.00167911268 | BJ58: 0.002350647233 | BK58: 0.003022181786 | BL58: 0.006171199063 | BM58: 0.01179769906 | BN58: 0.01742419906 | BO58: 0.02305069906 | BP58: 0.02867719906 | BR58: =+IF($K58="Ongoing",AV58,IF(RIGHT($K58,2)=RIGHT(BR$39,2),SUM($AV58:AV58),0)+IF(RIGHT(BR$39,2)>RIGHT($K58,2),AV58,0)) -> 0.01007716276 | BS58: =+IF($K58="Ongoing",AW58,IF(RIGHT($K58,2)=RIGHT(BS$39,2),SUM($AV58:AW58),0)+IF(RIGHT(BS$39,2)>RIGHT($K58,2),AW58,0)) -> 0.0100730183 | BT58: =+IF($K58="Ongoing",AX58,IF(RIGHT($K58,2)=RIGHT(BT$39,2),SUM($AV58:AX58),0)+IF(RIGHT(BT$39,2)>RIGHT($K58,2),AX58,0)) -> 0.0100730183 | BU58: =+IF($K58="Ongoing",AY58,IF(RIGHT($K58,2)=RIGHT(BU$39,2),SUM($AV58:AY58),0)+IF(RIGHT(BU$39,2)>RIGHT($K58,2),AY58,0)) -> 0.0100730183 | BV58: =+IF($K58="Ongoing",AZ58,IF(RIGHT($K58,2)=RIGHT(BV$39,2),SUM($AV58:AZ58),0)+IF(RIGHT(BV$39,2)>RIGHT($K58,2),AZ58,0)) -> 0.0100730183 | BW58: =+IF($K58="Ongoing",BA58,IF(RIGHT($K58,2)=RIGHT(BW$39,2),SUM($AV58:BA58),0)+IF(RIGHT(BW$39,2)>RIGHT($K58,2),BA58,0)) -> 0.0843975 | BX58: =+IF($K58="Ongoing",BB58,IF(RIGHT($K58,2)=RIGHT(BX$39,2),SUM($AV58:BB58),0)+IF(RIGHT(BX$39,2)>RIGHT($K58,2),BB58,0)) -> 0.0843975 | BY58: =+IF($K58="Ongoing",BC58,IF(RIGHT($K58,2)=RIGHT(BY$39,2),SUM($AV58:BC58),0)+IF(RIGHT(BY$39,2)>RIGHT($K58,2),BC58,0)) -> 0.0843975 | BZ58: =+IF($K58="Ongoing",BD58,IF(RIGHT($K58,2)=RIGHT(BZ$39,2),SUM($AV58:BD58),0)+IF(RIGHT(BZ$39,2)>RIGHT($K58,2),BD58,0)) -> 0.0843975 | CA58: =+IF($K58="Ongoing",BE58,IF(RIGHT($K58,2)=RIGHT(CA$39,2),SUM($AV58:BE58),0)+IF(RIGHT(CA$39,2)>RIGHT($K58,2),BE58,0)) -> 0.0843975 | CC58: =+O58*KeyAssumptionsPriceControl_FO!X$15 -> 0.0103089375 | CD58: =+P58*KeyAssumptionsPriceControl_FO!Y$15 -> 0.01054170577 | CE58: =+Q58*KeyAssumptionsPriceControl_FO!Z$15 -> 0.010784165 | CF58: =+R58*KeyAssumptionsPriceControl_FO!AA$15 -> 0.01103220079 | CG58: =+S58*KeyAssumptionsPriceControl_FO!AB$15 -> 0.01128594141 | CH58: =+T58*KeyAssumptionsPriceControl_FO!AC$15 -> 0.09673494399 | CI58: =+U58*KeyAssumptionsPriceControl_FO!AD$15 -> 0.0989598477 | CJ58: =+V58*KeyAssumptionsPriceControl_FO!AE$15 -> 0.1012359242 | CK58: =+W58*KeyAssumptionsPriceControl_FO!AF$15 -> 0.1035643505 | CL58: =+X58*KeyAssumptionsPriceControl_FO!AG$15 -> 0.1059463305 | CN58: 0.00034363125 | CO58: 0.001038652692 | CP58: 0.001749515051 | CQ58: 0.002476727244 | CR58: 0.003220665318 | CS58: 0.006821361498 | CT58: 0.01334452122 | CU58: 0.02001771362 | CV58: 0.02684438944 | CW58: 0.0338280788
C59: Groundwater & Rivers Renewals program | E59: Groundwater diversions | F59: Renewals | G59: Corporate | H59: Capital Programs / Allocation | I59: 0 | J59: Straight line | K59: Ongoing | L59: 20 | M59: 20 | O59: 0.01511574413 | P59: 0.01510952745 | Q59: 0.01510952745 | R59: 0.01510952745 | S59: 0.01510952745 | T59: 0.08823375 | U59: 0.08823375 | V59: 0.08823375 | W59: 0.08823375 | X59: 0.08823375 | AV59: 0.01511574413 | AW59: 0.01510952745 | AX59: 0.01510952745 | AY59: 0.01510952745 | AZ59: 0.01510952745 | BA59: 0.08823375 | BB59: 0.08823375 | BC59: 0.08823375 | BD59: 0.08823375 | BE59: 0.08823375 | BG59: 0.0003778936034 | BH59: 0.001133525393 | BI59: 0.001889001765 | BJ59: 0.002644478137 | BK59: 0.00339995451 | BL59: 0.005983536446 | BM59: 0.01039522395 | BN59: 0.01480691145 | BO59: 0.01921859895 | BP59: 0.02363028645 | BR59: =+IF($K59="Ongoing",AV59,IF(RIGHT($K59,2)=RIGHT(BR$39,2),SUM($AV59:AV59),0)+IF(RIGHT(BR$39,2)>RIGHT($K59,2),AV59,0)) -> 0.01511574413 | BS59: =+IF($K59="Ongoing",AW59,IF(RIGHT($K59,2)=RIGHT(BS$39,2),SUM($AV59:AW59),0)+IF(RIGHT(BS$39,2)>RIGHT($K59,2),AW59,0)) -> 0.01510952745 | BT59: =+IF($K59="Ongoing",AX59,IF(RIGHT($K59,2)=RIGHT(BT$39,2),SUM($AV59:AX59),0)+IF(RIGHT(BT$39,2)>RIGHT($K59,2),AX59,0)) -> 0.01510952745 | BU59: =+IF($K59="Ongoing",AY59,IF(RIGHT($K59,2)=RIGHT(BU$39,2),SUM($AV59:AY59),0)+IF(RIGHT(BU$39,2)>RIGHT($K59,2),AY59,0)) -> 0.01510952745 | BV59: =+IF($K59="Ongoing",AZ59,IF(RIGHT($K59,2)=RIGHT(BV$39,2),SUM($AV59:AZ59),0)+IF(RIGHT(BV$39,2)>RIGHT($K59,2),AZ59,0)) -> 0.01510952745 | BW59: =+IF($K59="Ongoing",BA59,IF(RIGHT($K59,2)=RIGHT(BW$39,2),SUM($AV59:BA59),0)+IF(RIGHT(BW$39,2)>RIGHT($K59,2),BA59,0)) -> 0.08823375 | BX59: =+IF($K59="Ongoing",BB59,IF(RIGHT($K59,2)=RIGHT(BX$39,2),SUM($AV59:BB59),0)+IF(RIGHT(BX$39,2)>RIGHT($K59,2),BB59,0)) -> 0.08823375 | BY59: =+IF($K59="Ongoing",BC59,IF(RIGHT($K59,2)=RIGHT(BY$39,2),SUM($AV59:BC59),0)+IF(RIGHT(BY$39,2)>RIGHT($K59,2),BC59,0)) -> 0.08823375 | BZ59: =+IF($K59="Ongoing",BD59,IF(RIGHT($K59,2)=RIGHT(BZ$39,2),SUM($AV59:BD59),0)+IF(RIGHT(BZ$39,2)>RIGHT($K59,2),BD59,0)) -> 0.08823375 | CA59: =+IF($K59="Ongoing",BE59,IF(RIGHT($K59,2)=RIGHT(CA$39,2),SUM($AV59:BE59),0)+IF(RIGHT(CA$39,2)>RIGHT($K59,2),BE59,0)) -> 0.08823375 | CC59: =+O59*KeyAssumptionsPriceControl_FO!X$15 -> 0.01546340625 | CD59: =+P59*KeyAssumptionsPriceControl_FO!Y$15 -> 0.01581255865 | CE59: =+Q59*KeyAssumptionsPriceControl_FO!Z$15 -> 0.0161762475 | CF59: =+R59*KeyAssumptionsPriceControl_FO!AA$15 -> 0.01654830119 | CG59: =+S59*KeyAssumptionsPriceControl_FO!AB$15 -> 0.01692891212 | CH59: =+T59*KeyAssumptionsPriceControl_FO!AC$15 -> 0.1011319869 | CI59: =+U59*KeyAssumptionsPriceControl_FO!AD$15 -> 0.1034580226 | CJ59: =+V59*KeyAssumptionsPriceControl_FO!AE$15 -> 0.1058375571 | CK59: =+W59*KeyAssumptionsPriceControl_FO!AF$15 -> 0.1082718209 | CL59: =+X59*KeyAssumptionsPriceControl_FO!AG$15 -> 0.1107620728 | CN59: 0.0003865851562 | CO59: 0.001168484279 | CP59: 0.001968204432 | CQ59: 0.00278631815 | CR59: 0.003623248482 | CS59: 0.006574770958 | CT59: 0.0116895212 | CU59: 0.01692191069 | CV59: 0.02227464514 | CW59: 0.02775049248
C60: Groundwater & Rivers Improvements / Compliance program | E60: Groundwater diversions | F60: Improvements / Compliance | G60: Corporate | H60: Capital Programs / Allocation | I60: 0 | J60: Straight line | K60: Ongoing | L60: 9.912051195 | M60: 9.912051195 | O60: 0.4460886913 | P60: 0.5102423195 | Q60: 0.5102423195 | R60: 0.1828692248 | S60: 0.1828342662 | T60: 0.138105 | U60: 0.138105 | V60: 0.138105 | W60: 0.138105 | X60: 0.138105 | AV60: 0.4460886913 | AW60: 0.5102423195 | AX60: 0.5102423195 | AY60: 0.1828692248 | AZ60: 0.1828342662 | BA60: 0.138105 | BB60: 0.138105 | BC60: 0.138105 | BD60: 0.138105 | BE60: 0.138105 | BG60: 0.02250233996 | BH60: 0.07074316277 | BI60: 0.1222201285 | BJ60: 0.1571832017 | BK60: 0.1756306191 | BL60: 0.1918199658 | BM60: 0.2057530052 | BN60: 0.2196860446 | BO60: 0.233619084 | BP60: 0.2475521235 | BR60: =+IF($K60="Ongoing",AV60,IF(RIGHT($K60,2)=RIGHT(BR$39,2),SUM($AV60:AV60),0)+IF(RIGHT(BR$39,2)>RIGHT($K60,2),AV60,0)) -> 0.4460886913 | BS60: =+IF($K60="Ongoing",AW60,IF(RIGHT($K60,2)=RIGHT(BS$39,2),SUM($AV60:AW60),0)+IF(RIGHT(BS$39,2)>RIGHT($K60,2),AW60,0)) -> 0.5102423195 | BT60: =+IF($K60="Ongoing",AX60,IF(RIGHT($K60,2)=RIGHT(BT$39,2),SUM($AV60:AX60),0)+IF(RIGHT(BT$39,2)>RIGHT($K60,2),AX60,0)) -> 0.5102423195 | BU60: =+IF($K60="Ongoing",AY60,IF(RIGHT($K60,2)=RIGHT(BU$39,2),SUM($AV60:AY60),0)+IF(RIGHT(BU$39,2)>RIGHT($K60,2),AY60,0)) -> 0.1828692248 | BV60: =+IF($K60="Ongoing",AZ60,IF(RIGHT($K60,2)=RIGHT(BV$39,2),SUM($AV60:AZ60),0)+IF(RIGHT(BV$39,2)>RIGHT($K60,2),AZ60,0)) -> 0.1828342662 | BW60: =+IF($K60="Ongoing",BA60,IF(RIGHT($K60,2)=RIGHT(BW$39,2),SUM($AV60:BA60),0)+IF(RIGHT(BW$39,2)>RIGHT($K60,2),BA60,0)) -> 0.138105 | BX60: =+IF($K60="Ongoing",BB60,IF(RIGHT($K60,2)=RIGHT(BX$39,2),SUM($AV60:BB60),0)+IF(RIGHT(BX$39,2)>RIGHT($K60,2),BB60,0)) -> 0.138105 | BY60: =+IF($K60="Ongoing",BC60,IF(RIGHT($K60,2)=RIGHT(BY$39,2),SUM($AV60:BC60),0)+IF(RIGHT(BY$39,2)>RIGHT($K60,2),BC60,0)) -> 0.138105 | BZ60: =+IF($K60="Ongoing",BD60,IF(RIGHT($K60,2)=RIGHT(BZ$39,2),SUM($AV60:BD60),0)+IF(RIGHT(BZ$39,2)>RIGHT($K60,2),BD60,0)) -> 0.138105 | CA60: =+IF($K60="Ongoing",BE60,IF(RIGHT($K60,2)=RIGHT(CA$39,2),SUM($AV60:BE60),0)+IF(RIGHT(CA$39,2)>RIGHT($K60,2),BE60,0)) -> 0.138105 | CC60: =+O60*KeyAssumptionsPriceControl_FO!X$15 -> 0.4563487312 | CD60: =+P60*KeyAssumptionsPriceControl_FO!Y$15 -> 0.5339833843 | CE60: =+Q60*KeyAssumptionsPriceControl_FO!Z$15 -> 0.5462650022 | CF60: =+R60*KeyAssumptionsPriceControl_FO!AA$15 -> 0.2002825714 | CG60: =+S60*KeyAssumptionsPriceControl_FO!AB$15 -> 0.2048499026 | CH60: =+T60*KeyAssumptionsPriceControl_FO!AC$15 -> 0.1582935447 | CI60: =+U60*KeyAssumptionsPriceControl_FO!AD$15 -> 0.1619342962 | CJ60: =+V60*KeyAssumptionsPriceControl_FO!AE$15 -> 0.1656587851 | CK60: =+W60*KeyAssumptionsPriceControl_FO!AF$15 -> 0.1694689371 | CL60: =+X60*KeyAssumptionsPriceControl_FO!AG$15 -> 0.1733667227 | CN60: 0.02301989378 | CO60: 0.07297585627 | CP60: 0.1274675233 | CQ60: 0.1651261047 | CR60: 0.1855624637 | CS60: 0.2038807432 | CT60: 0.220034203 | CU60: 0.2365591923 | CV60: 0.2534642565 | CW60: 0.2707581371
AV61: 0 | AW61: 0 | AX61: 0 | AY61: 0 | AZ61: 0 | BA61: 0 | BB61: 0 | BC61: 0 | BD61: 0 | BE61: 0 | BG61: 0 | BH61: 0 | BI61: 0 | BJ61: 0 | BK61: 0 | BL61: 0 | BM61: 0 | BN61: 0 | BO61: 0 | BP61: 0 | BR61: =+IF($K61="Ongoing",AV61,IF(RIGHT($K61,2)=RIGHT(BR$39,2),SUM($AV61:AV61),0)+IF(RIGHT(BR$39,2)>RIGHT($K61,2),AV61,0)) -> 0 | BS61: =+IF($K61="Ongoing",AW61,IF(RIGHT($K61,2)=RIGHT(BS$39,2),SUM($AV61:AW61),0)+IF(RIGHT(BS$39,2)>RIGHT($K61,2),AW61,0)) -> 0 | BT61: =+IF($K61="Ongoing",AX61,IF(RIGHT($K61,2)=RIGHT(BT$39,2),SUM($AV61:AX61),0)+IF(RIGHT(BT$39,2)>RIGHT($K61,2),AX61,0)) -> 0 | BU61: =+IF($K61="Ongoing",AY61,IF(RIGHT($K61,2)=RIGHT(BU$39,2),SUM($AV61:AY61),0)+IF(RIGHT(BU$39,2)>RIGHT($K61,2),AY61,0)) -> 0 | BV61: =+IF($K61="Ongoing",AZ61,IF(RIGHT($K61,2)=RIGHT(BV$39,2),SUM($AV61:AZ61),0)+IF(RIGHT(BV$39,2)>RIGHT($K61,2),AZ61,0)) -> 0 | BW61: =+IF($K61="Ongoing",BA61,IF(RIGHT($K61,2)=RIGHT(BW$39,2),SUM($AV61:BA61),0)+IF(RIGHT(BW$39,2)>RIGHT($K61,2),BA61,0)) -> 0 | BX61: =+IF($K61="Ongoing",BB61,IF(RIGHT($K61,2)=RIGHT(BX$39,2),SUM($AV61:BB61),0)+IF(RIGHT(BX$39,2)>RIGHT($K61,2),BB61,0)) -> 0 | BY61: =+IF($K61="Ongoing",BC61,IF(RIGHT($K61,2)=RIGHT(BY$39,2),SUM($AV61:BC61),0)+IF(RIGHT(BY$39,2)>RIGHT($K61,2),BC61,0)) -> 0 | BZ61: =+IF($K61="Ongoing",BD61,IF(RIGHT($K61,2)=RIGHT(BZ$39,2),SUM($AV61:BD61),0)+IF(RIGHT(BZ$39,2)>RIGHT($K61,2),BD61,0)) -> 0 | CA61: =+IF($K61="Ongoing",BE61,IF(RIGHT($K61,2)=RIGHT(CA$39,2),SUM($AV61:BE61),0)+IF(RIGHT(CA$39,2)>RIGHT($K61,2),BE61,0)) -> 0 | CC61: =+O61*KeyAssumptionsPriceControl_FO!X$15 -> 0 | CD61: =+P61*KeyAssumptionsPriceControl_FO!Y$15 -> 0 | CE61: =+Q61*KeyAssumptionsPriceControl_FO!Z$15 -> 0 | CF61: =+R61*KeyAssumptionsPriceControl_FO!AA$15 -> 0 | CG61: =+S61*KeyAssumptionsPriceControl_FO!AB$15 -> 0 | CH61: =+T61*KeyAssumptionsPriceControl_FO!AC$15 -> 0 | CI61: =+U61*KeyAssumptionsPriceControl_FO!AD$15 -> 0 | CJ61: =+V61*KeyAssumptionsPriceControl_FO!AE$15 -> 0 | CK61: =+W61*KeyAssumptionsPriceControl_FO!AF$15 -> 0 | CL61: =+X61*KeyAssumptionsPriceControl_FO!AG$15 -> 0 | CN61: 0 | CO61: 0 | CP61: 0 | CQ61: 0 | CR61: 0 | CS61: 0 | CT61: 0 | CU61: 0 | CV61: 0 | CW61: 0
C62: Latrobe System Renewals program | E62: Bulk water services | F62: Renewals | G62: Headworks | H62: Capital Programs / Allocation | I62: 0 | J62: Straight line | K62: Ongoing | L62: 17.54133465 | M62: 17.54133465 | O62: 0.4433951613 | P62: 0.2014603659 | Q62: 0.4129937502 | R62: 0.2518254574 | S62: 0 | T62: 0.33759 | U62: 0.475695 | V62: 0.1457775 | W62: 0.2992275 | X62: 0.567765 | AV62: 0.4433951613 | AW62: 0.2014603659 | AX62: 0.4129937502 | AY62: 0.2518254574 | AZ62: 0 | BA62: 0.33759 | BB62: 0.475695 | BC62: 0.1457775 | BD62: 0.2992275 | BE62: 0.567765 | BG62: 0.01263858111 | BH62: 0.03101960912 | BI62: 0.0485340722 | BJ62: 0.06748414701 | BK62: 0.07466220565 | BL62: 0.0842849056 | BM62: 0.1074668646 | BN62: 0.1251813804 | BO62: 0.1378658485 | BP62: 0.1625786915 | BR62: =+IF($K62="Ongoing",AV62,IF(RIGHT($K62,2)=RIGHT(BR$39,2),SUM($AV62:AV62),0)+IF(RIGHT(BR$39,2)>RIGHT($K62,2),AV62,0)) -> 0.4433951613 | BS62: =+IF($K62="Ongoing",AW62,IF(RIGHT($K62,2)=RIGHT(BS$39,2),SUM($AV62:AW62),0)+IF(RIGHT(BS$39,2)>RIGHT($K62,2),AW62,0)) -> 0.2014603659 | BT62: =+IF($K62="Ongoing",AX62,IF(RIGHT($K62,2)=RIGHT(BT$39,2),SUM($AV62:AX62),0)+IF(RIGHT(BT$39,2)>RIGHT($K62,2),AX62,0)) -> 0.4129937502 | BU62: =+IF($K62="Ongoing",AY62,IF(RIGHT($K62,2)=RIGHT(BU$39,2),SUM($AV62:AY62),0)+IF(RIGHT(BU$39,2)>RIGHT($K62,2),AY62,0)) -> 0.2518254574 | BV62: =+IF($K62="Ongoing",AZ62,IF(RIGHT($K62,2)=RIGHT(BV$39,2),SUM($AV62:AZ62),0)+IF(RIGHT(BV$39,2)>RIGHT($K62,2),AZ62,0)) -> 0 | BW62: =+IF($K62="Ongoing",BA62,IF(RIGHT($K62,2)=RIGHT(BW$39,2),SUM($AV62:BA62),0)+IF(RIGHT(BW$39,2)>RIGHT($K62,2),BA62,0)) -> 0.33759 | BX62: =+IF($K62="Ongoing",BB62,IF(RIGHT($K62,2)=RIGHT(BX$39,2),SUM($AV62:BB62),0)+IF(RIGHT(BX$39,2)>RIGHT($K62,2),BB62,0)) -> 0.475695 | BY62: =+IF($K62="Ongoing",BC62,IF(RIGHT($K62,2)=RIGHT(BY$39,2),SUM($AV62:BC62),0)+IF(RIGHT(BY$39,2)>RIGHT($K62,2),BC62,0)) -> 0.1457775 | BZ62: =+IF($K62="Ongoing",BD62,IF(RIGHT($K62,2)=RIGHT(BZ$39,2),SUM($AV62:BD62),0)+IF(RIGHT(BZ$39,2)>RIGHT($K62,2),BD62,0)) -> 0.2992275 | CA62: =+IF($K62="Ongoing",BE62,IF(RIGHT($K62,2)=RIGHT(CA$39,2),SUM($AV62:BE62),0)+IF(RIGHT(CA$39,2)>RIGHT($K62,2),BE62,0)) -> 0.567765 | CC62: =+O62*KeyAssumptionsPriceControl_FO!X$15 -> 0.45359325 | CD62: =+P62*KeyAssumptionsPriceControl_FO!Y$15 -> 0.2108341153 | CE62: =+Q62*KeyAssumptionsPriceControl_FO!Z$15 -> 0.4421507649 | CF62: =+R62*KeyAssumptionsPriceControl_FO!AA$15 -> 0.2758050198 | CG62: =+S62*KeyAssumptionsPriceControl_FO!AB$15 -> 0 | CH62: =+T62*KeyAssumptionsPriceControl_FO!AC$15 -> 0.386939776 | CI62: =+U62*KeyAssumptionsPriceControl_FO!AD$15 -> 0.557773687 | CJ62: =+V62*KeyAssumptionsPriceControl_FO!AE$15 -> 0.1748620509 | CK62: =+W62*KeyAssumptionsPriceControl_FO!AF$15 -> 0.3671826971 | CL62: =+X62*KeyAssumptionsPriceControl_FO!AG$15 -> 0.7127298598 | CN62: 0.01292926847 | CO62: 0.03186817417 | CP62: 0.0504809221 | CQ62: 0.07094560734 | CR62: 0.07880718189 | CS62: 0.08983655291 | CT62: 0.1167647622 | CU62: 0.1376478864 | CV62: 0.1530983854 | CW62: 0.1838803236
C63: Rosslynne reservoir Renewals program | E63: Bulk water services | F63: Renewals | G63: Headworks | H63: Capital Programs / Allocation | I63: 0 | J63: Straight line | K63: Ongoing | L63: 21.76950881 | M63: 21.76950881 | O63: 0.3934309018 | P63: 0.2031880275 | Q63: 0.3777381861 | R63: 0 | S63: 0 | T63: 0.03069 | U63: 0.03069 | V63: 0.0537075 | W63: 0.09207 | X63: 0.322245 | AV63: 0.3934309018 | AW63: 0.2031880275 | AX63: 0.3777381861 | AY63: 0 | AZ63: 0 | BA63: 0.03069 | BB63: 0.03069 | BC63: 0.0537075 | BD63: 0.09207 | BE63: 0.322245 | BG63: 0.009036283392 | BH63: 0.02273937 | BI63: 0.03608202782 | BJ63: 0.04475788242 | BK63: 0.04475788242 | BL63: 0.04546276741 | BM63: 0.04687253739 | BN63: 0.04881097111 | BO63: 0.05215917482 | BP63: 0.06167512218 | BR63: =+IF($K63="Ongoing",AV63,IF(RIGHT($K63,2)=RIGHT(BR$39,2),SUM($AV63:AV63),0)+IF(RIGHT(BR$39,2)>RIGHT($K63,2),AV63,0)) -> 0.3934309018 | BS63: =+IF($K63="Ongoing",AW63,IF(RIGHT($K63,2)=RIGHT(BS$39,2),SUM($AV63:AW63),0)+IF(RIGHT(BS$39,2)>RIGHT($K63,2),AW63,0)) -> 0.2031880275 | BT63: =+IF($K63="Ongoing",AX63,IF(RIGHT($K63,2)=RIGHT(BT$39,2),SUM($AV63:AX63),0)+IF(RIGHT(BT$39,2)>RIGHT($K63,2),AX63,0)) -> 0.3777381861 | BU63: =+IF($K63="Ongoing",AY63,IF(RIGHT($K63,2)=RIGHT(BU$39,2),SUM($AV63:AY63),0)+IF(RIGHT(BU$39,2)>RIGHT($K63,2),AY63,0)) -> 0 | BV63: =+IF($K63="Ongoing",AZ63,IF(RIGHT($K63,2)=RIGHT(BV$39,2),SUM($AV63:AZ63),0)+IF(RIGHT(BV$39,2)>RIGHT($K63,2),AZ63,0)) -> 0 | BW63: =+IF($K63="Ongoing",BA63,IF(RIGHT($K63,2)=RIGHT(BW$39,2),SUM($AV63:BA63),0)+IF(RIGHT(BW$39,2)>RIGHT($K63,2),BA63,0)) -> 0.03069 | BX63: =+IF($K63="Ongoing",BB63,IF(RIGHT($K63,2)=RIGHT(BX$39,2),SUM($AV63:BB63),0)+IF(RIGHT(BX$39,2)>RIGHT($K63,2),BB63,0)) -> 0.03069 | BY63: =+IF($K63="Ongoing",BC63,IF(RIGHT($K63,2)=RIGHT(BY$39,2),SUM($AV63:BC63),0)+IF(RIGHT(BY$39,2)>RIGHT($K63,2),BC63,0)) -> 0.0537075 | BZ63: =+IF($K63="Ongoing",BD63,IF(RIGHT($K63,2)=RIGHT(BZ$39,2),SUM($AV63:BD63),0)+IF(RIGHT(BZ$39,2)>RIGHT($K63,2),BD63,0)) -> 0.09207 | CA63: =+IF($K63="Ongoing",BE63,IF(RIGHT($K63,2)=RIGHT(CA$39,2),SUM($AV63:BE63),0)+IF(RIGHT(CA$39,2)>RIGHT($K63,2),BE63,0)) -> 0.322245 | CC63: =+O63*KeyAssumptionsPriceControl_FO!X$15 -> 0.4024798125 | CD63: =+P63*KeyAssumptionsPriceControl_FO!Y$15 -> 0.2126421633 | CE63: =+Q63*KeyAssumptionsPriceControl_FO!Z$15 -> 0.4044061874 | CF63: =+R63*KeyAssumptionsPriceControl_FO!AA$15 -> 0 | CG63: =+S63*KeyAssumptionsPriceControl_FO!AB$15 -> 0 | CH63: =+T63*KeyAssumptionsPriceControl_FO!AC$15 -> 0.03517634327 | CI63: =+U63*KeyAssumptionsPriceControl_FO!AD$15 -> 0.03598539916 | CJ63: =+V63*KeyAssumptionsPriceControl_FO!AE$15 -> 0.06442286085 | CK63: =+W63*KeyAssumptionsPriceControl_FO!AF$15 -> 0.1129792914 | CL63: =+X63*KeyAssumptionsPriceControl_FO!AG$15 -> 0.4045223529 | CN63: 0.00924411791 | CO63: 0.02337218073 | CP63: 0.03754448834 | CQ63: 0.04683285104 | CR63: 0.04683285104 | CS63: 0.04764077794 | CT63: 0.04927521405 | CU63: 0.05158138138 | CV63: 0.05565593707 | CW63: 0.06754186544
C64: Werribee System Renewals program | E64: Bulk water services | F64: Renewals | G64: Headworks | H64: Capital Programs / Allocation | I64: 0 | J64: Straight line | K64: Ongoing | L64: 11.34270413 | M64: 11.34270413 | O64: 1.292490469 | P64: 0.218297555 | Q64: 0.7107236772 | R64: 0.3525556404 | S64: 0.6648192076 | T64: 0.34909875 | U64: 0.46418625 | V64: 0.29539125 | W64: 0.46035 | X64: 0.65599875 | AV64: 1.292490469 | AW64: 0.218297555 | AX64: 0.7107236772 | AY64: 0.3525556404 | AZ64: 0.6648192076 | BA64: 0.34909875 | BB64: 0.46418625 | BC64: 0.29539125 | BD64: 0.46035 | BE64: 0.65599875 | BG64: 0.0569745298 | BH64: 0.1235718776 | BI64: 0.1645242476 | BJ64: 0.2113948749 | BK64: 0.2562419782 | BL64: 0.3009366977 | BM64: 0.3367872757 | BN64: 0.3702703628 | BO64: 0.4035843434 | BP64: 0.452794335 | BR64: =+IF($K64="Ongoing",AV64,IF(RIGHT($K64,2)=RIGHT(BR$39,2),SUM($AV64:AV64),0)+IF(RIGHT(BR$39,2)>RIGHT($K64,2),AV64,0)) -> 1.292490469 | BS64: =+IF($K64="Ongoing",AW64,IF(RIGHT($K64,2)=RIGHT(BS$39,2),SUM($AV64:AW64),0)+IF(RIGHT(BS$39,2)>RIGHT($K64,2),AW64,0)) -> 0.218297555 | BT64: =+IF($K64="Ongoing",AX64,IF(RIGHT($K64,2)=RIGHT(BT$39,2),SUM($AV64:AX64),0)+IF(RIGHT(BT$39,2)>RIGHT($K64,2),AX64,0)) -> 0.7107236772 | BU64: =+IF($K64="Ongoing",AY64,IF(RIGHT($K64,2)=RIGHT(BU$39,2),SUM($AV64:AY64),0)+IF(RIGHT(BU$39,2)>RIGHT($K64,2),AY64,0)) -> 0.3525556404 | BV64: =+IF($K64="Ongoing",AZ64,IF(RIGHT($K64,2)=RIGHT(BV$39,2),SUM($AV64:AZ64),0)+IF(RIGHT(BV$39,2)>RIGHT($K64,2),AZ64,0)) -> 0.6648192076 | BW64: =+IF($K64="Ongoing",BA64,IF(RIGHT($K64,2)=RIGHT(BW$39,2),SUM($AV64:BA64),0)+IF(RIGHT(BW$39,2)>RIGHT($K64,2),BA64,0)) -> 0.34909875 | BX64: =+IF($K64="Ongoing",BB64,IF(RIGHT($K64,2)=RIGHT(BX$39,2),SUM($AV64:BB64),0)+IF(RIGHT(BX$39,2)>RIGHT($K64,2),BB64,0)) -> 0.46418625 | BY64: =+IF($K64="Ongoing",BC64,IF(RIGHT($K64,2)=RIGHT(BY$39,2),SUM($AV64:BC64),0)+IF(RIGHT(BY$39,2)>RIGHT($K64,2),BC64,0)) -> 0.29539125 | BZ64: =+IF($K64="Ongoing",BD64,IF(RIGHT($K64,2)=RIGHT(BZ$39,2),SUM($AV64:BD64),0)+IF(RIGHT(BZ$39,2)>RIGHT($K64,2),BD64,0)) -> 0.46035 | CA64: =+IF($K64="Ongoing",BE64,IF(RIGHT($K64,2)=RIGHT(CA$39,2),SUM($AV64:BE64),0)+IF(RIGHT(CA$39,2)>RIGHT($K64,2),BE64,0)) -> 0.65599875 | CC64: =+O64*KeyAssumptionsPriceControl_FO!X$15 -> 1.32221775 | CD64: =+P64*KeyAssumptionsPriceControl_FO!Y$15 -> 0.2284547219 | CE64: =+Q64*KeyAssumptionsPriceControl_FO!Z$15 -> 0.7609001767 | CF64: =+R64*KeyAssumptionsPriceControl_FO!AA$15 -> 0.3861270278 | CG64: =+S64*KeyAssumptionsPriceControl_FO!AB$15 -> 0.7448721332 | CH64: =+T64*KeyAssumptionsPriceControl_FO!AC$15 -> 0.4001309047 | CI64: =+U64*KeyAssumptionsPriceControl_FO!AD$15 -> 0.5442791624 | CJ64: =+V64*KeyAssumptionsPriceControl_FO!AE$15 -> 0.3543257347 | CK64: =+W64*KeyAssumptionsPriceControl_FO!AF$15 -> 0.564896457 | CL64: =+X64*KeyAssumptionsPriceControl_FO!AG$15 -> 0.8234919326 | CN64: 0.05828494398 | CO64: 0.1266404461 | CP64: 0.1702523964 | CQ64: 0.2208147311 | CR64: 0.2706705303 | CS64: 0.3211436373 | CT64: 0.3627743656 | CU64: 0.402385947 | CV64: 0.4429063635 | CW64: 0.5041081887
C65: Thomson & Macalister System Renewals program | E65: Bulk water services | F65: Renewals | G65: Headworks | H65: Capital Programs / Allocation | I65: 0 | J65: Straight line | K65: Ongoing | L65: 1.657565575 | M65: 1.657565575 | O65: 0.01007716276 | P65: 0.03525556404 | Q65: 0.100730183 | R65: 0.08058414638 | S65: 0.03021905489 | T65: 0.0843975 | U65: 0.03069 | V65: 0.03069 | W65: 0.18414 | X65: 0.260865 | AV65: 0.01007716276 | AW65: 0.03525556404 | AX65: 0.100730183 | AY65: 0.08058414638 | AZ65: 0.03021905489 | BA65: 0.0843975 | BB65: 0.03069 | BC65: 0.03069 | BD65: 0.18414 | BE65: 0.260865 | BG65: 0.003039747842 | BH65: 0.01671423755 | BI65: 0.05261237974 | BJ65: 0.08842927339 | BK65: 0.06730670852 | BL65: 0.05134945702 | BM65: 0.06304666575 | BN65: 0.03579535042 | BO65: 0.0769777615 | BP65: 0.1926971653 | BR65: =+IF($K65="Ongoing",AV65,IF(RIGHT($K65,2)=RIGHT(BR$39,2),SUM($AV65:AV65),0)+IF(RIGHT(BR$39,2)>RIGHT($K65,2),AV65,0)) -> 0.01007716276 | BS65: =+IF($K65="Ongoing",AW65,IF(RIGHT($K65,2)=RIGHT(BS$39,2),SUM($AV65:AW65),0)+IF(RIGHT(BS$39,2)>RIGHT($K65,2),AW65,0)) -> 0.03525556404 | BT65: =+IF($K65="Ongoing",AX65,IF(RIGHT($K65,2)=RIGHT(BT$39,2),SUM($AV65:AX65),0)+IF(RIGHT(BT$39,2)>RIGHT($K65,2),AX65,0)) -> 0.100730183 | BU65: =+IF($K65="Ongoing",AY65,IF(RIGHT($K65,2)=RIGHT(BU$39,2),SUM($AV65:AY65),0)+IF(RIGHT(BU$39,2)>RIGHT($K65,2),AY65,0)) -> 0.08058414638 | BV65: =+IF($K65="Ongoing",AZ65,IF(RIGHT($K65,2)=RIGHT(BV$39,2),SUM($AV65:AZ65),0)+IF(RIGHT(BV$39,2)>RIGHT($K65,2),AZ65,0)) -> 0.03021905489 | BW65: =+IF($K65="Ongoing",BA65,IF(RIGHT($K65,2)=RIGHT(BW$39,2),SUM($AV65:BA65),0)+IF(RIGHT(BW$39,2)>RIGHT($K65,2),BA65,0)) -> 0.0843975 | BX65: =+IF($K65="Ongoing",BB65,IF(RIGHT($K65,2)=RIGHT(BX$39,2),SUM($AV65:BB65),0)+IF(RIGHT(BX$39,2)>RIGHT($K65,2),BB65,0)) -> 0.03069 | BY65: =+IF($K65="Ongoing",BC65,IF(RIGHT($K65,2)=RIGHT(BY$39,2),SUM($AV65:BC65),0)+IF(RIGHT(BY$39,2)>RIGHT($K65,2),BC65,0)) -> 0.03069 | BZ65: =+IF($K65="Ongoing",BD65,IF(RIGHT($K65,2)=RIGHT(BZ$39,2),SUM($AV65:BD65),0)+IF(RIGHT(BZ$39,2)>RIGHT($K65,2),BD65,0)) -> 0.18414 | CA65: =+IF($K65="Ongoing",BE65,IF(RIGHT($K65,2)=RIGHT(CA$39,2),SUM($AV65:BE65),0)+IF(RIGHT(CA$39,2)>RIGHT($K65,2),BE65,0)) -> 0.260865 | CC65: =+O65*KeyAssumptionsPriceControl_FO!X$15 -> 0.0103089375 | CD65: =+P65*KeyAssumptionsPriceControl_FO!Y$15 -> 0.03689597018 | CE65: =+Q65*KeyAssumptionsPriceControl_FO!Z$15 -> 0.10784165 | CF65: =+R65*KeyAssumptionsPriceControl_FO!AA$15 -> 0.08825760635 | CG65: =+S65*KeyAssumptionsPriceControl_FO!AB$15 -> 0.03385782423 | CH65: =+T65*KeyAssumptionsPriceControl_FO!AC$15 -> 0.09673494399 | CI65: =+U65*KeyAssumptionsPriceControl_FO!AD$15 -> 0.03598539916 | CJ65: =+V65*KeyAssumptionsPriceControl_FO!AE$15 -> 0.03681306335 | CK65: =+W65*KeyAssumptionsPriceControl_FO!AF$15 -> 0.2259585828 | CL65: =+X65*KeyAssumptionsPriceControl_FO!AG$15 -> 0.3274704761 | CN65: 0.003109662042 | CO65: 0.01734888986 | CP65: 0.05576921375 | CQ65: 0.09519019356 | CR65: 0.07370969323 | CS65: 0.05799568847 | CT65: 0.07243301438 | CU65: 0.04200981786 | CV65: 0.09378960158 | CW65: 0.2385994849
C66: Werribee System Renewals program | E66: Irrigation | F66: Renewals | G66: Corporate | H66: Capital Programs / Allocation | I66: 0 | J66: Straight line | K66: Ongoing | L66: 5 | M66: 5 | O66: 0 | P66: 0.07051112808 | Q66: 0.02014603659 | R66: 0.07051112808 | S66: 0.02014603659 | T66: 0.015345 | U66: 0.015345 | V66: 0.015345 | W66: 0.015345 | X66: 0.015345 | AV66: 0 | AW66: 0.07051112808 | AX66: 0.02014603659 | AY66: 0.07051112808 | AZ66: 0.02014603659 | BA66: 0.015345 | BB66: 0.015345 | BC66: 0.015345 | BD66: 0.015345 | BE66: 0.015345 | BG66: 0 | BH66: 0.007051112808 | BI66: 0.01611682928 | BJ66: 0.02518254574 | BK66: 0.03424826221 | BL66: 0.03779736587 | BM66: 0.03381525306 | BN66: 0.02781853659 | BO66: 0.02182182013 | BP66: 0.01582510366 | BR66: =+IF($K66="Ongoing",AV66,IF(RIGHT($K66,2)=RIGHT(BR$39,2),SUM($AV66:AV66),0)+IF(RIGHT(BR$39,2)>RIGHT($K66,2),AV66,0)) -> 0 | BS66: =+IF($K66="Ongoing",AW66,IF(RIGHT($K66,2)=RIGHT(BS$39,2),SUM($AV66:AW66),0)+IF(RIGHT(BS$39,2)>RIGHT($K66,2),AW66,0)) -> 0.07051112808 | BT66: =+IF($K66="Ongoing",AX66,IF(RIGHT($K66,2)=RIGHT(BT$39,2),SUM($AV66:AX66),0)+IF(RIGHT(BT$39,2)>RIGHT($K66,2),AX66,0)) -> 0.02014603659 | BU66: =+IF($K66="Ongoing",AY66,IF(RIGHT($K66,2)=RIGHT(BU$39,2),SUM($AV66:AY66),0)+IF(RIGHT(BU$39,2)>RIGHT($K66,2),AY66,0)) -> 0.07051112808 | BV66: =+IF($K66="Ongoing",AZ66,IF(RIGHT($K66,2)=RIGHT(BV$39,2),SUM($AV66:AZ66),0)+IF(RIGHT(BV$39,2)>RIGHT($K66,2),AZ66,0)) -> 0.02014603659 | BW66: =+IF($K66="Ongoing",BA66,IF(RIGHT($K66,2)=RIGHT(BW$39,2),SUM($AV66:BA66),0)+IF(RIGHT(BW$39,2)>RIGHT($K66,2),BA66,0)) -> 0.015345 | BX66: =+IF($K66="Ongoing",BB66,IF(RIGHT($K66,2)=RIGHT(BX$39,2),SUM($AV66:BB66),0)+IF(RIGHT(BX$39,2)>RIGHT($K66,2),BB66,0)) -> 0.015345 | BY66: =+IF($K66="Ongoing",BC66,IF(RIGHT($K66,2)=RIGHT(BY$39,2),SUM($AV66:BC66),0)+IF(RIGHT(BY$39,2)>RIGHT($K66,2),BC66,0)) -> 0.015345 | BZ66: =+IF($K66="Ongoing",BD66,IF(RIGHT($K66,2)=RIGHT(BZ$39,2),SUM($AV66:BD66),0)+IF(RIGHT(BZ$39,2)>RIGHT($K66,2),BD66,0)) -> 0.015345 | CA66: =+IF($K66="Ongoing",BE66,IF(RIGHT($K66,2)=RIGHT(CA$39,2),SUM($AV66:BE66),0)+IF(RIGHT(CA$39,2)>RIGHT($K66,2),BE66,0)) -> 0.015345 | CC66: =+O66*KeyAssumptionsPriceControl_FO!X$15 -> 0 | CD66: =+P66*KeyAssumptionsPriceControl_FO!Y$15 -> 0.07379194036 | CE66: =+Q66*KeyAssumptionsPriceControl_FO!Z$15 -> 0.02156833 | CF66: =+R66*KeyAssumptionsPriceControl_FO!AA$15 -> 0.07722540555 | CG66: =+S66*KeyAssumptionsPriceControl_FO!AB$15 -> 0.02257188282 | CH66: =+T66*KeyAssumptionsPriceControl_FO!AC$15 -> 0.01758817163 | CI66: =+U66*KeyAssumptionsPriceControl_FO!AD$15 -> 0.01799269958 | CJ66: =+V66*KeyAssumptionsPriceControl_FO!AE$15 -> 0.01840653167 | CK66: =+W66*KeyAssumptionsPriceControl_FO!AF$15 -> 0.0188298819 | CL66: =+X66*KeyAssumptionsPriceControl_FO!AG$15 -> 0.01926296918 | CN66: 0 | CO66: 0.007379194036 | CP66: 0.01691522107 | CQ66: 0.02679459463 | CR66: 0.03677432346 | CS66: 0.04079032891 | CT66: 0.036969222 | CU66: 0.03107311809 | CV66: 0.02491738589 | CW66: 0.01874694216
C67: Shared Services Renewal program | E67: Irrigation | F67: Renewals | G67: Corporate | H67: Capital Programs / Allocation | I67: 0 | J67: Straight line | K67: Ongoing | L67: 17.79007511 | M67: 17.79007511 | O67: 0.3958766658 | P67: 0.359360015 | Q67: 0.3334111642 | R67: 0.3272632246 | S67: 0.3212535084 | T67: 0.007403762693 | U67: 0 | V67: 0 | W67: 0 | X67: 0 | AV67: 0.3958766658 | AW67: 0.359360015 | AX67: 0.3334111642 | AY67: 0.3272632246 | AZ67: 0.3212535084 | BA67: 0.007403762693 | BB67: 0 | BC67: 0 | BD67: 0 | BE67: 0 | BG67: 0.01112633486 | BH67: 0.03235268372 | BI67: 0.05182340476 | BJ67: 0.07039202757 | BK67: 0.08861895267 | BL67: 0.09785604889 | BM67: 0.09806413578 | BN67: 0.09806413578 | BO67: 0.09806413578 | BP67: 0.09806413578 | BR67: =+IF($K67="Ongoing",AV67,IF(RIGHT($K67,2)=RIGHT(BR$39,2),SUM($AV67:AV67),0)+IF(RIGHT(BR$39,2)>RIGHT($K67,2),AV67,0)) -> 0.3958766658 | BS67: =+IF($K67="Ongoing",AW67,IF(RIGHT($K67,2)=RIGHT(BS$39,2),SUM($AV67:AW67),0)+IF(RIGHT(BS$39,2)>RIGHT($K67,2),AW67,0)) -> 0.359360015 | BT67: =+IF($K67="Ongoing",AX67,IF(RIGHT($K67,2)=RIGHT(BT$39,2),SUM($AV67:AX67),0)+IF(RIGHT(BT$39,2)>RIGHT($K67,2),AX67,0)) -> 0.3334111642 | BU67: =+IF($K67="Ongoing",AY67,IF(RIGHT($K67,2)=RIGHT(BU$39,2),SUM($AV67:AY67),0)+IF(RIGHT(BU$39,2)>RIGHT($K67,2),AY67,0)) -> 0.3272632246 | BV67: =+IF($K67="Ongoing",AZ67,IF(RIGHT($K67,2)=RIGHT(BV$39,2),SUM($AV67:AZ67),0)+IF(RIGHT(BV$39,2)>RIGHT($K67,2),AZ67,0)) -> 0.3212535084 | BW67: =+IF($K67="Ongoing",BA67,IF(RIGHT($K67,2)=RIGHT(BW$39,2),SUM($AV67:BA67),0)+IF(RIGHT(BW$39,2)>RIGHT($K67,2),BA67,0)) -> 0.007403762693 | BX67: =+IF($K67="Ongoing",BB67,IF(RIGHT($K67,2)=RIGHT(BX$39,2),SUM($AV67:BB67),0)+IF(RIGHT(BX$39,2)>RIGHT($K67,2),BB67,0)) -> 0 | BY67: =+IF($K67="Ongoing",BC67,IF(RIGHT($K67,2)=RIGHT(BY$39,2),SUM($AV67:BC67),0)+IF(RIGHT(BY$39,2)>RIGHT($K67,2),BC67,0)) -> 0 | BZ67: =+IF($K67="Ongoing",BD67,IF(RIGHT($K67,2)=RIGHT(BZ$39,2),SUM($AV67:BD67),0)+IF(RIGHT(BZ$39,2)>RIGHT($K67,2),BD67,0)) -> 0 | CA67: =+IF($K67="Ongoing",BE67,IF(RIGHT($K67,2)=RIGHT(CA$39,2),SUM($AV67:BE67),0)+IF(RIGHT(CA$39,2)>RIGHT($K67,2),BE67,0)) -> 0 | CC67: =+O67*KeyAssumptionsPriceControl_FO!X$15 -> 0.4049818291 | CD67: =+P67*KeyAssumptionsPriceControl_FO!Y$15 -> 0.3760806772 | CE67: =+Q67*KeyAssumptionsPriceControl_FO!Z$15 -> 0.3569497147 | CF67: =+R67*KeyAssumptionsPriceControl_FO!AA$15 -> 0.3584261935 | CG67: =+S67*KeyAssumptionsPriceControl_FO!AB$15 -> 0.3599366314 | CH67: =+T67*KeyAssumptionsPriceControl_FO!AC$15 -> 0.008486063798 | CI67: =+U67*KeyAssumptionsPriceControl_FO!AD$15 -> 0 | CJ67: =+V67*KeyAssumptionsPriceControl_FO!AE$15 -> 0 | CK67: =+W67*KeyAssumptionsPriceControl_FO!AF$15 -> 0 | CL67: =+X67*KeyAssumptionsPriceControl_FO!AG$15 -> 0 | CN67: 0.01138224057 | CO67: 0.03333443868 | CP67: 0.05393666738 | CQ67: 0.07404270695 | CR67: 0.09423269549 | CS67: 0.1045874212 | CT67: 0.1048259267 | CU67: 0.1048259267 | CV67: 0.1048259267 | CW67: 0.1048259267
C68: Shared Services Renewal program | E68: Surface water diversions | F68: Renewals | G68: Corporate | H68: Capital Programs / Allocation | I68: 0 | J68: Straight line | K68: Ongoing | L68: 17.79007511 | M68: 17.79007511 | O68: 0.005272818993 | P68: 0.004786441022 | Q68: 0.004440819253 | R68: 0.004358932707 | S68: 0.004278887207 | T68: 9.861329025e-05 | U68: 0 | V68: 0 | W68: 0 | X68: 0 | AV68: 0.005272818993 | AW68: 0.004786441022 | AX68: 0.004440819253 | AY68: 0.004358932707 | AZ68: 0.004278887207 | BA68: 9.861329025e-05 | BB68: 0 | BC68: 0 | BD68: 0 | BE68: 0 | BG68: 0.0001481955237 | BH68: 0.0004309166464 | BI68: 0.0006902539516 | BJ68: 0.0009375758967 | BK68: 0.001180346651 | BL68: 0.001303378748 | BM68: 0.00130615033 | BN68: 0.00130615033 | BO68: 0.00130615033 | BP68: 0.00130615033 | BR68: =+IF($K68="Ongoing",AV68,IF(RIGHT($K68,2)=RIGHT(BR$39,2),SUM($AV68:AV68),0)+IF(RIGHT(BR$39,2)>RIGHT($K68,2),AV68,0)) -> 0.005272818993 | BS68: =+IF($K68="Ongoing",AW68,IF(RIGHT($K68,2)=RIGHT(BS$39,2),SUM($AV68:AW68),0)+IF(RIGHT(BS$39,2)>RIGHT($K68,2),AW68,0)) -> 0.004786441022 | BT68: =+IF($K68="Ongoing",AX68,IF(RIGHT($K68,2)=RIGHT(BT$39,2),SUM($AV68:AX68),0)+IF(RIGHT(BT$39,2)>RIGHT($K68,2),AX68,0)) -> 0.004440819253 | BU68: =+IF($K68="Ongoing",AY68,IF(RIGHT($K68,2)=RIGHT(BU$39,2),SUM($AV68:AY68),0)+IF(RIGHT(BU$39,2)>RIGHT($K68,2),AY68,0)) -> 0.004358932707 | BV68: =+IF($K68="Ongoing",AZ68,IF(RIGHT($K68,2)=RIGHT(BV$39,2),SUM($AV68:AZ68),0)+IF(RIGHT(BV$39,2)>RIGHT($K68,2),AZ68,0)) -> 0.004278887207 | BW68: =+IF($K68="Ongoing",BA68,IF(RIGHT($K68,2)=RIGHT(BW$39,2),SUM($AV68:BA68),0)+IF(RIGHT(BW$39,2)>RIGHT($K68,2),BA68,0)) -> 9.861329025e-05 | BX68: =+IF($K68="Ongoing",BB68,IF(RIGHT($K68,2)=RIGHT(BX$39,2),SUM($AV68:BB68),0)+IF(RIGHT(BX$39,2)>RIGHT($K68,2),BB68,0)) -> 0 | BY68: =+IF($K68="Ongoing",BC68,IF(RIGHT($K68,2)=RIGHT(BY$39,2),SUM($AV68:BC68),0)+IF(RIGHT(BY$39,2)>RIGHT($K68,2),BC68,0)) -> 0 | BZ68: =+IF($K68="Ongoing",BD68,IF(RIGHT($K68,2)=RIGHT(BZ$39,2),SUM($AV68:BD68),0)+IF(RIGHT(BZ$39,2)>RIGHT($K68,2),BD68,0)) -> 0 | CA68: =+IF($K68="Ongoing",BE68,IF(RIGHT($K68,2)=RIGHT(CA$39,2),SUM($AV68:BE68),0)+IF(RIGHT(CA$39,2)>RIGHT($K68,2),BE68,0)) -> 0 | CC68: =+O68*KeyAssumptionsPriceControl_FO!X$15 -> 0.00539409383 | CD68: =+P68*KeyAssumptionsPriceControl_FO!Y$15 -> 0.005009149336 | CE68: =+Q68*KeyAssumptionsPriceControl_FO!Z$15 -> 0.004754337393 | CF68: =+R68*KeyAssumptionsPriceControl_FO!AA$15 -> 0.004774003128 | CG68: =+S68*KeyAssumptionsPriceControl_FO!AB$15 -> 0.004794121176 | CH68: =+T68*KeyAssumptionsPriceControl_FO!AC$15 -> 0.0001130288351 | CI68: =+U68*KeyAssumptionsPriceControl_FO!AD$15 -> 0 | CJ68: =+V68*KeyAssumptionsPriceControl_FO!AE$15 -> 0 | CK68: =+W68*KeyAssumptionsPriceControl_FO!AF$15 -> 0 | CL68: =+X68*KeyAssumptionsPriceControl_FO!AG$15 -> 0 | CN68: 0.0001516040207 | CO68: 0.0004439929821 | CP68: 0.0007184012313 | CQ68: 0.0009862005651 | CR68: 0.001255118044 | CS68: 0.001393036237 | CT68: 0.001396212975 | CU68: 0.001396212975 | CV68: 0.001396212975 | CW68: 0.001396212975
C69: Shared Services Renewal program | E69: Groundwater diversions | F69: Renewals | G69: Corporate | H69: Capital Programs / Allocation | I69: 0 | J69: Straight line | K69: Ongoing | L69: 17.79007511 | M69: 17.79007511 | O69: 0.1997180547 | P69: 0.1812955633 | Q69: 0.1682044811 | R69: 0.1651028723 | S69: 0.1620709966 | T69: 0.003735166051 | U69: 0 | V69: 0 | W69: 0 | X69: 0 | AV69: 0.1997180547 | AW69: 0.1812955633 | AX69: 0.1682044811 | AY69: 0.1651028723 | AZ69: 0.1620709966 | BA69: 0.003735166051 | BB69: 0 | BC69: 0 | BD69: 0 | BE69: 0 | BG69: 0.005613187508 | BH69: 0.01632178811 | BI69: 0.02614468212 | BJ69: 0.0355124715 | BK69: 0.04470787588 | BL69: 0.04936795071 | BM69: 0.04947292964 | BN69: 0.04947292964 | BO69: 0.04947292964 | BP69: 0.04947292964 | BR69: =+IF($K69="Ongoing",AV69,IF(RIGHT($K69,2)=RIGHT(BR$39,2),SUM($AV69:AV69),0)+IF(RIGHT(BR$39,2)>RIGHT($K69,2),AV69,0)) -> 0.1997180547 | BS69: =+IF($K69="Ongoing",AW69,IF(RIGHT($K69,2)=RIGHT(BS$39,2),SUM($AV69:AW69),0)+IF(RIGHT(BS$39,2)>RIGHT($K69,2),AW69,0)) -> 0.1812955633 | BT69: =+IF($K69="Ongoing",AX69,IF(RIGHT($K69,2)=RIGHT(BT$39,2),SUM($AV69:AX69),0)+IF(RIGHT(BT$39,2)>RIGHT($K69,2),AX69,0)) -> 0.1682044811 | BU69: =+IF($K69="Ongoing",AY69,IF(RIGHT($K69,2)=RIGHT(BU$39,2),SUM($AV69:AY69),0)+IF(RIGHT(BU$39,2)>RIGHT($K69,2),AY69,0)) -> 0.1651028723 | BV69: =+IF($K69="Ongoing",AZ69,IF(RIGHT($K69,2)=RIGHT(BV$39,2),SUM($AV69:AZ69),0)+IF(RIGHT(BV$39,2)>RIGHT($K69,2),AZ69,0)) -> 0.1620709966 | BW69: =+IF($K69="Ongoing",BA69,IF(RIGHT($K69,2)=RIGHT(BW$39,2),SUM($AV69:BA69),0)+IF(RIGHT(BW$39,2)>RIGHT($K69,2),BA69,0)) -> 0.003735166051 | BX69: =+IF($K69="Ongoing",BB69,IF(RIGHT($K69,2)=RIGHT(BX$39,2),SUM($AV69:BB69),0)+IF(RIGHT(BX$39,2)>RIGHT($K69,2),BB69,0)) -> 0 | BY69: =+IF($K69="Ongoing",BC69,IF(RIGHT($K69,2)=RIGHT(BY$39,2),SUM($AV69:BC69),0)+IF(RIGHT(BY$39,2)>RIGHT($K69,2),BC69,0)) -> 0 | BZ69: =+IF($K69="Ongoing",BD69,IF(RIGHT($K69,2)=RIGHT(BZ$39,2),SUM($AV69:BD69),0)+IF(RIGHT(BZ$39,2)>RIGHT($K69,2),BD69,0)) -> 0 | CA69: =+IF($K69="Ongoing",BE69,IF(RIGHT($K69,2)=RIGHT(CA$39,2),SUM($AV69:BE69),0)+IF(RIGHT(CA$39,2)>RIGHT($K69,2),BE69,0)) -> 0 | CC69: =+O69*KeyAssumptionsPriceControl_FO!X$15 -> 0.20431157 | CD69: =+P69*KeyAssumptionsPriceControl_FO!Y$15 -> 0.1897310646 | CE69: =+Q69*KeyAssumptionsPriceControl_FO!Z$15 -> 0.1800795773 | CF69: =+R69*KeyAssumptionsPriceControl_FO!AA$15 -> 0.1808244545 | CG69: =+S69*KeyAssumptionsPriceControl_FO!AB$15 -> 0.1815864638 | CH69: =+T69*KeyAssumptionsPriceControl_FO!AC$15 -> 0.004281182248 | CI69: =+U69*KeyAssumptionsPriceControl_FO!AD$15 -> 0 | CJ69: =+V69*KeyAssumptionsPriceControl_FO!AE$15 -> 0 | CK69: =+W69*KeyAssumptionsPriceControl_FO!AF$15 -> 0 | CL69: =+X69*KeyAssumptionsPriceControl_FO!AG$15 -> 0 | CN69: 0.00574229082 | CO69: 0.01681707921 | CP69: 0.02721081391 | CQ69: 0.03735422336 | CR69: 0.04753998469 | CS69: 0.05276389873 | CT69: 0.05288422375 | CU69: 0.05288422375 | CV69: 0.05288422375 | CW69: 0.05288422375
C70: Shared Services Renewal program | E70: Bulk water services | F70: Renewals | G70: Corporate | H70: Capital Programs / Allocation | I70: 0 | J70: Straight line | K70: Ongoing | L70: 17.79007511 | M70: 17.79007511 | O70: 1.427501015 | P70: 1.295824762 | Q70: 1.202255188 | R70: 1.180086188 | S70: 1.15841561 | T70: 0.02669740268 | U70: 0 | V70: 0 | W70: 0 | X70: 0 | AV70: 1.427501015 | AW70: 1.295824762 | AX70: 1.202255188 | AY70: 1.180086188 | AZ70: 1.15841561 | BA70: 0.02669740268 | BB70: 0 | BC70: 0 | BD70: 0 | BE70: 0 | BG70: 0.04012071356 | BH70: 0.116661306 | BI70: 0.1868712387 | BJ70: 0.253828274 | BK70: 0.3195531735 | BL70: 0.3528614369 | BM70: 0.3536117823 | BN70: 0.3536117823 | BO70: 0.3536117823 | BP70: 0.3536117823 | BR70: =+IF($K70="Ongoing",AV70,IF(RIGHT($K70,2)=RIGHT(BR$39,2),SUM($AV70:AV70),0)+IF(RIGHT(BR$39,2)>RIGHT($K70,2),AV70,0)) -> 1.427501015 | BS70: =+IF($K70="Ongoing",AW70,IF(RIGHT($K70,2)=RIGHT(BS$39,2),SUM($AV70:AW70),0)+IF(RIGHT(BS$39,2)>RIGHT($K70,2),AW70,0)) -> 1.295824762 | BT70: =+IF($K70="Ongoing",AX70,IF(RIGHT($K70,2)=RIGHT(BT$39,2),SUM($AV70:AX70),0)+IF(RIGHT(BT$39,2)>RIGHT($K70,2),AX70,0)) -> 1.202255188 | BU70: =+IF($K70="Ongoing",AY70,IF(RIGHT($K70,2)=RIGHT(BU$39,2),SUM($AV70:AY70),0)+IF(RIGHT(BU$39,2)>RIGHT($K70,2),AY70,0)) -> 1.180086188 | BV70: =+IF($K70="Ongoing",AZ70,IF(RIGHT($K70,2)=RIGHT(BV$39,2),SUM($AV70:AZ70),0)+IF(RIGHT(BV$39,2)>RIGHT($K70,2),AZ70,0)) -> 1.15841561 | BW70: =+IF($K70="Ongoing",BA70,IF(RIGHT($K70,2)=RIGHT(BW$39,2),SUM($AV70:BA70),0)+IF(RIGHT(BW$39,2)>RIGHT($K70,2),BA70,0)) -> 0.02669740268 | BX70: =+IF($K70="Ongoing",BB70,IF(RIGHT($K70,2)=RIGHT(BX$39,2),SUM($AV70:BB70),0)+IF(RIGHT(BX$39,2)>RIGHT($K70,2),BB70,0)) -> 0 | BY70: =+IF($K70="Ongoing",BC70,IF(RIGHT($K70,2)=RIGHT(BY$39,2),SUM($AV70:BC70),0)+IF(RIGHT(BY$39,2)>RIGHT($K70,2),BC70,0)) -> 0 | BZ70: =+IF($K70="Ongoing",BD70,IF(RIGHT($K70,2)=RIGHT(BZ$39,2),SUM($AV70:BD70),0)+IF(RIGHT(BZ$39,2)>RIGHT($K70,2),BD70,0)) -> 0 | CA70: =+IF($K70="Ongoing",BE70,IF(RIGHT($K70,2)=RIGHT(CA$39,2),SUM($AV70:BE70),0)+IF(RIGHT(CA$39,2)>RIGHT($K70,2),BE70,0)) -> 0 | CC70: =+O70*KeyAssumptionsPriceControl_FO!X$15 -> 1.460333538 | CD70: =+P70*KeyAssumptionsPriceControl_FO!Y$15 -> 1.356118192 | CE70: =+Q70*KeyAssumptionsPriceControl_FO!Z$15 -> 1.287133403 | CF70: =+R70*KeyAssumptionsPriceControl_FO!AA$15 -> 1.292457473 | CG70: =+S70*KeyAssumptionsPriceControl_FO!AB$15 -> 1.297903997 | CH70: =+T70*KeyAssumptionsPriceControl_FO!AC$15 -> 0.03060009779 | CI70: =+U70*KeyAssumptionsPriceControl_FO!AD$15 -> 0 | CJ70: =+V70*KeyAssumptionsPriceControl_FO!AE$15 -> 0 | CK70: =+W70*KeyAssumptionsPriceControl_FO!AF$15 -> 0 | CL70: =+X70*KeyAssumptionsPriceControl_FO!AG$15 -> 0 | CN70: 0.04104348997 | CO70: 0.1202014394 | CP70: 0.1944915022 | CQ70: 0.266992345 | CR70: 0.3397959013 | CS70: 0.3771342511 | CT70: 0.377994284 | CU70: 0.377994284 | CV70: 0.377994284 | CW70: 0.377994284
AV71: 0 | AW71: 0 | AX71: 0 | AY71: 0 | AZ71: 0 | BA71: 0 | BB71: 0 | BC71: 0 | BD71: 0 | BE71: 0 | BG71: 0 | BH71: 0 | BI71: 0 | BJ71: 0 | BK71: 0 | BL71: 0 | BM71: 0 | BN71: 0 | BO71: 0 | BP71: 0 | BR71: =+IF($K71="Ongoing",AV71,IF(RIGHT($K71,2)=RIGHT(BR$39,2),SUM($AV71:AV71),0)+IF(RIGHT(BR$39,2)>RIGHT($K71,2),AV71,0)) -> 0 | BS71: =+IF($K71="Ongoing",AW71,IF(RIGHT($K71,2)=RIGHT(BS$39,2),SUM($AV71:AW71),0)+IF(RIGHT(BS$39,2)>RIGHT($K71,2),AW71,0)) -> 0 | BT71: =+IF($K71="Ongoing",AX71,IF(RIGHT($K71,2)=RIGHT(BT$39,2),SUM($AV71:AX71),0)+IF(RIGHT(BT$39,2)>RIGHT($K71,2),AX71,0)) -> 0 | BU71: =+IF($K71="Ongoing",AY71,IF(RIGHT($K71,2)=RIGHT(BU$39,2),SUM($AV71:AY71),0)+IF(RIGHT(BU$39,2)>RIGHT($K71,2),AY71,0)) -> 0 | BV71: =+IF($K71="Ongoing",AZ71,IF(RIGHT($K71,2)=RIGHT(BV$39,2),SUM($AV71:AZ71),0)+IF(RIGHT(BV$39,2)>RIGHT($K71,2),AZ71,0)) -> 0 | BW71: =+IF($K71="Ongoing",BA71,IF(RIGHT($K71,2)=RIGHT(BW$39,2),SUM($AV71:BA71),0)+IF(RIGHT(BW$39,2)>RIGHT($K71,2),BA71,0)) -> 0 | BX71: =+IF($K71="Ongoing",BB71,IF(RIGHT($K71,2)=RIGHT(BX$39,2),SUM($AV71:BB71),0)+IF(RIGHT(BX$39,2)>RIGHT($K71,2),BB71,0)) -> 0 | BY71: =+IF($K71="Ongoing",BC71,IF(RIGHT($K71,2)=RIGHT(BY$39,2),SUM($AV71:BC71),0)+IF(RIGHT(BY$39,2)>RIGHT($K71,2),BC71,0)) -> 0 | BZ71: =+IF($K71="Ongoing",BD71,IF(RIGHT($K71,2)=RIGHT(BZ$39,2),SUM($AV71:BD71),0)+IF(RIGHT(BZ$39,2)>RIGHT($K71,2),BD71,0)) -> 0 | CA71: =+IF($K71="Ongoing",BE71,IF(RIGHT($K71,2)=RIGHT(CA$39,2),SUM($AV71:BE71),0)+IF(RIGHT(CA$39,2)>RIGHT($K71,2),BE71,0)) -> 0 | CC71: =+O71*KeyAssumptionsPriceControl_FO!X$15 -> 0 | CD71: =+P71*KeyAssumptionsPriceControl_FO!Y$15 -> 0 | CE71: =+Q71*KeyAssumptionsPriceControl_FO!Z$15 -> 0 | CF71: =+R71*KeyAssumptionsPriceControl_FO!AA$15 -> 0 | CG71: =+S71*KeyAssumptionsPriceControl_FO!AB$15 -> 0 | CH71: =+T71*KeyAssumptionsPriceControl_FO!AC$15 -> 0 | CI71: =+U71*KeyAssumptionsPriceControl_FO!AD$15 -> 0 | CJ71: =+V71*KeyAssumptionsPriceControl_FO!AE$15 -> 0 | CK71: =+W71*KeyAssumptionsPriceControl_FO!AF$15 -> 0 | CL71: =+X71*KeyAssumptionsPriceControl_FO!AG$15 -> 0 | CN71: 0 | CO71: 0 | CP71: 0 | CQ71: 0 | CR71: 0 | CS71: 0 | CT71: 0 | CU71: 0 | CV71: 0 | CW71: 0
C72: Shared Services Imporvement program | E72: Irrigation | F72: Improvements / Compliance | G72: Corporate | H72: Capital Programs / Allocation | I72: 0 | J72: Straight line | K72: Ongoing | L72: 7 | M72: 7 | O72: 0.2540368402 | P72: 0.2539850344 | Q72: 0 | R72: 0 | S72: 0 | T72: 0 | U72: 0 | V72: 0 | W72: 0 | X72: 0 | AV72: 0.2540368402 | AW72: 0.2539850344 | AX72: 0 | AY72: 0 | AZ72: 0 | BA72: 0 | BB72: 0 | BC72: 0 | BD72: 0 | BE72: 0 | BG72: 0.01814548858 | BH72: 0.05443276534 | BI72: 0.07257455352 | BJ72: 0.07257455352 | BK72: 0.07257455352 | BL72: 0.07257455352 | BM72: 0.07257455352 | BN72: 0.05442906493 | BO72: 0.01814178817 | BP72: 0 | BR72: =+IF($K72="Ongoing",AV72,IF(RIGHT($K72,2)=RIGHT(BR$39,2),SUM($AV72:AV72),0)+IF(RIGHT(BR$39,2)>RIGHT($K72,2),AV72,0)) -> 0.2540368402 | BS72: =+IF($K72="Ongoing",AW72,IF(RIGHT($K72,2)=RIGHT(BS$39,2),SUM($AV72:AW72),0)+IF(RIGHT(BS$39,2)>RIGHT($K72,2),AW72,0)) -> 0.2539850344 | BT72: =+IF($K72="Ongoing",AX72,IF(RIGHT($K72,2)=RIGHT(BT$39,2),SUM($AV72:AX72),0)+IF(RIGHT(BT$39,2)>RIGHT($K72,2),AX72,0)) -> 0 | BU72: =+IF($K72="Ongoing",AY72,IF(RIGHT($K72,2)=RIGHT(BU$39,2),SUM($AV72:AY72),0)+IF(RIGHT(BU$39,2)>RIGHT($K72,2),AY72,0)) -> 0 | BV72: =+IF($K72="Ongoing",AZ72,IF(RIGHT($K72,2)=RIGHT(BV$39,2),SUM($AV72:AZ72),0)+IF(RIGHT(BV$39,2)>RIGHT($K72,2),AZ72,0)) -> 0 | BW72: =+IF($K72="Ongoing",BA72,IF(RIGHT($K72,2)=RIGHT(BW$39,2),SUM($AV72:BA72),0)+IF(RIGHT(BW$39,2)>RIGHT($K72,2),BA72,0)) -> 0 | BX72: =+IF($K72="Ongoing",BB72,IF(RIGHT($K72,2)=RIGHT(BX$39,2),SUM($AV72:BB72),0)+IF(RIGHT(BX$39,2)>RIGHT($K72,2),BB72,0)) -> 0 | BY72: =+IF($K72="Ongoing",BC72,IF(RIGHT($K72,2)=RIGHT(BY$39,2),SUM($AV72:BC72),0)+IF(RIGHT(BY$39,2)>RIGHT($K72,2),BC72,0)) -> 0 | BZ72: =+IF($K72="Ongoing",BD72,IF(RIGHT($K72,2)=RIGHT(BZ$39,2),SUM($AV72:BD72),0)+IF(RIGHT(BZ$39,2)>RIGHT($K72,2),BD72,0)) -> 0 | CA72: =+IF($K72="Ongoing",BE72,IF(RIGHT($K72,2)=RIGHT(CA$39,2),SUM($AV72:BE72),0)+IF(RIGHT(CA$39,2)>RIGHT($K72,2),BE72,0)) -> 0 | CC72: =+O72*KeyAssumptionsPriceControl_FO!X$15 -> 0.2598796875 | CD72: =+P72*KeyAssumptionsPriceControl_FO!Y$15 -> 0.2658027041 | CE72: =+Q72*KeyAssumptionsPriceControl_FO!Z$15 -> 0 | CF72: =+R72*KeyAssumptionsPriceControl_FO!AA$15 -> 0 | CG72: =+S72*KeyAssumptionsPriceControl_FO!AB$15 -> 0 | CH72: =+T72*KeyAssumptionsPriceControl_FO!AC$15 -> 0 | CI72: =+U72*KeyAssumptionsPriceControl_FO!AD$15 -> 0 | CJ72: =+V72*KeyAssumptionsPriceControl_FO!AE$15 -> 0 | CK72: =+W72*KeyAssumptionsPriceControl_FO!AF$15 -> 0 | CL72: =+X72*KeyAssumptionsPriceControl_FO!AG$15 -> 0 | CN72: 0.01856283482 | CO72: 0.05611157708 | CP72: 0.07509748451 | CQ72: 0.07509748451 | CR72: 0.07509748451 | CS72: 0.07509748451 | CT72: 0.07509748451 | CU72: 0.05653464969 | CV72: 0.01898590744 | CW72: 0
C73: Shared Services Imporvement program | E73: Surface water diversions | F73: Improvements / Compliance | G73: Corporate | H73: Capital Programs / Allocation | I73: 0 | J73: Straight line | K73: Ongoing | L73: 7 | M73: 7 | O73: 0.04958036697 | P73: 0.04957025604 | Q73: 0 | R73: 0 | S73: 0 | T73: 0 | U73: 0 | V73: 0 | W73: 0 | X73: 0 | AV73: 0.04958036697 | AW73: 0.04957025604 | AX73: 0 | AY73: 0 | AZ73: 0 | BA73: 0 | BB73: 0 | BC73: 0 | BD73: 0 | BE73: 0 | BG73: 0.003541454783 | BH73: 0.01062364214 | BI73: 0.01416437472 | BJ73: 0.01416437472 | BK73: 0.01416437472 | BL73: 0.01416437472 | BM73: 0.01416437472 | BN73: 0.01062291993 | BO73: 0.003540732574 | BP73: 0 | BR73: =+IF($K73="Ongoing",AV73,IF(RIGHT($K73,2)=RIGHT(BR$39,2),SUM($AV73:AV73),0)+IF(RIGHT(BR$39,2)>RIGHT($K73,2),AV73,0)) -> 0.04958036697 | BS73: =+IF($K73="Ongoing",AW73,IF(RIGHT($K73,2)=RIGHT(BS$39,2),SUM($AV73:AW73),0)+IF(RIGHT(BS$39,2)>RIGHT($K73,2),AW73,0)) -> 0.04957025604 | BT73: =+IF($K73="Ongoing",AX73,IF(RIGHT($K73,2)=RIGHT(BT$39,2),SUM($AV73:AX73),0)+IF(RIGHT(BT$39,2)>RIGHT($K73,2),AX73,0)) -> 0 | BU73: =+IF($K73="Ongoing",AY73,IF(RIGHT($K73,2)=RIGHT(BU$39,2),SUM($AV73:AY73),0)+IF(RIGHT(BU$39,2)>RIGHT($K73,2),AY73,0)) -> 0 | BV73: =+IF($K73="Ongoing",AZ73,IF(RIGHT($K73,2)=RIGHT(BV$39,2),SUM($AV73:AZ73),0)+IF(RIGHT(BV$39,2)>RIGHT($K73,2),AZ73,0)) -> 0 | BW73: =+IF($K73="Ongoing",BA73,IF(RIGHT($K73,2)=RIGHT(BW$39,2),SUM($AV73:BA73),0)+IF(RIGHT(BW$39,2)>RIGHT($K73,2),BA73,0)) -> 0 | BX73: =+IF($K73="Ongoing",BB73,IF(RIGHT($K73,2)=RIGHT(BX$39,2),SUM($AV73:BB73),0)+IF(RIGHT(BX$39,2)>RIGHT($K73,2),BB73,0)) -> 0 | BY73: =+IF($K73="Ongoing",BC73,IF(RIGHT($K73,2)=RIGHT(BY$39,2),SUM($AV73:BC73),0)+IF(RIGHT(BY$39,2)>RIGHT($K73,2),BC73,0)) -> 0 | BZ73: =+IF($K73="Ongoing",BD73,IF(RIGHT($K73,2)=RIGHT(BZ$39,2),SUM($AV73:BD73),0)+IF(RIGHT(BZ$39,2)>RIGHT($K73,2),BD73,0)) -> 0 | CA73: =+IF($K73="Ongoing",BE73,IF(RIGHT($K73,2)=RIGHT(CA$39,2),SUM($AV73:BE73),0)+IF(RIGHT(CA$39,2)>RIGHT($K73,2),BE73,0)) -> 0 | CC73: =+O73*KeyAssumptionsPriceControl_FO!X$15 -> 0.05072071541 | CD73: =+P73*KeyAssumptionsPriceControl_FO!Y$15 -> 0.05187671048 | CE73: =+Q73*KeyAssumptionsPriceControl_FO!Z$15 -> 0 | CF73: =+R73*KeyAssumptionsPriceControl_FO!AA$15 -> 0 | CG73: =+S73*KeyAssumptionsPriceControl_FO!AB$15 -> 0 | CH73: =+T73*KeyAssumptionsPriceControl_FO!AC$15 -> 0 | CI73: =+U73*KeyAssumptionsPriceControl_FO!AD$15 -> 0 | CJ73: =+V73*KeyAssumptionsPriceControl_FO!AE$15 -> 0 | CK73: =+W73*KeyAssumptionsPriceControl_FO!AF$15 -> 0 | CL73: =+X73*KeyAssumptionsPriceControl_FO!AG$15 -> 0 | CN73: 0.003622908243 | CO73: 0.01095129581 | CP73: 0.01465677513 | CQ73: 0.01465677513 | CR73: 0.01465677513 | CS73: 0.01465677513 | CT73: 0.01465677513 | CU73: 0.01103386688 | CV73: 0.00370547932 | CW73: 0
C74: Shared Services Imporvement program | E74: Groundwater diversions | F74: Improvements / Compliance | G74: Corporate | H74: Capital Programs / Allocation | I74: 0 | J74: Straight line | K74: Ongoing | L74: 7 | M74: 7 | O74: 0.0006603781511 | P74: 0.0006602434802 | Q74: 0 | R74: 0 | S74: 0 | T74: 0 | U74: 0 | V74: 0 | W74: 0 | X74: 0 | AV74: 0.0006603781511 | AW74: 0.0006602434802 | AX74: 0 | AY74: 0 | AZ74: 0 | BA74: 0 | BB74: 0 | BC74: 0 | BD74: 0 | BE74: 0 | BG74: 4.716986794e-05 | BH74: 0.0001414999845 | BI74: 0.000188660233 | BJ74: 0.000188660233 | BK74: 0.000188660233 | BL74: 0.000188660233 | BM74: 0.000188660233 | BN74: 0.0001414903651 | BO74: 4.716024858e-05 | BP74: 0 | BR74: =+IF($K74="Ongoing",AV74,IF(RIGHT($K74,2)=RIGHT(BR$39,2),SUM($AV74:AV74),0)+IF(RIGHT(BR$39,2)>RIGHT($K74,2),AV74,0)) -> 0.0006603781511 | BS74: =+IF($K74="Ongoing",AW74,IF(RIGHT($K74,2)=RIGHT(BS$39,2),SUM($AV74:AW74),0)+IF(RIGHT(BS$39,2)>RIGHT($K74,2),AW74,0)) -> 0.0006602434802 | BT74: =+IF($K74="Ongoing",AX74,IF(RIGHT($K74,2)=RIGHT(BT$39,2),SUM($AV74:AX74),0)+IF(RIGHT(BT$39,2)>RIGHT($K74,2),AX74,0)) -> 0 | BU74: =+IF($K74="Ongoing",AY74,IF(RIGHT($K74,2)=RIGHT(BU$39,2),SUM($AV74:AY74),0)+IF(RIGHT(BU$39,2)>RIGHT($K74,2),AY74,0)) -> 0 | BV74: =+IF($K74="Ongoing",AZ74,IF(RIGHT($K74,2)=RIGHT(BV$39,2),SUM($AV74:AZ74),0)+IF(RIGHT(BV$39,2)>RIGHT($K74,2),AZ74,0)) -> 0 | BW74: =+IF($K74="Ongoing",BA74,IF(RIGHT($K74,2)=RIGHT(BW$39,2),SUM($AV74:BA74),0)+IF(RIGHT(BW$39,2)>RIGHT($K74,2),BA74,0)) -> 0 | BX74: =+IF($K74="Ongoing",BB74,IF(RIGHT($K74,2)=RIGHT(BX$39,2),SUM($AV74:BB74),0)+IF(RIGHT(BX$39,2)>RIGHT($K74,2),BB74,0)) -> 0 | BY74: =+IF($K74="Ongoing",BC74,IF(RIGHT($K74,2)=RIGHT(BY$39,2),SUM($AV74:BC74),0)+IF(RIGHT(BY$39,2)>RIGHT($K74,2),BC74,0)) -> 0 | BZ74: =+IF($K74="Ongoing",BD74,IF(RIGHT($K74,2)=RIGHT(BZ$39,2),SUM($AV74:BD74),0)+IF(RIGHT(BZ$39,2)>RIGHT($K74,2),BD74,0)) -> 0 | CA74: =+IF($K74="Ongoing",BE74,IF(RIGHT($K74,2)=RIGHT(CA$39,2),SUM($AV74:BE74),0)+IF(RIGHT(CA$39,2)>RIGHT($K74,2),BE74,0)) -> 0 | CC74: =+O74*KeyAssumptionsPriceControl_FO!X$15 -> 0.0006755668486 | CD74: =+P74*KeyAssumptionsPriceControl_FO!Y$15 -> 0.0006909639491 | CE74: =+Q74*KeyAssumptionsPriceControl_FO!Z$15 -> 0 | CF74: =+R74*KeyAssumptionsPriceControl_FO!AA$15 -> 0 | CG74: =+S74*KeyAssumptionsPriceControl_FO!AB$15 -> 0 | CH74: =+T74*KeyAssumptionsPriceControl_FO!AC$15 -> 0 | CI74: =+U74*KeyAssumptionsPriceControl_FO!AD$15 -> 0 | CJ74: =+V74*KeyAssumptionsPriceControl_FO!AE$15 -> 0 | CK74: =+W74*KeyAssumptionsPriceControl_FO!AF$15 -> 0 | CL74: =+X74*KeyAssumptionsPriceControl_FO!AG$15 -> 0 | CN74: 4.82547749e-05 | CO74: 0.0001458641176 | CP74: 0.0001952186854 | CQ74: 0.0001952186854 | CR74: 0.0001952186854 | CS74: 0.0001952186854 | CT74: 0.0001952186854 | CU74: 0.0001469639105 | CV74: 4.935456779e-05 | CW74: 0
C75: Shared Services Imporvement program | E75: Bulk water services | F75: Improvements / Compliance | G75: Corporate | H75: Capital Programs / Allocation | I75: 0 | J75: Straight line | K75: Ongoing | L75: 7 | M75: 7 | O75: 0.02501307932 | P75: 0.0250079784 | Q75: 0 | R75: 0 | S75: 0 | T75: 0 | U75: 0 | V75: 0 | W75: 0 | X75: 0 | AV75: 0.02501307932 | AW75: 0.0250079784 | AX75: 0 | AY75: 0 | AZ75: 0 | BA75: 0 | BB75: 0 | BC75: 0 | BD75: 0 | BE75: 0 | BG75: 0.001786648523 | BH75: 0.005359581217 | BI75: 0.007145865388 | BJ75: 0.007145865388 | BK75: 0.007145865388 | BL75: 0.007145865388 | BM75: 0.007145865388 | BN75: 0.005359216866 | BO75: 0.001786284171 | BP75: 0 | BR75: =+IF($K75="Ongoing",AV75,IF(RIGHT($K75,2)=RIGHT(BR$39,2),SUM($AV75:AV75),0)+IF(RIGHT(BR$39,2)>RIGHT($K75,2),AV75,0)) -> 0.02501307932 | BS75: =+IF($K75="Ongoing",AW75,IF(RIGHT($K75,2)=RIGHT(BS$39,2),SUM($AV75:AW75),0)+IF(RIGHT(BS$39,2)>RIGHT($K75,2),AW75,0)) -> 0.0250079784 | BT75: =+IF($K75="Ongoing",AX75,IF(RIGHT($K75,2)=RIGHT(BT$39,2),SUM($AV75:AX75),0)+IF(RIGHT(BT$39,2)>RIGHT($K75,2),AX75,0)) -> 0 | BU75: =+IF($K75="Ongoing",AY75,IF(RIGHT($K75,2)=RIGHT(BU$39,2),SUM($AV75:AY75),0)+IF(RIGHT(BU$39,2)>RIGHT($K75,2),AY75,0)) -> 0 | BV75: =+IF($K75="Ongoing",AZ75,IF(RIGHT($K75,2)=RIGHT(BV$39,2),SUM($AV75:AZ75),0)+IF(RIGHT(BV$39,2)>RIGHT($K75,2),AZ75,0)) -> 0 | BW75: =+IF($K75="Ongoing",BA75,IF(RIGHT($K75,2)=RIGHT(BW$39,2),SUM($AV75:BA75),0)+IF(RIGHT(BW$39,2)>RIGHT($K75,2),BA75,0)) -> 0 | BX75: =+IF($K75="Ongoing",BB75,IF(RIGHT($K75,2)=RIGHT(BX$39,2),SUM($AV75:BB75),0)+IF(RIGHT(BX$39,2)>RIGHT($K75,2),BB75,0)) -> 0 | BY75: =+IF($K75="Ongoing",BC75,IF(RIGHT($K75,2)=RIGHT(BY$39,2),SUM($AV75:BC75),0)+IF(RIGHT(BY$39,2)>RIGHT($K75,2),BC75,0)) -> 0 | BZ75: =+IF($K75="Ongoing",BD75,IF(RIGHT($K75,2)=RIGHT(BZ$39,2),SUM($AV75:BD75),0)+IF(RIGHT(BZ$39,2)>RIGHT($K75,2),BD75,0)) -> 0 | CA75: =+IF($K75="Ongoing",BE75,IF(RIGHT($K75,2)=RIGHT(CA$39,2),SUM($AV75:BE75),0)+IF(RIGHT(CA$39,2)>RIGHT($K75,2),BE75,0)) -> 0 | CC75: =+O75*KeyAssumptionsPriceControl_FO!X$15 -> 0.02558838014 | CD75: =+P75*KeyAssumptionsPriceControl_FO!Y$15 -> 0.02617157463 | CE75: =+Q75*KeyAssumptionsPriceControl_FO!Z$15 -> 0 | CF75: =+R75*KeyAssumptionsPriceControl_FO!AA$15 -> 0 | CG75: =+S75*KeyAssumptionsPriceControl_FO!AB$15 -> 0 | CH75: =+T75*KeyAssumptionsPriceControl_FO!AC$15 -> 0 | CI75: =+U75*KeyAssumptionsPriceControl_FO!AD$15 -> 0 | CJ75: =+V75*KeyAssumptionsPriceControl_FO!AE$15 -> 0 | CK75: =+W75*KeyAssumptionsPriceControl_FO!AF$15 -> 0 | CL75: =+X75*KeyAssumptionsPriceControl_FO!AG$15 -> 0 | CN75: 0.001827741439 | CO75: 0.005524881065 | CP75: 0.007394279253 | CQ75: 0.007394279253 | CR75: 0.007394279253 | CS75: 0.007394279253 | CT75: 0.007394279253 | CU75: 0.005566537814 | CV75: 0.001869398188 | CW75: 0
C76: [Capex Item - Significant Project / Capital Program / Other Capex] | E76: [Service] | F76: [Major Cost Driver] | G76: [Asset category] | H76: [Capital type] | J76: Straight line | K76: [Year finalised?] | AV76: 0 | AW76: 0 | AX76: 0 | AY76: 0 | AZ76: 0 | BA76: 0 | BB76: 0 | BC76: 0 | BD76: 0 | BE76: 0 | BG76: 0 | BH76: 0 | BI76: 0 | BJ76: 0 | BK76: 0 | BL76: 0 | BM76: 0 | BN76: 0 | BO76: 0 | BP76: 0 | BR76: =+IF($K76="Ongoing",AV76,IF(RIGHT($K76,2)=RIGHT(BR$39,2),SUM($AV76:AV76),0)+IF(RIGHT(BR$39,2)>RIGHT($K76,2),AV76,0)) -> 0 | BS76: =+IF($K76="Ongoing",AW76,IF(RIGHT($K76,2)=RIGHT(BS$39,2),SUM($AV76:AW76),0)+IF(RIGHT(BS$39,2)>RIGHT($K76,2),AW76,0)) -> 0 | BT76: =+IF($K76="Ongoing",AX76,IF(RIGHT($K76,2)=RIGHT(BT$39,2),SUM($AV76:AX76),0)+IF(RIGHT(BT$39,2)>RIGHT($K76,2),AX76,0)) -> 0 | BU76: =+IF($K76="Ongoing",AY76,IF(RIGHT($K76,2)=RIGHT(BU$39,2),SUM($AV76:AY76),0)+IF(RIGHT(BU$39,2)>RIGHT($K76,2),AY76,0)) -> 0 | BV76: =+IF($K76="Ongoing",AZ76,IF(RIGHT($K76,2)=RIGHT(BV$39,2),SUM($AV76:AZ76),0)+IF(RIGHT(BV$39,2)>RIGHT($K76,2),AZ76,0)) -> 0 | BW76: =+IF($K76="Ongoing",BA76,IF(RIGHT($K76,2)=RIGHT(BW$39,2),SUM($AV76:BA76),0)+IF(RIGHT(BW$39,2)>RIGHT($K76,2),BA76,0)) -> 0 | BX76: =+IF($K76="Ongoing",BB76,IF(RIGHT($K76,2)=RIGHT(BX$39,2),SUM($AV76:BB76),0)+IF(RIGHT(BX$39,2)>RIGHT($K76,2),BB76,0)) -> 0 | BY76: =+IF($K76="Ongoing",BC76,IF(RIGHT($K76,2)=RIGHT(BY$39,2),SUM($AV76:BC76),0)+IF(RIGHT(BY$39,2)>RIGHT($K76,2),BC76,0)) -> 0 | BZ76: =+IF($K76="Ongoing",BD76,IF(RIGHT($K76,2)=RIGHT(BZ$39,2),SUM($AV76:BD76),0)+IF(RIGHT(BZ$39,2)>RIGHT($K76,2),BD76,0)) -> 0 | CA76: =+IF($K76="Ongoing",BE76,IF(RIGHT($K76,2)=RIGHT(CA$39,2),SUM($AV76:BE76),0)+IF(RIGHT(CA$39,2)>RIGHT($K76,2),BE76,0)) -> 0 | CC76: =+O76*KeyAssumptionsPriceControl_FO!X$15 -> 0 | CD76: =+P76*KeyAssumptionsPriceControl_FO!Y$15 -> 0 | CE76: =+Q76*KeyAssumptionsPriceControl_FO!Z$15 -> 0 | CF76: =+R76*KeyAssumptionsPriceControl_FO!AA$15 -> 0 | CG76: =+S76*KeyAssumptionsPriceControl_FO!AB$15 -> 0 | CH76: =+T76*KeyAssumptionsPriceControl_FO!AC$15 -> 0 | CI76: =+U76*KeyAssumptionsPriceControl_FO!AD$15 -> 0 | CJ76: =+V76*KeyAssumptionsPriceControl_FO!AE$15 -> 0 | CK76: =+W76*KeyAssumptionsPriceControl_FO!AF$15 -> 0 | CL76: =+X76*KeyAssumptionsPriceControl_FO!AG$15 -> 0 | CN76: 0 | CO76: 0 | CP76: 0 | CQ76: 0 | CR76: 0 | CS76: 0 | CT76: 0 | CU76: 0 | CV76: 0 | CW76: 0
C77: [Capex Item - Significant Project / Capital Program / Other Capex] | E77: [Service] | F77: [Major Cost Driver] | G77: [Asset category] | H77: [Capital type] | J77: Straight line | K77: [Year finalised?] | AV77: 0 | AW77: 0 | AX77: 0 | AY77: 0 | AZ77: 0 | BA77: 0 | BB77: 0 | BC77: 0 | BD77: 0 | BE77: 0 | BG77: 0 | BH77: 0 | BI77: 0 | BJ77: 0 | BK77: 0 | BL77: 0 | BM77: 0 | BN77: 0 | BO77: 0 | BP77: 0 | BR77: =+IF($K77="Ongoing",AV77,IF(RIGHT($K77,2)=RIGHT(BR$39,2),SUM($AV77:AV77),0)+IF(RIGHT(BR$39,2)>RIGHT($K77,2),AV77,0)) -> 0 | BS77: =+IF($K77="Ongoing",AW77,IF(RIGHT($K77,2)=RIGHT(BS$39,2),SUM($AV77:AW77),0)+IF(RIGHT(BS$39,2)>RIGHT($K77,2),AW77,0)) -> 0 | BT77: =+IF($K77="Ongoing",AX77,IF(RIGHT($K77,2)=RIGHT(BT$39,2),SUM($AV77:AX77),0)+IF(RIGHT(BT$39,2)>RIGHT($K77,2),AX77,0)) -> 0 | BU77: =+IF($K77="Ongoing",AY77,IF(RIGHT($K77,2)=RIGHT(BU$39,2),SUM($AV77:AY77),0)+IF(RIGHT(BU$39,2)>RIGHT($K77,2),AY77,0)) -> 0 | BV77: =+IF($K77="Ongoing",AZ77,IF(RIGHT($K77,2)=RIGHT(BV$39,2),SUM($AV77:AZ77),0)+IF(RIGHT(BV$39,2)>RIGHT($K77,2),AZ77,0)) -> 0 | BW77: =+IF($K77="Ongoing",BA77,IF(RIGHT($K77,2)=RIGHT(BW$39,2),SUM($AV77:BA77),0)+IF(RIGHT(BW$39,2)>RIGHT($K77,2),BA77,0)) -> 0 | BX77: =+IF($K77="Ongoing",BB77,IF(RIGHT($K77,2)=RIGHT(BX$39,2),SUM($AV77:BB77),0)+IF(RIGHT(BX$39,2)>RIGHT($K77,2),BB77,0)) -> 0 | BY77: =+IF($K77="Ongoing",BC77,IF(RIGHT($K77,2)=RIGHT(BY$39,2),SUM($AV77:BC77),0)+IF(RIGHT(BY$39,2)>RIGHT($K77,2),BC77,0)) -> 0 | BZ77: =+IF($K77="Ongoing",BD77,IF(RIGHT($K77,2)=RIGHT(BZ$39,2),SUM($AV77:BD77),0)+IF(RIGHT(BZ$39,2)>RIGHT($K77,2),BD77,0)) -> 0 | CA77: =+IF($K77="Ongoing",BE77,IF(RIGHT($K77,2)=RIGHT(CA$39,2),SUM($AV77:BE77),0)+IF(RIGHT(CA$39,2)>RIGHT($K77,2),BE77,0)) -> 0 | CC77: =+O77*KeyAssumptionsPriceControl_FO!X$15 -> 0 | CD77: =+P77*KeyAssumptionsPriceControl_FO!Y$15 -> 0 | CE77: =+Q77*KeyAssumptionsPriceControl_FO!Z$15 -> 0 | CF77: =+R77*KeyAssumptionsPriceControl_FO!AA$15 -> 0 | CG77: =+S77*KeyAssumptionsPriceControl_FO!AB$15 -> 0 | CH77: =+T77*KeyAssumptionsPriceControl_FO!AC$15 -> 0 | CI77: =+U77*KeyAssumptionsPriceControl_FO!AD$15 -> 0 | CJ77: =+V77*KeyAssumptionsPriceControl_FO!AE$15 -> 0 | CK77: =+W77*KeyAssumptionsPriceControl_FO!AF$15 -> 0 | CL77: =+X77*KeyAssumptionsPriceControl_FO!AG$15 -> 0 | CN77: 0 | CO77: 0 | CP77: 0 | CQ77: 0 | CR77: 0 | CS77: 0 | CT77: 0 | CU77: 0 | CV77: 0 | CW77: 0
C78: [Capex Item - Significant Project / Capital Program / Other Capex] | E78: [Service] | F78: [Major Cost Driver] | G78: [Asset category] | H78: [Capital type] | J78: Straight line | K78: [Year finalised?] | AV78: 0 | AW78: 0 | AX78: 0 | AY78: 0 | AZ78: 0 | BA78: 0 | BB78: 0 | BC78: 0 | BD78: 0 | BE78: 0 | BG78: 0 | BH78: 0 | BI78: 0 | BJ78: 0 | BK78: 0 | BL78: 0 | BM78: 0 | BN78: 0 | BO78: 0 | BP78: 0 | BR78: =+IF($K78="Ongoing",AV78,IF(RIGHT($K78,2)=RIGHT(BR$39,2),SUM($AV78:AV78),0)+IF(RIGHT(BR$39,2)>RIGHT($K78,2),AV78,0)) -> 0 | BS78: =+IF($K78="Ongoing",AW78,IF(RIGHT($K78,2)=RIGHT(BS$39,2),SUM($AV78:AW78),0)+IF(RIGHT(BS$39,2)>RIGHT($K78,2),AW78,0)) -> 0 | BT78: =+IF($K78="Ongoing",AX78,IF(RIGHT($K78,2)=RIGHT(BT$39,2),SUM($AV78:AX78),0)+IF(RIGHT(BT$39,2)>RIGHT($K78,2),AX78,0)) -> 0 | BU78: =+IF($K78="Ongoing",AY78,IF(RIGHT($K78,2)=RIGHT(BU$39,2),SUM($AV78:AY78),0)+IF(RIGHT(BU$39,2)>RIGHT($K78,2),AY78,0)) -> 0 | BV78: =+IF($K78="Ongoing",AZ78,IF(RIGHT($K78,2)=RIGHT(BV$39,2),SUM($AV78:AZ78),0)+IF(RIGHT(BV$39,2)>RIGHT($K78,2),AZ78,0)) -> 0 | BW78: =+IF($K78="Ongoing",BA78,IF(RIGHT($K78,2)=RIGHT(BW$39,2),SUM($AV78:BA78),0)+IF(RIGHT(BW$39,2)>RIGHT($K78,2),BA78,0)) -> 0 | BX78: =+IF($K78="Ongoing",BB78,IF(RIGHT($K78,2)=RIGHT(BX$39,2),SUM($AV78:BB78),0)+IF(RIGHT(BX$39,2)>RIGHT($K78,2),BB78,0)) -> 0 | BY78: =+IF($K78="Ongoing",BC78,IF(RIGHT($K78,2)=RIGHT(BY$39,2),SUM($AV78:BC78),0)+IF(RIGHT(BY$39,2)>RIGHT($K78,2),BC78,0)) -> 0 | BZ78: =+IF($K78="Ongoing",BD78,IF(RIGHT($K78,2)=RIGHT(BZ$39,2),SUM($AV78:BD78),0)+IF(RIGHT(BZ$39,2)>RIGHT($K78,2),BD78,0)) -> 0 | CA78: =+IF($K78="Ongoing",BE78,IF(RIGHT($K78,2)=RIGHT(CA$39,2),SUM($AV78:BE78),0)+IF(RIGHT(CA$39,2)>RIGHT($K78,2),BE78,0)) -> 0 | CC78: =+O78*KeyAssumptionsPriceControl_FO!X$15 -> 0 | CD78: =+P78*KeyAssumptionsPriceControl_FO!Y$15 -> 0 | CE78: =+Q78*KeyAssumptionsPriceControl_FO!Z$15 -> 0 | CF78: =+R78*KeyAssumptionsPriceControl_FO!AA$15 -> 0 | CG78: =+S78*KeyAssumptionsPriceControl_FO!AB$15 -> 0 | CH78: =+T78*KeyAssumptionsPriceControl_FO!AC$15 -> 0 | CI78: =+U78*KeyAssumptionsPriceControl_FO!AD$15 -> 0 | CJ78: =+V78*KeyAssumptionsPriceControl_FO!AE$15 -> 0 | CK78: =+W78*KeyAssumptionsPriceControl_FO!AF$15 -> 0 | CL78: =+X78*KeyAssumptionsPriceControl_FO!AG$15 -> 0 | CN78: 0 | CO78: 0 | CP78: 0 | CQ78: 0 | CR78: 0 | CS78: 0 | CT78: 0 | CU78: 0 | CV78: 0 | CW78: 0
C79: [Capex Item - Significant Project / Capital Program / Other Capex] | E79: [Service] | F79: [Major Cost Driver] | G79: [Asset category] | H79: [Capital type] | J79: Straight line | K79: [Year finalised?] | AV79: 0 | AW79: 0 | AX79: 0 | AY79: 0 | AZ79: 0 | BA79: 0 | BB79: 0 | BC79: 0 | BD79: 0 | BE79: 0 | BG79: 0 | BH79: 0 | BI79: 0 | BJ79: 0 | BK79: 0 | BL79: 0 | BM79: 0 | BN79: 0 | BO79: 0 | BP79: 0 | BR79: =+IF($K79="Ongoing",AV79,IF(RIGHT($K79,2)=RIGHT(BR$39,2),SUM($AV79:AV79),0)+IF(RIGHT(BR$39,2)>RIGHT($K79,2),AV79,0)) -> 0 | BS79: =+IF($K79="Ongoing",AW79,IF(RIGHT($K79,2)=RIGHT(BS$39,2),SUM($AV79:AW79),0)+IF(RIGHT(BS$39,2)>RIGHT($K79,2),AW79,0)) -> 0 | BT79: =+IF($K79="Ongoing",AX79,IF(RIGHT($K79,2)=RIGHT(BT$39,2),SUM($AV79:AX79),0)+IF(RIGHT(BT$39,2)>RIGHT($K79,2),AX79,0)) -> 0 | BU79: =+IF($K79="Ongoing",AY79,IF(RIGHT($K79,2)=RIGHT(BU$39,2),SUM($AV79:AY79),0)+IF(RIGHT(BU$39,2)>RIGHT($K79,2),AY79,0)) -> 0 | BV79: =+IF($K79="Ongoing",AZ79,IF(RIGHT($K79,2)=RIGHT(BV$39,2),SUM($AV79:AZ79),0)+IF(RIGHT(BV$39,2)>RIGHT($K79,2),AZ79,0)) -> 0 | BW79: =+IF($K79="Ongoing",BA79,IF(RIGHT($K79,2)=RIGHT(BW$39,2),SUM($AV79:BA79),0)+IF(RIGHT(BW$39,2)>RIGHT($K79,2),BA79,0)) -> 0 | BX79: =+IF($K79="Ongoing",BB79,IF(RIGHT($K79,2)=RIGHT(BX$39,2),SUM($AV79:BB79),0)+IF(RIGHT(BX$39,2)>RIGHT($K79,2),BB79,0)) -> 0 | BY79: =+IF($K79="Ongoing",BC79,IF(RIGHT($K79,2)=RIGHT(BY$39,2),SUM($AV79:BC79),0)+IF(RIGHT(BY$39,2)>RIGHT($K79,2),BC79,0)) -> 0 | BZ79: =+IF($K79="Ongoing",BD79,IF(RIGHT($K79,2)=RIGHT(BZ$39,2),SUM($AV79:BD79),0)+IF(RIGHT(BZ$39,2)>RIGHT($K79,2),BD79,0)) -> 0 | CA79: =+IF($K79="Ongoing",BE79,IF(RIGHT($K79,2)=RIGHT(CA$39,2),SUM($AV79:BE79),0)+IF(RIGHT(CA$39,2)>RIGHT($K79,2),BE79,0)) -> 0 | CC79: =+O79*KeyAssumptionsPriceControl_FO!X$15 -> 0 | CD79: =+P79*KeyAssumptionsPriceControl_FO!Y$15 -> 0 | CE79: =+Q79*KeyAssumptionsPriceControl_FO!Z$15 -> 0 | CF79: =+R79*KeyAssumptionsPriceControl_FO!AA$15 -> 0 | CG79: =+S79*KeyAssumptionsPriceControl_FO!AB$15 -> 0 | CH79: =+T79*KeyAssumptionsPriceControl_FO!AC$15 -> 0 | CI79: =+U79*KeyAssumptionsPriceControl_FO!AD$15 -> 0 | CJ79: =+V79*KeyAssumptionsPriceControl_FO!AE$15 -> 0 | CK79: =+W79*KeyAssumptionsPriceControl_FO!AF$15 -> 0 | CL79: =+X79*KeyAssumptionsPriceControl_FO!AG$15 -> 0 | CN79: 0 | CO79: 0 | CP79: 0 | CQ79: 0 | CR79: 0 | CS79: 0 | CT79: 0 | CU79: 0 | CV79: 0 | CW79: 0
C80: [Capex Item - Significant Project / Capital Program / Other Capex] | E80: [Service] | F80: [Major Cost Driver] | G80: [Asset category] | H80: [Capital type] | J80: Straight line | K80: [Year finalised?] | AV80: 0 | AW80: 0 | AX80: 0 | AY80: 0 | AZ80: 0 | BA80: 0 | BB80: 0 | BC80: 0 | BD80: 0 | BE80: 0 | BG80: 0 | BH80: 0 | BI80: 0 | BJ80: 0 | BK80: 0 | BL80: 0 | BM80: 0 | BN80: 0 | BO80: 0 | BP80: 0 | BR80: =+IF($K80="Ongoing",AV80,IF(RIGHT($K80,2)=RIGHT(BR$39,2),SUM($AV80:AV80),0)+IF(RIGHT(BR$39,2)>RIGHT($K80,2),AV80,0)) -> 0 | BS80: =+IF($K80="Ongoing",AW80,IF(RIGHT($K80,2)=RIGHT(BS$39,2),SUM($AV80:AW80),0)+IF(RIGHT(BS$39,2)>RIGHT($K80,2),AW80,0)) -> 0 | BT80: =+IF($K80="Ongoing",AX80,IF(RIGHT($K80,2)=RIGHT(BT$39,2),SUM($AV80:AX80),0)+IF(RIGHT(BT$39,2)>RIGHT($K80,2),AX80,0)) -> 0 | BU80: =+IF($K80="Ongoing",AY80,IF(RIGHT($K80,2)=RIGHT(BU$39,2),SUM($AV80:AY80),0)+IF(RIGHT(BU$39,2)>RIGHT($K80,2),AY80,0)) -> 0 | BV80: =+IF($K80="Ongoing",AZ80,IF(RIGHT($K80,2)=RIGHT(BV$39,2),SUM($AV80:AZ80),0)+IF(RIGHT(BV$39,2)>RIGHT($K80,2),AZ80,0)) -> 0 | BW80: =+IF($K80="Ongoing",BA80,IF(RIGHT($K80,2)=RIGHT(BW$39,2),SUM($AV80:BA80),0)+IF(RIGHT(BW$39,2)>RIGHT($K80,2),BA80,0)) -> 0 | BX80: =+IF($K80="Ongoing",BB80,IF(RIGHT($K80,2)=RIGHT(BX$39,2),SUM($AV80:BB80),0)+IF(RIGHT(BX$39,2)>RIGHT($K80,2),BB80,0)) -> 0 | BY80: =+IF($K80="Ongoing",BC80,IF(RIGHT($K80,2)=RIGHT(BY$39,2),SUM($AV80:BC80),0)+IF(RIGHT(BY$39,2)>RIGHT($K80,2),BC80,0)) -> 0 | BZ80: =+IF($K80="Ongoing",BD80,IF(RIGHT($K80,2)=RIGHT(BZ$39,2),SUM($AV80:BD80),0)+IF(RIGHT(BZ$39,2)>RIGHT($K80,2),BD80,0)) -> 0 | CA80: =+IF($K80="Ongoing",BE80,IF(RIGHT($K80,2)=RIGHT(CA$39,2),SUM($AV80:BE80),0)+IF(RIGHT(CA$39,2)>RIGHT($K80,2),BE80,0)) -> 0 | CC80: =+O80*KeyAssumptionsPriceControl_FO!X$15 -> 0 | CD80: =+P80*KeyAssumptionsPriceControl_FO!Y$15 -> 0 | CE80: =+Q80*KeyAssumptionsPriceControl_FO!Z$15 -> 0 | CF80: =+R80*KeyAssumptionsPriceControl_FO!AA$15 -> 0 | CG80: =+S80*KeyAssumptionsPriceControl_FO!AB$15 -> 0 | CH80: =+T80*KeyAssumptionsPriceControl_FO!AC$15 -> 0 | CI80: =+U80*KeyAssumptionsPriceControl_FO!AD$15 -> 0 | CJ80: =+V80*KeyAssumptionsPriceControl_FO!AE$15 -> 0 | CK80: =+W80*KeyAssumptionsPriceControl_FO!AF$15 -> 0 | CL80: =+X80*KeyAssumptionsPriceControl_FO!AG$15 -> 0 | CN80: 0 | CO80: 0 | CP80: 0 | CQ80: 0 | CR80: 0 | CS80: 0 | CT80: 0 | CU80: 0 | CV80: 0 | CW80: 0
C81: [Capex Item - Significant Project / Capital Program / Other Capex] | E81: [Service] | F81: [Major Cost Driver] | G81: [Asset category] | H81: [Capital type] | J81: Straight line | K81: [Year finalised?] | AV81: 0 | AW81: 0 | AX81: 0 | AY81: 0 | AZ81: 0 | BA81: 0 | BB81: 0 | BC81: 0 | BD81: 0 | BE81: 0 | BG81: 0 | BH81: 0 | BI81: 0 | BJ81: 0 | BK81: 0 | BL81: 0 | BM81: 0 | BN81: 0 | BO81: 0 | BP81: 0 | BR81: =+IF($K81="Ongoing",AV81,IF(RIGHT($K81,2)=RIGHT(BR$39,2),SUM($AV81:AV81),0)+IF(RIGHT(BR$39,2)>RIGHT($K81,2),AV81,0)) -> 0 | BS81: =+IF($K81="Ongoing",AW81,IF(RIGHT($K81,2)=RIGHT(BS$39,2),SUM($AV81:AW81),0)+IF(RIGHT(BS$39,2)>RIGHT($K81,2),AW81,0)) -> 0 | BT81: =+IF($K81="Ongoing",AX81,IF(RIGHT($K81,2)=RIGHT(BT$39,2),SUM($AV81:AX81),0)+IF(RIGHT(BT$39,2)>RIGHT($K81,2),AX81,0)) -> 0 | BU81: =+IF($K81="Ongoing",AY81,IF(RIGHT($K81,2)=RIGHT(BU$39,2),SUM($AV81:AY81),0)+IF(RIGHT(BU$39,2)>RIGHT($K81,2),AY81,0)) -> 0 | BV81: =+IF($K81="Ongoing",AZ81,IF(RIGHT($K81,2)=RIGHT(BV$39,2),SUM($AV81:AZ81),0)+IF(RIGHT(BV$39,2)>RIGHT($K81,2),AZ81,0)) -> 0 | BW81: =+IF($K81="Ongoing",BA81,IF(RIGHT($K81,2)=RIGHT(BW$39,2),SUM($AV81:BA81),0)+IF(RIGHT(BW$39,2)>RIGHT($K81,2),BA81,0)) -> 0 | BX81: =+IF($K81="Ongoing",BB81,IF(RIGHT($K81,2)=RIGHT(BX$39,2),SUM($AV81:BB81),0)+IF(RIGHT(BX$39,2)>RIGHT($K81,2),BB81,0)) -> 0 | BY81: =+IF($K81="Ongoing",BC81,IF(RIGHT($K81,2)=RIGHT(BY$39,2),SUM($AV81:BC81),0)+IF(RIGHT(BY$39,2)>RIGHT($K81,2),BC81,0)) -> 0 | BZ81: =+IF($K81="Ongoing",BD81,IF(RIGHT($K81,2)=RIGHT(BZ$39,2),SUM($AV81:BD81),0)+IF(RIGHT(BZ$39,2)>RIGHT($K81,2),BD81,0)) -> 0 | CA81: =+IF($K81="Ongoing",BE81,IF(RIGHT($K81,2)=RIGHT(CA$39,2),SUM($AV81:BE81),0)+IF(RIGHT(CA$39,2)>RIGHT($K81,2),BE81,0)) -> 0 | CC81: =+O81*KeyAssumptionsPriceControl_FO!X$15 -> 0 | CD81: =+P81*KeyAssumptionsPriceControl_FO!Y$15 -> 0 | CE81: =+Q81*KeyAssumptionsPriceControl_FO!Z$15 -> 0 | CF81: =+R81*KeyAssumptionsPriceControl_FO!AA$15 -> 0 | CG81: =+S81*KeyAssumptionsPriceControl_FO!AB$15 -> 0 | CH81: =+T81*KeyAssumptionsPriceControl_FO!AC$15 -> 0 | CI81: =+U81*KeyAssumptionsPriceControl_FO!AD$15 -> 0 | CJ81: =+V81*KeyAssumptionsPriceControl_FO!AE$15 -> 0 | CK81: =+W81*KeyAssumptionsPriceControl_FO!AF$15 -> 0 | CL81: =+X81*KeyAssumptionsPriceControl_FO!AG$15 -> 0 | CN81: 0 | CO81: 0 | CP81: 0 | CQ81: 0 | CR81: 0 | CS81: 0 | CT81: 0 | CU81: 0 | CV81: 0 | CW81: 0
C82: [Capex Item - Significant Project / Capital Program / Other Capex] | E82: [Service] | F82: [Major Cost Driver] | G82: [Asset category] | H82: [Capital type] | J82: Straight line | K82: [Year finalised?] | AV82: 0 | AW82: =+P82-AA82-AL82 -> 0 | AX82: 0 | AY82: 0 | AZ82: 0 | BA82: 0 | BB82: 0 | BC82: 0 | BD82: 0 | BE82: 0 | BG82: 0 | BH82: 0 | BI82: 0 | BJ82: 0 | BK82: 0 | BL82: 0 | BM82: 0 | BN82: 0 | BO82: 0 | BP82: 0 | BR82: =+IF($K82="Ongoing",AV82,IF(RIGHT($K82,2)=RIGHT(BR$39,2),SUM($AV82:AV82),0)+IF(RIGHT(BR$39,2)>RIGHT($K82,2),AV82,0)) -> 0 | BS82: =+IF($K82="Ongoing",AW82,IF(RIGHT($K82,2)=RIGHT(BS$39,2),SUM($AV82:AW82),0)+IF(RIGHT(BS$39,2)>RIGHT($K82,2),AW82,0)) -> 0 | BT82: =+IF($K82="Ongoing",AX82,IF(RIGHT($K82,2)=RIGHT(BT$39,2),SUM($AV82:AX82),0)+IF(RIGHT(BT$39,2)>RIGHT($K82,2),AX82,0)) -> 0 | BU82: =+IF($K82="Ongoing",AY82,IF(RIGHT($K82,2)=RIGHT(BU$39,2),SUM($AV82:AY82),0)+IF(RIGHT(BU$39,2)>RIGHT($K82,2),AY82,0)) -> 0 | BV82: =+IF($K82="Ongoing",AZ82,IF(RIGHT($K82,2)=RIGHT(BV$39,2),SUM($AV82:AZ82),0)+IF(RIGHT(BV$39,2)>RIGHT($K82,2),AZ82,0)) -> 0 | BW82: =+IF($K82="Ongoing",BA82,IF(RIGHT($K82,2)=RIGHT(BW$39,2),SUM($AV82:BA82),0)+IF(RIGHT(BW$39,2)>RIGHT($K82,2),BA82,0)) -> 0 | BX82: =+IF($K82="Ongoing",BB82,IF(RIGHT($K82,2)=RIGHT(BX$39,2),SUM($AV82:BB82),0)+IF(RIGHT(BX$39,2)>RIGHT($K82,2),BB82,0)) -> 0 | BY82: =+IF($K82="Ongoing",BC82,IF(RIGHT($K82,2)=RIGHT(BY$39,2),SUM($AV82:BC82),0)+IF(RIGHT(BY$39,2)>RIGHT($K82,2),BC82,0)) -> 0 | BZ82: =+IF($K82="Ongoing",BD82,IF(RIGHT($K82,2)=RIGHT(BZ$39,2),SUM($AV82:BD82),0)+IF(RIGHT(BZ$39,2)>RIGHT($K82,2),BD82,0)) -> 0 | CA82: =+IF($K82="Ongoing",BE82,IF(RIGHT($K82,2)=RIGHT(CA$39,2),SUM($AV82:BE82),0)+IF(RIGHT(CA$39,2)>RIGHT($K82,2),BE82,0)) -> 0 | CC82: =+O82*KeyAssumptionsPriceControl_FO!X$15 -> 0 | CD82: =+P82*KeyAssumptionsPriceControl_FO!Y$15 -> 0 | CE82: =+Q82*KeyAssumptionsPriceControl_FO!Z$15 -> 0 | CF82: =+R82*KeyAssumptionsPriceControl_FO!AA$15 -> 0 | CG82: =+S82*KeyAssumptionsPriceControl_FO!AB$15 -> 0 | CH82: =+T82*KeyAssumptionsPriceControl_FO!AC$15 -> 0 | CI82: =+U82*KeyAssumptionsPriceControl_FO!AD$15 -> 0 | CJ82: =+V82*KeyAssumptionsPriceControl_FO!AE$15 -> 0 | CK82: =+W82*KeyAssumptionsPriceControl_FO!AF$15 -> 0 | CL82: =+X82*KeyAssumptionsPriceControl_FO!AG$15 -> 0 | CN82: 0 | CO82: 0 | CP82: 0 | CQ82: 0 | CR82: 0 | CS82: 0 | CT82: 0 | CU82: 0 | CV82: 0 | CW82: 0
C83: [Capex Item - Significant Project / Capital Program / Other Capex] | E83: [Service] | F83: [Major Cost Driver] | G83: [Asset category] | H83: [Capital type] | J83: Straight line | K83: [Year finalised?] | AV83: =+O83-Z83-AK83 -> 0 | AW83: 0 | AX83: 0 | AY83: 0 | AZ83: 0 | BA83: 0 | BB83: 0 | BC83: 0 | BD83: 0 | BE83: 0 | BG83: 0 | BH83: 0 | BI83: 0 | BJ83: 0 | BK83: 0 | BL83: 0 | BM83: 0 | BN83: 0 | BO83: 0 | BP83: 0 | BR83: =+IF($K83="Ongoing",AV83,IF(RIGHT($K83,2)=RIGHT(BR$39,2),SUM($AV83:AV83),0)+IF(RIGHT(BR$39,2)>RIGHT($K83,2),AV83,0)) -> 0 | BS83: =+IF($K83="Ongoing",AW83,IF(RIGHT($K83,2)=RIGHT(BS$39,2),SUM($AV83:AW83),0)+IF(RIGHT(BS$39,2)>RIGHT($K83,2),AW83,0)) -> 0 | BT83: =+IF($K83="Ongoing",AX83,IF(RIGHT($K83,2)=RIGHT(BT$39,2),SUM($AV83:AX83),0)+IF(RIGHT(BT$39,2)>RIGHT($K83,2),AX83,0)) -> 0 | BU83: =+IF($K83="Ongoing",AY83,IF(RIGHT($K83,2)=RIGHT(BU$39,2),SUM($AV83:AY83),0)+IF(RIGHT(BU$39,2)>RIGHT($K83,2),AY83,0)) -> 0 | BV83: =+IF($K83="Ongoing",AZ83,IF(RIGHT($K83,2)=RIGHT(BV$39,2),SUM($AV83:AZ83),0)+IF(RIGHT(BV$39,2)>RIGHT($K83,2),AZ83,0)) -> 0 | BW83: =+IF($K83="Ongoing",BA83,IF(RIGHT($K83,2)=RIGHT(BW$39,2),SUM($AV83:BA83),0)+IF(RIGHT(BW$39,2)>RIGHT($K83,2),BA83,0)) -> 0 | BX83: =+IF($K83="Ongoing",BB83,IF(RIGHT($K83,2)=RIGHT(BX$39,2),SUM($AV83:BB83),0)+IF(RIGHT(BX$39,2)>RIGHT($K83,2),BB83,0)) -> 0 | BY83: =+IF($K83="Ongoing",BC83,IF(RIGHT($K83,2)=RIGHT(BY$39,2),SUM($AV83:BC83),0)+IF(RIGHT(BY$39,2)>RIGHT($K83,2),BC83,0)) -> 0 | BZ83: =+IF($K83="Ongoing",BD83,IF(RIGHT($K83,2)=RIGHT(BZ$39,2),SUM($AV83:BD83),0)+IF(RIGHT(BZ$39,2)>RIGHT($K83,2),BD83,0)) -> 0 | CA83: =+IF($K83="Ongoing",BE83,IF(RIGHT($K83,2)=RIGHT(CA$39,2),SUM($AV83:BE83),0)+IF(RIGHT(CA$39,2)>RIGHT($K83,2),BE83,0)) -> 0 | CC83: =+O83*KeyAssumptionsPriceControl_FO!X$15 -> 0 | CD83: =+P83*KeyAssumptionsPriceControl_FO!Y$15 -> 0 | CE83: =+Q83*KeyAssumptionsPriceControl_FO!Z$15 -> 0 | CF83: =+R83*KeyAssumptionsPriceControl_FO!AA$15 -> 0 | CG83: =+S83*KeyAssumptionsPriceControl_FO!AB$15 -> 0 | CH83: =+T83*KeyAssumptionsPriceControl_FO!AC$15 -> 0 | CI83: =+U83*KeyAssumptionsPriceControl_FO!AD$15 -> 0 | CJ83: =+V83*KeyAssumptionsPriceControl_FO!AE$15 -> 0 | CK83: =+W83*KeyAssumptionsPriceControl_FO!AF$15 -> 0 | CL83: =+X83*KeyAssumptionsPriceControl_FO!AG$15 -> 0 | CN83: 0 | CO83: 0 | CP83: 0 | CQ83: 0 | CR83: 0 | CS83: 0 | CT83: 0 | CU83: 0 | CV83: 0 | CW83: 0
C84: [Capex Item - Significant Project / Capital Program / Other Capex] | E84: [Service] | F84: [Major Cost Driver] | G84: [Asset category] | H84: [Capital type] | J84: Straight line | K84: [Year finalised?] | AV84: 0 | AW84: 0 | AX84: 0 | AY84: 0 | AZ84: 0 | BA84: 0 | BB84: 0 | BC84: 0 | BD84: 0 | BE84: 0 | BG84: 0 | BH84: 0 | BI84: 0 | BJ84: 0 | BK84: 0 | BL84: 0 | BM84: 0 | BN84: 0 | BO84: =IF($L84=0,0, IF($L84<=0.5,BZ84, IF(AND($J84="straight line",$L84<1.51),(BY84-((BY84/$L84)*0.5))+BZ84/$L84*0.5, IF($J84="straight line", IF((LEFT(BO$39,4)*1)-INT($L84)<LEFT($BG$39,4)*1,0,((OFFSET(BZ84,0,-INT($L84+0.5),1,1))/$L84)*(IF($L84-INT($L84)>0.5,$L84-0.5-INT($L84),IF($L84-INT($L84)<=0.5,$L84-0.5-INT($L84)+1,0)))) +BZ84/$L84*0.5 +SUM(OFFSET(BZ84,0,MAX(-INT($L84+(0.5-(10^-12))),-BO$40)+1,1,MIN(INT($L84+(0.5-(10^-12))),BO$40)-1))*1/$L84, IF($J84="Declining Balance",-$BG$38,0))))) -> 0 | BP84: 0 | BR84: =+IF($K84="Ongoing",AV84,IF(RIGHT($K84,2)=RIGHT(BR$39,2),SUM($AV84:AV84),0)+IF(RIGHT(BR$39,2)>RIGHT($K84,2),AV84,0)) -> 0 | BS84: =+IF($K84="Ongoing",AW84,IF(RIGHT($K84,2)=RIGHT(BS$39,2),SUM($AV84:AW84),0)+IF(RIGHT(BS$39,2)>RIGHT($K84,2),AW84,0)) -> 0 | BT84: =+IF($K84="Ongoing",AX84,IF(RIGHT($K84,2)=RIGHT(BT$39,2),SUM($AV84:AX84),0)+IF(RIGHT(BT$39,2)>RIGHT($K84,2),AX84,0)) -> 0 | BU84: =+IF($K84="Ongoing",AY84,IF(RIGHT($K84,2)=RIGHT(BU$39,2),SUM($AV84:AY84),0)+IF(RIGHT(BU$39,2)>RIGHT($K84,2),AY84,0)) -> 0 | BV84: =+IF($K84="Ongoing",AZ84,IF(RIGHT($K84,2)=RIGHT(BV$39,2),SUM($AV84:AZ84),0)+IF(RIGHT(BV$39,2)>RIGHT($K84,2),AZ84,0)) -> 0 | BW84: =+IF($K84="Ongoing",BA84,IF(RIGHT($K84,2)=RIGHT(BW$39,2),SUM($AV84:BA84),0)+IF(RIGHT(BW$39,2)>RIGHT($K84,2),BA84,0)) -> 0 | BX84: =+IF($K84="Ongoing",BB84,IF(RIGHT($K84,2)=RIGHT(BX$39,2),SUM($AV84:BB84),0)+IF(RIGHT(BX$39,2)>RIGHT($K84,2),BB84,0)) -> 0 | BY84: =+IF($K84="Ongoing",BC84,IF(RIGHT($K84,2)=RIGHT(BY$39,2),SUM($AV84:BC84),0)+IF(RIGHT(BY$39,2)>RIGHT($K84,2),BC84,0)) -> 0 | BZ84: =+IF($K84="Ongoing",BD84,IF(RIGHT($K84,2)=RIGHT(BZ$39,2),SUM($AV84:BD84),0)+IF(RIGHT(BZ$39,2)>RIGHT($K84,2),BD84,0)) -> 0 | CA84: =+IF($K84="Ongoing",BE84,IF(RIGHT($K84,2)=RIGHT(CA$39,2),SUM($AV84:BE84),0)+IF(RIGHT(CA$39,2)>RIGHT($K84,2),BE84,0)) -> 0 | CC84: =+O84*KeyAssumptionsPriceControl_FO!X$15 -> 0 | CD84: =+P84*KeyAssumptionsPriceControl_FO!Y$15 -> 0 | CE84: =+Q84*KeyAssumptionsPriceControl_FO!Z$15 -> 0 | CF84: =+R84*KeyAssumptionsPriceControl_FO!AA$15 -> 0 | CG84: =+S84*KeyAssumptionsPriceControl_FO!AB$15 -> 0 | CH84: =+T84*KeyAssumptionsPriceControl_FO!AC$15 -> 0 | CI84: =+U84*KeyAssumptionsPriceControl_FO!AD$15 -> 0 | CJ84: =+V84*KeyAssumptionsPriceControl_FO!AE$15 -> 0 | CK84: =+W84*KeyAssumptionsPriceControl_FO!AF$15 -> 0 | CL84: =+X84*KeyAssumptionsPriceControl_FO!AG$15 -> 0 | CN84: 0 | CO84: 0 | CP84: 0 | CQ84: 0 | CR84: 0 | CS84: 0 | CT84: 0 | CU84: 0 | CV84: =IF($M84=0,0, IF($M84<=0.5,CK84, IF(AND($J84="straight line",$M84<1.51),(CJ84-((CJ84/$M84)*0.5))+CK84/$M84*0.5, IF($J84="straight line", IF((LEFT(CV$39,4)*1)-INT($M84)<LEFT($CN$39,4)*1,0,((OFFSET(CK84,0,-INT($M84+0.5),1,1))/$M84)*(IF($M84-INT($M84)>0.5,$M84-0.5-INT($M84),IF($M84-INT($M84)<=0.5,$M84-0.5-INT($M84)+1,0)))) +CK84/$M84*0.5 +SUM(OFFSET(CK84,0,MAX(-INT($M84+(0.5-(10^-12))),-CV$40)+1,1,MIN(INT($M84+(0.5-(10^-12))),CV$40)-1))*1/$M84, IF($J84="Declining Balance",-$CN$38,0))))) -> 0 | CW84: 0
C85: [Capex Item - Significant Project / Capital Program / Other Capex] | E85: [Service] | F85: [Major Cost Driver] | G85: [Asset category] | H85: [Capital type] | J85: Straight line | K85: [Year finalised?] | AV85: 0 | AW85: 0 | AX85: 0 | AY85: 0 | AZ85: 0 | BA85: 0 | BB85: 0 | BC85: 0 | BD85: 0 | BE85: 0 | BG85: 0 | BH85: =IF($L85=0,0, IF($L85<=0.5,BS85, IF(AND($J85="straight line",$L85<1.51),(BR85-((BR85/$L85)*0.5))+BS85/$L85*0.5, IF($J85="straight line", IF((LEFT(BH$39,4)*1)-INT($L85)<LEFT($BG$39,4)*1,0,((OFFSET(BS85,0,-INT($L85+0.5),1,1))/$L85)*(IF($L85-INT($L85)>0.5,$L85-0.5-INT($L85),IF($L85-INT($L85)<=0.5,$L85-0.5-INT($L85)+1,0)))) +BS85/$L85*0.5 +SUM(OFFSET(BS85,0,MAX(-INT($L85+(0.5-(10^-12))),-BH$40)+1,1,MIN(INT($L85+(0.5-(10^-12))),BH$40)-1))*1/$L85, IF($J85="Declining Balance",-$BG$38,0))))) -> 0 | BI85: 0 | BJ85: 0 | BK85: 0 | BL85: 0 | BM85: 0 | BN85: 0 | BO85: 0 | BP85: 0 | BR85: =+IF($K85="Ongoing",AV85,IF(RIGHT($K85,2)=RIGHT(BR$39,2),SUM($AV85:AV85),0)+IF(RIGHT(BR$39,2)>RIGHT($K85,2),AV85,0)) -> 0 | BS85: =+IF($K85="Ongoing",AW85,IF(RIGHT($K85,2)=RIGHT(BS$39,2),SUM($AV85:AW85),0)+IF(RIGHT(BS$39,2)>RIGHT($K85,2),AW85,0)) -> 0 | BT85: =+IF($K85="Ongoing",AX85,IF(RIGHT($K85,2)=RIGHT(BT$39,2),SUM($AV85:AX85),0)+IF(RIGHT(BT$39,2)>RIGHT($K85,2),AX85,0)) -> 0 | BU85: =+IF($K85="Ongoing",AY85,IF(RIGHT($K85,2)=RIGHT(BU$39,2),SUM($AV85:AY85),0)+IF(RIGHT(BU$39,2)>RIGHT($K85,2),AY85,0)) -> 0 | BV85: =+IF($K85="Ongoing",AZ85,IF(RIGHT($K85,2)=RIGHT(BV$39,2),SUM($AV85:AZ85),0)+IF(RIGHT(BV$39,2)>RIGHT($K85,2),AZ85,0)) -> 0 | BW85: =+IF($K85="Ongoing",BA85,IF(RIGHT($K85,2)=RIGHT(BW$39,2),SUM($AV85:BA85),0)+IF(RIGHT(BW$39,2)>RIGHT($K85,2),BA85,0)) -> 0 | BX85: =+IF($K85="Ongoing",BB85,IF(RIGHT($K85,2)=RIGHT(BX$39,2),SUM($AV85:BB85),0)+IF(RIGHT(BX$39,2)>RIGHT($K85,2),BB85,0)) -> 0 | BY85: =+IF($K85="Ongoing",BC85,IF(RIGHT($K85,2)=RIGHT(BY$39,2),SUM($AV85:BC85),0)+IF(RIGHT(BY$39,2)>RIGHT($K85,2),BC85,0)) -> 0 | BZ85: =+IF($K85="Ongoing",BD85,IF(RIGHT($K85,2)=RIGHT(BZ$39,2),SUM($AV85:BD85),0)+IF(RIGHT(BZ$39,2)>RIGHT($K85,2),BD85,0)) -> 0 | CA85: =+IF($K85="Ongoing",BE85,IF(RIGHT($K85,2)=RIGHT(CA$39,2),SUM($AV85:BE85),0)+IF(RIGHT(CA$39,2)>RIGHT($K85,2),BE85,0)) -> 0 | CC85: =+O85*KeyAssumptionsPriceControl_FO!X$15 -> 0 | CD85: =+P85*KeyAssumptionsPriceControl_FO!Y$15 -> 0 | CE85: =+Q85*KeyAssumptionsPriceControl_FO!Z$15 -> 0 | CF85: =+R85*KeyAssumptionsPriceControl_FO!AA$15 -> 0 | CG85: =+S85*KeyAssumptionsPriceControl_FO!AB$15 -> 0 | CH85: =+T85*KeyAssumptionsPriceControl_FO!AC$15 -> 0 | CI85: =+U85*KeyAssumptionsPriceControl_FO!AD$15 -> 0 | CJ85: =+V85*KeyAssumptionsPriceControl_FO!AE$15 -> 0 | CK85: =+W85*KeyAssumptionsPriceControl_FO!AF$15 -> 0 | CL85: =+X85*KeyAssumptionsPriceControl_FO!AG$15 -> 0 | CN85: 0 | CO85: =IF($M85=0,0, IF($M85<=0.5,CD85, IF(AND($J85="straight line",$M85<1.51),(CC85-((CC85/$M85)*0.5))+CD85/$M85*0.5, IF($J85="straight line", IF((LEFT(CO$39,4)*1)-INT($M85)<LEFT($CN$39,4)*1,0,((OFFSET(CD85,0,-INT($M85+0.5),1,1))/$M85)*(IF($M85-INT($M85)>0.5,$M85-0.5-INT($M85),IF($M85-INT($M85)<=0.5,$M85-0.5-INT($M85)+1,0)))) +CD85/$M85*0.5 +SUM(OFFSET(CD85,0,MAX(-INT($M85+(0.5-(10^-12))),-CO$40)+1,1,MIN(INT($M85+(0.5-(10^-12))),CO$40)-1))*1/$M85, IF($J85="Declining Balance",-$CN$38,0))))) -> 0 | CP85: 0 | CQ85: 0 | CR85: 0 | CS85: 0 | CT85: 0 | CU85: 0 | CV85: 0 | CW85: 0
C86: [Capex Item - Significant Project / Capital Program / Other Capex] | E86: [Service] | F86: [Major Cost Driver] | G86: [Asset category] | H86: [Capital type] | J86: Straight line | K86: [Year finalised?] | AV86: 0 | AW86: 0 | AX86: 0 | AY86: 0 | AZ86: 0 | BA86: 0 | BB86: 0 | BC86: 0 | BD86: 0 | BE86: 0 | BG86: 0 | BH86: 0 | BI86: 0 | BJ86: 0 | BK86: 0 | BL86: 0 | BM86: 0 | BN86: 0 | BO86: 0 | BP86: 0 | BR86: =+IF($K86="Ongoing",AV86,IF(RIGHT($K86,2)=RIGHT(BR$39,2),SUM($AV86:AV86),0)+IF(RIGHT(BR$39,2)>RIGHT($K86,2),AV86,0)) -> 0 | BS86: =+IF($K86="Ongoing",AW86,IF(RIGHT($K86,2)=RIGHT(BS$39,2),SUM($AV86:AW86),0)+IF(RIGHT(BS$39,2)>RIGHT($K86,2),AW86,0)) -> 0 | BT86: =+IF($K86="Ongoing",AX86,IF(RIGHT($K86,2)=RIGHT(BT$39,2),SUM($AV86:AX86),0)+IF(RIGHT(BT$39,2)>RIGHT($K86,2),AX86,0)) -> 0 | BU86: =+IF($K86="Ongoing",AY86,IF(RIGHT($K86,2)=RIGHT(BU$39,2),SUM($AV86:AY86),0)+IF(RIGHT(BU$39,2)>RIGHT($K86,2),AY86,0)) -> 0 | BV86: =+IF($K86="Ongoing",AZ86,IF(RIGHT($K86,2)=RIGHT(BV$39,2),SUM($AV86:AZ86),0)+IF(RIGHT(BV$39,2)>RIGHT($K86,2),AZ86,0)) -> 0 | BW86: =+IF($K86="Ongoing",BA86,IF(RIGHT($K86,2)=RIGHT(BW$39,2),SUM($AV86:BA86),0)+IF(RIGHT(BW$39,2)>RIGHT($K86,2),BA86,0)) -> 0 | BX86: =+IF($K86="Ongoing",BB86,IF(RIGHT($K86,2)=RIGHT(BX$39,2),SUM($AV86:BB86),0)+IF(RIGHT(BX$39,2)>RIGHT($K86,2),BB86,0)) -> 0 | BY86: =+IF($K86="Ongoing",BC86,IF(RIGHT($K86,2)=RIGHT(BY$39,2),SUM($AV86:BC86),0)+IF(RIGHT(BY$39,2)>RIGHT($K86,2),BC86,0)) -> 0 | BZ86: =+IF($K86="Ongoing",BD86,IF(RIGHT($K86,2)=RIGHT(BZ$39,2),SUM($AV86:BD86),0)+IF(RIGHT(BZ$39,2)>RIGHT($K86,2),BD86,0)) -> 0 | CA86: =+IF($K86="Ongoing",BE86,IF(RIGHT($K86,2)=RIGHT(CA$39,2),SUM($AV86:BE86),0)+IF(RIGHT(CA$39,2)>RIGHT($K86,2),BE86,0)) -> 0 | CC86: =+O86*KeyAssumptionsPriceControl_FO!X$15 -> 0 | CD86: =+P86*KeyAssumptionsPriceControl_FO!Y$15 -> 0 | CE86: =+Q86*KeyAssumptionsPriceControl_FO!Z$15 -> 0 | CF86: =+R86*KeyAssumptionsPriceControl_FO!AA$15 -> 0 | CG86: =+S86*KeyAssumptionsPriceControl_FO!AB$15 -> 0 | CH86: =+T86*KeyAssumptionsPriceControl_FO!AC$15 -> 0 | CI86: =+U86*KeyAssumptionsPriceControl_FO!AD$15 -> 0 | CJ86: =+V86*KeyAssumptionsPriceControl_FO!AE$15 -> 0 | CK86: =+W86*KeyAssumptionsPriceControl_FO!AF$15 -> 0 | CL86: =+X86*KeyAssumptionsPriceControl_FO!AG$15 -> 0 | CN86: 0 | CO86: 0 | CP86: 0 | CQ86: 0 | CR86: 0 | CS86: 0 | CT86: 0 | CU86: 0 | CV86: 0 | CW86: 0
C87: [Capex Item - Significant Project / Capital Program / Other Capex] | E87: [Service] | F87: [Major Cost Driver] | G87: [Asset category] | H87: [Capital type] | J87: Straight line | K87: [Year finalised?] | AV87: 0 | AW87: 0 | AX87: 0 | AY87: 0 | AZ87: 0 | BA87: 0 | BB87: 0 | BC87: 0 | BD87: 0 | BE87: 0 | BG87: 0 | BH87: 0 | BI87: 0 | BJ87: 0 | BK87: 0 | BL87: 0 | BM87: 0 | BN87: 0 | BO87: 0 | BP87: 0 | BR87: =+IF($K87="Ongoing",AV87,IF(RIGHT($K87,2)=RIGHT(BR$39,2),SUM($AV87:AV87),0)+IF(RIGHT(BR$39,2)>RIGHT($K87,2),AV87,0)) -> 0 | BS87: =+IF($K87="Ongoing",AW87,IF(RIGHT($K87,2)=RIGHT(BS$39,2),SUM($AV87:AW87),0)+IF(RIGHT(BS$39,2)>RIGHT($K87,2),AW87,0)) -> 0 | BT87: =+IF($K87="Ongoing",AX87,IF(RIGHT($K87,2)=RIGHT(BT$39,2),SUM($AV87:AX87),0)+IF(RIGHT(BT$39,2)>RIGHT($K87,2),AX87,0)) -> 0 | BU87: =+IF($K87="Ongoing",AY87,IF(RIGHT($K87,2)=RIGHT(BU$39,2),SUM($AV87:AY87),0)+IF(RIGHT(BU$39,2)>RIGHT($K87,2),AY87,0)) -> 0 | BV87: =+IF($K87="Ongoing",AZ87,IF(RIGHT($K87,2)=RIGHT(BV$39,2),SUM($AV87:AZ87),0)+IF(RIGHT(BV$39,2)>RIGHT($K87,2),AZ87,0)) -> 0 | BW87: =+IF($K87="Ongoing",BA87,IF(RIGHT($K87,2)=RIGHT(BW$39,2),SUM($AV87:BA87),0)+IF(RIGHT(BW$39,2)>RIGHT($K87,2),BA87,0)) -> 0 | BX87: =+IF($K87="Ongoing",BB87,IF(RIGHT($K87,2)=RIGHT(BX$39,2),SUM($AV87:BB87),0)+IF(RIGHT(BX$39,2)>RIGHT($K87,2),BB87,0)) -> 0 | BY87: =+IF($K87="Ongoing",BC87,IF(RIGHT($K87,2)=RIGHT(BY$39,2),SUM($AV87:BC87),0)+IF(RIGHT(BY$39,2)>RIGHT($K87,2),BC87,0)) -> 0 | BZ87: =+IF($K87="Ongoing",BD87,IF(RIGHT($K87,2)=RIGHT(BZ$39,2),SUM($AV87:BD87),0)+IF(RIGHT(BZ$39,2)>RIGHT($K87,2),BD87,0)) -> 0 | CA87: =+IF($K87="Ongoing",BE87,IF(RIGHT($K87,2)=RIGHT(CA$39,2),SUM($AV87:BE87),0)+IF(RIGHT(CA$39,2)>RIGHT($K87,2),BE87,0)) -> 0 | CC87: =+O87*KeyAssumptionsPriceControl_FO!X$15 -> 0 | CD87: =+P87*KeyAssumptionsPriceControl_FO!Y$15 -> 0 | CE87: =+Q87*KeyAssumptionsPriceControl_FO!Z$15 -> 0 | CF87: =+R87*KeyAssumptionsPriceControl_FO!AA$15 -> 0 | CG87: =+S87*KeyAssumptionsPriceControl_FO!AB$15 -> 0 | CH87: =+T87*KeyAssumptionsPriceControl_FO!AC$15 -> 0 | CI87: =+U87*KeyAssumptionsPriceControl_FO!AD$15 -> 0 | CJ87: =+V87*KeyAssumptionsPriceControl_FO!AE$15 -> 0 | CK87: =+W87*KeyAssumptionsPriceControl_FO!AF$15 -> 0 | CL87: =+X87*KeyAssumptionsPriceControl_FO!AG$15 -> 0 | CN87: 0 | CO87: 0 | CP87: 0 | CQ87: 0 | CR87: 0 | CS87: 0 | CT87: 0 | CU87: 0 | CV87: 0 | CW87: 0
C88: [Capex Item - Significant Project / Capital Program / Other Capex] | E88: [Service] | F88: [Major Cost Driver] | G88: [Asset category] | H88: [Capital type] | J88: Straight line | K88: [Year finalised?] | AV88: 0 | AW88: 0 | AX88: 0 | AY88: 0 | AZ88: 0 | BA88: 0 | BB88: 0 | BC88: 0 | BD88: 0 | BE88: 0 | BG88: 0 | BH88: 0 | BI88: 0 | BJ88: 0 | BK88: 0 | BL88: 0 | BM88: 0 | BN88: 0 | BO88: 0 | BP88: 0 | BR88: =+IF($K88="Ongoing",AV88,IF(RIGHT($K88,2)=RIGHT(BR$39,2),SUM($AV88:AV88),0)+IF(RIGHT(BR$39,2)>RIGHT($K88,2),AV88,0)) -> 0 | BS88: =+IF($K88="Ongoing",AW88,IF(RIGHT($K88,2)=RIGHT(BS$39,2),SUM($AV88:AW88),0)+IF(RIGHT(BS$39,2)>RIGHT($K88,2),AW88,0)) -> 0 | BT88: =+IF($K88="Ongoing",AX88,IF(RIGHT($K88,2)=RIGHT(BT$39,2),SUM($AV88:AX88),0)+IF(RIGHT(BT$39,2)>RIGHT($K88,2),AX88,0)) -> 0 | BU88: =+IF($K88="Ongoing",AY88,IF(RIGHT($K88,2)=RIGHT(BU$39,2),SUM($AV88:AY88),0)+IF(RIGHT(BU$39,2)>RIGHT($K88,2),AY88,0)) -> 0 | BV88: =+IF($K88="Ongoing",AZ88,IF(RIGHT($K88,2)=RIGHT(BV$39,2),SUM($AV88:AZ88),0)+IF(RIGHT(BV$39,2)>RIGHT($K88,2),AZ88,0)) -> 0 | BW88: =+IF($K88="Ongoing",BA88,IF(RIGHT($K88,2)=RIGHT(BW$39,2),SUM($AV88:BA88),0)+IF(RIGHT(BW$39,2)>RIGHT($K88,2),BA88,0)) -> 0 | BX88: =+IF($K88="Ongoing",BB88,IF(RIGHT($K88,2)=RIGHT(BX$39,2),SUM($AV88:BB88),0)+IF(RIGHT(BX$39,2)>RIGHT($K88,2),BB88,0)) -> 0 | BY88: =+IF($K88="Ongoing",BC88,IF(RIGHT($K88,2)=RIGHT(BY$39,2),SUM($AV88:BC88),0)+IF(RIGHT(BY$39,2)>RIGHT($K88,2),BC88,0)) -> 0 | BZ88: =+IF($K88="Ongoing",BD88,IF(RIGHT($K88,2)=RIGHT(BZ$39,2),SUM($AV88:BD88),0)+IF(RIGHT(BZ$39,2)>RIGHT($K88,2),BD88,0)) -> 0 | CA88: =+IF($K88="Ongoing",BE88,IF(RIGHT($K88,2)=RIGHT(CA$39,2),SUM($AV88:BE88),0)+IF(RIGHT(CA$39,2)>RIGHT($K88,2),BE88,0)) -> 0 | CC88: =+O88*KeyAssumptionsPriceControl_FO!X$15 -> 0 | CD88: =+P88*KeyAssumptionsPriceControl_FO!Y$15 -> 0 | CE88: =+Q88*KeyAssumptionsPriceControl_FO!Z$15 -> 0 | CF88: =+R88*KeyAssumptionsPriceControl_FO!AA$15 -> 0 | CG88: =+S88*KeyAssumptionsPriceControl_FO!AB$15 -> 0 | CH88: =+T88*KeyAssumptionsPriceControl_FO!AC$15 -> 0 | CI88: =+U88*KeyAssumptionsPriceControl_FO!AD$15 -> 0 | CJ88: =+V88*KeyAssumptionsPriceControl_FO!AE$15 -> 0 | CK88: =+W88*KeyAssumptionsPriceControl_FO!AF$15 -> 0 | CL88: =+X88*KeyAssumptionsPriceControl_FO!AG$15 -> 0 | CN88: 0 | CO88: 0 | CP88: 0 | CQ88: 0 | CR88: 0 | CS88: 0 | CT88: 0 | CU88: 0 | CV88: 0 | CW88: 0
C89: [Capex Item - Significant Project / Capital Program / Other Capex] | E89: [Service] | F89: [Major Cost Driver] | G89: [Asset category] | H89: [Capital type] | J89: Straight line | K89: [Year finalised?] | AV89: 0 | AW89: 0 | AX89: 0 | AY89: 0 | AZ89: 0 | BA89: 0 | BB89: 0 | BC89: 0 | BD89: 0 | BE89: 0 | BG89: 0 | BH89: 0 | BI89: 0 | BJ89: 0 | BK89: 0 | BL89: 0 | BM89: 0 | BN89: 0 | BO89: 0 | BP89: 0 | BR89: =+IF($K89="Ongoing",AV89,IF(RIGHT($K89,2)=RIGHT(BR$39,2),SUM($AV89:AV89),0)+IF(RIGHT(BR$39,2)>RIGHT($K89,2),AV89,0)) -> 0 | BS89: =+IF($K89="Ongoing",AW89,IF(RIGHT($K89,2)=RIGHT(BS$39,2),SUM($AV89:AW89),0)+IF(RIGHT(BS$39,2)>RIGHT($K89,2),AW89,0)) -> 0 | BT89: =+IF($K89="Ongoing",AX89,IF(RIGHT($K89,2)=RIGHT(BT$39,2),SUM($AV89:AX89),0)+IF(RIGHT(BT$39,2)>RIGHT($K89,2),AX89,0)) -> 0 | BU89: =+IF($K89="Ongoing",AY89,IF(RIGHT($K89,2)=RIGHT(BU$39,2),SUM($AV89:AY89),0)+IF(RIGHT(BU$39,2)>RIGHT($K89,2),AY89,0)) -> 0 | BV89: =+IF($K89="Ongoing",AZ89,IF(RIGHT($K89,2)=RIGHT(BV$39,2),SUM($AV89:AZ89),0)+IF(RIGHT(BV$39,2)>RIGHT($K89,2),AZ89,0)) -> 0 | BW89: =+IF($K89="Ongoing",BA89,IF(RIGHT($K89,2)=RIGHT(BW$39,2),SUM($AV89:BA89),0)+IF(RIGHT(BW$39,2)>RIGHT($K89,2),BA89,0)) -> 0 | BX89: =+IF($K89="Ongoing",BB89,IF(RIGHT($K89,2)=RIGHT(BX$39,2),SUM($AV89:BB89),0)+IF(RIGHT(BX$39,2)>RIGHT($K89,2),BB89,0)) -> 0 | BY89: =+IF($K89="Ongoing",BC89,IF(RIGHT($K89,2)=RIGHT(BY$39,2),SUM($AV89:BC89),0)+IF(RIGHT(BY$39,2)>RIGHT($K89,2),BC89,0)) -> 0 | BZ89: =+IF($K89="Ongoing",BD89,IF(RIGHT($K89,2)=RIGHT(BZ$39,2),SUM($AV89:BD89),0)+IF(RIGHT(BZ$39,2)>RIGHT($K89,2),BD89,0)) -> 0 | CA89: =+IF($K89="Ongoing",BE89,IF(RIGHT($K89,2)=RIGHT(CA$39,2),SUM($AV89:BE89),0)+IF(RIGHT(CA$39,2)>RIGHT($K89,2),BE89,0)) -> 0 | CC89: =+O89*KeyAssumptionsPriceControl_FO!X$15 -> 0 | CD89: =+P89*KeyAssumptionsPriceControl_FO!Y$15 -> 0 | CE89: =+Q89*KeyAssumptionsPriceControl_FO!Z$15 -> 0 | CF89: =+R89*KeyAssumptionsPriceControl_FO!AA$15 -> 0 | CG89: =+S89*KeyAssumptionsPriceControl_FO!AB$15 -> 0 | CH89: =+T89*KeyAssumptionsPriceControl_FO!AC$15 -> 0 | CI89: =+U89*KeyAssumptionsPriceControl_FO!AD$15 -> 0 | CJ89: =+V89*KeyAssumptionsPriceControl_FO!AE$15 -> 0 | CK89: =+W89*KeyAssumptionsPriceControl_FO!AF$15 -> 0 | CL89: =+X89*KeyAssumptionsPriceControl_FO!AG$15 -> 0 | CN89: 0 | CO89: 0 | CP89: 0 | CQ89: 0 | CR89: 0 | CS89: 0 | CT89: 0 | CU89: 0 | CV89: 0 | CW89: 0
C90: [Capex Item - Significant Project / Capital Program / Other Capex] | E90: [Service] | F90: [Major Cost Driver] | G90: [Asset category] | H90: [Capital type] | J90: Straight line | K90: [Year finalised?] | AV90: 0 | AW90: 0 | AX90: 0 | AY90: 0 | AZ90: 0 | BA90: 0 | BB90: 0 | BC90: 0 | BD90: 0 | BE90: 0 | BG90: 0 | BH90: 0 | BI90: 0 | BJ90: 0 | BK90: 0 | BL90: 0 | BM90: 0 | BN90: 0 | BO90: 0 | BP90: 0 | BR90: =+IF($K90="Ongoing",AV90,IF(RIGHT($K90,2)=RIGHT(BR$39,2),SUM($AV90:AV90),0)+IF(RIGHT(BR$39,2)>RIGHT($K90,2),AV90,0)) -> 0 | BS90: =+IF($K90="Ongoing",AW90,IF(RIGHT($K90,2)=RIGHT(BS$39,2),SUM($AV90:AW90),0)+IF(RIGHT(BS$39,2)>RIGHT($K90,2),AW90,0)) -> 0 | BT90: =+IF($K90="Ongoing",AX90,IF(RIGHT($K90,2)=RIGHT(BT$39,2),SUM($AV90:AX90),0)+IF(RIGHT(BT$39,2)>RIGHT($K90,2),AX90,0)) -> 0 | BU90: =+IF($K90="Ongoing",AY90,IF(RIGHT($K90,2)=RIGHT(BU$39,2),SUM($AV90:AY90),0)+IF(RIGHT(BU$39,2)>RIGHT($K90,2),AY90,0)) -> 0 | BV90: =+IF($K90="Ongoing",AZ90,IF(RIGHT($K90,2)=RIGHT(BV$39,2),SUM($AV90:AZ90),0)+IF(RIGHT(BV$39,2)>RIGHT($K90,2),AZ90,0)) -> 0 | BW90: =+IF($K90="Ongoing",BA90,IF(RIGHT($K90,2)=RIGHT(BW$39,2),SUM($AV90:BA90),0)+IF(RIGHT(BW$39,2)>RIGHT($K90,2),BA90,0)) -> 0 | BX90: =+IF($K90="Ongoing",BB90,IF(RIGHT($K90,2)=RIGHT(BX$39,2),SUM($AV90:BB90),0)+IF(RIGHT(BX$39,2)>RIGHT($K90,2),BB90,0)) -> 0 | BY90: =+IF($K90="Ongoing",BC90,IF(RIGHT($K90,2)=RIGHT(BY$39,2),SUM($AV90:BC90),0)+IF(RIGHT(BY$39,2)>RIGHT($K90,2),BC90,0)) -> 0 | BZ90: =+IF($K90="Ongoing",BD90,IF(RIGHT($K90,2)=RIGHT(BZ$39,2),SUM($AV90:BD90),0)+IF(RIGHT(BZ$39,2)>RIGHT($K90,2),BD90,0)) -> 0 | CA90: =+IF($K90="Ongoing",BE90,IF(RIGHT($K90,2)=RIGHT(CA$39,2),SUM($AV90:BE90),0)+IF(RIGHT(CA$39,2)>RIGHT($K90,2),BE90,0)) -> 0 | CC90: =+O90*KeyAssumptionsPriceControl_FO!X$15 -> 0 | CD90: =+P90*KeyAssumptionsPriceControl_FO!Y$15 -> 0 | CE90: =+Q90*KeyAssumptionsPriceControl_FO!Z$15 -> 0 | CF90: =+R90*KeyAssumptionsPriceControl_FO!AA$15 -> 0 | CG90: =+S90*KeyAssumptionsPriceControl_FO!AB$15 -> 0 | CH90: =+T90*KeyAssumptionsPriceControl_FO!AC$15 -> 0 | CI90: =+U90*KeyAssumptionsPriceControl_FO!AD$15 -> 0 | CJ90: =+V90*KeyAssumptionsPriceControl_FO!AE$15 -> 0 | CK90: =+W90*KeyAssumptionsPriceControl_FO!AF$15 -> 0 | CL90: =+X90*KeyAssumptionsPriceControl_FO!AG$15 -> 0 | CN90: 0 | CO90: 0 | CP90: 0 | CQ90: 0 | CR90: 0 | CS90: 0 | CT90: 0 | CU90: 0 | CV90: 0 | CW90: 0
C91: [Capex Item - Significant Project / Capital Program / Other Capex] | E91: [Service] | F91: [Major Cost Driver] | G91: [Asset category] | H91: [Capital type] | J91: Straight line | K91: [Year finalised?] | AV91: 0 | AW91: 0 | AX91: 0 | AY91: 0 | AZ91: 0 | BA91: 0 | BB91: 0 | BC91: 0 | BD91: 0 | BE91: 0 | BG91: 0 | BH91: 0 | BI91: 0 | BJ91: 0 | BK91: 0 | BL91: 0 | BM91: 0 | BN91: 0 | BO91: 0 | BP91: 0 | BR91: =+IF($K91="Ongoing",AV91,IF(RIGHT($K91,2)=RIGHT(BR$39,2),SUM($AV91:AV91),0)+IF(RIGHT(BR$39,2)>RIGHT($K91,2),AV91,0)) -> 0 | BS91: =+IF($K91="Ongoing",AW91,IF(RIGHT($K91,2)=RIGHT(BS$39,2),SUM($AV91:AW91),0)+IF(RIGHT(BS$39,2)>RIGHT($K91,2),AW91,0)) -> 0 | BT91: =+IF($K91="Ongoing",AX91,IF(RIGHT($K91,2)=RIGHT(BT$39,2),SUM($AV91:AX91),0)+IF(RIGHT(BT$39,2)>RIGHT($K91,2),AX91,0)) -> 0 | BU91: =+IF($K91="Ongoing",AY91,IF(RIGHT($K91,2)=RIGHT(BU$39,2),SUM($AV91:AY91),0)+IF(RIGHT(BU$39,2)>RIGHT($K91,2),AY91,0)) -> 0 | BV91: =+IF($K91="Ongoing",AZ91,IF(RIGHT($K91,2)=RIGHT(BV$39,2),SUM($AV91:AZ91),0)+IF(RIGHT(BV$39,2)>RIGHT($K91,2),AZ91,0)) -> 0 | BW91: =+IF($K91="Ongoing",BA91,IF(RIGHT($K91,2)=RIGHT(BW$39,2),SUM($AV91:BA91),0)+IF(RIGHT(BW$39,2)>RIGHT($K91,2),BA91,0)) -> 0 | BX91: =+IF($K91="Ongoing",BB91,IF(RIGHT($K91,2)=RIGHT(BX$39,2),SUM($AV91:BB91),0)+IF(RIGHT(BX$39,2)>RIGHT($K91,2),BB91,0)) -> 0 | BY91: =+IF($K91="Ongoing",BC91,IF(RIGHT($K91,2)=RIGHT(BY$39,2),SUM($AV91:BC91),0)+IF(RIGHT(BY$39,2)>RIGHT($K91,2),BC91,0)) -> 0 | BZ91: =+IF($K91="Ongoing",BD91,IF(RIGHT($K91,2)=RIGHT(BZ$39,2),SUM($AV91:BD91),0)+IF(RIGHT(BZ$39,2)>RIGHT($K91,2),BD91,0)) -> 0 | CA91: =+IF($K91="Ongoing",BE91,IF(RIGHT($K91,2)=RIGHT(CA$39,2),SUM($AV91:BE91),0)+IF(RIGHT(CA$39,2)>RIGHT($K91,2),BE91,0)) -> 0 | CC91: =+O91*KeyAssumptionsPriceControl_FO!X$15 -> 0 | CD91: =+P91*KeyAssumptionsPriceControl_FO!Y$15 -> 0 | CE91: =+Q91*KeyAssumptionsPriceControl_FO!Z$15 -> 0 | CF91: =+R91*KeyAssumptionsPriceControl_FO!AA$15 -> 0 | CG91: =+S91*KeyAssumptionsPriceControl_FO!AB$15 -> 0 | CH91: =+T91*KeyAssumptionsPriceControl_FO!AC$15 -> 0 | CI91: =+U91*KeyAssumptionsPriceControl_FO!AD$15 -> 0 | CJ91: =+V91*KeyAssumptionsPriceControl_FO!AE$15 -> 0 | CK91: =+W91*KeyAssumptionsPriceControl_FO!AF$15 -> 0 | CL91: =+X91*KeyAssumptionsPriceControl_FO!AG$15 -> 0 | CN91: 0 | CO91: 0 | CP91: 0 | CQ91: 0 | CR91: 0 | CS91: 0 | CT91: 0 | CU91: 0 | CV91: 0 | CW91: 0
C92: [Capex Item - Significant Project / Capital Program / Other Capex] | E92: [Service] | F92: [Major Cost Driver] | G92: [Asset category] | H92: [Capital type] | J92: Straight line | K92: [Year finalised?] | AV92: 0 | AW92: 0 | AX92: 0 | AY92: 0 | AZ92: 0 | BA92: 0 | BB92: 0 | BC92: 0 | BD92: 0 | BE92: 0 | BG92: 0 | BH92: 0 | BI92: 0 | BJ92: 0 | BK92: 0 | BL92: 0 | BM92: 0 | BN92: 0 | BO92: 0 | BP92: 0 | BR92: =+IF($K92="Ongoing",AV92,IF(RIGHT($K92,2)=RIGHT(BR$39,2),SUM($AV92:AV92),0)+IF(RIGHT(BR$39,2)>RIGHT($K92,2),AV92,0)) -> 0 | BS92: =+IF($K92="Ongoing",AW92,IF(RIGHT($K92,2)=RIGHT(BS$39,2),SUM($AV92:AW92),0)+IF(RIGHT(BS$39,2)>RIGHT($K92,2),AW92,0)) -> 0 | BT92: =+IF($K92="Ongoing",AX92,IF(RIGHT($K92,2)=RIGHT(BT$39,2),SUM($AV92:AX92),0)+IF(RIGHT(BT$39,2)>RIGHT($K92,2),AX92,0)) -> 0 | BU92: =+IF($K92="Ongoing",AY92,IF(RIGHT($K92,2)=RIGHT(BU$39,2),SUM($AV92:AY92),0)+IF(RIGHT(BU$39,2)>RIGHT($K92,2),AY92,0)) -> 0 | BV92: =+IF($K92="Ongoing",AZ92,IF(RIGHT($K92,2)=RIGHT(BV$39,2),SUM($AV92:AZ92),0)+IF(RIGHT(BV$39,2)>RIGHT($K92,2),AZ92,0)) -> 0 | BW92: =+IF($K92="Ongoing",BA92,IF(RIGHT($K92,2)=RIGHT(BW$39,2),SUM($AV92:BA92),0)+IF(RIGHT(BW$39,2)>RIGHT($K92,2),BA92,0)) -> 0 | BX92: =+IF($K92="Ongoing",BB92,IF(RIGHT($K92,2)=RIGHT(BX$39,2),SUM($AV92:BB92),0)+IF(RIGHT(BX$39,2)>RIGHT($K92,2),BB92,0)) -> 0 | BY92: =+IF($K92="Ongoing",BC92,IF(RIGHT($K92,2)=RIGHT(BY$39,2),SUM($AV92:BC92),0)+IF(RIGHT(BY$39,2)>RIGHT($K92,2),BC92,0)) -> 0 | BZ92: =+IF($K92="Ongoing",BD92,IF(RIGHT($K92,2)=RIGHT(BZ$39,2),SUM($AV92:BD92),0)+IF(RIGHT(BZ$39,2)>RIGHT($K92,2),BD92,0)) -> 0 | CA92: =+IF($K92="Ongoing",BE92,IF(RIGHT($K92,2)=RIGHT(CA$39,2),SUM($AV92:BE92),0)+IF(RIGHT(CA$39,2)>RIGHT($K92,2),BE92,0)) -> 0 | CC92: =+O92*KeyAssumptionsPriceControl_FO!X$15 -> 0 | CD92: =+P92*KeyAssumptionsPriceControl_FO!Y$15 -> 0 | CE92: =+Q92*KeyAssumptionsPriceControl_FO!Z$15 -> 0 | CF92: =+R92*KeyAssumptionsPriceControl_FO!AA$15 -> 0 | CG92: =+S92*KeyAssumptionsPriceControl_FO!AB$15 -> 0 | CH92: =+T92*KeyAssumptionsPriceControl_FO!AC$15 -> 0 | CI92: =+U92*KeyAssumptionsPriceControl_FO!AD$15 -> 0 | CJ92: =+V92*KeyAssumptionsPriceControl_FO!AE$15 -> 0 | CK92: =+W92*KeyAssumptionsPriceControl_FO!AF$15 -> 0 | CL92: =+X92*KeyAssumptionsPriceControl_FO!AG$15 -> 0 | CN92: 0 | CO92: 0 | CP92: 0 | CQ92: 0 | CR92: 0 | CS92: 0 | CT92: 0 | CU92: 0 | CV92: 0 | CW92: 0
C93: [Capex Item - Significant Project / Capital Program / Other Capex] | E93: [Service] | F93: [Major Cost Driver] | G93: [Asset category] | H93: [Capital type] | J93: Straight line | K93: [Year finalised?] | AV93: 0 | AW93: 0 | AX93: 0 | AY93: 0 | AZ93: 0 | BA93: 0 | BB93: 0 | BC93: 0 | BD93: 0 | BE93: 0 | BG93: 0 | BH93: 0 | BI93: 0 | BJ93: 0 | BK93: 0 | BL93: 0 | BM93: 0 | BN93: 0 | BO93: 0 | BP93: 0 | BR93: =+IF($K93="Ongoing",AV93,IF(RIGHT($K93,2)=RIGHT(BR$39,2),SUM($AV93:AV93),0)+IF(RIGHT(BR$39,2)>RIGHT($K93,2),AV93,0)) -> 0 | BS93: =+IF($K93="Ongoing",AW93,IF(RIGHT($K93,2)=RIGHT(BS$39,2),SUM($AV93:AW93),0)+IF(RIGHT(BS$39,2)>RIGHT($K93,2),AW93,0)) -> 0 | BT93: =+IF($K93="Ongoing",AX93,IF(RIGHT($K93,2)=RIGHT(BT$39,2),SUM($AV93:AX93),0)+IF(RIGHT(BT$39,2)>RIGHT($K93,2),AX93,0)) -> 0 | BU93: =+IF($K93="Ongoing",AY93,IF(RIGHT($K93,2)=RIGHT(BU$39,2),SUM($AV93:AY93),0)+IF(RIGHT(BU$39,2)>RIGHT($K93,2),AY93,0)) -> 0 | BV93: =+IF($K93="Ongoing",AZ93,IF(RIGHT($K93,2)=RIGHT(BV$39,2),SUM($AV93:AZ93),0)+IF(RIGHT(BV$39,2)>RIGHT($K93,2),AZ93,0)) -> 0 | BW93: =+IF($K93="Ongoing",BA93,IF(RIGHT($K93,2)=RIGHT(BW$39,2),SUM($AV93:BA93),0)+IF(RIGHT(BW$39,2)>RIGHT($K93,2),BA93,0)) -> 0 | BX93: =+IF($K93="Ongoing",BB93,IF(RIGHT($K93,2)=RIGHT(BX$39,2),SUM($AV93:BB93),0)+IF(RIGHT(BX$39,2)>RIGHT($K93,2),BB93,0)) -> 0 | BY93: =+IF($K93="Ongoing",BC93,IF(RIGHT($K93,2)=RIGHT(BY$39,2),SUM($AV93:BC93),0)+IF(RIGHT(BY$39,2)>RIGHT($K93,2),BC93,0)) -> 0 | BZ93: =+IF($K93="Ongoing",BD93,IF(RIGHT($K93,2)=RIGHT(BZ$39,2),SUM($AV93:BD93),0)+IF(RIGHT(BZ$39,2)>RIGHT($K93,2),BD93,0)) -> 0 | CA93: =+IF($K93="Ongoing",BE93,IF(RIGHT($K93,2)=RIGHT(CA$39,2),SUM($AV93:BE93),0)+IF(RIGHT(CA$39,2)>RIGHT($K93,2),BE93,0)) -> 0 | CC93: =+O93*KeyAssumptionsPriceControl_FO!X$15 -> 0 | CD93: =+P93*KeyAssumptionsPriceControl_FO!Y$15 -> 0 | CE93: =+Q93*KeyAssumptionsPriceControl_FO!Z$15 -> 0 | CF93: =+R93*KeyAssumptionsPriceControl_FO!AA$15 -> 0 | CG93: =+S93*KeyAssumptionsPriceControl_FO!AB$15 -> 0 | CH93: =+T93*KeyAssumptionsPriceControl_FO!AC$15 -> 0 | CI93: =+U93*KeyAssumptionsPriceControl_FO!AD$15 -> 0 | CJ93: =+V93*KeyAssumptionsPriceControl_FO!AE$15 -> 0 | CK93: =+W93*KeyAssumptionsPriceControl_FO!AF$15 -> 0 | CL93: =+X93*KeyAssumptionsPriceControl_FO!AG$15 -> 0 | CN93: 0 | CO93: 0 | CP93: 0 | CQ93: 0 | CR93: 0 | CS93: 0 | CT93: 0 | CU93: 0 | CV93: 0 | CW93: 0
C94: [Capex Item - Significant Project / Capital Program / Other Capex] | E94: [Service] | F94: [Major Cost Driver] | G94: [Asset category] | H94: [Capital type] | J94: Straight line | K94: [Year finalised?] | AV94: 0 | AW94: 0 | AX94: 0 | AY94: 0 | AZ94: 0 | BA94: 0 | BB94: 0 | BC94: 0 | BD94: 0 | BE94: 0 | BG94: 0 | BH94: 0 | BI94: 0 | BJ94: 0 | BK94: 0 | BL94: 0 | BM94: 0 | BN94: 0 | BO94: 0 | BP94: 0 | BR94: =+IF($K94="Ongoing",AV94,IF(RIGHT($K94,2)=RIGHT(BR$39,2),SUM($AV94:AV94),0)+IF(RIGHT(BR$39,2)>RIGHT($K94,2),AV94,0)) -> 0 | BS94: =+IF($K94="Ongoing",AW94,IF(RIGHT($K94,2)=RIGHT(BS$39,2),SUM($AV94:AW94),0)+IF(RIGHT(BS$39,2)>RIGHT($K94,2),AW94,0)) -> 0 | BT94: =+IF($K94="Ongoing",AX94,IF(RIGHT($K94,2)=RIGHT(BT$39,2),SUM($AV94:AX94),0)+IF(RIGHT(BT$39,2)>RIGHT($K94,2),AX94,0)) -> 0 | BU94: =+IF($K94="Ongoing",AY94,IF(RIGHT($K94,2)=RIGHT(BU$39,2),SUM($AV94:AY94),0)+IF(RIGHT(BU$39,2)>RIGHT($K94,2),AY94,0)) -> 0 | BV94: =+IF($K94="Ongoing",AZ94,IF(RIGHT($K94,2)=RIGHT(BV$39,2),SUM($AV94:AZ94),0)+IF(RIGHT(BV$39,2)>RIGHT($K94,2),AZ94,0)) -> 0 | BW94: =+IF($K94="Ongoing",BA94,IF(RIGHT($K94,2)=RIGHT(BW$39,2),SUM($AV94:BA94),0)+IF(RIGHT(BW$39,2)>RIGHT($K94,2),BA94,0)) -> 0 | BX94: =+IF($K94="Ongoing",BB94,IF(RIGHT($K94,2)=RIGHT(BX$39,2),SUM($AV94:BB94),0)+IF(RIGHT(BX$39,2)>RIGHT($K94,2),BB94,0)) -> 0 | BY94: =+IF($K94="Ongoing",BC94,IF(RIGHT($K94,2)=RIGHT(BY$39,2),SUM($AV94:BC94),0)+IF(RIGHT(BY$39,2)>RIGHT($K94,2),BC94,0)) -> 0 | BZ94: =+IF($K94="Ongoing",BD94,IF(RIGHT($K94,2)=RIGHT(BZ$39,2),SUM($AV94:BD94),0)+IF(RIGHT(BZ$39,2)>RIGHT($K94,2),BD94,0)) -> 0 | CA94: =+IF($K94="Ongoing",BE94,IF(RIGHT($K94,2)=RIGHT(CA$39,2),SUM($AV94:BE94),0)+IF(RIGHT(CA$39,2)>RIGHT($K94,2),BE94,0)) -> 0 | CC94: =+O94*KeyAssumptionsPriceControl_FO!X$15 -> 0 | CD94: =+P94*KeyAssumptionsPriceControl_FO!Y$15 -> 0 | CE94: =+Q94*KeyAssumptionsPriceControl_FO!Z$15 -> 0 | CF94: =+R94*KeyAssumptionsPriceControl_FO!AA$15 -> 0 | CG94: =+S94*KeyAssumptionsPriceControl_FO!AB$15 -> 0 | CH94: =+T94*KeyAssumptionsPriceControl_FO!AC$15 -> 0 | CI94: =+U94*KeyAssumptionsPriceControl_FO!AD$15 -> 0 | CJ94: =+V94*KeyAssumptionsPriceControl_FO!AE$15 -> 0 | CK94: =+W94*KeyAssumptionsPriceControl_FO!AF$15 -> 0 | CL94: =+X94*KeyAssumptionsPriceControl_FO!AG$15 -> 0 | CN94: 0 | CO94: 0 | CP94: 0 | CQ94: 0 | CR94: 0 | CS94: 0 | CT94: 0 | CU94: 0 | CV94: 0 | CW94: 0
C95: [Capex Item - Significant Project / Capital Program / Other Capex] | E95: [Service] | F95: [Major Cost Driver] | G95: [Asset category] | H95: [Capital type] | J95: Straight line | K95: [Year finalised?] | AV95: 0 | AW95: 0 | AX95: 0 | AY95: 0 | AZ95: 0 | BA95: 0 | BB95: 0 | BC95: 0 | BD95: 0 | BE95: 0 | BG95: 0 | BH95: 0 | BI95: 0 | BJ95: 0 | BK95: 0 | BL95: 0 | BM95: 0 | BN95: 0 | BO95: 0 | BP95: 0 | BR95: =+IF($K95="Ongoing",AV95,IF(RIGHT($K95,2)=RIGHT(BR$39,2),SUM($AV95:AV95),0)+IF(RIGHT(BR$39,2)>RIGHT($K95,2),AV95,0)) -> 0 | BS95: =+IF($K95="Ongoing",AW95,IF(RIGHT($K95,2)=RIGHT(BS$39,2),SUM($AV95:AW95),0)+IF(RIGHT(BS$39,2)>RIGHT($K95,2),AW95,0)) -> 0 | BT95: =+IF($K95="Ongoing",AX95,IF(RIGHT($K95,2)=RIGHT(BT$39,2),SUM($AV95:AX95),0)+IF(RIGHT(BT$39,2)>RIGHT($K95,2),AX95,0)) -> 0 | BU95: =+IF($K95="Ongoing",AY95,IF(RIGHT($K95,2)=RIGHT(BU$39,2),SUM($AV95:AY95),0)+IF(RIGHT(BU$39,2)>RIGHT($K95,2),AY95,0)) -> 0 | BV95: =+IF($K95="Ongoing",AZ95,IF(RIGHT($K95,2)=RIGHT(BV$39,2),SUM($AV95:AZ95),0)+IF(RIGHT(BV$39,2)>RIGHT($K95,2),AZ95,0)) -> 0 | BW95: =+IF($K95="Ongoing",BA95,IF(RIGHT($K95,2)=RIGHT(BW$39,2),SUM($AV95:BA95),0)+IF(RIGHT(BW$39,2)>RIGHT($K95,2),BA95,0)) -> 0 | BX95: =+IF($K95="Ongoing",BB95,IF(RIGHT($K95,2)=RIGHT(BX$39,2),SUM($AV95:BB95),0)+IF(RIGHT(BX$39,2)>RIGHT($K95,2),BB95,0)) -> 0 | BY95: =+IF($K95="Ongoing",BC95,IF(RIGHT($K95,2)=RIGHT(BY$39,2),SUM($AV95:BC95),0)+IF(RIGHT(BY$39,2)>RIGHT($K95,2),BC95,0)) -> 0 | BZ95: =+IF($K95="Ongoing",BD95,IF(RIGHT($K95,2)=RIGHT(BZ$39,2),SUM($AV95:BD95),0)+IF(RIGHT(BZ$39,2)>RIGHT($K95,2),BD95,0)) -> 0 | CA95: =+IF($K95="Ongoing",BE95,IF(RIGHT($K95,2)=RIGHT(CA$39,2),SUM($AV95:BE95),0)+IF(RIGHT(CA$39,2)>RIGHT($K95,2),BE95,0)) -> 0 | CC95: =+O95*KeyAssumptionsPriceControl_FO!X$15 -> 0 | CD95: =+P95*KeyAssumptionsPriceControl_FO!Y$15 -> 0 | CE95: =+Q95*KeyAssumptionsPriceControl_FO!Z$15 -> 0 | CF95: =+R95*KeyAssumptionsPriceControl_FO!AA$15 -> 0 | CG95: =+S95*KeyAssumptionsPriceControl_FO!AB$15 -> 0 | CH95: =+T95*KeyAssumptionsPriceControl_FO!AC$15 -> 0 | CI95: =+U95*KeyAssumptionsPriceControl_FO!AD$15 -> 0 | CJ95: =+V95*KeyAssumptionsPriceControl_FO!AE$15 -> 0 | CK95: =+W95*KeyAssumptionsPriceControl_FO!AF$15 -> 0 | CL95: =+X95*KeyAssumptionsPriceControl_FO!AG$15 -> 0 | CN95: 0 | CO95: 0 | CP95: 0 | CQ95: 0 | CR95: 0 | CS95: 0 | CT95: 0 | CU95: 0 | CV95: 0 | CW95: 0
C96: [Capex Item - Significant Project / Capital Program / Other Capex] | E96: [Service] | F96: [Major Cost Driver] | G96: [Asset category] | H96: [Capital type] | J96: Straight line | K96: [Year finalised?] | AV96: 0 | AW96: 0 | AX96: 0 | AY96: 0 | AZ96: 0 | BA96: 0 | BB96: 0 | BC96: 0 | BD96: 0 | BE96: 0 | BG96: 0 | BH96: 0 | BI96: 0 | BJ96: 0 | BK96: 0 | BL96: 0 | BM96: 0 | BN96: 0 | BO96: 0 | BP96: 0 | BR96: =+IF($K96="Ongoing",AV96,IF(RIGHT($K96,2)=RIGHT(BR$39,2),SUM($AV96:AV96),0)+IF(RIGHT(BR$39,2)>RIGHT($K96,2),AV96,0)) -> 0 | BS96: =+IF($K96="Ongoing",AW96,IF(RIGHT($K96,2)=RIGHT(BS$39,2),SUM($AV96:AW96),0)+IF(RIGHT(BS$39,2)>RIGHT($K96,2),AW96,0)) -> 0 | BT96: =+IF($K96="Ongoing",AX96,IF(RIGHT($K96,2)=RIGHT(BT$39,2),SUM($AV96:AX96),0)+IF(RIGHT(BT$39,2)>RIGHT($K96,2),AX96,0)) -> 0 | BU96: =+IF($K96="Ongoing",AY96,IF(RIGHT($K96,2)=RIGHT(BU$39,2),SUM($AV96:AY96),0)+IF(RIGHT(BU$39,2)>RIGHT($K96,2),AY96,0)) -> 0 | BV96: =+IF($K96="Ongoing",AZ96,IF(RIGHT($K96,2)=RIGHT(BV$39,2),SUM($AV96:AZ96),0)+IF(RIGHT(BV$39,2)>RIGHT($K96,2),AZ96,0)) -> 0 | BW96: =+IF($K96="Ongoing",BA96,IF(RIGHT($K96,2)=RIGHT(BW$39,2),SUM($AV96:BA96),0)+IF(RIGHT(BW$39,2)>RIGHT($K96,2),BA96,0)) -> 0 | BX96: =+IF($K96="Ongoing",BB96,IF(RIGHT($K96,2)=RIGHT(BX$39,2),SUM($AV96:BB96),0)+IF(RIGHT(BX$39,2)>RIGHT($K96,2),BB96,0)) -> 0 | BY96: =+IF($K96="Ongoing",BC96,IF(RIGHT($K96,2)=RIGHT(BY$39,2),SUM($AV96:BC96),0)+IF(RIGHT(BY$39,2)>RIGHT($K96,2),BC96,0)) -> 0 | BZ96: =+IF($K96="Ongoing",BD96,IF(RIGHT($K96,2)=RIGHT(BZ$39,2),SUM($AV96:BD96),0)+IF(RIGHT(BZ$39,2)>RIGHT($K96,2),BD96,0)) -> 0 | CA96: =+IF($K96="Ongoing",BE96,IF(RIGHT($K96,2)=RIGHT(CA$39,2),SUM($AV96:BE96),0)+IF(RIGHT(CA$39,2)>RIGHT($K96,2),BE96,0)) -> 0 | CC96: =+O96*KeyAssumptionsPriceControl_FO!X$15 -> 0 | CD96: =+P96*KeyAssumptionsPriceControl_FO!Y$15 -> 0 | CE96: =+Q96*KeyAssumptionsPriceControl_FO!Z$15 -> 0 | CF96: =+R96*KeyAssumptionsPriceControl_FO!AA$15 -> 0 | CG96: =+S96*KeyAssumptionsPriceControl_FO!AB$15 -> 0 | CH96: =+T96*KeyAssumptionsPriceControl_FO!AC$15 -> 0 | CI96: =+U96*KeyAssumptionsPriceControl_FO!AD$15 -> 0 | CJ96: =+V96*KeyAssumptionsPriceControl_FO!AE$15 -> 0 | CK96: =+W96*KeyAssumptionsPriceControl_FO!AF$15 -> 0 | CL96: =+X96*KeyAssumptionsPriceControl_FO!AG$15 -> 0 | CN96: 0 | CO96: 0 | CP96: 0 | CQ96: 0 | CR96: 0 | CS96: 0 | CT96: 0 | CU96: 0 | CV96: 0 | CW96: 0
C97: [Capex Item - Significant Project / Capital Program / Other Capex] | E97: [Service] | F97: [Major Cost Driver] | G97: [Asset category] | H97: [Capital type] | J97: Straight line | K97: [Year finalised?] | AV97: 0 | AW97: 0 | AX97: 0 | AY97: 0 | AZ97: 0 | BA97: 0 | BB97: 0 | BC97: 0 | BD97: 0 | BE97: 0 | BG97: 0 | BH97: 0 | BI97: 0 | BJ97: 0 | BK97: 0 | BL97: 0 | BM97: 0 | BN97: 0 | BO97: 0 | BP97: 0 | BR97: =+IF($K97="Ongoing",AV97,IF(RIGHT($K97,2)=RIGHT(BR$39,2),SUM($AV97:AV97),0)+IF(RIGHT(BR$39,2)>RIGHT($K97,2),AV97,0)) -> 0 | BS97: =+IF($K97="Ongoing",AW97,IF(RIGHT($K97,2)=RIGHT(BS$39,2),SUM($AV97:AW97),0)+IF(RIGHT(BS$39,2)>RIGHT($K97,2),AW97,0)) -> 0 | BT97: =+IF($K97="Ongoing",AX97,IF(RIGHT($K97,2)=RIGHT(BT$39,2),SUM($AV97:AX97),0)+IF(RIGHT(BT$39,2)>RIGHT($K97,2),AX97,0)) -> 0 | BU97: =+IF($K97="Ongoing",AY97,IF(RIGHT($K97,2)=RIGHT(BU$39,2),SUM($AV97:AY97),0)+IF(RIGHT(BU$39,2)>RIGHT($K97,2),AY97,0)) -> 0 | BV97: =+IF($K97="Ongoing",AZ97,IF(RIGHT($K97,2)=RIGHT(BV$39,2),SUM($AV97:AZ97),0)+IF(RIGHT(BV$39,2)>RIGHT($K97,2),AZ97,0)) -> 0 | BW97: =+IF($K97="Ongoing",BA97,IF(RIGHT($K97,2)=RIGHT(BW$39,2),SUM($AV97:BA97),0)+IF(RIGHT(BW$39,2)>RIGHT($K97,2),BA97,0)) -> 0 | BX97: =+IF($K97="Ongoing",BB97,IF(RIGHT($K97,2)=RIGHT(BX$39,2),SUM($AV97:BB97),0)+IF(RIGHT(BX$39,2)>RIGHT($K97,2),BB97,0)) -> 0 | BY97: =+IF($K97="Ongoing",BC97,IF(RIGHT($K97,2)=RIGHT(BY$39,2),SUM($AV97:BC97),0)+IF(RIGHT(BY$39,2)>RIGHT($K97,2),BC97,0)) -> 0 | BZ97: =+IF($K97="Ongoing",BD97,IF(RIGHT($K97,2)=RIGHT(BZ$39,2),SUM($AV97:BD97),0)+IF(RIGHT(BZ$39,2)>RIGHT($K97,2),BD97,0)) -> 0 | CA97: =+IF($K97="Ongoing",BE97,IF(RIGHT($K97,2)=RIGHT(CA$39,2),SUM($AV97:BE97),0)+IF(RIGHT(CA$39,2)>RIGHT($K97,2),BE97,0)) -> 0 | CC97: =+O97*KeyAssumptionsPriceControl_FO!X$15 -> 0 | CD97: =+P97*KeyAssumptionsPriceControl_FO!Y$15 -> 0 | CE97: =+Q97*KeyAssumptionsPriceControl_FO!Z$15 -> 0 | CF97: =+R97*KeyAssumptionsPriceControl_FO!AA$15 -> 0 | CG97: =+S97*KeyAssumptionsPriceControl_FO!AB$15 -> 0 | CH97: =+T97*KeyAssumptionsPriceControl_FO!AC$15 -> 0 | CI97: =+U97*KeyAssumptionsPriceControl_FO!AD$15 -> 0 | CJ97: =+V97*KeyAssumptionsPriceControl_FO!AE$15 -> 0 | CK97: =+W97*KeyAssumptionsPriceControl_FO!AF$15 -> 0 | CL97: =+X97*KeyAssumptionsPriceControl_FO!AG$15 -> 0 | CN97: 0 | CO97: 0 | CP97: 0 | CQ97: 0 | CR97: 0 | CS97: 0 | CT97: 0 | CU97: 0 | CV97: 0 | CW97: 0
C98: [Capex Item - Significant Project / Capital Program / Other Capex] | E98: [Service] | F98: [Major Cost Driver] | G98: [Asset category] | H98: [Capital type] | J98: Straight line | K98: [Year finalised?] | AV98: 0 | AW98: 0 | AX98: 0 | AY98: 0 | AZ98: 0 | BA98: 0 | BB98: 0 | BC98: 0 | BD98: 0 | BE98: 0 | BG98: 0 | BH98: 0 | BI98: 0 | BJ98: 0 | BK98: 0 | BL98: 0 | BM98: 0 | BN98: 0 | BO98: 0 | BP98: 0 | BR98: =+IF($K98="Ongoing",AV98,IF(RIGHT($K98,2)=RIGHT(BR$39,2),SUM($AV98:AV98),0)+IF(RIGHT(BR$39,2)>RIGHT($K98,2),AV98,0)) -> 0 | BS98: =+IF($K98="Ongoing",AW98,IF(RIGHT($K98,2)=RIGHT(BS$39,2),SUM($AV98:AW98),0)+IF(RIGHT(BS$39,2)>RIGHT($K98,2),AW98,0)) -> 0 | BT98: =+IF($K98="Ongoing",AX98,IF(RIGHT($K98,2)=RIGHT(BT$39,2),SUM($AV98:AX98),0)+IF(RIGHT(BT$39,2)>RIGHT($K98,2),AX98,0)) -> 0 | BU98: =+IF($K98="Ongoing",AY98,IF(RIGHT($K98,2)=RIGHT(BU$39,2),SUM($AV98:AY98),0)+IF(RIGHT(BU$39,2)>RIGHT($K98,2),AY98,0)) -> 0 | BV98: =+IF($K98="Ongoing",AZ98,IF(RIGHT($K98,2)=RIGHT(BV$39,2),SUM($AV98:AZ98),0)+IF(RIGHT(BV$39,2)>RIGHT($K98,2),AZ98,0)) -> 0 | BW98: =+IF($K98="Ongoing",BA98,IF(RIGHT($K98,2)=RIGHT(BW$39,2),SUM($AV98:BA98),0)+IF(RIGHT(BW$39,2)>RIGHT($K98,2),BA98,0)) -> 0 | BX98: =+IF($K98="Ongoing",BB98,IF(RIGHT($K98,2)=RIGHT(BX$39,2),SUM($AV98:BB98),0)+IF(RIGHT(BX$39,2)>RIGHT($K98,2),BB98,0)) -> 0 | BY98: =+IF($K98="Ongoing",BC98,IF(RIGHT($K98,2)=RIGHT(BY$39,2),SUM($AV98:BC98),0)+IF(RIGHT(BY$39,2)>RIGHT($K98,2),BC98,0)) -> 0 | BZ98: =+IF($K98="Ongoing",BD98,IF(RIGHT($K98,2)=RIGHT(BZ$39,2),SUM($AV98:BD98),0)+IF(RIGHT(BZ$39,2)>RIGHT($K98,2),BD98,0)) -> 0 | CA98: =+IF($K98="Ongoing",BE98,IF(RIGHT($K98,2)=RIGHT(CA$39,2),SUM($AV98:BE98),0)+IF(RIGHT(CA$39,2)>RIGHT($K98,2),BE98,0)) -> 0 | CC98: =+O98*KeyAssumptionsPriceControl_FO!X$15 -> 0 | CD98: =+P98*KeyAssumptionsPriceControl_FO!Y$15 -> 0 | CE98: =+Q98*KeyAssumptionsPriceControl_FO!Z$15 -> 0 | CF98: =+R98*KeyAssumptionsPriceControl_FO!AA$15 -> 0 | CG98: =+S98*KeyAssumptionsPriceControl_FO!AB$15 -> 0 | CH98: =+T98*KeyAssumptionsPriceControl_FO!AC$15 -> 0 | CI98: =+U98*KeyAssumptionsPriceControl_FO!AD$15 -> 0 | CJ98: =+V98*KeyAssumptionsPriceControl_FO!AE$15 -> 0 | CK98: =+W98*KeyAssumptionsPriceControl_FO!AF$15 -> 0 | CL98: =+X98*KeyAssumptionsPriceControl_FO!AG$15 -> 0 | CN98: 0 | CO98: 0 | CP98: 0 | CQ98: 0 | CR98: 0 | CS98: 0 | CT98: 0 | CU98: 0 | CV98: 0 | CW98: 0
C99: [Capex Item - Significant Project / Capital Program / Other Capex] | E99: [Service] | F99: [Major Cost Driver] | G99: [Asset category] | H99: [Capital type] | J99: Straight line | K99: [Year finalised?] | AV99: 0 | AW99: 0 | AX99: 0 | AY99: 0 | AZ99: 0 | BA99: 0 | BB99: 0 | BC99: 0 | BD99: 0 | BE99: 0 | BG99: 0 | BH99: 0 | BI99: 0 | BJ99: 0 | BK99: 0 | BL99: 0 | BM99: 0 | BN99: 0 | BO99: 0 | BP99: 0 | BR99: =+IF($K99="Ongoing",AV99,IF(RIGHT($K99,2)=RIGHT(BR$39,2),SUM($AV99:AV99),0)+IF(RIGHT(BR$39,2)>RIGHT($K99,2),AV99,0)) -> 0 | BS99: =+IF($K99="Ongoing",AW99,IF(RIGHT($K99,2)=RIGHT(BS$39,2),SUM($AV99:AW99),0)+IF(RIGHT(BS$39,2)>RIGHT($K99,2),AW99,0)) -> 0 | BT99: =+IF($K99="Ongoing",AX99,IF(RIGHT($K99,2)=RIGHT(BT$39,2),SUM($AV99:AX99),0)+IF(RIGHT(BT$39,2)>RIGHT($K99,2),AX99,0)) -> 0 | BU99: =+IF($K99="Ongoing",AY99,IF(RIGHT($K99,2)=RIGHT(BU$39,2),SUM($AV99:AY99),0)+IF(RIGHT(BU$39,2)>RIGHT($K99,2),AY99,0)) -> 0 | BV99: =+IF($K99="Ongoing",AZ99,IF(RIGHT($K99,2)=RIGHT(BV$39,2),SUM($AV99:AZ99),0)+IF(RIGHT(BV$39,2)>RIGHT($K99,2),AZ99,0)) -> 0 | BW99: =+IF($K99="Ongoing",BA99,IF(RIGHT($K99,2)=RIGHT(BW$39,2),SUM($AV99:BA99),0)+IF(RIGHT(BW$39,2)>RIGHT($K99,2),BA99,0)) -> 0 | BX99: =+IF($K99="Ongoing",BB99,IF(RIGHT($K99,2)=RIGHT(BX$39,2),SUM($AV99:BB99),0)+IF(RIGHT(BX$39,2)>RIGHT($K99,2),BB99,0)) -> 0 | BY99: =+IF($K99="Ongoing",BC99,IF(RIGHT($K99,2)=RIGHT(BY$39,2),SUM($AV99:BC99),0)+IF(RIGHT(BY$39,2)>RIGHT($K99,2),BC99,0)) -> 0 | BZ99: =+IF($K99="Ongoing",BD99,IF(RIGHT($K99,2)=RIGHT(BZ$39,2),SUM($AV99:BD99),0)+IF(RIGHT(BZ$39,2)>RIGHT($K99,2),BD99,0)) -> 0 | CA99: =+IF($K99="Ongoing",BE99,IF(RIGHT($K99,2)=RIGHT(CA$39,2),SUM($AV99:BE99),0)+IF(RIGHT(CA$39,2)>RIGHT($K99,2),BE99,0)) -> 0 | CC99: =+O99*KeyAssumptionsPriceControl_FO!X$15 -> 0 | CD99: =+P99*KeyAssumptionsPriceControl_FO!Y$15 -> 0 | CE99: =+Q99*KeyAssumptionsPriceControl_FO!Z$15 -> 0 | CF99: =+R99*KeyAssumptionsPriceControl_FO!AA$15 -> 0 | CG99: =+S99*KeyAssumptionsPriceControl_FO!AB$15 -> 0 | CH99: =+T99*KeyAssumptionsPriceControl_FO!AC$15 -> 0 | CI99: =+U99*KeyAssumptionsPriceControl_FO!AD$15 -> 0 | CJ99: =+V99*KeyAssumptionsPriceControl_FO!AE$15 -> 0 | CK99: =+W99*KeyAssumptionsPriceControl_FO!AF$15 -> 0 | CL99: =+X99*KeyAssumptionsPriceControl_FO!AG$15 -> 0 | CN99: 0 | CO99: 0 | CP99: 0 | CQ99: 0 | CR99: 0 | CS99: 0 | CT99: 0 | CU99: 0 | CV99: 0 | CW99: 0
C100: [Capex Item - Significant Project / Capital Program / Other Capex] | E100: [Service] | F100: [Major Cost Driver] | G100: [Asset category] | H100: [Capital type] | J100: Straight line | K100: [Year finalised?] | AV100: 0 | AW100: 0 | AX100: 0 | AY100: 0 | AZ100: 0 | BA100: 0 | BB100: 0 | BC100: 0 | BD100: 0 | BE100: 0 | BG100: 0 | BH100: 0 | BI100: 0 | BJ100: 0 | BK100: 0 | BL100: 0 | BM100: 0 | BN100: 0 | BO100: 0 | BP100: 0 | BR100: =+IF($K100="Ongoing",AV100,IF(RIGHT($K100,2)=RIGHT(BR$39,2),SUM($AV100:AV100),0)+IF(RIGHT(BR$39,2)>RIGHT($K100,2),AV100,0)) -> 0 | BS100: =+IF($K100="Ongoing",AW100,IF(RIGHT($K100,2)=RIGHT(BS$39,2),SUM($AV100:AW100),0)+IF(RIGHT(BS$39,2)>RIGHT($K100,2),AW100,0)) -> 0 | BT100: =+IF($K100="Ongoing",AX100,IF(RIGHT($K100,2)=RIGHT(BT$39,2),SUM($AV100:AX100),0)+IF(RIGHT(BT$39,2)>RIGHT($K100,2),AX100,0)) -> 0 | BU100: =+IF($K100="Ongoing",AY100,IF(RIGHT($K100,2)=RIGHT(BU$39,2),SUM($AV100:AY100),0)+IF(RIGHT(BU$39,2)>RIGHT($K100,2),AY100,0)) -> 0 | BV100: =+IF($K100="Ongoing",AZ100,IF(RIGHT($K100,2)=RIGHT(BV$39,2),SUM($AV100:AZ100),0)+IF(RIGHT(BV$39,2)>RIGHT($K100,2),AZ100,0)) -> 0 | BW100: =+IF($K100="Ongoing",BA100,IF(RIGHT($K100,2)=RIGHT(BW$39,2),SUM($AV100:BA100),0)+IF(RIGHT(BW$39,2)>RIGHT($K100,2),BA100,0)) -> 0 | BX100: =+IF($K100="Ongoing",BB100,IF(RIGHT($K100,2)=RIGHT(BX$39,2),SUM($AV100:BB100),0)+IF(RIGHT(BX$39,2)>RIGHT($K100,2),BB100,0)) -> 0 | BY100: =+IF($K100="Ongoing",BC100,IF(RIGHT($K100,2)=RIGHT(BY$39,2),SUM($AV100:BC100),0)+IF(RIGHT(BY$39,2)>RIGHT($K100,2),BC100,0)) -> 0 | BZ100: =+IF($K100="Ongoing",BD100,IF(RIGHT($K100,2)=RIGHT(BZ$39,2),SUM($AV100:BD100),0)+IF(RIGHT(BZ$39,2)>RIGHT($K100,2),BD100,0)) -> 0 | CA100: =+IF($K100="Ongoing",BE100,IF(RIGHT($K100,2)=RIGHT(CA$39,2),SUM($AV100:BE100),0)+IF(RIGHT(CA$39,2)>RIGHT($K100,2),BE100,0)) -> 0 | CC100: =+O100*KeyAssumptionsPriceControl_FO!X$15 -> 0 | CD100: =+P100*KeyAssumptionsPriceControl_FO!Y$15 -> 0 | CE100: =+Q100*KeyAssumptionsPriceControl_FO!Z$15 -> 0 | CF100: =+R100*KeyAssumptionsPriceControl_FO!AA$15 -> 0 | CG100: =+S100*KeyAssumptionsPriceControl_FO!AB$15 -> 0 | CH100: =+T100*KeyAssumptionsPriceControl_FO!AC$15 -> 0 | CI100: =+U100*KeyAssumptionsPriceControl_FO!AD$15 -> 0 | CJ100: =+V100*KeyAssumptionsPriceControl_FO!AE$15 -> 0 | CK100: =+W100*KeyAssumptionsPriceControl_FO!AF$15 -> 0 | CL100: =+X100*KeyAssumptionsPriceControl_FO!AG$15 -> 0 | CN100: 0 | CO100: 0 | CP100: 0 | CQ100: 0 | CR100: 0 | CS100: 0 | CT100: 0 | CU100: 0 | CV100: 0 | CW100: 0
C101: [Capex Item - Significant Project / Capital Program / Other Capex] | E101: [Service] | F101: [Major Cost Driver] | G101: [Asset category] | H101: [Capital type] | J101: Straight line | K101: [Year finalised?] | AV101: 0 | AW101: 0 | AX101: 0 | AY101: 0 | AZ101: 0 | BA101: 0 | BB101: 0 | BC101: 0 | BD101: 0 | BE101: 0 | BG101: 0 | BH101: 0 | BI101: 0 | BJ101: 0 | BK101: 0 | BL101: 0 | BM101: 0 | BN101: 0 | BO101: 0 | BP101: 0 | BR101: =+IF($K101="Ongoing",AV101,IF(RIGHT($K101,2)=RIGHT(BR$39,2),SUM($AV101:AV101),0)+IF(RIGHT(BR$39,2)>RIGHT($K101,2),AV101,0)) -> 0 | BS101: =+IF($K101="Ongoing",AW101,IF(RIGHT($K101,2)=RIGHT(BS$39,2),SUM($AV101:AW101),0)+IF(RIGHT(BS$39,2)>RIGHT($K101,2),AW101,0)) -> 0 | BT101: =+IF($K101="Ongoing",AX101,IF(RIGHT($K101,2)=RIGHT(BT$39,2),SUM($AV101:AX101),0)+IF(RIGHT(BT$39,2)>RIGHT($K101,2),AX101,0)) -> 0 | BU101: =+IF($K101="Ongoing",AY101,IF(RIGHT($K101,2)=RIGHT(BU$39,2),SUM($AV101:AY101),0)+IF(RIGHT(BU$39,2)>RIGHT($K101,2),AY101,0)) -> 0 | BV101: =+IF($K101="Ongoing",AZ101,IF(RIGHT($K101,2)=RIGHT(BV$39,2),SUM($AV101:AZ101),0)+IF(RIGHT(BV$39,2)>RIGHT($K101,2),AZ101,0)) -> 0 | BW101: =+IF($K101="Ongoing",BA101,IF(RIGHT($K101,2)=RIGHT(BW$39,2),SUM($AV101:BA101),0)+IF(RIGHT(BW$39,2)>RIGHT($K101,2),BA101,0)) -> 0 | BX101: =+IF($K101="Ongoing",BB101,IF(RIGHT($K101,2)=RIGHT(BX$39,2),SUM($AV101:BB101),0)+IF(RIGHT(BX$39,2)>RIGHT($K101,2),BB101,0)) -> 0 | BY101: =+IF($K101="Ongoing",BC101,IF(RIGHT($K101,2)=RIGHT(BY$39,2),SUM($AV101:BC101),0)+IF(RIGHT(BY$39,2)>RIGHT($K101,2),BC101,0)) -> 0 | BZ101: =+IF($K101="Ongoing",BD101,IF(RIGHT($K101,2)=RIGHT(BZ$39,2),SUM($AV101:BD101),0)+IF(RIGHT(BZ$39,2)>RIGHT($K101,2),BD101,0)) -> 0 | CA101: =+IF($K101="Ongoing",BE101,IF(RIGHT($K101,2)=RIGHT(CA$39,2),SUM($AV101:BE101),0)+IF(RIGHT(CA$39,2)>RIGHT($K101,2),BE101,0)) -> 0 | CC101: =+O101*KeyAssumptionsPriceControl_FO!X$15 -> 0 | CD101: =+P101*KeyAssumptionsPriceControl_FO!Y$15 -> 0 | CE101: =+Q101*KeyAssumptionsPriceControl_FO!Z$15 -> 0 | CF101: =+R101*KeyAssumptionsPriceControl_FO!AA$15 -> 0 | CG101: =+S101*KeyAssumptionsPriceControl_FO!AB$15 -> 0 | CH101: =+T101*KeyAssumptionsPriceControl_FO!AC$15 -> 0 | CI101: =+U101*KeyAssumptionsPriceControl_FO!AD$15 -> 0 | CJ101: =+V101*KeyAssumptionsPriceControl_FO!AE$15 -> 0 | CK101: =+W101*KeyAssumptionsPriceControl_FO!AF$15 -> 0 | CL101: =+X101*KeyAssumptionsPriceControl_FO!AG$15 -> 0 | CN101: 0 | CO101: 0 | CP101: 0 | CQ101: 0 | CR101: 0 | CS101: 0 | CT101: 0 | CU101: 0 | CV101: 0 | CW101: 0
C102: [Capex Item - Significant Project / Capital Program / Other Capex] | E102: [Service] | F102: [Major Cost Driver] | G102: [Asset category] | H102: [Capital type] | J102: Straight line | K102: [Year finalised?] | AV102: 0 | AW102: 0 | AX102: 0 | AY102: 0 | AZ102: 0 | BA102: 0 | BB102: 0 | BC102: 0 | BD102: 0 | BE102: 0 | BG102: 0 | BH102: 0 | BI102: 0 | BJ102: 0 | BK102: 0 | BL102: 0 | BM102: 0 | BN102: 0 | BO102: 0 | BP102: 0 | BR102: =+IF($K102="Ongoing",AV102,IF(RIGHT($K102,2)=RIGHT(BR$39,2),SUM($AV102:AV102),0)+IF(RIGHT(BR$39,2)>RIGHT($K102,2),AV102,0)) -> 0 | BS102: =+IF($K102="Ongoing",AW102,IF(RIGHT($K102,2)=RIGHT(BS$39,2),SUM($AV102:AW102),0)+IF(RIGHT(BS$39,2)>RIGHT($K102,2),AW102,0)) -> 0 | BT102: =+IF($K102="Ongoing",AX102,IF(RIGHT($K102,2)=RIGHT(BT$39,2),SUM($AV102:AX102),0)+IF(RIGHT(BT$39,2)>RIGHT($K102,2),AX102,0)) -> 0 | BU102: =+IF($K102="Ongoing",AY102,IF(RIGHT($K102,2)=RIGHT(BU$39,2),SUM($AV102:AY102),0)+IF(RIGHT(BU$39,2)>RIGHT($K102,2),AY102,0)) -> 0 | BV102: =+IF($K102="Ongoing",AZ102,IF(RIGHT($K102,2)=RIGHT(BV$39,2),SUM($AV102:AZ102),0)+IF(RIGHT(BV$39,2)>RIGHT($K102,2),AZ102,0)) -> 0 | BW102: =+IF($K102="Ongoing",BA102,IF(RIGHT($K102,2)=RIGHT(BW$39,2),SUM($AV102:BA102),0)+IF(RIGHT(BW$39,2)>RIGHT($K102,2),BA102,0)) -> 0 | BX102: =+IF($K102="Ongoing",BB102,IF(RIGHT($K102,2)=RIGHT(BX$39,2),SUM($AV102:BB102),0)+IF(RIGHT(BX$39,2)>RIGHT($K102,2),BB102,0)) -> 0 | BY102: =+IF($K102="Ongoing",BC102,IF(RIGHT($K102,2)=RIGHT(BY$39,2),SUM($AV102:BC102),0)+IF(RIGHT(BY$39,2)>RIGHT($K102,2),BC102,0)) -> 0 | BZ102: =+IF($K102="Ongoing",BD102,IF(RIGHT($K102,2)=RIGHT(BZ$39,2),SUM($AV102:BD102),0)+IF(RIGHT(BZ$39,2)>RIGHT($K102,2),BD102,0)) -> 0 | CA102: =+IF($K102="Ongoing",BE102,IF(RIGHT($K102,2)=RIGHT(CA$39,2),SUM($AV102:BE102),0)+IF(RIGHT(CA$39,2)>RIGHT($K102,2),BE102,0)) -> 0 | CC102: =+O102*KeyAssumptionsPriceControl_FO!X$15 -> 0 | CD102: =+P102*KeyAssumptionsPriceControl_FO!Y$15 -> 0 | CE102: =+Q102*KeyAssumptionsPriceControl_FO!Z$15 -> 0 | CF102: =+R102*KeyAssumptionsPriceControl_FO!AA$15 -> 0 | CG102: =+S102*KeyAssumptionsPriceControl_FO!AB$15 -> 0 | CH102: =+T102*KeyAssumptionsPriceControl_FO!AC$15 -> 0 | CI102: =+U102*KeyAssumptionsPriceControl_FO!AD$15 -> 0 | CJ102: =+V102*KeyAssumptionsPriceControl_FO!AE$15 -> 0 | CK102: =+W102*KeyAssumptionsPriceControl_FO!AF$15 -> 0 | CL102: =+X102*KeyAssumptionsPriceControl_FO!AG$15 -> 0 | CN102: 0 | CO102: 0 | CP102: 0 | CQ102: 0 | CR102: 0 | CS102: 0 | CT102: 0 | CU102: 0 | CV102: 0 | CW102: 0
C103: [Capex Item - Significant Project / Capital Program / Other Capex] | E103: [Service] | F103: [Major Cost Driver] | G103: [Asset category] | H103: [Capital type] | J103: Straight line | K103: [Year finalised?] | AV103: 0 | AW103: 0 | AX103: 0 | AY103: 0 | AZ103: 0 | BA103: 0 | BB103: 0 | BC103: 0 | BD103: 0 | BE103: 0 | BG103: 0 | BH103: 0 | BI103: 0 | BJ103: 0 | BK103: 0 | BL103: 0 | BM103: 0 | BN103: 0 | BO103: 0 | BP103: 0 | BR103: =+IF($K103="Ongoing",AV103,IF(RIGHT($K103,2)=RIGHT(BR$39,2),SUM($AV103:AV103),0)+IF(RIGHT(BR$39,2)>RIGHT($K103,2),AV103,0)) -> 0 | BS103: =+IF($K103="Ongoing",AW103,IF(RIGHT($K103,2)=RIGHT(BS$39,2),SUM($AV103:AW103),0)+IF(RIGHT(BS$39,2)>RIGHT($K103,2),AW103,0)) -> 0 | BT103: =+IF($K103="Ongoing",AX103,IF(RIGHT($K103,2)=RIGHT(BT$39,2),SUM($AV103:AX103),0)+IF(RIGHT(BT$39,2)>RIGHT($K103,2),AX103,0)) -> 0 | BU103: =+IF($K103="Ongoing",AY103,IF(RIGHT($K103,2)=RIGHT(BU$39,2),SUM($AV103:AY103),0)+IF(RIGHT(BU$39,2)>RIGHT($K103,2),AY103,0)) -> 0 | BV103: =+IF($K103="Ongoing",AZ103,IF(RIGHT($K103,2)=RIGHT(BV$39,2),SUM($AV103:AZ103),0)+IF(RIGHT(BV$39,2)>RIGHT($K103,2),AZ103,0)) -> 0 | BW103: =+IF($K103="Ongoing",BA103,IF(RIGHT($K103,2)=RIGHT(BW$39,2),SUM($AV103:BA103),0)+IF(RIGHT(BW$39,2)>RIGHT($K103,2),BA103,0)) -> 0 | BX103: =+IF($K103="Ongoing",BB103,IF(RIGHT($K103,2)=RIGHT(BX$39,2),SUM($AV103:BB103),0)+IF(RIGHT(BX$39,2)>RIGHT($K103,2),BB103,0)) -> 0 | BY103: =+IF($K103="Ongoing",BC103,IF(RIGHT($K103,2)=RIGHT(BY$39,2),SUM($AV103:BC103),0)+IF(RIGHT(BY$39,2)>RIGHT($K103,2),BC103,0)) -> 0 | BZ103: =+IF($K103="Ongoing",BD103,IF(RIGHT($K103,2)=RIGHT(BZ$39,2),SUM($AV103:BD103),0)+IF(RIGHT(BZ$39,2)>RIGHT($K103,2),BD103,0)) -> 0 | CA103: =+IF($K103="Ongoing",BE103,IF(RIGHT($K103,2)=RIGHT(CA$39,2),SUM($AV103:BE103),0)+IF(RIGHT(CA$39,2)>RIGHT($K103,2),BE103,0)) -> 0 | CC103: =+O103*KeyAssumptionsPriceControl_FO!X$15 -> 0 | CD103: =+P103*KeyAssumptionsPriceControl_FO!Y$15 -> 0 | CE103: =+Q103*KeyAssumptionsPriceControl_FO!Z$15 -> 0 | CF103: =+R103*KeyAssumptionsPriceControl_FO!AA$15 -> 0 | CG103: =+S103*KeyAssumptionsPriceControl_FO!AB$15 -> 0 | CH103: =+T103*KeyAssumptionsPriceControl_FO!AC$15 -> 0 | CI103: =+U103*KeyAssumptionsPriceControl_FO!AD$15 -> 0 | CJ103: =+V103*KeyAssumptionsPriceControl_FO!AE$15 -> 0 | CK103: =+W103*KeyAssumptionsPriceControl_FO!AF$15 -> 0 | CL103: =+X103*KeyAssumptionsPriceControl_FO!AG$15 -> 0 | CN103: 0 | CO103: 0 | CP103: 0 | CQ103: 0 | CR103: 0 | CS103: 0 | CT103: 0 | CU103: 0 | CV103: 0 | CW103: 0
C104: [Capex Item - Significant Project / Capital Program / Other Capex] | E104: [Service] | F104: [Major Cost Driver] | G104: [Asset category] | H104: [Capital type] | J104: Straight line | K104: [Year finalised?] | AV104: 0 | AW104: 0 | AX104: 0 | AY104: 0 | AZ104: 0 | BA104: 0 | BB104: 0 | BC104: 0 | BD104: 0 | BE104: 0 | BG104: 0 | BH104: 0 | BI104: 0 | BJ104: 0 | BK104: 0 | BL104: 0 | BM104: 0 | BN104: 0 | BO104: 0 | BP104: 0 | BR104: =+IF($K104="Ongoing",AV104,IF(RIGHT($K104,2)=RIGHT(BR$39,2),SUM($AV104:AV104),0)+IF(RIGHT(BR$39,2)>RIGHT($K104,2),AV104,0)) -> 0 | BS104: =+IF($K104="Ongoing",AW104,IF(RIGHT($K104,2)=RIGHT(BS$39,2),SUM($AV104:AW104),0)+IF(RIGHT(BS$39,2)>RIGHT($K104,2),AW104,0)) -> 0 | BT104: =+IF($K104="Ongoing",AX104,IF(RIGHT($K104,2)=RIGHT(BT$39,2),SUM($AV104:AX104),0)+IF(RIGHT(BT$39,2)>RIGHT($K104,2),AX104,0)) -> 0 | BU104: =+IF($K104="Ongoing",AY104,IF(RIGHT($K104,2)=RIGHT(BU$39,2),SUM($AV104:AY104),0)+IF(RIGHT(BU$39,2)>RIGHT($K104,2),AY104,0)) -> 0 | BV104: =+IF($K104="Ongoing",AZ104,IF(RIGHT($K104,2)=RIGHT(BV$39,2),SUM($AV104:AZ104),0)+IF(RIGHT(BV$39,2)>RIGHT($K104,2),AZ104,0)) -> 0 | BW104: =+IF($K104="Ongoing",BA104,IF(RIGHT($K104,2)=RIGHT(BW$39,2),SUM($AV104:BA104),0)+IF(RIGHT(BW$39,2)>RIGHT($K104,2),BA104,0)) -> 0 | BX104: =+IF($K104="Ongoing",BB104,IF(RIGHT($K104,2)=RIGHT(BX$39,2),SUM($AV104:BB104),0)+IF(RIGHT(BX$39,2)>RIGHT($K104,2),BB104,0)) -> 0 | BY104: =+IF($K104="Ongoing",BC104,IF(RIGHT($K104,2)=RIGHT(BY$39,2),SUM($AV104:BC104),0)+IF(RIGHT(BY$39,2)>RIGHT($K104,2),BC104,0)) -> 0 | BZ104: =+IF($K104="Ongoing",BD104,IF(RIGHT($K104,2)=RIGHT(BZ$39,2),SUM($AV104:BD104),0)+IF(RIGHT(BZ$39,2)>RIGHT($K104,2),BD104,0)) -> 0 | CA104: =+IF($K104="Ongoing",BE104,IF(RIGHT($K104,2)=RIGHT(CA$39,2),SUM($AV104:BE104),0)+IF(RIGHT(CA$39,2)>RIGHT($K104,2),BE104,0)) -> 0 | CC104: =+O104*KeyAssumptionsPriceControl_FO!X$15 -> 0 | CD104: =+P104*KeyAssumptionsPriceControl_FO!Y$15 -> 0 | CE104: =+Q104*KeyAssumptionsPriceControl_FO!Z$15 -> 0 | CF104: =+R104*KeyAssumptionsPriceControl_FO!AA$15 -> 0 | CG104: =+S104*KeyAssumptionsPriceControl_FO!AB$15 -> 0 | CH104: =+T104*KeyAssumptionsPriceControl_FO!AC$15 -> 0 | CI104: =+U104*KeyAssumptionsPriceControl_FO!AD$15 -> 0 | CJ104: =+V104*KeyAssumptionsPriceControl_FO!AE$15 -> 0 | CK104: =+W104*KeyAssumptionsPriceControl_FO!AF$15 -> 0 | CL104: =+X104*KeyAssumptionsPriceControl_FO!AG$15 -> 0 | CN104: 0 | CO104: 0 | CP104: 0 | CQ104: 0 | CR104: 0 | CS104: 0 | CT104: 0 | CU104: 0 | CV104: 0 | CW104: 0
C105: [Capex Item - Significant Project / Capital Program / Other Capex] | E105: [Service] | F105: [Major Cost Driver] | G105: [Asset category] | H105: [Capital type] | J105: Straight line | K105: [Year finalised?] | AV105: 0 | AW105: 0 | AX105: 0 | AY105: 0 | AZ105: 0 | BA105: 0 | BB105: 0 | BC105: 0 | BD105: 0 | BE105: 0 | BG105: 0 | BH105: 0 | BI105: 0 | BJ105: 0 | BK105: 0 | BL105: 0 | BM105: 0 | BN105: 0 | BO105: 0 | BP105: 0 | BR105: =+IF($K105="Ongoing",AV105,IF(RIGHT($K105,2)=RIGHT(BR$39,2),SUM($AV105:AV105),0)+IF(RIGHT(BR$39,2)>RIGHT($K105,2),AV105,0)) -> 0 | BS105: =+IF($K105="Ongoing",AW105,IF(RIGHT($K105,2)=RIGHT(BS$39,2),SUM($AV105:AW105),0)+IF(RIGHT(BS$39,2)>RIGHT($K105,2),AW105,0)) -> 0 | BT105: =+IF($K105="Ongoing",AX105,IF(RIGHT($K105,2)=RIGHT(BT$39,2),SUM($AV105:AX105),0)+IF(RIGHT(BT$39,2)>RIGHT($K105,2),AX105,0)) -> 0 | BU105: =+IF($K105="Ongoing",AY105,IF(RIGHT($K105,2)=RIGHT(BU$39,2),SUM($AV105:AY105),0)+IF(RIGHT(BU$39,2)>RIGHT($K105,2),AY105,0)) -> 0 | BV105: =+IF($K105="Ongoing",AZ105,IF(RIGHT($K105,2)=RIGHT(BV$39,2),SUM($AV105:AZ105),0)+IF(RIGHT(BV$39,2)>RIGHT($K105,2),AZ105,0)) -> 0 | BW105: =+IF($K105="Ongoing",BA105,IF(RIGHT($K105,2)=RIGHT(BW$39,2),SUM($AV105:BA105),0)+IF(RIGHT(BW$39,2)>RIGHT($K105,2),BA105,0)) -> 0 | BX105: =+IF($K105="Ongoing",BB105,IF(RIGHT($K105,2)=RIGHT(BX$39,2),SUM($AV105:BB105),0)+IF(RIGHT(BX$39,2)>RIGHT($K105,2),BB105,0)) -> 0 | BY105: =+IF($K105="Ongoing",BC105,IF(RIGHT($K105,2)=RIGHT(BY$39,2),SUM($AV105:BC105),0)+IF(RIGHT(BY$39,2)>RIGHT($K105,2),BC105,0)) -> 0 | BZ105: =+IF($K105="Ongoing",BD105,IF(RIGHT($K105,2)=RIGHT(BZ$39,2),SUM($AV105:BD105),0)+IF(RIGHT(BZ$39,2)>RIGHT($K105,2),BD105,0)) -> 0 | CA105: =+IF($K105="Ongoing",BE105,IF(RIGHT($K105,2)=RIGHT(CA$39,2),SUM($AV105:BE105),0)+IF(RIGHT(CA$39,2)>RIGHT($K105,2),BE105,0)) -> 0 | CC105: =+O105*KeyAssumptionsPriceControl_FO!X$15 -> 0 | CD105: =+P105*KeyAssumptionsPriceControl_FO!Y$15 -> 0 | CE105: =+Q105*KeyAssumptionsPriceControl_FO!Z$15 -> 0 | CF105: =+R105*KeyAssumptionsPriceControl_FO!AA$15 -> 0 | CG105: =+S105*KeyAssumptionsPriceControl_FO!AB$15 -> 0 | CH105: =+T105*KeyAssumptionsPriceControl_FO!AC$15 -> 0 | CI105: =+U105*KeyAssumptionsPriceControl_FO!AD$15 -> 0 | CJ105: =+V105*KeyAssumptionsPriceControl_FO!AE$15 -> 0 | CK105: =+W105*KeyAssumptionsPriceControl_FO!AF$15 -> 0 | CL105: =+X105*KeyAssumptionsPriceControl_FO!AG$15 -> 0 | CN105: 0 | CO105: 0 | CP105: 0 | CQ105: 0 | CR105: 0 | CS105: 0 | CT105: 0 | CU105: 0 | CV105: 0 | CW105: 0
C106: [Capex Item - Significant Project / Capital Program / Other Capex] | E106: [Service] | F106: [Major Cost Driver] | G106: [Asset category] | H106: [Capital type] | J106: Straight line | K106: [Year finalised?] | AV106: 0 | AW106: 0 | AX106: 0 | AY106: 0 | AZ106: 0 | BA106: 0 | BB106: 0 | BC106: 0 | BD106: 0 | BE106: 0 | BG106: 0 | BH106: 0 | BI106: 0 | BJ106: 0 | BK106: 0 | BL106: 0 | BM106: 0 | BN106: 0 | BO106: 0 | BP106: 0 | BR106: =+IF($K106="Ongoing",AV106,IF(RIGHT($K106,2)=RIGHT(BR$39,2),SUM($AV106:AV106),0)+IF(RIGHT(BR$39,2)>RIGHT($K106,2),AV106,0)) -> 0 | BS106: =+IF($K106="Ongoing",AW106,IF(RIGHT($K106,2)=RIGHT(BS$39,2),SUM($AV106:AW106),0)+IF(RIGHT(BS$39,2)>RIGHT($K106,2),AW106,0)) -> 0 | BT106: =+IF($K106="Ongoing",AX106,IF(RIGHT($K106,2)=RIGHT(BT$39,2),SUM($AV106:AX106),0)+IF(RIGHT(BT$39,2)>RIGHT($K106,2),AX106,0)) -> 0 | BU106: =+IF($K106="Ongoing",AY106,IF(RIGHT($K106,2)=RIGHT(BU$39,2),SUM($AV106:AY106),0)+IF(RIGHT(BU$39,2)>RIGHT($K106,2),AY106,0)) -> 0 | BV106: =+IF($K106="Ongoing",AZ106,IF(RIGHT($K106,2)=RIGHT(BV$39,2),SUM($AV106:AZ106),0)+IF(RIGHT(BV$39,2)>RIGHT($K106,2),AZ106,0)) -> 0 | BW106: =+IF($K106="Ongoing",BA106,IF(RIGHT($K106,2)=RIGHT(BW$39,2),SUM($AV106:BA106),0)+IF(RIGHT(BW$39,2)>RIGHT($K106,2),BA106,0)) -> 0 | BX106: =+IF($K106="Ongoing",BB106,IF(RIGHT($K106,2)=RIGHT(BX$39,2),SUM($AV106:BB106),0)+IF(RIGHT(BX$39,2)>RIGHT($K106,2),BB106,0)) -> 0 | BY106: =+IF($K106="Ongoing",BC106,IF(RIGHT($K106,2)=RIGHT(BY$39,2),SUM($AV106:BC106),0)+IF(RIGHT(BY$39,2)>RIGHT($K106,2),BC106,0)) -> 0 | BZ106: =+IF($K106="Ongoing",BD106,IF(RIGHT($K106,2)=RIGHT(BZ$39,2),SUM($AV106:BD106),0)+IF(RIGHT(BZ$39,2)>RIGHT($K106,2),BD106,0)) -> 0 | CA106: =+IF($K106="Ongoing",BE106,IF(RIGHT($K106,2)=RIGHT(CA$39,2),SUM($AV106:BE106),0)+IF(RIGHT(CA$39,2)>RIGHT($K106,2),BE106,0)) -> 0 | CC106: =+O106*KeyAssumptionsPriceControl_FO!X$15 -> 0 | CD106: =+P106*KeyAssumptionsPriceControl_FO!Y$15 -> 0 | CE106: =+Q106*KeyAssumptionsPriceControl_FO!Z$15 -> 0 | CF106: =+R106*KeyAssumptionsPriceControl_FO!AA$15 -> 0 | CG106: =+S106*KeyAssumptionsPriceControl_FO!AB$15 -> 0 | CH106: =+T106*KeyAssumptionsPriceControl_FO!AC$15 -> 0 | CI106: =+U106*KeyAssumptionsPriceControl_FO!AD$15 -> 0 | CJ106: =+V106*KeyAssumptionsPriceControl_FO!AE$15 -> 0 | CK106: =+W106*KeyAssumptionsPriceControl_FO!AF$15 -> 0 | CL106: =+X106*KeyAssumptionsPriceControl_FO!AG$15 -> 0 | CN106: 0 | CO106: 0 | CP106: 0 | CQ106: 0 | CR106: 0 | CS106: 0 | CT106: 0 | CU106: 0 | CV106: 0 | CW106: 0
C107: [Capex Item - Significant Project / Capital Program / Other Capex] | E107: [Service] | F107: [Major Cost Driver] | G107: [Asset category] | H107: [Capital type] | J107: Straight line | K107: [Year finalised?] | AV107: 0 | AW107: 0 | AX107: 0 | AY107: 0 | AZ107: 0 | BA107: 0 | BB107: 0 | BC107: 0 | BD107: 0 | BE107: 0 | BG107: =IF($L107=0,0, IF($L107<=0.5,BR107, IF($J107="straight line", IF((LEFT(BG$39,4)*1)-INT($L107)<LEFT($BG$39,4)*1,0,((OFFSET(BR107,0,-INT($L107+0.5),1,1))/$L107)*(IF($L107-INT($L107)>0.5,$L107-0.5-INT($L107),IF($L107-INT($L107)<=0.5,$L107-0.5-INT($L107)+1,0)))) +BR107/$L107*0.5, IF($J107="Declining Balance",-$BG$38,0)))) -> 0 | BH107: 0 | BI107: 0 | BJ107: 0 | BK107: 0 | BL107: 0 | BM107: 0 | BN107: 0 | BO107: 0 | BP107: 0 | BR107: =+IF($K107="Ongoing",AV107,IF(RIGHT($K107,2)=RIGHT(BR$39,2),SUM($AV107:AV107),0)+IF(RIGHT(BR$39,2)>RIGHT($K107,2),AV107,0)) -> 0 | BS107: =+IF($K107="Ongoing",AW107,IF(RIGHT($K107,2)=RIGHT(BS$39,2),SUM($AV107:AW107),0)+IF(RIGHT(BS$39,2)>RIGHT($K107,2),AW107,0)) -> 0 | BT107: =+IF($K107="Ongoing",AX107,IF(RIGHT($K107,2)=RIGHT(BT$39,2),SUM($AV107:AX107),0)+IF(RIGHT(BT$39,2)>RIGHT($K107,2),AX107,0)) -> 0 | BU107: =+IF($K107="Ongoing",AY107,IF(RIGHT($K107,2)=RIGHT(BU$39,2),SUM($AV107:AY107),0)+IF(RIGHT(BU$39,2)>RIGHT($K107,2),AY107,0)) -> 0 | BV107: =+IF($K107="Ongoing",AZ107,IF(RIGHT($K107,2)=RIGHT(BV$39,2),SUM($AV107:AZ107),0)+IF(RIGHT(BV$39,2)>RIGHT($K107,2),AZ107,0)) -> 0 | BW107: =+IF($K107="Ongoing",BA107,IF(RIGHT($K107,2)=RIGHT(BW$39,2),SUM($AV107:BA107),0)+IF(RIGHT(BW$39,2)>RIGHT($K107,2),BA107,0)) -> 0 | BX107: =+IF($K107="Ongoing",BB107,IF(RIGHT($K107,2)=RIGHT(BX$39,2),SUM($AV107:BB107),0)+IF(RIGHT(BX$39,2)>RIGHT($K107,2),BB107,0)) -> 0 | BY107: =+IF($K107="Ongoing",BC107,IF(RIGHT($K107,2)=RIGHT(BY$39,2),SUM($AV107:BC107),0)+IF(RIGHT(BY$39,2)>RIGHT($K107,2),BC107,0)) -> 0 | BZ107: =+IF($K107="Ongoing",BD107,IF(RIGHT($K107,2)=RIGHT(BZ$39,2),SUM($AV107:BD107),0)+IF(RIGHT(BZ$39,2)>RIGHT($K107,2),BD107,0)) -> 0 | CA107: =+IF($K107="Ongoing",BE107,IF(RIGHT($K107,2)=RIGHT(CA$39,2),SUM($AV107:BE107),0)+IF(RIGHT(CA$39,2)>RIGHT($K107,2),BE107,0)) -> 0 | CC107: =+O107*KeyAssumptionsPriceControl_FO!X$15 -> 0 | CD107: =+P107*KeyAssumptionsPriceControl_FO!Y$15 -> 0 | CE107: =+Q107*KeyAssumptionsPriceControl_FO!Z$15 -> 0 | CF107: =+R107*KeyAssumptionsPriceControl_FO!AA$15 -> 0 | CG107: =+S107*KeyAssumptionsPriceControl_FO!AB$15 -> 0 | CH107: =+T107*KeyAssumptionsPriceControl_FO!AC$15 -> 0 | CI107: =+U107*KeyAssumptionsPriceControl_FO!AD$15 -> 0 | CJ107: =+V107*KeyAssumptionsPriceControl_FO!AE$15 -> 0 | CK107: =+W107*KeyAssumptionsPriceControl_FO!AF$15 -> 0 | CL107: =+X107*KeyAssumptionsPriceControl_FO!AG$15 -> 0 | CN107: =IF($M107=0,0, IF($M107<=0.5,CC107, IF($J107="straight line", IF((LEFT(CN$39,4)*1)-INT($M107)<LEFT($CN$39,4)*1,0,((OFFSET(CC107,0,-INT($M107+0.5),1,1))/$M107)*(IF($M107-INT($M107)>0.5,$M107-0.5-INT($M107),IF($M107-INT($M107)<=0.5,$M107-0.5-INT($M107)+1,0)))) +CC107/$M107*0.5, IF($J107="Declining Balance",-$CN$38,0)))) -> 0 | CO107: 0 | CP107: 0 | CQ107: 0 | CR107: 0 | CS107: 0 | CT107: 0 | CU107: 0 | CV107: 0 | CW107: 0
C108: [Capex Item - Significant Project / Capital Program / Other Capex] | E108: [Service] | F108: [Major Cost Driver] | G108: [Asset category] | H108: [Capital type] | J108: Straight line | K108: [Year finalised?] | AV108: 0 | AW108: 0 | AX108: 0 | AY108: 0 | AZ108: 0 | BA108: 0 | BB108: 0 | BC108: 0 | BD108: 0 | BE108: 0 | BG108: 0 | BH108: 0 | BI108: 0 | BJ108: 0 | BK108: 0 | BL108: 0 | BM108: 0 | BN108: 0 | BO108: 0 | BP108: 0 | BR108: =+IF($K108="Ongoing",AV108,IF(RIGHT($K108,2)=RIGHT(BR$39,2),SUM($AV108:AV108),0)+IF(RIGHT(BR$39,2)>RIGHT($K108,2),AV108,0)) -> 0 | BS108: =+IF($K108="Ongoing",AW108,IF(RIGHT($K108,2)=RIGHT(BS$39,2),SUM($AV108:AW108),0)+IF(RIGHT(BS$39,2)>RIGHT($K108,2),AW108,0)) -> 0 | BT108: =+IF($K108="Ongoing",AX108,IF(RIGHT($K108,2)=RIGHT(BT$39,2),SUM($AV108:AX108),0)+IF(RIGHT(BT$39,2)>RIGHT($K108,2),AX108,0)) -> 0 | BU108: =+IF($K108="Ongoing",AY108,IF(RIGHT($K108,2)=RIGHT(BU$39,2),SUM($AV108:AY108),0)+IF(RIGHT(BU$39,2)>RIGHT($K108,2),AY108,0)) -> 0 | BV108: =+IF($K108="Ongoing",AZ108,IF(RIGHT($K108,2)=RIGHT(BV$39,2),SUM($AV108:AZ108),0)+IF(RIGHT(BV$39,2)>RIGHT($K108,2),AZ108,0)) -> 0 | BW108: =+IF($K108="Ongoing",BA108,IF(RIGHT($K108,2)=RIGHT(BW$39,2),SUM($AV108:BA108),0)+IF(RIGHT(BW$39,2)>RIGHT($K108,2),BA108,0)) -> 0 | BX108: =+IF($K108="Ongoing",BB108,IF(RIGHT($K108,2)=RIGHT(BX$39,2),SUM($AV108:BB108),0)+IF(RIGHT(BX$39,2)>RIGHT($K108,2),BB108,0)) -> 0 | BY108: =+IF($K108="Ongoing",BC108,IF(RIGHT($K108,2)=RIGHT(BY$39,2),SUM($AV108:BC108),0)+IF(RIGHT(BY$39,2)>RIGHT($K108,2),BC108,0)) -> 0 | BZ108: =+IF($K108="Ongoing",BD108,IF(RIGHT($K108,2)=RIGHT(BZ$39,2),SUM($AV108:BD108),0)+IF(RIGHT(BZ$39,2)>RIGHT($K108,2),BD108,0)) -> 0 | CA108: =+IF($K108="Ongoing",BE108,IF(RIGHT($K108,2)=RIGHT(CA$39,2),SUM($AV108:BE108),0)+IF(RIGHT(CA$39,2)>RIGHT($K108,2),BE108,0)) -> 0 | CC108: =+O108*KeyAssumptionsPriceControl_FO!X$15 -> 0 | CD108: =+P108*KeyAssumptionsPriceControl_FO!Y$15 -> 0 | CE108: =+Q108*KeyAssumptionsPriceControl_FO!Z$15 -> 0 | CF108: =+R108*KeyAssumptionsPriceControl_FO!AA$15 -> 0 | CG108: =+S108*KeyAssumptionsPriceControl_FO!AB$15 -> 0 | CH108: =+T108*KeyAssumptionsPriceControl_FO!AC$15 -> 0 | CI108: =+U108*KeyAssumptionsPriceControl_FO!AD$15 -> 0 | CJ108: =+V108*KeyAssumptionsPriceControl_FO!AE$15 -> 0 | CK108: =+W108*KeyAssumptionsPriceControl_FO!AF$15 -> 0 | CL108: =+X108*KeyAssumptionsPriceControl_FO!AG$15 -> 0 | CN108: 0 | CO108: 0 | CP108: 0 | CQ108: 0 | CR108: 0 | CS108: 0 | CT108: 0 | CU108: 0 | CV108: 0 | CW108: 0
C109: [Capex Item - Significant Project / Capital Program / Other Capex] | E109: [Service] | F109: [Major Cost Driver] | G109: [Asset category] | H109: [Capital type] | J109: Straight line | K109: [Year finalised?] | AV109: 0 | AW109: 0 | AX109: 0 | AY109: 0 | AZ109: 0 | BA109: 0 | BB109: 0 | BC109: 0 | BD109: 0 | BE109: 0 | BG109: 0 | BH109: 0 | BI109: 0 | BJ109: 0 | BK109: 0 | BL109: 0 | BM109: 0 | BN109: 0 | BO109: 0 | BP109: 0 | BR109: =+IF($K109="Ongoing",AV109,IF(RIGHT($K109,2)=RIGHT(BR$39,2),SUM($AV109:AV109),0)+IF(RIGHT(BR$39,2)>RIGHT($K109,2),AV109,0)) -> 0 | BS109: =+IF($K109="Ongoing",AW109,IF(RIGHT($K109,2)=RIGHT(BS$39,2),SUM($AV109:AW109),0)+IF(RIGHT(BS$39,2)>RIGHT($K109,2),AW109,0)) -> 0 | BT109: =+IF($K109="Ongoing",AX109,IF(RIGHT($K109,2)=RIGHT(BT$39,2),SUM($AV109:AX109),0)+IF(RIGHT(BT$39,2)>RIGHT($K109,2),AX109,0)) -> 0 | BU109: =+IF($K109="Ongoing",AY109,IF(RIGHT($K109,2)=RIGHT(BU$39,2),SUM($AV109:AY109),0)+IF(RIGHT(BU$39,2)>RIGHT($K109,2),AY109,0)) -> 0 | BV109: =+IF($K109="Ongoing",AZ109,IF(RIGHT($K109,2)=RIGHT(BV$39,2),SUM($AV109:AZ109),0)+IF(RIGHT(BV$39,2)>RIGHT($K109,2),AZ109,0)) -> 0 | BW109: =+IF($K109="Ongoing",BA109,IF(RIGHT($K109,2)=RIGHT(BW$39,2),SUM($AV109:BA109),0)+IF(RIGHT(BW$39,2)>RIGHT($K109,2),BA109,0)) -> 0 | BX109: =+IF($K109="Ongoing",BB109,IF(RIGHT($K109,2)=RIGHT(BX$39,2),SUM($AV109:BB109),0)+IF(RIGHT(BX$39,2)>RIGHT($K109,2),BB109,0)) -> 0 | BY109: =+IF($K109="Ongoing",BC109,IF(RIGHT($K109,2)=RIGHT(BY$39,2),SUM($AV109:BC109),0)+IF(RIGHT(BY$39,2)>RIGHT($K109,2),BC109,0)) -> 0 | BZ109: =+IF($K109="Ongoing",BD109,IF(RIGHT($K109,2)=RIGHT(BZ$39,2),SUM($AV109:BD109),0)+IF(RIGHT(BZ$39,2)>RIGHT($K109,2),BD109,0)) -> 0 | CA109: =+IF($K109="Ongoing",BE109,IF(RIGHT($K109,2)=RIGHT(CA$39,2),SUM($AV109:BE109),0)+IF(RIGHT(CA$39,2)>RIGHT($K109,2),BE109,0)) -> 0 | CC109: =+O109*KeyAssumptionsPriceControl_FO!X$15 -> 0 | CD109: =+P109*KeyAssumptionsPriceControl_FO!Y$15 -> 0 | CE109: =+Q109*KeyAssumptionsPriceControl_FO!Z$15 -> 0 | CF109: =+R109*KeyAssumptionsPriceControl_FO!AA$15 -> 0 | CG109: =+S109*KeyAssumptionsPriceControl_FO!AB$15 -> 0 | CH109: =+T109*KeyAssumptionsPriceControl_FO!AC$15 -> 0 | CI109: =+U109*KeyAssumptionsPriceControl_FO!AD$15 -> 0 | CJ109: =+V109*KeyAssumptionsPriceControl_FO!AE$15 -> 0 | CK109: =+W109*KeyAssumptionsPriceControl_FO!AF$15 -> 0 | CL109: =+X109*KeyAssumptionsPriceControl_FO!AG$15 -> 0 | CN109: 0 | CO109: 0 | CP109: 0 | CQ109: 0 | CR109: 0 | CS109: 0 | CT109: 0 | CU109: 0 | CV109: 0 | CW109: 0
C110: [Capex Item - Significant Project / Capital Program / Other Capex] | E110: [Service] | F110: [Major Cost Driver] | G110: [Asset category] | H110: [Capital type] | J110: Straight line | K110: [Year finalised?] | AV110: 0 | AW110: 0 | AX110: 0 | AY110: 0 | AZ110: =+S110-AD110-AO110 -> 0 | BA110: 0 | BB110: 0 | BC110: 0 | BD110: 0 | BE110: 0 | BG110: 0 | BH110: 0 | BI110: 0 | BJ110: 0 | BK110: 0 | BL110: 0 | BM110: 0 | BN110: 0 | BO110: 0 | BP110: 0 | BR110: =+IF($K110="Ongoing",AV110,IF(RIGHT($K110,2)=RIGHT(BR$39,2),SUM($AV110:AV110),0)+IF(RIGHT(BR$39,2)>RIGHT($K110,2),AV110,0)) -> 0 | BS110: =+IF($K110="Ongoing",AW110,IF(RIGHT($K110,2)=RIGHT(BS$39,2),SUM($AV110:AW110),0)+IF(RIGHT(BS$39,2)>RIGHT($K110,2),AW110,0)) -> 0 | BT110: =+IF($K110="Ongoing",AX110,IF(RIGHT($K110,2)=RIGHT(BT$39,2),SUM($AV110:AX110),0)+IF(RIGHT(BT$39,2)>RIGHT($K110,2),AX110,0)) -> 0 | BU110: =+IF($K110="Ongoing",AY110,IF(RIGHT($K110,2)=RIGHT(BU$39,2),SUM($AV110:AY110),0)+IF(RIGHT(BU$39,2)>RIGHT($K110,2),AY110,0)) -> 0 | BV110: =+IF($K110="Ongoing",AZ110,IF(RIGHT($K110,2)=RIGHT(BV$39,2),SUM($AV110:AZ110),0)+IF(RIGHT(BV$39,2)>RIGHT($K110,2),AZ110,0)) -> 0 | BW110: =+IF($K110="Ongoing",BA110,IF(RIGHT($K110,2)=RIGHT(BW$39,2),SUM($AV110:BA110),0)+IF(RIGHT(BW$39,2)>RIGHT($K110,2),BA110,0)) -> 0 | BX110: =+IF($K110="Ongoing",BB110,IF(RIGHT($K110,2)=RIGHT(BX$39,2),SUM($AV110:BB110),0)+IF(RIGHT(BX$39,2)>RIGHT($K110,2),BB110,0)) -> 0 | BY110: =+IF($K110="Ongoing",BC110,IF(RIGHT($K110,2)=RIGHT(BY$39,2),SUM($AV110:BC110),0)+IF(RIGHT(BY$39,2)>RIGHT($K110,2),BC110,0)) -> 0 | BZ110: =+IF($K110="Ongoing",BD110,IF(RIGHT($K110,2)=RIGHT(BZ$39,2),SUM($AV110:BD110),0)+IF(RIGHT(BZ$39,2)>RIGHT($K110,2),BD110,0)) -> 0 | CA110: =+IF($K110="Ongoing",BE110,IF(RIGHT($K110,2)=RIGHT(CA$39,2),SUM($AV110:BE110),0)+IF(RIGHT(CA$39,2)>RIGHT($K110,2),BE110,0)) -> 0 | CC110: =+O110*KeyAssumptionsPriceControl_FO!X$15 -> 0 | CD110: =+P110*KeyAssumptionsPriceControl_FO!Y$15 -> 0 | CE110: =+Q110*KeyAssumptionsPriceControl_FO!Z$15 -> 0 | CF110: =+R110*KeyAssumptionsPriceControl_FO!AA$15 -> 0 | CG110: =+S110*KeyAssumptionsPriceControl_FO!AB$15 -> 0 | CH110: =+T110*KeyAssumptionsPriceControl_FO!AC$15 -> 0 | CI110: =+U110*KeyAssumptionsPriceControl_FO!AD$15 -> 0 | CJ110: =+V110*KeyAssumptionsPriceControl_FO!AE$15 -> 0 | CK110: =+W110*KeyAssumptionsPriceControl_FO!AF$15 -> 0 | CL110: =+X110*KeyAssumptionsPriceControl_FO!AG$15 -> 0 | CN110: 0 | CO110: 0 | CP110: 0 | CQ110: 0 | CR110: 0 | CS110: 0 | CT110: 0 | CU110: 0 | CV110: 0 | CW110: 0
C111: [Capex Item - Significant Project / Capital Program / Other Capex] | E111: [Service] | F111: [Major Cost Driver] | G111: [Asset category] | H111: [Capital type] | J111: Straight line | K111: [Year finalised?] | AV111: 0 | AW111: 0 | AX111: 0 | AY111: 0 | AZ111: 0 | BA111: 0 | BB111: 0 | BC111: 0 | BD111: 0 | BE111: 0 | BG111: 0 | BH111: 0 | BI111: 0 | BJ111: 0 | BK111: 0 | BL111: 0 | BM111: 0 | BN111: 0 | BO111: 0 | BP111: 0 | BR111: =+IF($K111="Ongoing",AV111,IF(RIGHT($K111,2)=RIGHT(BR$39,2),SUM($AV111:AV111),0)+IF(RIGHT(BR$39,2)>RIGHT($K111,2),AV111,0)) -> 0 | BS111: =+IF($K111="Ongoing",AW111,IF(RIGHT($K111,2)=RIGHT(BS$39,2),SUM($AV111:AW111),0)+IF(RIGHT(BS$39,2)>RIGHT($K111,2),AW111,0)) -> 0 | BT111: =+IF($K111="Ongoing",AX111,IF(RIGHT($K111,2)=RIGHT(BT$39,2),SUM($AV111:AX111),0)+IF(RIGHT(BT$39,2)>RIGHT($K111,2),AX111,0)) -> 0 | BU111: =+IF($K111="Ongoing",AY111,IF(RIGHT($K111,2)=RIGHT(BU$39,2),SUM($AV111:AY111),0)+IF(RIGHT(BU$39,2)>RIGHT($K111,2),AY111,0)) -> 0 | BV111: =+IF($K111="Ongoing",AZ111,IF(RIGHT($K111,2)=RIGHT(BV$39,2),SUM($AV111:AZ111),0)+IF(RIGHT(BV$39,2)>RIGHT($K111,2),AZ111,0)) -> 0 | BW111: =+IF($K111="Ongoing",BA111,IF(RIGHT($K111,2)=RIGHT(BW$39,2),SUM($AV111:BA111),0)+IF(RIGHT(BW$39,2)>RIGHT($K111,2),BA111,0)) -> 0 | BX111: =+IF($K111="Ongoing",BB111,IF(RIGHT($K111,2)=RIGHT(BX$39,2),SUM($AV111:BB111),0)+IF(RIGHT(BX$39,2)>RIGHT($K111,2),BB111,0)) -> 0 | BY111: =+IF($K111="Ongoing",BC111,IF(RIGHT($K111,2)=RIGHT(BY$39,2),SUM($AV111:BC111),0)+IF(RIGHT(BY$39,2)>RIGHT($K111,2),BC111,0)) -> 0 | BZ111: =+IF($K111="Ongoing",BD111,IF(RIGHT($K111,2)=RIGHT(BZ$39,2),SUM($AV111:BD111),0)+IF(RIGHT(BZ$39,2)>RIGHT($K111,2),BD111,0)) -> 0 | CA111: =+IF($K111="Ongoing",BE111,IF(RIGHT($K111,2)=RIGHT(CA$39,2),SUM($AV111:BE111),0)+IF(RIGHT(CA$39,2)>RIGHT($K111,2),BE111,0)) -> 0 | CC111: =+O111*KeyAssumptionsPriceControl_FO!X$15 -> 0 | CD111: =+P111*KeyAssumptionsPriceControl_FO!Y$15 -> 0 | CE111: =+Q111*KeyAssumptionsPriceControl_FO!Z$15 -> 0 | CF111: =+R111*KeyAssumptionsPriceControl_FO!AA$15 -> 0 | CG111: =+S111*KeyAssumptionsPriceControl_FO!AB$15 -> 0 | CH111: =+T111*KeyAssumptionsPriceControl_FO!AC$15 -> 0 | CI111: =+U111*KeyAssumptionsPriceControl_FO!AD$15 -> 0 | CJ111: =+V111*KeyAssumptionsPriceControl_FO!AE$15 -> 0 | CK111: =+W111*KeyAssumptionsPriceControl_FO!AF$15 -> 0 | CL111: =+X111*KeyAssumptionsPriceControl_FO!AG$15 -> 0 | CN111: 0 | CO111: 0 | CP111: 0 | CQ111: 0 | CR111: 0 | CS111: 0 | CT111: 0 | CU111: 0 | CV111: 0 | CW111: 0
C112: [Capex Item - Significant Project / Capital Program / Other Capex] | E112: [Service] | F112: [Major Cost Driver] | G112: [Asset category] | H112: [Capital type] | J112: Straight line | K112: [Year finalised?] | AV112: 0 | AW112: 0 | AX112: 0 | AY112: 0 | AZ112: 0 | BA112: 0 | BB112: 0 | BC112: 0 | BD112: 0 | BE112: 0 | BG112: 0 | BH112: 0 | BI112: 0 | BJ112: 0 | BK112: 0 | BL112: 0 | BM112: 0 | BN112: 0 | BO112: 0 | BP112: 0 | BR112: =+IF($K112="Ongoing",AV112,IF(RIGHT($K112,2)=RIGHT(BR$39,2),SUM($AV112:AV112),0)+IF(RIGHT(BR$39,2)>RIGHT($K112,2),AV112,0)) -> 0 | BS112: =+IF($K112="Ongoing",AW112,IF(RIGHT($K112,2)=RIGHT(BS$39,2),SUM($AV112:AW112),0)+IF(RIGHT(BS$39,2)>RIGHT($K112,2),AW112,0)) -> 0 | BT112: =+IF($K112="Ongoing",AX112,IF(RIGHT($K112,2)=RIGHT(BT$39,2),SUM($AV112:AX112),0)+IF(RIGHT(BT$39,2)>RIGHT($K112,2),AX112,0)) -> 0 | BU112: =+IF($K112="Ongoing",AY112,IF(RIGHT($K112,2)=RIGHT(BU$39,2),SUM($AV112:AY112),0)+IF(RIGHT(BU$39,2)>RIGHT($K112,2),AY112,0)) -> 0 | BV112: =+IF($K112="Ongoing",AZ112,IF(RIGHT($K112,2)=RIGHT(BV$39,2),SUM($AV112:AZ112),0)+IF(RIGHT(BV$39,2)>RIGHT($K112,2),AZ112,0)) -> 0 | BW112: =+IF($K112="Ongoing",BA112,IF(RIGHT($K112,2)=RIGHT(BW$39,2),SUM($AV112:BA112),0)+IF(RIGHT(BW$39,2)>RIGHT($K112,2),BA112,0)) -> 0 | BX112: =+IF($K112="Ongoing",BB112,IF(RIGHT($K112,2)=RIGHT(BX$39,2),SUM($AV112:BB112),0)+IF(RIGHT(BX$39,2)>RIGHT($K112,2),BB112,0)) -> 0 | BY112: =+IF($K112="Ongoing",BC112,IF(RIGHT($K112,2)=RIGHT(BY$39,2),SUM($AV112:BC112),0)+IF(RIGHT(BY$39,2)>RIGHT($K112,2),BC112,0)) -> 0 | BZ112: =+IF($K112="Ongoing",BD112,IF(RIGHT($K112,2)=RIGHT(BZ$39,2),SUM($AV112:BD112),0)+IF(RIGHT(BZ$39,2)>RIGHT($K112,2),BD112,0)) -> 0 | CA112: =+IF($K112="Ongoing",BE112,IF(RIGHT($K112,2)=RIGHT(CA$39,2),SUM($AV112:BE112),0)+IF(RIGHT(CA$39,2)>RIGHT($K112,2),BE112,0)) -> 0 | CC112: =+O112*KeyAssumptionsPriceControl_FO!X$15 -> 0 | CD112: =+P112*KeyAssumptionsPriceControl_FO!Y$15 -> 0 | CE112: =+Q112*KeyAssumptionsPriceControl_FO!Z$15 -> 0 | CF112: =+R112*KeyAssumptionsPriceControl_FO!AA$15 -> 0 | CG112: =+S112*KeyAssumptionsPriceControl_FO!AB$15 -> 0 | CH112: =+T112*KeyAssumptionsPriceControl_FO!AC$15 -> 0 | CI112: =+U112*KeyAssumptionsPriceControl_FO!AD$15 -> 0 | CJ112: =+V112*KeyAssumptionsPriceControl_FO!AE$15 -> 0 | CK112: =+W112*KeyAssumptionsPriceControl_FO!AF$15 -> 0 | CL112: =+X112*KeyAssumptionsPriceControl_FO!AG$15 -> 0 | CN112: 0 | CO112: 0 | CP112: 0 | CQ112: 0 | CR112: 0 | CS112: 0 | CT112: 0 | CU112: 0 | CV112: 0 | CW112: 0
C113: [Capex Item - Significant Project / Capital Program / Other Capex] | E113: [Service] | F113: [Major Cost Driver] | G113: [Asset category] | H113: [Capital type] | J113: Straight line | K113: [Year finalised?] | AV113: 0 | AW113: 0 | AX113: 0 | AY113: 0 | AZ113: 0 | BA113: 0 | BB113: 0 | BC113: 0 | BD113: 0 | BE113: 0 | BG113: 0 | BH113: 0 | BI113: 0 | BJ113: 0 | BK113: 0 | BL113: 0 | BM113: 0 | BN113: 0 | BO113: 0 | BP113: 0 | BR113: =+IF($K113="Ongoing",AV113,IF(RIGHT($K113,2)=RIGHT(BR$39,2),SUM($AV113:AV113),0)+IF(RIGHT(BR$39,2)>RIGHT($K113,2),AV113,0)) -> 0 | BS113: =+IF($K113="Ongoing",AW113,IF(RIGHT($K113,2)=RIGHT(BS$39,2),SUM($AV113:AW113),0)+IF(RIGHT(BS$39,2)>RIGHT($K113,2),AW113,0)) -> 0 | BT113: =+IF($K113="Ongoing",AX113,IF(RIGHT($K113,2)=RIGHT(BT$39,2),SUM($AV113:AX113),0)+IF(RIGHT(BT$39,2)>RIGHT($K113,2),AX113,0)) -> 0 | BU113: =+IF($K113="Ongoing",AY113,IF(RIGHT($K113,2)=RIGHT(BU$39,2),SUM($AV113:AY113),0)+IF(RIGHT(BU$39,2)>RIGHT($K113,2),AY113,0)) -> 0 | BV113: =+IF($K113="Ongoing",AZ113,IF(RIGHT($K113,2)=RIGHT(BV$39,2),SUM($AV113:AZ113),0)+IF(RIGHT(BV$39,2)>RIGHT($K113,2),AZ113,0)) -> 0 | BW113: =+IF($K113="Ongoing",BA113,IF(RIGHT($K113,2)=RIGHT(BW$39,2),SUM($AV113:BA113),0)+IF(RIGHT(BW$39,2)>RIGHT($K113,2),BA113,0)) -> 0 | BX113: =+IF($K113="Ongoing",BB113,IF(RIGHT($K113,2)=RIGHT(BX$39,2),SUM($AV113:BB113),0)+IF(RIGHT(BX$39,2)>RIGHT($K113,2),BB113,0)) -> 0 | BY113: =+IF($K113="Ongoing",BC113,IF(RIGHT($K113,2)=RIGHT(BY$39,2),SUM($AV113:BC113),0)+IF(RIGHT(BY$39,2)>RIGHT($K113,2),BC113,0)) -> 0 | BZ113: =+IF($K113="Ongoing",BD113,IF(RIGHT($K113,2)=RIGHT(BZ$39,2),SUM($AV113:BD113),0)+IF(RIGHT(BZ$39,2)>RIGHT($K113,2),BD113,0)) -> 0 | CA113: =+IF($K113="Ongoing",BE113,IF(RIGHT($K113,2)=RIGHT(CA$39,2),SUM($AV113:BE113),0)+IF(RIGHT(CA$39,2)>RIGHT($K113,2),BE113,0)) -> 0 | CC113: =+O113*KeyAssumptionsPriceControl_FO!X$15 -> 0 | CD113: =+P113*KeyAssumptionsPriceControl_FO!Y$15 -> 0 | CE113: =+Q113*KeyAssumptionsPriceControl_FO!Z$15 -> 0 | CF113: =+R113*KeyAssumptionsPriceControl_FO!AA$15 -> 0 | CG113: =+S113*KeyAssumptionsPriceControl_FO!AB$15 -> 0 | CH113: =+T113*KeyAssumptionsPriceControl_FO!AC$15 -> 0 | CI113: =+U113*KeyAssumptionsPriceControl_FO!AD$15 -> 0 | CJ113: =+V113*KeyAssumptionsPriceControl_FO!AE$15 -> 0 | CK113: =+W113*KeyAssumptionsPriceControl_FO!AF$15 -> 0 | CL113: =+X113*KeyAssumptionsPriceControl_FO!AG$15 -> 0 | CN113: 0 | CO113: 0 | CP113: 0 | CQ113: 0 | CR113: 0 | CS113: 0 | CT113: 0 | CU113: 0 | CV113: 0 | CW113: 0
C114: [Capex Item - Significant Project / Capital Program / Other Capex] | E114: [Service] | F114: [Major Cost Driver] | G114: [Asset category] | H114: [Capital type] | J114: Straight line | K114: [Year finalised?] | AV114: 0 | AW114: 0 | AX114: 0 | AY114: 0 | AZ114: 0 | BA114: 0 | BB114: 0 | BC114: 0 | BD114: 0 | BE114: 0 | BG114: 0 | BH114: 0 | BI114: 0 | BJ114: 0 | BK114: 0 | BL114: 0 | BM114: 0 | BN114: 0 | BO114: 0 | BP114: 0 | BR114: =+IF($K114="Ongoing",AV114,IF(RIGHT($K114,2)=RIGHT(BR$39,2),SUM($AV114:AV114),0)+IF(RIGHT(BR$39,2)>RIGHT($K114,2),AV114,0)) -> 0 | BS114: =+IF($K114="Ongoing",AW114,IF(RIGHT($K114,2)=RIGHT(BS$39,2),SUM($AV114:AW114),0)+IF(RIGHT(BS$39,2)>RIGHT($K114,2),AW114,0)) -> 0 | BT114: =+IF($K114="Ongoing",AX114,IF(RIGHT($K114,2)=RIGHT(BT$39,2),SUM($AV114:AX114),0)+IF(RIGHT(BT$39,2)>RIGHT($K114,2),AX114,0)) -> 0 | BU114: =+IF($K114="Ongoing",AY114,IF(RIGHT($K114,2)=RIGHT(BU$39,2),SUM($AV114:AY114),0)+IF(RIGHT(BU$39,2)>RIGHT($K114,2),AY114,0)) -> 0 | BV114: =+IF($K114="Ongoing",AZ114,IF(RIGHT($K114,2)=RIGHT(BV$39,2),SUM($AV114:AZ114),0)+IF(RIGHT(BV$39,2)>RIGHT($K114,2),AZ114,0)) -> 0 | BW114: =+IF($K114="Ongoing",BA114,IF(RIGHT($K114,2)=RIGHT(BW$39,2),SUM($AV114:BA114),0)+IF(RIGHT(BW$39,2)>RIGHT($K114,2),BA114,0)) -> 0 | BX114: =+IF($K114="Ongoing",BB114,IF(RIGHT($K114,2)=RIGHT(BX$39,2),SUM($AV114:BB114),0)+IF(RIGHT(BX$39,2)>RIGHT($K114,2),BB114,0)) -> 0 | BY114: =+IF($K114="Ongoing",BC114,IF(RIGHT($K114,2)=RIGHT(BY$39,2),SUM($AV114:BC114),0)+IF(RIGHT(BY$39,2)>RIGHT($K114,2),BC114,0)) -> 0 | BZ114: =+IF($K114="Ongoing",BD114,IF(RIGHT($K114,2)=RIGHT(BZ$39,2),SUM($AV114:BD114),0)+IF(RIGHT(BZ$39,2)>RIGHT($K114,2),BD114,0)) -> 0 | CA114: =+IF($K114="Ongoing",BE114,IF(RIGHT($K114,2)=RIGHT(CA$39,2),SUM($AV114:BE114),0)+IF(RIGHT(CA$39,2)>RIGHT($K114,2),BE114,0)) -> 0 | CC114: =+O114*KeyAssumptionsPriceControl_FO!X$15 -> 0 | CD114: =+P114*KeyAssumptionsPriceControl_FO!Y$15 -> 0 | CE114: =+Q114*KeyAssumptionsPriceControl_FO!Z$15 -> 0 | CF114: =+R114*KeyAssumptionsPriceControl_FO!AA$15 -> 0 | CG114: =+S114*KeyAssumptionsPriceControl_FO!AB$15 -> 0 | CH114: =+T114*KeyAssumptionsPriceControl_FO!AC$15 -> 0 | CI114: =+U114*KeyAssumptionsPriceControl_FO!AD$15 -> 0 | CJ114: =+V114*KeyAssumptionsPriceControl_FO!AE$15 -> 0 | CK114: =+W114*KeyAssumptionsPriceControl_FO!AF$15 -> 0 | CL114: =+X114*KeyAssumptionsPriceControl_FO!AG$15 -> 0 | CN114: 0 | CO114: 0 | CP114: 0 | CQ114: 0 | CR114: 0 | CS114: 0 | CT114: 0 | CU114: 0 | CV114: 0 | CW114: 0
C115: [Capex Item - Significant Project / Capital Program / Other Capex] | E115: [Service] | F115: [Major Cost Driver] | G115: [Asset category] | H115: [Capital type] | J115: Straight line | K115: [Year finalised?] | AV115: 0 | AW115: 0 | AX115: 0 | AY115: 0 | AZ115: 0 | BA115: 0 | BB115: 0 | BC115: 0 | BD115: 0 | BE115: 0 | BG115: 0 | BH115: 0 | BI115: 0 | BJ115: 0 | BK115: 0 | BL115: 0 | BM115: 0 | BN115: 0 | BO115: 0 | BP115: 0 | BR115: =+IF($K115="Ongoing",AV115,IF(RIGHT($K115,2)=RIGHT(BR$39,2),SUM($AV115:AV115),0)+IF(RIGHT(BR$39,2)>RIGHT($K115,2),AV115,0)) -> 0 | BS115: =+IF($K115="Ongoing",AW115,IF(RIGHT($K115,2)=RIGHT(BS$39,2),SUM($AV115:AW115),0)+IF(RIGHT(BS$39,2)>RIGHT($K115,2),AW115,0)) -> 0 | BT115: =+IF($K115="Ongoing",AX115,IF(RIGHT($K115,2)=RIGHT(BT$39,2),SUM($AV115:AX115),0)+IF(RIGHT(BT$39,2)>RIGHT($K115,2),AX115,0)) -> 0 | BU115: =+IF($K115="Ongoing",AY115,IF(RIGHT($K115,2)=RIGHT(BU$39,2),SUM($AV115:AY115),0)+IF(RIGHT(BU$39,2)>RIGHT($K115,2),AY115,0)) -> 0 | BV115: =+IF($K115="Ongoing",AZ115,IF(RIGHT($K115,2)=RIGHT(BV$39,2),SUM($AV115:AZ115),0)+IF(RIGHT(BV$39,2)>RIGHT($K115,2),AZ115,0)) -> 0 | BW115: =+IF($K115="Ongoing",BA115,IF(RIGHT($K115,2)=RIGHT(BW$39,2),SUM($AV115:BA115),0)+IF(RIGHT(BW$39,2)>RIGHT($K115,2),BA115,0)) -> 0 | BX115: =+IF($K115="Ongoing",BB115,IF(RIGHT($K115,2)=RIGHT(BX$39,2),SUM($AV115:BB115),0)+IF(RIGHT(BX$39,2)>RIGHT($K115,2),BB115,0)) -> 0 | BY115: =+IF($K115="Ongoing",BC115,IF(RIGHT($K115,2)=RIGHT(BY$39,2),SUM($AV115:BC115),0)+IF(RIGHT(BY$39,2)>RIGHT($K115,2),BC115,0)) -> 0 | BZ115: =+IF($K115="Ongoing",BD115,IF(RIGHT($K115,2)=RIGHT(BZ$39,2),SUM($AV115:BD115),0)+IF(RIGHT(BZ$39,2)>RIGHT($K115,2),BD115,0)) -> 0 | CA115: =+IF($K115="Ongoing",BE115,IF(RIGHT($K115,2)=RIGHT(CA$39,2),SUM($AV115:BE115),0)+IF(RIGHT(CA$39,2)>RIGHT($K115,2),BE115,0)) -> 0 | CC115: =+O115*KeyAssumptionsPriceControl_FO!X$15 -> 0 | CD115: =+P115*KeyAssumptionsPriceControl_FO!Y$15 -> 0 | CE115: =+Q115*KeyAssumptionsPriceControl_FO!Z$15 -> 0 | CF115: =+R115*KeyAssumptionsPriceControl_FO!AA$15 -> 0 | CG115: =+S115*KeyAssumptionsPriceControl_FO!AB$15 -> 0 | CH115: =+T115*KeyAssumptionsPriceControl_FO!AC$15 -> 0 | CI115: =+U115*KeyAssumptionsPriceControl_FO!AD$15 -> 0 | CJ115: =+V115*KeyAssumptionsPriceControl_FO!AE$15 -> 0 | CK115: =+W115*KeyAssumptionsPriceControl_FO!AF$15 -> 0 | CL115: =+X115*KeyAssumptionsPriceControl_FO!AG$15 -> 0 | CN115: 0 | CO115: 0 | CP115: 0 | CQ115: 0 | CR115: 0 | CS115: 0 | CT115: 0 | CU115: 0 | CV115: 0 | CW115: 0
C116: [Capex Item - Significant Project / Capital Program / Other Capex] | E116: [Service] | F116: [Major Cost Driver] | G116: [Asset category] | H116: [Capital type] | J116: Straight line | K116: [Year finalised?] | AV116: 0 | AW116: 0 | AX116: 0 | AY116: 0 | AZ116: 0 | BA116: 0 | BB116: 0 | BC116: 0 | BD116: 0 | BE116: 0 | BG116: 0 | BH116: 0 | BI116: 0 | BJ116: 0 | BK116: 0 | BL116: 0 | BM116: 0 | BN116: 0 | BO116: 0 | BP116: 0 | BR116: =+IF($K116="Ongoing",AV116,IF(RIGHT($K116,2)=RIGHT(BR$39,2),SUM($AV116:AV116),0)+IF(RIGHT(BR$39,2)>RIGHT($K116,2),AV116,0)) -> 0 | BS116: =+IF($K116="Ongoing",AW116,IF(RIGHT($K116,2)=RIGHT(BS$39,2),SUM($AV116:AW116),0)+IF(RIGHT(BS$39,2)>RIGHT($K116,2),AW116,0)) -> 0 | BT116: =+IF($K116="Ongoing",AX116,IF(RIGHT($K116,2)=RIGHT(BT$39,2),SUM($AV116:AX116),0)+IF(RIGHT(BT$39,2)>RIGHT($K116,2),AX116,0)) -> 0 | BU116: =+IF($K116="Ongoing",AY116,IF(RIGHT($K116,2)=RIGHT(BU$39,2),SUM($AV116:AY116),0)+IF(RIGHT(BU$39,2)>RIGHT($K116,2),AY116,0)) -> 0 | BV116: =+IF($K116="Ongoing",AZ116,IF(RIGHT($K116,2)=RIGHT(BV$39,2),SUM($AV116:AZ116),0)+IF(RIGHT(BV$39,2)>RIGHT($K116,2),AZ116,0)) -> 0 | BW116: =+IF($K116="Ongoing",BA116,IF(RIGHT($K116,2)=RIGHT(BW$39,2),SUM($AV116:BA116),0)+IF(RIGHT(BW$39,2)>RIGHT($K116,2),BA116,0)) -> 0 | BX116: =+IF($K116="Ongoing",BB116,IF(RIGHT($K116,2)=RIGHT(BX$39,2),SUM($AV116:BB116),0)+IF(RIGHT(BX$39,2)>RIGHT($K116,2),BB116,0)) -> 0 | BY116: =+IF($K116="Ongoing",BC116,IF(RIGHT($K116,2)=RIGHT(BY$39,2),SUM($AV116:BC116),0)+IF(RIGHT(BY$39,2)>RIGHT($K116,2),BC116,0)) -> 0 | BZ116: =+IF($K116="Ongoing",BD116,IF(RIGHT($K116,2)=RIGHT(BZ$39,2),SUM($AV116:BD116),0)+IF(RIGHT(BZ$39,2)>RIGHT($K116,2),BD116,0)) -> 0 | CA116: =+IF($K116="Ongoing",BE116,IF(RIGHT($K116,2)=RIGHT(CA$39,2),SUM($AV116:BE116),0)+IF(RIGHT(CA$39,2)>RIGHT($K116,2),BE116,0)) -> 0 | CC116: =+O116*KeyAssumptionsPriceControl_FO!X$15 -> 0 | CD116: =+P116*KeyAssumptionsPriceControl_FO!Y$15 -> 0 | CE116: =+Q116*KeyAssumptionsPriceControl_FO!Z$15 -> 0 | CF116: =+R116*KeyAssumptionsPriceControl_FO!AA$15 -> 0 | CG116: =+S116*KeyAssumptionsPriceControl_FO!AB$15 -> 0 | CH116: =+T116*KeyAssumptionsPriceControl_FO!AC$15 -> 0 | CI116: =+U116*KeyAssumptionsPriceControl_FO!AD$15 -> 0 | CJ116: =+V116*KeyAssumptionsPriceControl_FO!AE$15 -> 0 | CK116: =+W116*KeyAssumptionsPriceControl_FO!AF$15 -> 0 | CL116: =+X116*KeyAssumptionsPriceControl_FO!AG$15 -> 0 | CN116: 0 | CO116: 0 | CP116: 0 | CQ116: 0 | CR116: 0 | CS116: 0 | CT116: 0 | CU116: 0 | CV116: 0 | CW116: 0
C117: [Capex Item - Significant Project / Capital Program / Other Capex] | E117: [Service] | F117: [Major Cost Driver] | G117: [Asset category] | H117: [Capital type] | J117: Straight line | K117: [Year finalised?] | AV117: 0 | AW117: 0 | AX117: 0 | AY117: 0 | AZ117: 0 | BA117: 0 | BB117: 0 | BC117: 0 | BD117: 0 | BE117: 0 | BG117: 0 | BH117: 0 | BI117: 0 | BJ117: 0 | BK117: 0 | BL117: 0 | BM117: 0 | BN117: 0 | BO117: 0 | BP117: 0 | BR117: =+IF($K117="Ongoing",AV117,IF(RIGHT($K117,2)=RIGHT(BR$39,2),SUM($AV117:AV117),0)+IF(RIGHT(BR$39,2)>RIGHT($K117,2),AV117,0)) -> 0 | BS117: =+IF($K117="Ongoing",AW117,IF(RIGHT($K117,2)=RIGHT(BS$39,2),SUM($AV117:AW117),0)+IF(RIGHT(BS$39,2)>RIGHT($K117,2),AW117,0)) -> 0 | BT117: =+IF($K117="Ongoing",AX117,IF(RIGHT($K117,2)=RIGHT(BT$39,2),SUM($AV117:AX117),0)+IF(RIGHT(BT$39,2)>RIGHT($K117,2),AX117,0)) -> 0 | BU117: =+IF($K117="Ongoing",AY117,IF(RIGHT($K117,2)=RIGHT(BU$39,2),SUM($AV117:AY117),0)+IF(RIGHT(BU$39,2)>RIGHT($K117,2),AY117,0)) -> 0 | BV117: =+IF($K117="Ongoing",AZ117,IF(RIGHT($K117,2)=RIGHT(BV$39,2),SUM($AV117:AZ117),0)+IF(RIGHT(BV$39,2)>RIGHT($K117,2),AZ117,0)) -> 0 | BW117: =+IF($K117="Ongoing",BA117,IF(RIGHT($K117,2)=RIGHT(BW$39,2),SUM($AV117:BA117),0)+IF(RIGHT(BW$39,2)>RIGHT($K117,2),BA117,0)) -> 0 | BX117: =+IF($K117="Ongoing",BB117,IF(RIGHT($K117,2)=RIGHT(BX$39,2),SUM($AV117:BB117),0)+IF(RIGHT(BX$39,2)>RIGHT($K117,2),BB117,0)) -> 0 | BY117: =+IF($K117="Ongoing",BC117,IF(RIGHT($K117,2)=RIGHT(BY$39,2),SUM($AV117:BC117),0)+IF(RIGHT(BY$39,2)>RIGHT($K117,2),BC117,0)) -> 0 | BZ117: =+IF($K117="Ongoing",BD117,IF(RIGHT($K117,2)=RIGHT(BZ$39,2),SUM($AV117:BD117),0)+IF(RIGHT(BZ$39,2)>RIGHT($K117,2),BD117,0)) -> 0 | CA117: =+IF($K117="Ongoing",BE117,IF(RIGHT($K117,2)=RIGHT(CA$39,2),SUM($AV117:BE117),0)+IF(RIGHT(CA$39,2)>RIGHT($K117,2),BE117,0)) -> 0 | CC117: =+O117*KeyAssumptionsPriceControl_FO!X$15 -> 0 | CD117: =+P117*KeyAssumptionsPriceControl_FO!Y$15 -> 0 | CE117: =+Q117*KeyAssumptionsPriceControl_FO!Z$15 -> 0 | CF117: =+R117*KeyAssumptionsPriceControl_FO!AA$15 -> 0 | CG117: =+S117*KeyAssumptionsPriceControl_FO!AB$15 -> 0 | CH117: =+T117*KeyAssumptionsPriceControl_FO!AC$15 -> 0 | CI117: =+U117*KeyAssumptionsPriceControl_FO!AD$15 -> 0 | CJ117: =+V117*KeyAssumptionsPriceControl_FO!AE$15 -> 0 | CK117: =+W117*KeyAssumptionsPriceControl_FO!AF$15 -> 0 | CL117: =+X117*KeyAssumptionsPriceControl_FO!AG$15 -> 0 | CN117: 0 | CO117: 0 | CP117: 0 | CQ117: 0 | CR117: 0 | CS117: 0 | CT117: 0 | CU117: 0 | CV117: 0 | CW117: 0
C118: [Capex Item - Significant Project / Capital Program / Other Capex] | E118: [Service] | F118: [Major Cost Driver] | G118: [Asset category] | H118: [Capital type] | J118: Straight line | K118: [Year finalised?] | AV118: 0 | AW118: 0 | AX118: 0 | AY118: 0 | AZ118: 0 | BA118: 0 | BB118: 0 | BC118: 0 | BD118: 0 | BE118: 0 | BG118: 0 | BH118: 0 | BI118: 0 | BJ118: 0 | BK118: 0 | BL118: 0 | BM118: 0 | BN118: 0 | BO118: 0 | BP118: 0 | BR118: =+IF($K118="Ongoing",AV118,IF(RIGHT($K118,2)=RIGHT(BR$39,2),SUM($AV118:AV118),0)+IF(RIGHT(BR$39,2)>RIGHT($K118,2),AV118,0)) -> 0 | BS118: =+IF($K118="Ongoing",AW118,IF(RIGHT($K118,2)=RIGHT(BS$39,2),SUM($AV118:AW118),0)+IF(RIGHT(BS$39,2)>RIGHT($K118,2),AW118,0)) -> 0 | BT118: =+IF($K118="Ongoing",AX118,IF(RIGHT($K118,2)=RIGHT(BT$39,2),SUM($AV118:AX118),0)+IF(RIGHT(BT$39,2)>RIGHT($K118,2),AX118,0)) -> 0 | BU118: =+IF($K118="Ongoing",AY118,IF(RIGHT($K118,2)=RIGHT(BU$39,2),SUM($AV118:AY118),0)+IF(RIGHT(BU$39,2)>RIGHT($K118,2),AY118,0)) -> 0 | BV118: =+IF($K118="Ongoing",AZ118,IF(RIGHT($K118,2)=RIGHT(BV$39,2),SUM($AV118:AZ118),0)+IF(RIGHT(BV$39,2)>RIGHT($K118,2),AZ118,0)) -> 0 | BW118: =+IF($K118="Ongoing",BA118,IF(RIGHT($K118,2)=RIGHT(BW$39,2),SUM($AV118:BA118),0)+IF(RIGHT(BW$39,2)>RIGHT($K118,2),BA118,0)) -> 0 | BX118: =+IF($K118="Ongoing",BB118,IF(RIGHT($K118,2)=RIGHT(BX$39,2),SUM($AV118:BB118),0)+IF(RIGHT(BX$39,2)>RIGHT($K118,2),BB118,0)) -> 0 | BY118: =+IF($K118="Ongoing",BC118,IF(RIGHT($K118,2)=RIGHT(BY$39,2),SUM($AV118:BC118),0)+IF(RIGHT(BY$39,2)>RIGHT($K118,2),BC118,0)) -> 0 | BZ118: =+IF($K118="Ongoing",BD118,IF(RIGHT($K118,2)=RIGHT(BZ$39,2),SUM($AV118:BD118),0)+IF(RIGHT(BZ$39,2)>RIGHT($K118,2),BD118,0)) -> 0 | CA118: =+IF($K118="Ongoing",BE118,IF(RIGHT($K118,2)=RIGHT(CA$39,2),SUM($AV118:BE118),0)+IF(RIGHT(CA$39,2)>RIGHT($K118,2),BE118,0)) -> 0 | CC118: =+O118*KeyAssumptionsPriceControl_FO!X$15 -> 0 | CD118: =+P118*KeyAssumptionsPriceControl_FO!Y$15 -> 0 | CE118: =+Q118*KeyAssumptionsPriceControl_FO!Z$15 -> 0 | CF118: =+R118*KeyAssumptionsPriceControl_FO!AA$15 -> 0 | CG118: =+S118*KeyAssumptionsPriceControl_FO!AB$15 -> 0 | CH118: =+T118*KeyAssumptionsPriceControl_FO!AC$15 -> 0 | CI118: =+U118*KeyAssumptionsPriceControl_FO!AD$15 -> 0 | CJ118: =+V118*KeyAssumptionsPriceControl_FO!AE$15 -> 0 | CK118: =+W118*KeyAssumptionsPriceControl_FO!AF$15 -> 0 | CL118: =+X118*KeyAssumptionsPriceControl_FO!AG$15 -> 0 | CN118: 0 | CO118: 0 | CP118: 0 | CQ118: 0 | CR118: 0 | CS118: 0 | CT118: 0 | CU118: 0 | CV118: 0 | CW118: 0
C119: [Capex Item - Significant Project / Capital Program / Other Capex] | E119: [Service] | F119: [Major Cost Driver] | G119: [Asset category] | H119: [Capital type] | J119: Straight line | K119: [Year finalised?] | AV119: 0 | AW119: 0 | AX119: 0 | AY119: 0 | AZ119: 0 | BA119: 0 | BB119: 0 | BC119: 0 | BD119: 0 | BE119: 0 | BG119: 0 | BH119: 0 | BI119: 0 | BJ119: 0 | BK119: 0 | BL119: 0 | BM119: 0 | BN119: 0 | BO119: 0 | BP119: 0 | BR119: =+IF($K119="Ongoing",AV119,IF(RIGHT($K119,2)=RIGHT(BR$39,2),SUM($AV119:AV119),0)+IF(RIGHT(BR$39,2)>RIGHT($K119,2),AV119,0)) -> 0 | BS119: =+IF($K119="Ongoing",AW119,IF(RIGHT($K119,2)=RIGHT(BS$39,2),SUM($AV119:AW119),0)+IF(RIGHT(BS$39,2)>RIGHT($K119,2),AW119,0)) -> 0 | BT119: =+IF($K119="Ongoing",AX119,IF(RIGHT($K119,2)=RIGHT(BT$39,2),SUM($AV119:AX119),0)+IF(RIGHT(BT$39,2)>RIGHT($K119,2),AX119,0)) -> 0 | BU119: =+IF($K119="Ongoing",AY119,IF(RIGHT($K119,2)=RIGHT(BU$39,2),SUM($AV119:AY119),0)+IF(RIGHT(BU$39,2)>RIGHT($K119,2),AY119,0)) -> 0 | BV119: =+IF($K119="Ongoing",AZ119,IF(RIGHT($K119,2)=RIGHT(BV$39,2),SUM($AV119:AZ119),0)+IF(RIGHT(BV$39,2)>RIGHT($K119,2),AZ119,0)) -> 0 | BW119: =+IF($K119="Ongoing",BA119,IF(RIGHT($K119,2)=RIGHT(BW$39,2),SUM($AV119:BA119),0)+IF(RIGHT(BW$39,2)>RIGHT($K119,2),BA119,0)) -> 0 | BX119: =+IF($K119="Ongoing",BB119,IF(RIGHT($K119,2)=RIGHT(BX$39,2),SUM($AV119:BB119),0)+IF(RIGHT(BX$39,2)>RIGHT($K119,2),BB119,0)) -> 0 | BY119: =+IF($K119="Ongoing",BC119,IF(RIGHT($K119,2)=RIGHT(BY$39,2),SUM($AV119:BC119),0)+IF(RIGHT(BY$39,2)>RIGHT($K119,2),BC119,0)) -> 0 | BZ119: =+IF($K119="Ongoing",BD119,IF(RIGHT($K119,2)=RIGHT(BZ$39,2),SUM($AV119:BD119),0)+IF(RIGHT(BZ$39,2)>RIGHT($K119,2),BD119,0)) -> 0 | CA119: =+IF($K119="Ongoing",BE119,IF(RIGHT($K119,2)=RIGHT(CA$39,2),SUM($AV119:BE119),0)+IF(RIGHT(CA$39,2)>RIGHT($K119,2),BE119,0)) -> 0 | CC119: =+O119*KeyAssumptionsPriceControl_FO!X$15 -> 0 | CD119: =+P119*KeyAssumptionsPriceControl_FO!Y$15 -> 0 | CE119: =+Q119*KeyAssumptionsPriceControl_FO!Z$15 -> 0 | CF119: =+R119*KeyAssumptionsPriceControl_FO!AA$15 -> 0 | CG119: =+S119*KeyAssumptionsPriceControl_FO!AB$15 -> 0 | CH119: =+T119*KeyAssumptionsPriceControl_FO!AC$15 -> 0 | CI119: =+U119*KeyAssumptionsPriceControl_FO!AD$15 -> 0 | CJ119: =+V119*KeyAssumptionsPriceControl_FO!AE$15 -> 0 | CK119: =+W119*KeyAssumptionsPriceControl_FO!AF$15 -> 0 | CL119: =+X119*KeyAssumptionsPriceControl_FO!AG$15 -> 0 | CN119: 0 | CO119: 0 | CP119: 0 | CQ119: 0 | CR119: 0 | CS119: 0 | CT119: 0 | CU119: 0 | CV119: 0 | CW119: 0
C120: [Capex Item - Significant Project / Capital Program / Other Capex] | E120: [Service] | F120: [Major Cost Driver] | G120: [Asset category] | H120: [Capital type] | J120: Straight line | K120: [Year finalised?] | AV120: 0 | AW120: 0 | AX120: 0 | AY120: 0 | AZ120: 0 | BA120: 0 | BB120: 0 | BC120: 0 | BD120: 0 | BE120: 0 | BG120: 0 | BH120: 0 | BI120: 0 | BJ120: 0 | BK120: 0 | BL120: 0 | BM120: 0 | BN120: 0 | BO120: 0 | BP120: 0 | BR120: =+IF($K120="Ongoing",AV120,IF(RIGHT($K120,2)=RIGHT(BR$39,2),SUM($AV120:AV120),0)+IF(RIGHT(BR$39,2)>RIGHT($K120,2),AV120,0)) -> 0 | BS120: =+IF($K120="Ongoing",AW120,IF(RIGHT($K120,2)=RIGHT(BS$39,2),SUM($AV120:AW120),0)+IF(RIGHT(BS$39,2)>RIGHT($K120,2),AW120,0)) -> 0 | BT120: =+IF($K120="Ongoing",AX120,IF(RIGHT($K120,2)=RIGHT(BT$39,2),SUM($AV120:AX120),0)+IF(RIGHT(BT$39,2)>RIGHT($K120,2),AX120,0)) -> 0 | BU120: =+IF($K120="Ongoing",AY120,IF(RIGHT($K120,2)=RIGHT(BU$39,2),SUM($AV120:AY120),0)+IF(RIGHT(BU$39,2)>RIGHT($K120,2),AY120,0)) -> 0 | BV120: =+IF($K120="Ongoing",AZ120,IF(RIGHT($K120,2)=RIGHT(BV$39,2),SUM($AV120:AZ120),0)+IF(RIGHT(BV$39,2)>RIGHT($K120,2),AZ120,0)) -> 0 | BW120: =+IF($K120="Ongoing",BA120,IF(RIGHT($K120,2)=RIGHT(BW$39,2),SUM($AV120:BA120),0)+IF(RIGHT(BW$39,2)>RIGHT($K120,2),BA120,0)) -> 0 | BX120: =+IF($K120="Ongoing",BB120,IF(RIGHT($K120,2)=RIGHT(BX$39,2),SUM($AV120:BB120),0)+IF(RIGHT(BX$39,2)>RIGHT($K120,2),BB120,0)) -> 0 | BY120: =+IF($K120="Ongoing",BC120,IF(RIGHT($K120,2)=RIGHT(BY$39,2),SUM($AV120:BC120),0)+IF(RIGHT(BY$39,2)>RIGHT($K120,2),BC120,0)) -> 0 | BZ120: =+IF($K120="Ongoing",BD120,IF(RIGHT($K120,2)=RIGHT(BZ$39,2),SUM($AV120:BD120),0)+IF(RIGHT(BZ$39,2)>RIGHT($K120,2),BD120,0)) -> 0 | CA120: =+IF($K120="Ongoing",BE120,IF(RIGHT($K120,2)=RIGHT(CA$39,2),SUM($AV120:BE120),0)+IF(RIGHT(CA$39,2)>RIGHT($K120,2),BE120,0)) -> 0 | CC120: =+O120*KeyAssumptionsPriceControl_FO!X$15 -> 0 | CD120: =+P120*KeyAssumptionsPriceControl_FO!Y$15 -> 0 | CE120: =+Q120*KeyAssumptionsPriceControl_FO!Z$15 -> 0 | CF120: =+R120*KeyAssumptionsPriceControl_FO!AA$15 -> 0 | CG120: =+S120*KeyAssumptionsPriceControl_FO!AB$15 -> 0 | CH120: =+T120*KeyAssumptionsPriceControl_FO!AC$15 -> 0 | CI120: =+U120*KeyAssumptionsPriceControl_FO!AD$15 -> 0 | CJ120: =+V120*KeyAssumptionsPriceControl_FO!AE$15 -> 0 | CK120: =+W120*KeyAssumptionsPriceControl_FO!AF$15 -> 0 | CL120: =+X120*KeyAssumptionsPriceControl_FO!AG$15 -> 0 | CN120: 0 | CO120: 0 | CP120: 0 | CQ120: 0 | CR120: 0 | CS120: 0 | CT120: 0 | CU120: 0 | CV120: 0 | CW120: 0
C121: [Capex Item - Significant Project / Capital Program / Other Capex] | E121: [Service] | F121: [Major Cost Driver] | G121: [Asset category] | H121: [Capital type] | J121: Straight line | K121: [Year finalised?] | AV121: 0 | AW121: 0 | AX121: 0 | AY121: 0 | AZ121: 0 | BA121: 0 | BB121: 0 | BC121: 0 | BD121: 0 | BE121: 0 | BG121: 0 | BH121: 0 | BI121: 0 | BJ121: 0 | BK121: =IF($L121=0,0, IF($L121<=0.5,BV121, IF(AND($J121="straight line",$L121<1.51),(BU121-((BU121/$L121)*0.5))+BV121/$L121*0.5, IF($J121="straight line", IF((LEFT(BK$39,4)*1)-INT($L121)<LEFT($BG$39,4)*1,0,((OFFSET(BV121,0,-INT($L121+0.5),1,1))/$L121)*(IF($L121-INT($L121)>0.5,$L121-0.5-INT($L121),IF($L121-INT($L121)<=0.5,$L121-0.5-INT($L121)+1,0)))) +BV121/$L121*0.5 +SUM(OFFSET(BV121,0,MAX(-INT($L121+(0.5-(10^-12))),-BK$40)+1,1,MIN(INT($L121+(0.5-(10^-12))),BK$40)-1))*1/$L121, IF($J121="Declining Balance",-$BG$38,0))))) -> 0 | BL121: 0 | BM121: 0 | BN121: 0 | BO121: 0 | BP121: 0 | BR121: =+IF($K121="Ongoing",AV121,IF(RIGHT($K121,2)=RIGHT(BR$39,2),SUM($AV121:AV121),0)+IF(RIGHT(BR$39,2)>RIGHT($K121,2),AV121,0)) -> 0 | BS121: =+IF($K121="Ongoing",AW121,IF(RIGHT($K121,2)=RIGHT(BS$39,2),SUM($AV121:AW121),0)+IF(RIGHT(BS$39,2)>RIGHT($K121,2),AW121,0)) -> 0 | BT121: =+IF($K121="Ongoing",AX121,IF(RIGHT($K121,2)=RIGHT(BT$39,2),SUM($AV121:AX121),0)+IF(RIGHT(BT$39,2)>RIGHT($K121,2),AX121,0)) -> 0 | BU121: =+IF($K121="Ongoing",AY121,IF(RIGHT($K121,2)=RIGHT(BU$39,2),SUM($AV121:AY121),0)+IF(RIGHT(BU$39,2)>RIGHT($K121,2),AY121,0)) -> 0 | BV121: =+IF($K121="Ongoing",AZ121,IF(RIGHT($K121,2)=RIGHT(BV$39,2),SUM($AV121:AZ121),0)+IF(RIGHT(BV$39,2)>RIGHT($K121,2),AZ121,0)) -> 0 | BW121: =+IF($K121="Ongoing",BA121,IF(RIGHT($K121,2)=RIGHT(BW$39,2),SUM($AV121:BA121),0)+IF(RIGHT(BW$39,2)>RIGHT($K121,2),BA121,0)) -> 0 | BX121: =+IF($K121="Ongoing",BB121,IF(RIGHT($K121,2)=RIGHT(BX$39,2),SUM($AV121:BB121),0)+IF(RIGHT(BX$39,2)>RIGHT($K121,2),BB121,0)) -> 0 | BY121: =+IF($K121="Ongoing",BC121,IF(RIGHT($K121,2)=RIGHT(BY$39,2),SUM($AV121:BC121),0)+IF(RIGHT(BY$39,2)>RIGHT($K121,2),BC121,0)) -> 0 | BZ121: =+IF($K121="Ongoing",BD121,IF(RIGHT($K121,2)=RIGHT(BZ$39,2),SUM($AV121:BD121),0)+IF(RIGHT(BZ$39,2)>RIGHT($K121,2),BD121,0)) -> 0 | CA121: =+IF($K121="Ongoing",BE121,IF(RIGHT($K121,2)=RIGHT(CA$39,2),SUM($AV121:BE121),0)+IF(RIGHT(CA$39,2)>RIGHT($K121,2),BE121,0)) -> 0 | CC121: =+O121*KeyAssumptionsPriceControl_FO!X$15 -> 0 | CD121: =+P121*KeyAssumptionsPriceControl_FO!Y$15 -> 0 | CE121: =+Q121*KeyAssumptionsPriceControl_FO!Z$15 -> 0 | CF121: =+R121*KeyAssumptionsPriceControl_FO!AA$15 -> 0 | CG121: =+S121*KeyAssumptionsPriceControl_FO!AB$15 -> 0 | CH121: =+T121*KeyAssumptionsPriceControl_FO!AC$15 -> 0 | CI121: =+U121*KeyAssumptionsPriceControl_FO!AD$15 -> 0 | CJ121: =+V121*KeyAssumptionsPriceControl_FO!AE$15 -> 0 | CK121: =+W121*KeyAssumptionsPriceControl_FO!AF$15 -> 0 | CL121: =+X121*KeyAssumptionsPriceControl_FO!AG$15 -> 0 | CN121: 0 | CO121: 0 | CP121: 0 | CQ121: 0 | CR121: =IF($M121=0,0, IF($M121<=0.5,CG121, IF(AND($J121="straight line",$M121<1.51),(CF121-((CF121/$M121)*0.5))+CG121/$M121*0.5, IF($J121="straight line", IF((LEFT(CR$39,4)*1)-INT($M121)<LEFT($CN$39,4)*1,0,((OFFSET(CG121,0,-INT($M121+0.5),1,1))/$M121)*(IF($M121-INT($M121)>0.5,$M121-0.5-INT($M121),IF($M121-INT($M121)<=0.5,$M121-0.5-INT($M121)+1,0)))) +CG121/$M121*0.5 +SUM(OFFSET(CG121,0,MAX(-INT($M121+(0.5-(10^-12))),-CR$40)+1,1,MIN(INT($M121+(0.5-(10^-12))),CR$40)-1))*1/$M121, IF($J121="Declining Balance",-$CN$38,0))))) -> 0 | CS121: 0 | CT121: 0 | CU121: 0 | CV121: 0 | CW121: 0
C122: [Capex Item - Significant Project / Capital Program / Other Capex] | E122: [Service] | F122: [Major Cost Driver] | G122: [Asset category] | H122: [Capital type] | J122: Straight line | K122: [Year finalised?] | AV122: 0 | AW122: 0 | AX122: 0 | AY122: 0 | AZ122: 0 | BA122: 0 | BB122: 0 | BC122: 0 | BD122: 0 | BE122: 0 | BG122: 0 | BH122: =IF($L122=0,0, IF($L122<=0.5,BS122, IF(AND($J122="straight line",$L122<1.51),(BR122-((BR122/$L122)*0.5))+BS122/$L122*0.5, IF($J122="straight line", IF((LEFT(BH$39,4)*1)-INT($L122)<LEFT($BG$39,4)*1,0,((OFFSET(BS122,0,-INT($L122+0.5),1,1))/$L122)*(IF($L122-INT($L122)>0.5,$L122-0.5-INT($L122),IF($L122-INT($L122)<=0.5,$L122-0.5-INT($L122)+1,0)))) +BS122/$L122*0.5 +SUM(OFFSET(BS122,0,MAX(-INT($L122+(0.5-(10^-12))),-BH$40)+1,1,MIN(INT($L122+(0.5-(10^-12))),BH$40)-1))*1/$L122, IF($J122="Declining Balance",-$BG$38,0))))) -> 0 | BI122: 0 | BJ122: 0 | BK122: 0 | BL122: 0 | BM122: 0 | BN122: 0 | BO122: 0 | BP122: 0 | BR122: =+IF($K122="Ongoing",AV122,IF(RIGHT($K122,2)=RIGHT(BR$39,2),SUM($AV122:AV122),0)+IF(RIGHT(BR$39,2)>RIGHT($K122,2),AV122,0)) -> 0 | BS122: =+IF($K122="Ongoing",AW122,IF(RIGHT($K122,2)=RIGHT(BS$39,2),SUM($AV122:AW122),0)+IF(RIGHT(BS$39,2)>RIGHT($K122,2),AW122,0)) -> 0 | BT122: =+IF($K122="Ongoing",AX122,IF(RIGHT($K122,2)=RIGHT(BT$39,2),SUM($AV122:AX122),0)+IF(RIGHT(BT$39,2)>RIGHT($K122,2),AX122,0)) -> 0 | BU122: =+IF($K122="Ongoing",AY122,IF(RIGHT($K122,2)=RIGHT(BU$39,2),SUM($AV122:AY122),0)+IF(RIGHT(BU$39,2)>RIGHT($K122,2),AY122,0)) -> 0 | BV122: =+IF($K122="Ongoing",AZ122,IF(RIGHT($K122,2)=RIGHT(BV$39,2),SUM($AV122:AZ122),0)+IF(RIGHT(BV$39,2)>RIGHT($K122,2),AZ122,0)) -> 0 | BW122: =+IF($K122="Ongoing",BA122,IF(RIGHT($K122,2)=RIGHT(BW$39,2),SUM($AV122:BA122),0)+IF(RIGHT(BW$39,2)>RIGHT($K122,2),BA122,0)) -> 0 | BX122: =+IF($K122="Ongoing",BB122,IF(RIGHT($K122,2)=RIGHT(BX$39,2),SUM($AV122:BB122),0)+IF(RIGHT(BX$39,2)>RIGHT($K122,2),BB122,0)) -> 0 | BY122: =+IF($K122="Ongoing",BC122,IF(RIGHT($K122,2)=RIGHT(BY$39,2),SUM($AV122:BC122),0)+IF(RIGHT(BY$39,2)>RIGHT($K122,2),BC122,0)) -> 0 | BZ122: =+IF($K122="Ongoing",BD122,IF(RIGHT($K122,2)=RIGHT(BZ$39,2),SUM($AV122:BD122),0)+IF(RIGHT(BZ$39,2)>RIGHT($K122,2),BD122,0)) -> 0 | CA122: =+IF($K122="Ongoing",BE122,IF(RIGHT($K122,2)=RIGHT(CA$39,2),SUM($AV122:BE122),0)+IF(RIGHT(CA$39,2)>RIGHT($K122,2),BE122,0)) -> 0 | CC122: =+O122*KeyAssumptionsPriceControl_FO!X$15 -> 0 | CD122: =+P122*KeyAssumptionsPriceControl_FO!Y$15 -> 0 | CE122: =+Q122*KeyAssumptionsPriceControl_FO!Z$15 -> 0 | CF122: =+R122*KeyAssumptionsPriceControl_FO!AA$15 -> 0 | CG122: =+S122*KeyAssumptionsPriceControl_FO!AB$15 -> 0 | CH122: =+T122*KeyAssumptionsPriceControl_FO!AC$15 -> 0 | CI122: =+U122*KeyAssumptionsPriceControl_FO!AD$15 -> 0 | CJ122: =+V122*KeyAssumptionsPriceControl_FO!AE$15 -> 0 | CK122: =+W122*KeyAssumptionsPriceControl_FO!AF$15 -> 0 | CL122: =+X122*KeyAssumptionsPriceControl_FO!AG$15 -> 0 | CN122: 0 | CO122: =IF($M122=0,0, IF($M122<=0.5,CD122, IF(AND($J122="straight line",$M122<1.51),(CC122-((CC122/$M122)*0.5))+CD122/$M122*0.5, IF($J122="straight line", IF((LEFT(CO$39,4)*1)-INT($M122)<LEFT($CN$39,4)*1,0,((OFFSET(CD122,0,-INT($M122+0.5),1,1))/$M122)*(IF($M122-INT($M122)>0.5,$M122-0.5-INT($M122),IF($M122-INT($M122)<=0.5,$M122-0.5-INT($M122)+1,0)))) +CD122/$M122*0.5 +SUM(OFFSET(CD122,0,MAX(-INT($M122+(0.5-(10^-12))),-CO$40)+1,1,MIN(INT($M122+(0.5-(10^-12))),CO$40)-1))*1/$M122, IF($J122="Declining Balance",-$CN$38,0))))) -> 0 | CP122: 0 | CQ122: 0 | CR122: 0 | CS122: 0 | CT122: 0 | CU122: 0 | CV122: 0 | CW122: 0
C123: [Capex Item - Significant Project / Capital Program / Other Capex] | E123: [Service] | F123: [Major Cost Driver] | G123: [Asset category] | H123: [Capital type] | J123: Straight line | K123: [Year finalised?] | AV123: 0 | AW123: 0 | AX123: 0 | AY123: 0 | AZ123: 0 | BA123: 0 | BB123: 0 | BC123: 0 | BD123: 0 | BE123: 0 | BG123: 0 | BH123: 0 | BI123: 0 | BJ123: 0 | BK123: 0 | BL123: 0 | BM123: 0 | BN123: 0 | BO123: 0 | BP123: 0 | BR123: =+IF($K123="Ongoing",AV123,IF(RIGHT($K123,2)=RIGHT(BR$39,2),SUM($AV123:AV123),0)+IF(RIGHT(BR$39,2)>RIGHT($K123,2),AV123,0)) -> 0 | BS123: =+IF($K123="Ongoing",AW123,IF(RIGHT($K123,2)=RIGHT(BS$39,2),SUM($AV123:AW123),0)+IF(RIGHT(BS$39,2)>RIGHT($K123,2),AW123,0)) -> 0 | BT123: =+IF($K123="Ongoing",AX123,IF(RIGHT($K123,2)=RIGHT(BT$39,2),SUM($AV123:AX123),0)+IF(RIGHT(BT$39,2)>RIGHT($K123,2),AX123,0)) -> 0 | BU123: =+IF($K123="Ongoing",AY123,IF(RIGHT($K123,2)=RIGHT(BU$39,2),SUM($AV123:AY123),0)+IF(RIGHT(BU$39,2)>RIGHT($K123,2),AY123,0)) -> 0 | BV123: =+IF($K123="Ongoing",AZ123,IF(RIGHT($K123,2)=RIGHT(BV$39,2),SUM($AV123:AZ123),0)+IF(RIGHT(BV$39,2)>RIGHT($K123,2),AZ123,0)) -> 0 | BW123: =+IF($K123="Ongoing",BA123,IF(RIGHT($K123,2)=RIGHT(BW$39,2),SUM($AV123:BA123),0)+IF(RIGHT(BW$39,2)>RIGHT($K123,2),BA123,0)) -> 0 | BX123: =+IF($K123="Ongoing",BB123,IF(RIGHT($K123,2)=RIGHT(BX$39,2),SUM($AV123:BB123),0)+IF(RIGHT(BX$39,2)>RIGHT($K123,2),BB123,0)) -> 0 | BY123: =+IF($K123="Ongoing",BC123,IF(RIGHT($K123,2)=RIGHT(BY$39,2),SUM($AV123:BC123),0)+IF(RIGHT(BY$39,2)>RIGHT($K123,2),BC123,0)) -> 0 | BZ123: =+IF($K123="Ongoing",BD123,IF(RIGHT($K123,2)=RIGHT(BZ$39,2),SUM($AV123:BD123),0)+IF(RIGHT(BZ$39,2)>RIGHT($K123,2),BD123,0)) -> 0 | CA123: =+IF($K123="Ongoing",BE123,IF(RIGHT($K123,2)=RIGHT(CA$39,2),SUM($AV123:BE123),0)+IF(RIGHT(CA$39,2)>RIGHT($K123,2),BE123,0)) -> 0 | CC123: =+O123*KeyAssumptionsPriceControl_FO!X$15 -> 0 | CD123: =+P123*KeyAssumptionsPriceControl_FO!Y$15 -> 0 | CE123: =+Q123*KeyAssumptionsPriceControl_FO!Z$15 -> 0 | CF123: =+R123*KeyAssumptionsPriceControl_FO!AA$15 -> 0 | CG123: =+S123*KeyAssumptionsPriceControl_FO!AB$15 -> 0 | CH123: =+T123*KeyAssumptionsPriceControl_FO!AC$15 -> 0 | CI123: =+U123*KeyAssumptionsPriceControl_FO!AD$15 -> 0 | CJ123: =+V123*KeyAssumptionsPriceControl_FO!AE$15 -> 0 | CK123: =+W123*KeyAssumptionsPriceControl_FO!AF$15 -> 0 | CL123: =+X123*KeyAssumptionsPriceControl_FO!AG$15 -> 0 | CN123: 0 | CO123: 0 | CP123: 0 | CQ123: 0 | CR123: 0 | CS123: 0 | CT123: 0 | CU123: 0 | CV123: 0 | CW123: 0
C124: [Capex Item - Significant Project / Capital Program / Other Capex] | E124: [Service] | F124: [Major Cost Driver] | G124: [Asset category] | H124: [Capital type] | J124: Straight line | K124: [Year finalised?] | AV124: 0 | AW124: 0 | AX124: 0 | AY124: 0 | AZ124: 0 | BA124: 0 | BB124: 0 | BC124: 0 | BD124: 0 | BE124: 0 | BG124: 0 | BH124: 0 | BI124: 0 | BJ124: 0 | BK124: 0 | BL124: 0 | BM124: 0 | BN124: 0 | BO124: 0 | BP124: 0 | BR124: =+IF($K124="Ongoing",AV124,IF(RIGHT($K124,2)=RIGHT(BR$39,2),SUM($AV124:AV124),0)+IF(RIGHT(BR$39,2)>RIGHT($K124,2),AV124,0)) -> 0 | BS124: =+IF($K124="Ongoing",AW124,IF(RIGHT($K124,2)=RIGHT(BS$39,2),SUM($AV124:AW124),0)+IF(RIGHT(BS$39,2)>RIGHT($K124,2),AW124,0)) -> 0 | BT124: =+IF($K124="Ongoing",AX124,IF(RIGHT($K124,2)=RIGHT(BT$39,2),SUM($AV124:AX124),0)+IF(RIGHT(BT$39,2)>RIGHT($K124,2),AX124,0)) -> 0 | BU124: =+IF($K124="Ongoing",AY124,IF(RIGHT($K124,2)=RIGHT(BU$39,2),SUM($AV124:AY124),0)+IF(RIGHT(BU$39,2)>RIGHT($K124,2),AY124,0)) -> 0 | BV124: =+IF($K124="Ongoing",AZ124,IF(RIGHT($K124,2)=RIGHT(BV$39,2),SUM($AV124:AZ124),0)+IF(RIGHT(BV$39,2)>RIGHT($K124,2),AZ124,0)) -> 0 | BW124: =+IF($K124="Ongoing",BA124,IF(RIGHT($K124,2)=RIGHT(BW$39,2),SUM($AV124:BA124),0)+IF(RIGHT(BW$39,2)>RIGHT($K124,2),BA124,0)) -> 0 | BX124: =+IF($K124="Ongoing",BB124,IF(RIGHT($K124,2)=RIGHT(BX$39,2),SUM($AV124:BB124),0)+IF(RIGHT(BX$39,2)>RIGHT($K124,2),BB124,0)) -> 0 | BY124: =+IF($K124="Ongoing",BC124,IF(RIGHT($K124,2)=RIGHT(BY$39,2),SUM($AV124:BC124),0)+IF(RIGHT(BY$39,2)>RIGHT($K124,2),BC124,0)) -> 0 | BZ124: =+IF($K124="Ongoing",BD124,IF(RIGHT($K124,2)=RIGHT(BZ$39,2),SUM($AV124:BD124),0)+IF(RIGHT(BZ$39,2)>RIGHT($K124,2),BD124,0)) -> 0 | CA124: =+IF($K124="Ongoing",BE124,IF(RIGHT($K124,2)=RIGHT(CA$39,2),SUM($AV124:BE124),0)+IF(RIGHT(CA$39,2)>RIGHT($K124,2),BE124,0)) -> 0 | CC124: =+O124*KeyAssumptionsPriceControl_FO!X$15 -> 0 | CD124: =+P124*KeyAssumptionsPriceControl_FO!Y$15 -> 0 | CE124: =+Q124*KeyAssumptionsPriceControl_FO!Z$15 -> 0 | CF124: =+R124*KeyAssumptionsPriceControl_FO!AA$15 -> 0 | CG124: =+S124*KeyAssumptionsPriceControl_FO!AB$15 -> 0 | CH124: =+T124*KeyAssumptionsPriceControl_FO!AC$15 -> 0 | CI124: =+U124*KeyAssumptionsPriceControl_FO!AD$15 -> 0 | CJ124: =+V124*KeyAssumptionsPriceControl_FO!AE$15 -> 0 | CK124: =+W124*KeyAssumptionsPriceControl_FO!AF$15 -> 0 | CL124: =+X124*KeyAssumptionsPriceControl_FO!AG$15 -> 0 | CN124: 0 | CO124: 0 | CP124: 0 | CQ124: 0 | CR124: 0 | CS124: 0 | CT124: 0 | CU124: 0 | CV124: 0 | CW124: 0
C125: [Capex Item - Significant Project / Capital Program / Other Capex] | E125: [Service] | F125: [Major Cost Driver] | G125: [Asset category] | H125: [Capital type] | J125: Straight line | K125: [Year finalised?] | AV125: 0 | AW125: 0 | AX125: 0 | AY125: 0 | AZ125: 0 | BA125: 0 | BB125: 0 | BC125: 0 | BD125: 0 | BE125: 0 | BG125: 0 | BH125: 0 | BI125: 0 | BJ125: 0 | BK125: 0 | BL125: 0 | BM125: 0 | BN125: 0 | BO125: 0 | BP125: 0 | BR125: =+IF($K125="Ongoing",AV125,IF(RIGHT($K125,2)=RIGHT(BR$39,2),SUM($AV125:AV125),0)+IF(RIGHT(BR$39,2)>RIGHT($K125,2),AV125,0)) -> 0 | BS125: =+IF($K125="Ongoing",AW125,IF(RIGHT($K125,2)=RIGHT(BS$39,2),SUM($AV125:AW125),0)+IF(RIGHT(BS$39,2)>RIGHT($K125,2),AW125,0)) -> 0 | BT125: =+IF($K125="Ongoing",AX125,IF(RIGHT($K125,2)=RIGHT(BT$39,2),SUM($AV125:AX125),0)+IF(RIGHT(BT$39,2)>RIGHT($K125,2),AX125,0)) -> 0 | BU125: =+IF($K125="Ongoing",AY125,IF(RIGHT($K125,2)=RIGHT(BU$39,2),SUM($AV125:AY125),0)+IF(RIGHT(BU$39,2)>RIGHT($K125,2),AY125,0)) -> 0 | BV125: =+IF($K125="Ongoing",AZ125,IF(RIGHT($K125,2)=RIGHT(BV$39,2),SUM($AV125:AZ125),0)+IF(RIGHT(BV$39,2)>RIGHT($K125,2),AZ125,0)) -> 0 | BW125: =+IF($K125="Ongoing",BA125,IF(RIGHT($K125,2)=RIGHT(BW$39,2),SUM($AV125:BA125),0)+IF(RIGHT(BW$39,2)>RIGHT($K125,2),BA125,0)) -> 0 | BX125: =+IF($K125="Ongoing",BB125,IF(RIGHT($K125,2)=RIGHT(BX$39,2),SUM($AV125:BB125),0)+IF(RIGHT(BX$39,2)>RIGHT($K125,2),BB125,0)) -> 0 | BY125: =+IF($K125="Ongoing",BC125,IF(RIGHT($K125,2)=RIGHT(BY$39,2),SUM($AV125:BC125),0)+IF(RIGHT(BY$39,2)>RIGHT($K125,2),BC125,0)) -> 0 | BZ125: =+IF($K125="Ongoing",BD125,IF(RIGHT($K125,2)=RIGHT(BZ$39,2),SUM($AV125:BD125),0)+IF(RIGHT(BZ$39,2)>RIGHT($K125,2),BD125,0)) -> 0 | CA125: =+IF($K125="Ongoing",BE125,IF(RIGHT($K125,2)=RIGHT(CA$39,2),SUM($AV125:BE125),0)+IF(RIGHT(CA$39,2)>RIGHT($K125,2),BE125,0)) -> 0 | CC125: =+O125*KeyAssumptionsPriceControl_FO!X$15 -> 0 | CD125: =+P125*KeyAssumptionsPriceControl_FO!Y$15 -> 0 | CE125: =+Q125*KeyAssumptionsPriceControl_FO!Z$15 -> 0 | CF125: =+R125*KeyAssumptionsPriceControl_FO!AA$15 -> 0 | CG125: =+S125*KeyAssumptionsPriceControl_FO!AB$15 -> 0 | CH125: =+T125*KeyAssumptionsPriceControl_FO!AC$15 -> 0 | CI125: =+U125*KeyAssumptionsPriceControl_FO!AD$15 -> 0 | CJ125: =+V125*KeyAssumptionsPriceControl_FO!AE$15 -> 0 | CK125: =+W125*KeyAssumptionsPriceControl_FO!AF$15 -> 0 | CL125: =+X125*KeyAssumptionsPriceControl_FO!AG$15 -> 0 | CN125: 0 | CO125: 0 | CP125: 0 | CQ125: 0 | CR125: 0 | CS125: 0 | CT125: 0 | CU125: 0 | CV125: 0 | CW125: 0
C126: [Capex Item - Significant Project / Capital Program / Other Capex] | E126: [Service] | F126: [Major Cost Driver] | G126: [Asset category] | H126: [Capital type] | J126: Straight line | K126: [Year finalised?] | AV126: 0 | AW126: 0 | AX126: 0 | AY126: 0 | AZ126: 0 | BA126: 0 | BB126: 0 | BC126: 0 | BD126: 0 | BE126: 0 | BG126: 0 | BH126: 0 | BI126: 0 | BJ126: 0 | BK126: 0 | BL126: 0 | BM126: 0 | BN126: 0 | BO126: 0 | BP126: 0 | BR126: =+IF($K126="Ongoing",AV126,IF(RIGHT($K126,2)=RIGHT(BR$39,2),SUM($AV126:AV126),0)+IF(RIGHT(BR$39,2)>RIGHT($K126,2),AV126,0)) -> 0 | BS126: =+IF($K126="Ongoing",AW126,IF(RIGHT($K126,2)=RIGHT(BS$39,2),SUM($AV126:AW126),0)+IF(RIGHT(BS$39,2)>RIGHT($K126,2),AW126,0)) -> 0 | BT126: =+IF($K126="Ongoing",AX126,IF(RIGHT($K126,2)=RIGHT(BT$39,2),SUM($AV126:AX126),0)+IF(RIGHT(BT$39,2)>RIGHT($K126,2),AX126,0)) -> 0 | BU126: =+IF($K126="Ongoing",AY126,IF(RIGHT($K126,2)=RIGHT(BU$39,2),SUM($AV126:AY126),0)+IF(RIGHT(BU$39,2)>RIGHT($K126,2),AY126,0)) -> 0 | BV126: =+IF($K126="Ongoing",AZ126,IF(RIGHT($K126,2)=RIGHT(BV$39,2),SUM($AV126:AZ126),0)+IF(RIGHT(BV$39,2)>RIGHT($K126,2),AZ126,0)) -> 0 | BW126: =+IF($K126="Ongoing",BA126,IF(RIGHT($K126,2)=RIGHT(BW$39,2),SUM($AV126:BA126),0)+IF(RIGHT(BW$39,2)>RIGHT($K126,2),BA126,0)) -> 0 | BX126: =+IF($K126="Ongoing",BB126,IF(RIGHT($K126,2)=RIGHT(BX$39,2),SUM($AV126:BB126),0)+IF(RIGHT(BX$39,2)>RIGHT($K126,2),BB126,0)) -> 0 | BY126: =+IF($K126="Ongoing",BC126,IF(RIGHT($K126,2)=RIGHT(BY$39,2),SUM($AV126:BC126),0)+IF(RIGHT(BY$39,2)>RIGHT($K126,2),BC126,0)) -> 0 | BZ126: =+IF($K126="Ongoing",BD126,IF(RIGHT($K126,2)=RIGHT(BZ$39,2),SUM($AV126:BD126),0)+IF(RIGHT(BZ$39,2)>RIGHT($K126,2),BD126,0)) -> 0 | CA126: =+IF($K126="Ongoing",BE126,IF(RIGHT($K126,2)=RIGHT(CA$39,2),SUM($AV126:BE126),0)+IF(RIGHT(CA$39,2)>RIGHT($K126,2),BE126,0)) -> 0 | CC126: =+O126*KeyAssumptionsPriceControl_FO!X$15 -> 0 | CD126: =+P126*KeyAssumptionsPriceControl_FO!Y$15 -> 0 | CE126: =+Q126*KeyAssumptionsPriceControl_FO!Z$15 -> 0 | CF126: =+R126*KeyAssumptionsPriceControl_FO!AA$15 -> 0 | CG126: =+S126*KeyAssumptionsPriceControl_FO!AB$15 -> 0 | CH126: =+T126*KeyAssumptionsPriceControl_FO!AC$15 -> 0 | CI126: =+U126*KeyAssumptionsPriceControl_FO!AD$15 -> 0 | CJ126: =+V126*KeyAssumptionsPriceControl_FO!AE$15 -> 0 | CK126: =+W126*KeyAssumptionsPriceControl_FO!AF$15 -> 0 | CL126: =+X126*KeyAssumptionsPriceControl_FO!AG$15 -> 0 | CN126: 0 | CO126: 0 | CP126: 0 | CQ126: 0 | CR126: 0 | CS126: 0 | CT126: 0 | CU126: 0 | CV126: 0 | CW126: 0
